Workbook

Sheet Main Page 1

Sheet Create Team
D1: Player
D3: Player
D5: Player
D7: Player
D9: Player
D11: Player
D13: Player
D15: Player
D17: Player
D19: Player
A24: Points | B24: 1
A25: Rebounds | B25: 1
A26: Assists | B26: 1
A27: Blocks | B27: 1
A28: Steals | B28: 1
A29: FG % | B29: 1
A30: FT % | B30: 1
A31: 3 pt % | B31: 1
A32: Turnovers | B32: -1
A33: Offensive Rebounds | B33: 1
A34: Defensive Rebounds | B34: 1
A35: Personal Fouls | B35: -1
A36: Field Goals Made | B36: 1
A37: Field Goals Attempted | B37: 1
A38: Free Throws Made | B38: 1
A39: Free Throws Attempted | B39: 1
A40: Three Pointers Made | B40: 1
A41: Three Pointers Attempted | B41: 1
A42: Minutes Played | B42: 1
A43: Games Started | B43: 1
A44: Games Played | B44: 1

Sheet Help

Sheet Roster (hidden)
A1: ATL
A2: No. | B2: Player | C2: Pos | D2: Ht | E2: Wt | F2: Birth Date | G2: Exp | H2: College
A3: 34 | B3: Devin Harris | C3: G | D3: 2012-06-03 | E3: 185 | F3: 1983-02-27 | G3: 8 | H3: University of Wisconsin
A4: 15 | B4: Al Horford | C4: C | D4: 2012-06-10 | E4: 245 | F4: 1986-06-03 | G4: 5 | H4: University of Florida
A5: 12 | B5: John Jenkins | C5: G | D5: 2012-06-04 | E5: 215 | F5: 1991-03-06 | G5: R | H5: Vanderbilt University
A6: 44 | B6: Ivan Johnson | C6: F | D6: 2012-06-08 | E6: 230 | F6: 1984-04-10 | G6: 1 | H6: University of Oregon
A7: 26 | B7: Kyle Korver | C7: F | D7: 2012-06-07 | E7: 210 | F7: 1981-03-17 | G7: 9 | H7: Creighton University
A8: 22 | B8: Anthony Morrow | C8: G | D8: 2012-06-05 | E8: 210 | F8: 1985-09-27 | G8: 4 | H8: Georgia Institute of Technology
A9: 27 | B9: Zaza Pachulia | C9: C | D9: 2012-06-11 | E9: 240 | F9: 1984-02-10 | G9: 9
A10: 10 | B10: Johan Petro | C10: C | D10: 2000-07-01 | E10: 247 | F10: 1986-01-27 | G10: 7
A11: 32 | B11: Mike Scott | C11: F | D11: 2012-06-08 | E11: 237 | F11: 1988-07-16 | G11: R | H11: University of Virginia
A12: 5 | B12: Josh Smith | C12: F | D12: 2012-06-09 | E12: 225 | F12: 1985-12-05 | G12: 8
A13: 92 | B13: DeShawn Stevenson | C13: G | D13: 2012-06-05 | E13: 210 | F13: 1981-04-03 | G13: 12
A14: 0 | B14: Jeff Teague | C14: G | D14: 2012-06-02 | E14: 180 | F14: 1988-06-10 | G14: 3 | H14: Wake Forest University
A15: 4 | B15: Anthony Tolliver | C15: C | D15: 2012-06-08 | E15: 240 | F15: 1985-06-01 | G15: 4 | H15: Creighton University
A16: 3 | B16: Louis Williams | C16: G | D16: 2012-06-02 | E16: 175 | F16: 1986-10-27 | G16: 7
A18: BOS
A19: No. | B19: Player | C19: Pos | D19: Ht | E19: Wt | F19: Birth Date | G19: Exp | H19: College
A20: 12 | B20: Leandro Barbosa | C20: G | D20: 2012-06-03 | E20: 176 | F20: 1982-11-28 | G20: 9
A21: 30 | B21: Brandon Bass | C21: F | D21: 2012-06-08 | E21: 240 | F21: 1985-04-30 | G21: 7 | H21: Louisiana State University
A22: 98 | B22: Jason Collins | C22: C | D22: 2000-07-01 | E22: 255 | F22: 1978-12-02 | G22: 11 | H22: Stanford University
A23: 5 | B23: Kevin Garnett | C23: F | D23: 2012-06-11 | E23: 220 | F23: 1976-05-19 | G23: 17
A24: 8 | B24: Jeff Green | C24: F | D24: 2012-06-09 | E24: 235 | F24: 1986-08-28 | G24: 4 | H24: Georgetown University
A25: 43 | B25: Kris Joseph | C25: F | D25: 2012-06-07 | E25: 210 | F25: 1988-12-17 | G25: R | H25: Syracuse University
A26: 11 | B26: Courtney Lee | C26: G | D26: 2012-06-05 | E26: 200 | F26: 1985-10-03 | G26: 4 | H26: Western Kentucky University
A27: 99 | B27: Darko Milicic | C27: F-C | D27: 2000-07-01 | E27: 250 | F27: 1985-06-20 | G27: 9
A28: 34 | B28: Paul Pierce | C28: F | D28: 2012-06-06 | E28: 230 | F28: 1977-10-13 | G28: 14 | H28: University of Kansas
A29: 9 | B29: Rajon Rondo | C29: G | D29: 2012-06-01 | E29: 171 | F29: 1986-02-22 | G29: 6 | H29: University of Kentucky
A30: 7 | B30: Jared Sullinger | C30: F | D30: 2012-06-09 | E30: 280 | F30: 1992-03-04 | G30: R | H30: Ohio State University
A31: 4 | B31: Jason Terry | C31: G | D31: 2012-06-02 | E31: 176 | F31: 1977-09-15 | G31: 13 | H31: University of Arizona
A32: 44 | B32: Chris Wilcox | C32: F | D32: 2012-06-10 | E32: 221 | F32: 1982-09-03 | G32: 10 | H32: University of Maryland
A34: BRK
A35: No. | B35: Player | C35: Pos | D35: Ht | E35: Wt | F35: Birth Date | G35: Exp | H35: College
A36: 0 | B36: Andray Blatche | C36: F | D36: 2012-06-11 | E36: 235 | F36: 1986-08-22 | G36: 7
A37: 10 | B37: Keith Bogans | C37: G-F | D37: 2012-06-05 | E37: 215 | F37: 1980-05-12 | G37: 9 | H37: University of Kentucky
A38: 9 | B38: MarShon Brooks | C38: G-F | D38: 2012-06-05 | E38: 200 | F38: 1989-01-26 | G38: 1 | H38: Providence College
A39: 2 | B39: Josh Childress | C39: G-F | D39: 2012-06-08 | E39: 210 | F39: 1983-06-20 | G39: 6 | H39: Stanford University
A40: 30 | B40: Reggie Evans | C40: F | D40: 2012-06-08 | E40: 245 | F40: 1980-05-18 | G40: 10 | H40: University of Iowa
A41: 43 | B41: Kris Humphries | C41: F | D41: 2012-06-09 | E41: 235 | F41: 1985-02-06 | G41: 8 | H41: University of Minnesota
A42: 7 | B42: Joe Johnson | C42: G | D42: 2012-06-08 | E42: 225 | F42: 1981-06-29 | G42: 11 | H42: University of Arkansas
A43: 11 | B43: Brook Lopez | C43: C | D43: 2000-07-01 | E43: 260 | F43: 1988-04-01 | G43: 4 | H43: Stanford University
A44: 20 | B44: Tornike Shengelia | C44: F | D44: 2012-06-09 | E44: 217 | F44: 1991-10-05 | G44: R
A45: 42 | B45: Jerry Stackhouse | C45: G-F | D45: 2012-06-06 | E45: 218 | F45: 1974-11-05 | G45: 17 | H45: University of North Carolina
A46: 41 | B46: Tyshawn Taylor | C46: G | D46: 2012-06-03 | E46: 185 | F46: 1990-04-11 | G46: R | H46: University of Kansas
A47: 33 | B47: Mirza Teletovic | C47: F | D47: 2012-06-08 | E47: 235 | F47: 1985-09-18 | G47: R
A48: 45 | B48: Gerald Wallace | C48: F | D48: 2012-06-07 | E48: 215 | F48: 1982-07-23 | G48: 11 | H48: University of Alabama
A49: 1 | B49: C.J. Watson | C49: G | D49: 2012-06-02 | E49: 180 | F49: 1984-04-17 | G49: 5 | H49: University of Tennessee
A50: 8 | B50: Deron Williams | C50: G | D50: 2012-06-03 | E50: 210 | F50: 1984-06-26 | G50: 7 | H50: University of Illinois at Urbana-Champaign
A52: CHA
A53: No. | B53: Player | C53: Pos | D53: Ht | E53: Wt | F53: Birth Date | G53: Exp | H53: College
A54: 0 | B54: Bismack Biyombo | C54: F | D54: 2012-06-09 | E54: 229 | F54: 1992-08-28 | G54: 1
A55: 13 | B55: Matt Carroll | C55: G | D55: 2012-06-06 | E55: 212 | F55: 1980-08-28 | G55: 9 | H55: University of Notre Dame
A56: 2 | B56: DeSagana Diop | C56: C | D56: 2000-07-01 | E56: 300 | F56: 1982-01-30 | G56: 11
A57: 8 | B57: Ben Gordon | C57: G | D57: 2012-06-03 | E57: 200 | F57: 1983-04-04 | G57: 8 | H57: University of Connecticut
A58: 33 | B58: Brendan Haywood | C58: C | D58: 2000-07-01 | E58: 268 | F58: 1979-11-27 | G58: 11 | H58: University of North Carolina
A59: 9 | B59: Gerald Henderson | C59: G | D59: 2012-06-05 | E59: 215 | F59: 1987-12-09 | G59: 3 | H59: Duke University
A60: 11 | B60: Cory Higgins | C60: G | D60: 2012-06-05 | E60: 180 | F60: 1989-06-14 | G60: 1 | H60: University of Colorado
A61: 14 | B61: Michael Kidd-Gilchrist | C61: F | D61: 2012-06-07 | E61: 232 | F61: 1993-09-26 | G61: R | H61: University of Kentucky
A62: 22 | B62: Byron Mullens | C62: C | D62: 2000-07-01 | E62: 275 | F62: 1989-02-14 | G62: 3 | H62: Ohio State University
A63: 7 | B63: Ramon Sessions | C63: G | D63: 2012-06-03 | E63: 190 | F63: 1986-04-11 | G63: 5 | H63: University of Nevada, Reno
A64: 44 | B64: Jeff Taylor | C64: F | D64: 2012-06-07 | E64: 225 | F64: 1989-05-23 | G64: R | H64: Vanderbilt University
A65: 12 | B65: Tyrus Thomas | C65: F | D65: 2012-06-09 | E65: 215 | F65: 1986-08-17 | G65: 6 | H65: Louisiana State University
A66: 15 | B66: Kemba Walker | C66: G | D66: 2012-06-01 | E66: 172 | F66: 1990-05-08 | G66: 1 | H66: University of Connecticut
A67: 21 | B67: Hakim Warrick | C67: F | D67: 2012-06-09 | E67: 219 | F67: 1982-07-08 | G67: 7 | H67: Syracuse University
A68: 55 | B68: Reggie Williams | C68: F | D68: 2012-06-06 | E68: 210 | F68: 1986-09-14 | G68: 3 | H68: Virginia Military Institute
A70: CHI
A71: No. | B71: Player | C71: Pos | D71: Ht | E71: Wt | F71: Birth Date | G71: Exp | H71: College
A72: 8 | B72: Marco Belinelli | C72: G | D72: 2012-06-05 | E72: 192 | F72: 1986-03-25 | G72: 5
A73: 5 | B73: Carlos Boozer | C73: F-C | D73: 2012-06-09 | E73: 258 | F73: 1981-11-20 | G73: 10 | H73: Duke University
A74: 21 | B74: Jimmy Butler | C74: F | D74: 2012-06-07 | E74: 220 | F74: 1989-09-14 | G74: 1 | H74: Marquette University
A75: 9 | B75: Luol Deng | C75: F | D75: 2012-06-08 | E75: 220 | F75: 1985-04-16 | G75: 8 | H75: Duke University
A76: 22 | B76: Taj Gibson | C76: F | D76: 2012-06-09 | E76: 225 | F76: 1985-06-24 | G76: 3 | H76: University of Southern California
A77: 32 | B77: Richard Hamilton | C77: G-F | D77: 2012-06-06 | E77: 185 | F77: 1978-02-14 | G77: 13 | H77: University of Connecticut
A78: 12 | B78: Kirk Hinrich | C78: G | D78: 2012-06-03 | E78: 190 | F78: 1981-01-02 | G78: 9 | H78: University of Kansas
A79: 48 | B79: Nazr Mohammed | C79: C | D79: 2012-06-10 | E79: 221 | F79: 1977-09-05 | G79: 14 | H79: University of Kentucky
A80: 13 | B80: Joakim Noah | C80: C | D80: 2012-06-11 | E80: 232 | F80: 1985-02-25 | G80: 5 | H80: University of Florida
A81: 77 | B81: Vladimir Radmanovic | C81: F | D81: 2012-06-10 | E81: 227 | F81: 1980-11-19 | G81: 11
A82: 2 | B82: Nate Robinson | C82: G | D82: 2012-05-09 | E82: 180 | F82: 1984-05-31 | G82: 7 | H82: University of Washington
A83: 25 | B83: Marquis Teague | C83: G | D83: 2012-06-02 | E83: 189 | F83: 1993-02-28 | G83: R | H83: University of Kentucky
A85: CLE
A86: No. | B86: Player | C86: Pos | D86: Ht | E86: Wt | F86: Birth Date | G86: Exp | H86: College
A87: 36 | B87: Omri Casspi | C87: F | D87: 2012-06-09 | E87: 225 | F87: 1988-06-22 | G87: 3
A88: 33 | B88: Alonzo Gee | C88: G | D88: 2012-06-06 | E88: 220 | F88: 1987-05-29 | G88: 3 | H88: University of Alabama
A89: 1 | B89: Daniel Gibson | C89: G | D89: 2012-06-02 | E89: 190 | F89: 1986-02-27 | G89: 6 | H89: University of Texas at Austin
A90: 2 | B90: Kyrie Irving | C90: G | D90: 2012-06-02 | E90: 180 | F90: 1992-03-23 | G90: 1 | H90: Duke University
A91: 30 | B91: Jon Leuer | C91: F | D91: 2012-06-10 | E91: 228 | F91: 1989-05-14 | G91: 1 | H91: University of Wisconsin
A92: 0 | B92: C.J. Miles | C92: G | D92: 2012-06-06 | E92: 210 | F92: 1987-04-18 | G92: 7
A93: 8 | B93: Jeremy Pargo | C93: G | D93: 2012-06-02 | E93: 219 | F93: 1986-03-07 | G93: 1 | H93: Gonzaga University
A94: 24 | B94: Samardo Samuels | C94: F | D94: 2012-06-09 | E94: 260 | F94: 1989-01-09 | G94: 2 | H94: University of Louisville
A95: 15 | B95: Donald Sloan | C95: G | D95: 2012-06-03 | E95: 205 | F95: 1988-01-15 | G95: 1 | H95: Texas A&M University
A96: 13 | B96: Tristan Thompson | C96: F | D96: 2012-06-08 | E96: 225 | F96: 1991-03-13 | G96: 1 | H96: University of Texas at Austin
A97: 17 | B97: Anderson Varejao | C97: F-C | D97: 2012-06-10 | E97: 230 | F97: 1982-09-28 | G97: 8
A98: 3 | B98: Dion Waiters | C98: G | D98: 2012-06-04 | E98: 210 | F98: 1991-12-10 | G98: R | H98: Syracuse University
A99: 4 | B99: Luke Walton | C99: F | D99: 2012-06-08 | E99: 235 | F99: 1980-03-28 | G99: 9 | H99: University of Arizona
A100: 40 | B100: Tyler Zeller | C100: F-C | D100: 2000-07-01 | E100: 250 | F100: 1990-01-17 | G100: R | H100: University of North Carolina
A102: DAL
A103: No. | B103: Player | C103: Pos | D103: Ht | E103: Wt | F103: Birth Date | G103: Exp | H103: College
A104: 3 | B104: Rodrigue Beaubois | C104: G | D104: 2000-06-01 | E104: 170 | F104: 1988-02-24 | G104: 3
A105: 42 | B105: Elton Brand | C105: F | D105: 2012-06-08 | E105: 275 | F105: 1979-03-11 | G105: 13 | H105: Duke University
A106: 25 | B106: Vince Carter | C106: G-F | D106: 2012-06-06 | E106: 215 | F106: 1977-01-26 | G106: 14 | H106: University of North Carolina
A107: 4 | B107: Darren Collison | C107: G | D107: 2000-06-01 | E107: 160 | F107: 1987-08-23 | G107: 3 | H107: University of California, Los Angeles
A108: 9 | B108: Jae Crowder | C108: F | D108: 2012-06-07 | E108: 240 | F108: 1990-07-06 | G108: R | H108: Marquette University
A109: 1 | B109: Jared Cunningham | C109: G | D109: 2012-06-04 | E109: 194 | F109: 1991-05-22 | G109: R | H109: Oregon State University
A110: 52 | B110: Eddy Curry | C110: C | D110: 2000-07-01 | E110: 295 | F110: 1982-12-05 | G110: 10
A111: 6 | B111: Derek Fisher | C111: G | D111: 2012-06-01 | E111: 200 | F111: 1974-08-09 | G111: 16 | H111: University of Arkansas at Little Rock
A112: 5 | B112: Bernard James | C112: C | D112: 2012-06-10 | E112: 240 | F112: 1985-02-07 | G112: R | H112: Florida State University
A113: 30 | B113: Dahntay Jones | C113: G | D113: 2012-06-06 | E113: 210 | F113: 1980-12-27 | G113: 9 | H113: Duke University
A114: 20 | B114: Dominique Jones | C114: G | D114: 2012-06-04 | E114: 215 | F114: 1988-10-15 | G114: 2 | H114: University of South Florida
A115: 35 | B115: Chris Kaman | C115: C | D115: 2000-07-01 | E115: 268 | F115: 1982-04-28 | G115: 9 | H115: Central Michigan University
A116: 0 | B116: Shawn Marion | C116: F | D116: 2012-06-07 | E116: 220 | F116: 1978-05-07 | G116: 13 | H116: University of Nevada, Las Vegas
A117: 32 | B117: O.J. Mayo | C117: G | D117: 2012-06-04 | E117: 210 | F117: 1987-11-05 | G117: 4 | H117: University of Southern California
A118: 6 | B118: Troy Murphy | C118: F | D118: 2012-06-11 | E118: 245 | F118: 1980-05-02 | G118: 11 | H118: University of Notre Dame
A119: 34 | B119: Brandan Wright | C119: F | D119: 2012-06-09 | E119: 205 | F119: 1987-10-05 | G119: 4 | H119: University of North Carolina
A121: DEN
A122: No. | B122: Player | C122: Pos | D122: Ht | E122: Wt | F122: Birth Date | G122: Exp | H122: College
A123: 13 | B123: Corey Brewer | C123: F | D123: 2012-06-09 | E123: 185 | F123: 1986-03-05 | G123: 5 | H123: University of Florida
A124: 21 | B124: Wilson Chandler | C124: F | D124: 2012-06-08 | E124: 220 | F124: 1987-05-10 | G124: 5 | H124: DePaul University
A125: 35 | B125: Kenneth Faried | C125: F | D125: 2012-06-08 | E125: 228 | F125: 1989-11-19 | G125: 1 | H125: Morehead State University
A126: 94 | B126: Evan Fournier | C126: G-F | D126: 2012-06-06 | E126: 190 | F126: 1992-10-29 | G126: R
A127: 8 | B127: Danilo Gallinari | C127: F | D127: 2012-06-10 | E127: 225 | F127: 1988-08-08 | G127: 4
A128: 1 | B128: Jordan Hamilton | C128: G-F | D128: 2012-06-07 | E128: 220 | F128: 1990-10-06 | G128: 1 | H128: University of Texas at Austin
A129: 9 | B129: Andre Iguodala | C129: G-F | D129: 2012-06-06 | E129: 207 | F129: 1984-01-28 | G129: 8 | H129: University of Arizona
A130: 41 | B130: Kosta Koufos | C130: C | D130: 2000-07-01 | E130: 265 | F130: 1989-02-24 | G130: 4 | H130: Ohio State University
A131: 3 | B131: Ty Lawson | C131: G | D131: 2012-05-11 | E131: 195 | F131: 1987-11-03 | G131: 3 | H131: University of North Carolina
A132: 34 | B132: JaVale McGee | C132: C | D132: 2000-07-01 | E132: 237 | F132: 1988-01-19 | G132: 4 | H132: University of Nevada, Reno
A133: 24 | B133: Andre Miller | C133: G | D133: 2012-06-02 | E133: 200 | F133: 1976-03-19 | G133: 13 | H133: University of Utah
A134: 25 | B134: Timofey Mozgov | C134: C | D134: 2012-07-01 | E134: 250 | F134: 1986-07-16 | G134: 2
A135: 15 | B135: Anthony Randolph | C135: F | D135: 2012-06-10 | E135: 205 | F135: 1989-07-15 | G135: 4 | H135: Louisiana State University
A137: DET
A138: No. | B138: Player | C138: Pos | D138: Ht | E138: Wt | F138: Birth Date | G138: Exp | H138: College
A139: 12 | B139: Will Bynum | C139: G | D139: 2000-06-01 | E139: 185 | F139: 1983-01-04 | G139: 5 | H139: Georgia Institute of Technology
A140: 5 | B140: Austin Daye | C140: F | D140: 2012-06-11 | E140: 200 | F140: 1988-06-05 | G140: 3 | H140: Gonzaga University
A141: 1 | B141: Andre Drummond | C141: C | D141: 2012-06-10 | E141: 270 | F141: 1993-08-10 | G141: R | H141: University of Connecticut
A142: 24 | B142: Kim English | C142: G | D142: 2012-06-06 | E142: 200 | F142: 1988-09-24 | G142: R | H142: University of Missouri
A143: 33 | B143: Jonas Jerebko | C143: F | D143: 2012-06-10 | E143: 231 | F143: 1987-03-03 | G143: 2
A144: 7 | B144: Brandon Knight | C144: G | D144: 2012-06-03 | E144: 189 | F144: 1991-12-02 | G144: 1 | H144: University of Kentucky
A145: 50 | B145: Corey Maggette | C145: F | D145: 2012-06-06 | E145: 218 | F145: 1979-11-12 | G145: 13 | H145: Duke University
A146: 54 | B146: Jason Maxiell | C146: F | D146: 2012-06-07 | E146: 260 | F146: 1983-02-18 | G146: 7 | H146: University of Cincinnati
A147: 32 | B147: Khris Middleton | C147: F | D147: 2012-06-07 | E147: 215 | F147: 1991-08-12 | G147: R | H147: Texas A&M University
A148: 10 | B148: Greg Monroe | C148: F-C | D148: 2012-06-11 | E148: 253 | F148: 1990-06-04 | G148: 2 | H148: Georgetown University
A149: 22 | B149: Tayshaun Prince | C149: F | D149: 2012-06-09 | E149: 215 | F149: 1980-02-28 | G149: 10 | H149: University of Kentucky
A150: 25 | B150: Kyle Singler | C150: F | D150: 2012-06-08 | E150: 230 | F150: 1988-05-04 | G150: R | H150: Duke University
A151: 3 | B151: Rodney Stuckey | C151: G | D151: 2012-06-05 | E151: 205 | F151: 1986-04-21 | G151: 5 | H151: Eastern Washington University
A152: 31 | B152: Charlie Villanueva | C152: F | D152: 2012-06-11 | E152: 240 | F152: 1984-08-24 | G152: 7 | H152: University of Connecticut
A154: GSW
A155: No. | B155: Player | C155: Pos | D155: Ht | E155: Wt | F155: Birth Date | G155: Exp | H155: College
A156: 40 | B156: Harrison Barnes | C156: F | D156: 2012-06-08 | E156: 210 | F156: 1992-05-30 | G156: R | H156: University of North Carolina
A157: 20 | B157: Kent Bazemore | C157: G | D157: 2012-06-05 | E157: 201 | F157: 1989-07-01 | G157: R | H157: Old Dominion University
A158: 15 | B158: Andris Biedrins | C158: C | D158: 2012-06-11 | E158: 240 | F158: 1986-04-02 | G158: 8
A159: 12 | B159: Andrew Bogut | C159: C | D159: 2000-07-01 | E159: 245 | F159: 1984-11-28 | G159: 7 | H159: University of Utah
A160: 30 | B160: Stephen Curry | C160: G | D160: 2012-06-03 | E160: 185 | F160: 1988-03-14 | G160: 3 | H160: Davidson College
A161: 31 | B161: Festus Ezeli | C161: C | D161: 2012-06-11 | E161: 255 | F161: 1989-10-21 | G161: R | H161: Vanderbilt University
A162: 23 | B162: Draymond Green | C162: F | D162: 2012-06-07 | E162: 230 | F162: 1990-03-14 | G162: R | H162: Michigan State University
A163: 2 | B163: Jarrett Jack | C163: G | D163: 2012-06-03 | E163: 202 | F163: 1983-10-28 | G163: 7 | H163: Georgia Institute of Technology
A164: 44 | B164: Richard Jefferson | C164: F | D164: 2012-06-07 | E164: 222 | F164: 1980-06-21 | G164: 11 | H164: University of Arizona
A165: 22 | B165: Charles Jenkins | C165: G | D165: 2012-06-03 | E165: 220 | F165: 1989-02-28 | G165: 1 | H165: Hofstra University
A166: 7 | B166: Carl Landry | C166: F | D166: 2012-06-09 | E166: 248 | F166: 1983-09-19 | G166: 5 | H166: Purdue University
A167: 10 | B167: David Lee | C167: F | D167: 2012-06-09 | E167: 249 | F167: 1983-04-29 | G167: 7 | H167: University of Florida
A168: 4 | B168: Brandon Rush | C168: F | D168: 2012-06-06 | E168: 210 | F168: 1985-07-07 | G168: 4 | H168: University of Kansas
A169: 11 | B169: Klay Thompson | C169: G | D169: 2012-06-07 | E169: 205 | F169: 1990-02-08 | G169: 1 | H169: Washington State University
A170: 3 | B170: Jeremy Tyler | C170: C | D170: 2012-06-10 | E170: 260 | F170: 1991-06-21 | G170: 1
A172: HOU
A173: No. | B173: Player | C173: Pos | D173: Ht | E173: Wt | F173: Birth Date | G173: Exp | H173: College
A174: 31 | B174: Cole Aldrich | C174: C | D174: 2012-06-11 | E174: 245 | F174: 1988-10-31 | G174: 2 | H174: University of Kansas
A175: 3 | B175: Omer Asik | C175: C | D175: 2000-07-01 | E175: 255 | F175: 1986-07-04 | G175: 2
A176: 14 | B176: Daequan Cook | C176: G | D176: 2012-06-05 | E176: 205 | F176: 1987-04-28 | G176: 5 | H176: Ohio State University
A177: 10 | B177: Carlos Delfino | C177: G | D177: 2012-06-06 | E177: 230 | F177: 1982-08-29 | G177: 7
A178: 15 | B178: Toney Douglas | C178: G | D178: 2012-06-02 | E178: 190 | F178: 1986-03-16 | G178: 3 | H178: Florida State University
A179: 13 | B179: James Harden | C179: G | D179: 2012-06-05 | E179: 220 | F179: 1989-08-26 | G179: 3 | H179: Arizona State University
A180: 6 | B180: Terrence Jones | C180: F | D180: 2012-06-09 | E180: 252 | F180: 1992-01-09 | G180: R | H180: University of Kentucky
A181: 7 | B181: Jeremy Lin | C181: G | D181: 2012-06-03 | E181: 200 | F181: 1988-08-23 | G181: 2 | H181: Harvard University
A182: 14 | B182: Scott Machado | C182: G | D182: 2012-06-01 | E182: 205 | F182: 1990-06-08 | G182: R
A183: 2 | B183: Marcus Morris | C183: F | D183: 2012-06-09 | E183: 235 | F183: 1989-09-02 | G183: 1 | H183: University of Kansas
A184: 20 | B184: Donatas Motiejunas | C184: F | D184: 2000-07-01 | E184: 222 | F184: 1990-09-20 | G184: R
A185: 25 | B185: Chandler Parsons | C185: F | D185: 2012-06-09 | E185: 200 | F185: 1988-10-25 | G185: 1 | H185: University of Florida
A186: 54 | B186: Patrick Patterson | C186: F | D186: 2012-06-09 | E186: 235 | F186: 1989-03-14 | G186: 2 | H186: University of Kentucky
A187: 4 | B187: Greg Smith | C187: C | D187: 2012-06-10 | E187: 250 | F187: 1991-01-08 | G187: 1 | H187: California State University, Fresno
A189: IND
A190: No. | B190: Player | C190: Pos | D190: Ht | E190: Wt | F190: Birth Date | G190: Exp | H190: College
A191: 14 | B191: D.J. Augustin | C191: G | D191: 2000-06-01 | E191: 180 | F191: 1987-11-10 | G191: 4 | H191: University of Texas at Austin
A192: 24 | B192: Paul George | C192: F | D192: 2012-06-08 | E192: 210 | F192: 1990-05-02 | G192: 2 | H192: California State University, Fresno
A193: 25 | B193: Gerald Green | C193: F | D193: 2012-06-08 | E193: 200 | F193: 1986-01-26 | G193: 5
A194: 23 | B194: Ben Hansbrough | C194: G | D194: 2012-06-03 | E194: 203 | F194: 1987-12-23 | G194: R | H194: University of Notre Dame
A195: 50 | B195: Tyler Hansbrough | C195: F | D195: 2012-06-09 | E195: 250 | F195: 1985-11-03 | G195: 3 | H195: University of North Carolina
A196: 55 | B196: Roy Hibbert | C196: C | D196: 2012-07-02 | E196: 278 | F196: 1986-12-11 | G196: 4 | H196: Georgetown University
A197: 3 | B197: George Hill | C197: G | D197: 2012-06-02 | E197: 180 | F197: 1986-05-04 | G197: 4 | H197: Indiana University-Purdue University Indianapolis
A198: 11 | B198: Orlando Johnson | C198: G | D198: 2012-06-05 | E198: 220 | F198: 1989-03-11 | G198: R | H198: University of California, Santa Barbara
A199: 28 | B199: Ian Mahinmi | C199: C | D199: 2012-06-11 | E199: 230 | F199: 1986-11-05 | G199: 4
A200: 29 | B200: Jeff Pendergraph | C200: F | D200: 2012-06-09 | E200: 240 | F200: 1987-04-29 | G200: 2 | H200: Arizona State University
A201: 13 | B201: Miles Plumlee | C201: F | D201: 2012-06-10 | E201: 245 | F201: 1988-09-01 | G201: R | H201: Duke University
A202: 1 | B202: Lance Stephenson | C202: G | D202: 2012-06-05 | E202: 210 | F202: 1990-09-05 | G202: 2 | H202: University of Cincinnati
A203: 21 | B203: David West | C203: F | D203: 2012-06-09 | E203: 240 | F203: 1980-08-29 | G203: 9 | H203: Xavier University
A204: 4 | B204: Sam Young | C204: F | D204: 2012-06-06 | E204: 220 | F204: 1985-06-01 | G204: 3 | H204: University of Pittsburgh
A206: LAC
A207: No. | B207: Player | C207: Pos | D207: Ht | E207: Wt | F207: Birth Date | G207: Exp | H207: College
A208: 22 | B208: Matt Barnes | C208: F | D208: 2012-06-07 | E208: 235 | F208: 1980-03-09 | G208: 9 | H208: University of California, Los Angeles
A209: 1 | B209: Chauncey Billups | C209: G | D209: 2012-06-03 | E209: 202 | F209: 1976-09-25 | G209: 15 | H209: University of Colorado
A210: 12 | B210: Eric Bledsoe | C210: G | D210: 2012-06-01 | E210: 190 | F210: 1989-12-09 | G210: 2 | H210: University of Kentucky
A211: 5 | B211: Caron Butler | C211: F | D211: 2012-06-07 | E211: 217 | F211: 1980-03-13 | G211: 10 | H211: University of Connecticut
A212: 11 | B212: Jamal Crawford | C212: G | D212: 2012-06-06 | E212: 185 | F212: 1980-03-20 | G212: 12 | H212: University of Michigan
... 281 more rows

Sheet per_game (hidden)
A1: ATL
A2: Rk | B2: Player | C2: Age | D2: G | E2: GS | F2: MP | G2: FG | H2: FGA | I2: FG% | J2: 3P | K2: 3PA | L2: 3P% | M2: FT | N2: FTA | O2: FT% | P2: ORB | Q2: DRB | R2: TRB | S2: AST | T2: STL | U2: BLK | V2: TOV | W2: PF | X2: PTS
A3: 1 | B3: Josh Smith | C3: 27 | D3: 13 | E3: 13 | F3: 34.9 | G3: 7 | H3: 15.8 | I3: 0.444 | J3: 0.4 | K3: 1.1 | L3: 0.357 | M3: 1.7 | N3: 3.5 | O3: 0.478 | P3: 1.8 | Q3: 5.8 | R3: 7.6 | S3: 3.7 | T3: 1.4 | U3: 2.4 | V3: 3.2 | W3: 3.3 | X3: 16.1
A4: 2 | B4: Al Horford | C4: 26 | D4: 13 | E4: 13 | F4: 36.6 | G4: 7.1 | H4: 13.2 | I4: 0.535 | J4: 0 | K4: 0 | M4: 1.8 | N4: 3.4 | O4: 0.523 | P4: 2.7 | Q4: 6.8 | R4: 9.5 | S4: 3.5 | T4: 0.5 | U4: 1.1 | V4: 1.8 | W4: 1.8 | X4: 15.9
A5: 3 | B5: Louis Williams | C5: 26 | D5: 14 | E5: 0 | F5: 24.3 | G5: 4.5 | H5: 10.6 | I5: 0.423 | J5: 1.5 | K5: 4.7 | L5: 0.318 | M5: 3.4 | N5: 3.9 | O5: 0.873 | P5: 0.2 | Q5: 1.8 | R5: 2 | S5: 3.3 | T5: 1.1 | U5: 0.3 | V5: 1.4 | W5: 1.3 | X5: 13.9
A6: 4 | B6: Jeff Teague | C6: 24 | D6: 14 | E6: 14 | F6: 31 | G6: 5.4 | H6: 11.5 | I6: 0.466 | J6: 1.1 | K6: 2.4 | L6: 0.455 | M6: 1.9 | N6: 2.1 | O6: 0.867 | P6: 0.6 | Q6: 1.9 | R6: 2.4 | S6: 7.1 | T6: 1.8 | U6: 0.4 | V6: 3 | W6: 1.9 | X6: 13.6
A7: 5 | B7: Kyle Korver | C7: 31 | D7: 13 | E7: 13 | F7: 29.3 | G7: 3.6 | H7: 8.5 | I7: 0.427 | J7: 2.6 | K7: 6.2 | L7: 0.42 | M7: 0.9 | N7: 1.1 | O7: 0.857 | P7: 0.3 | Q7: 3.4 | R7: 3.7 | S7: 1.6 | T7: 1 | U7: 0.4 | V7: 0.7 | W7: 2.2 | X7: 10.8
A8: 6 | B8: Zaza Pachulia | C8: 28 | D8: 14 | E8: 5 | F8: 24.4 | G8: 2.6 | H8: 5.1 | I8: 0.5 | J8: 0 | K8: 0.1 | L8: 0 | M8: 1.7 | N8: 2.4 | O8: 0.727 | P8: 2.8 | Q8: 4.4 | R8: 7.1 | S8: 1.6 | T8: 0.8 | U8: 0.4 | V8: 1.7 | W8: 2.4 | X8: 6.9
A9: 7 | B9: Devin Harris | C9: 29 | D9: 12 | E9: 4 | F9: 21.8 | G9: 2.5 | H9: 6.1 | I9: 0.411 | J9: 0.9 | K9: 2.9 | L9: 0.314 | M9: 0.9 | N9: 1.4 | O9: 0.647 | P9: 0.1 | Q9: 1.5 | R9: 1.6 | S9: 2.5 | T9: 1 | U9: 0.4 | V9: 1.2 | W9: 1.4 | X9: 6.8
A10: 8 | B10: DeShawn Stevenson | C10: 31 | D10: 11 | E10: 7 | F10: 25.5 | G10: 2.2 | H10: 5.5 | I10: 0.4 | J10: 1.8 | K10: 4.5 | L10: 0.4 | M10: 0.2 | N10: 0.5 | O10: 0.4 | P10: 0.4 | Q10: 2.4 | R10: 2.7 | S10: 1.1 | T10: 0.5 | U10: 0.3 | V10: 0.5 | W10: 1.5 | X10: 6.4
A11: 9 | B11: Anthony Morrow | C11: 27 | D11: 11 | E11: 0 | F11: 12.4 | G11: 2.2 | H11: 4.5 | I11: 0.48 | J11: 0.7 | K11: 1.4 | L11: 0.533 | M11: 0.6 | N11: 0.7 | O11: 0.875 | P11: 0.2 | Q11: 0.5 | R11: 0.6 | S11: 0.1 | T11: 0.7 | U11: 0.1 | V11: 0.2 | W11: 1.7 | X11: 5.7
A12: 10 | B12: Ivan Johnson | C12: 28 | D12: 12 | E12: 0 | F12: 11.5 | G12: 2.3 | H12: 3.6 | I12: 0.651 | J12: 0.1 | K12: 0.2 | L12: 0.5 | M12: 0.3 | N12: 0.8 | O12: 0.4 | P12: 0.8 | Q12: 2.3 | R12: 3.1 | S12: 0.3 | T12: 0.8 | U12: 0.1 | V12: 0.9 | W12: 1.8 | X12: 5.1
A13: 11 | B13: Anthony Tolliver | C13: 27 | D13: 8 | E13: 1 | F13: 13.4 | G13: 1.1 | H13: 4.1 | I13: 0.273 | J13: 0.4 | K13: 2.1 | L13: 0.176 | M13: 0.5 | N13: 0.6 | O13: 0.8 | P13: 0.6 | Q13: 1.6 | R13: 2.3 | S13: 0.1 | T13: 0.5 | U13: 0 | V13: 0.9 | W13: 1 | X13: 3.1
A14: 12 | B14: John Jenkins | C14: 21 | D14: 4 | E14: 0 | F14: 3.3 | G14: 0.5 | H14: 1.8 | I14: 0.286 | J14: 0 | K14: 0.3 | L14: 0 | M14: 0.5 | N14: 0.5 | O14: 1 | P14: 0.3 | Q14: 0.8 | R14: 1 | S14: 0 | T14: 0 | U14: 0 | V14: 0 | W14: 0 | X14: 1.5
A15: 13 | B15: Mike Scott | C15: 24 | D15: 5 | E15: 0 | F15: 3.2 | G15: 0.2 | H15: 1.2 | I15: 0.167 | J15: 0 | K15: 0 | M15: 0 | N15: 0 | P15: 0.2 | Q15: 0.6 | R15: 0.8 | S15: 0 | T15: 0 | U15: 0 | V15: 0.6 | W15: 0.4 | X15: 0.4
A16: 14 | B16: Johan Petro | C16: 27 | D16: 2 | E16: 0 | F16: 4 | G16: 0 | H16: 1 | I16: 0 | J16: 0 | K16: 0 | M16: 0 | N16: 0 | P16: 0 | Q16: 0 | R16: 0 | S16: 0 | T16: 0 | U16: 0 | V16: 0.5 | W16: 0.5 | X16: 0
A18: BOS
A19: Rk | B19: Player | C19: Age | D19: G | E19: GS | F19: MP | G19: FG | H19: FGA | I19: FG% | J19: 3P | K19: 3PA | L19: 3P% | M19: FT | N19: FTA | O19: FT% | P19: ORB | Q19: DRB | R19: TRB | S19: AST | T19: STL | U19: BLK | V19: TOV | W19: PF | X19: PTS
A20: 1 | B20: Paul Pierce | C20: 35 | D20: 17 | E20: 17 | F20: 33.7 | G20: 6 | H20: 14.4 | I20: 0.418 | J20: 1.8 | K20: 4.5 | L20: 0.395 | M20: 5.4 | N20: 6.5 | O20: 0.836 | P20: 0.3 | Q20: 5.4 | R20: 5.7 | S20: 3.2 | T20: 1.5 | U20: 0.3 | V20: 2.5 | W20: 2.5 | X20: 19.2
A21: 2 | B21: Kevin Garnett | C21: 36 | D21: 17 | E21: 17 | F21: 28.9 | G21: 6.2 | H21: 11.9 | I21: 0.522 | J21: 0 | K21: 0.1 | L21: 0 | M21: 3.1 | N21: 3.9 | O21: 0.803 | P21: 0.9 | Q21: 6.4 | R21: 7.4 | S21: 1.9 | T21: 0.8 | U21: 0.8 | V21: 1.7 | W21: 2.1 | X21: 15.6
A22: 3 | B22: Rajon Rondo | C22: 26 | D22: 14 | E22: 14 | F22: 37 | G22: 5.6 | H22: 11 | I22: 0.506 | J22: 0.4 | K22: 1.4 | L22: 0.316 | M22: 1.4 | N22: 2.2 | O22: 0.613 | P22: 0.6 | Q22: 4 | R22: 4.6 | S22: 12.9 | T22: 1.9 | U22: 0 | V22: 3.2 | W22: 2.6 | X22: 12.9
A23: 4 | B23: Jason Terry | C23: 35 | D23: 17 | E23: 12 | F23: 28.4 | G23: 4.1 | H23: 8.4 | I23: 0.483 | J23: 1.5 | K23: 4 | L23: 0.382 | M23: 2.1 | N23: 2.4 | O23: 0.875 | P23: 0.1 | Q23: 1.7 | R23: 1.8 | S23: 2.3 | T23: 1.1 | U23: 0.1 | V23: 1.2 | W23: 1.4 | X23: 11.7
A24: 5 | B24: Brandon Bass | C24: 27 | D24: 17 | E24: 14 | F24: 27.8 | G24: 3.9 | H24: 8.8 | I24: 0.443 | J24: 0 | K24: 0.1 | L24: 0 | M24: 1.8 | N24: 2 | O24: 0.882 | P24: 1.9 | Q24: 3.5 | R24: 5.4 | S24: 0.9 | T24: 0.5 | U24: 0.8 | V24: 0.9 | W24: 2.8 | X24: 9.5
A25: 6 | B25: Jeff Green | C25: 26 | D25: 17 | E25: 0 | F25: 21.6 | G25: 3.3 | H25: 7.6 | I25: 0.434 | J25: 0.5 | K25: 1.6 | L25: 0.333 | M25: 1.8 | N25: 2.4 | O25: 0.756 | P25: 0.5 | Q25: 2.2 | R25: 2.8 | S25: 0.7 | T25: 0.6 | U25: 0.5 | V25: 1.5 | W25: 1.5 | X25: 8.9
A26: 7 | B26: Leandro Barbosa | C26: 30 | D26: 17 | E26: 1 | F26: 14.2 | G26: 2.4 | H26: 5.3 | I26: 0.444 | J26: 0.6 | K26: 1.4 | L26: 0.417 | M26: 1 | N26: 1.4 | O26: 0.739 | P26: 0.1 | Q26: 0.9 | R26: 0.9 | S26: 1.5 | T26: 0.5 | U26: 0.3 | V26: 0.6 | W26: 1.2 | X26: 6.3
A27: 8 | B27: Courtney Lee | C27: 27 | D27: 17 | E27: 7 | F27: 24.8 | G27: 2.5 | H27: 5.5 | I27: 0.462 | J27: 0.4 | K27: 1.5 | L27: 0.24 | M27: 0.5 | N27: 0.5 | O27: 1 | P27: 0.5 | Q27: 2 | R27: 2.5 | S27: 1.5 | T27: 0.9 | U27: 0.1 | V27: 1.5 | W27: 1.7 | X27: 5.9
A28: 9 | B28: Jared Sullinger | C28: 20 | D28: 17 | E28: 3 | F28: 18.2 | G28: 2.4 | H28: 4.6 | I28: 0.506 | J28: 0.1 | K28: 0.1 | L28: 1 | M28: 0.7 | N28: 0.8 | O28: 0.923 | P28: 1.6 | Q28: 2.9 | R28: 4.6 | S28: 0.6 | T28: 0.4 | U28: 0.5 | V28: 0.6 | W28: 2.8 | X28: 5.5
A29: 10 | B29: Chris Wilcox | C29: 30 | D29: 16 | E29: 0 | F29: 12.3 | G29: 1.6 | H29: 2.3 | I29: 0.703 | J29: 0 | K29: 0 | M29: 1 | N29: 1.3 | O29: 0.762 | P29: 0.8 | Q29: 1.3 | R29: 2.1 | S29: 0.3 | T29: 0.3 | U29: 0.3 | V29: 0.6 | W29: 2 | X29: 4.3
A30: 11 | B30: Kris Joseph | C30: 24 | D30: 2 | E30: 0 | F30: 4 | G30: 0 | H30: 1.5 | I30: 0 | J30: 0 | K30: 0 | M30: 1 | N30: 1 | O30: 1 | P30: 0 | Q30: 0.5 | R30: 0.5 | S30: 0.5 | T30: 0 | U30: 0 | V30: 0.5 | W30: 1 | X30: 1
A31: 12 | B31: Jason Collins | C31: 34 | D31: 4 | E31: 0 | F31: 11.3 | G31: 0.3 | H31: 1 | I31: 0.25 | J31: 0 | K31: 0 | M31: 0 | N31: 0.3 | O31: 0 | P31: 1 | Q31: 1.3 | R31: 2.3 | S31: 0 | T31: 0.5 | U31: 0.3 | V31: 1 | W31: 2.8 | X31: 0.5
A32: 13 | B32: Darko Milicic | C32: 27 | D32: 1 | E32: 0 | F32: 5 | G32: 0 | H32: 1 | I32: 0 | J32: 0 | K32: 0 | M32: 0 | N32: 0 | P32: 0 | Q32: 1 | R32: 1 | S32: 0 | T32: 0 | U32: 0 | V32: 2 | W32: 1 | X32: 0
A34: BRK
A35: Rk | B35: Player | C35: Age | D35: G | E35: GS | F35: MP | G35: FG | H35: FGA | I35: FG% | J35: 3P | K35: 3PA | L35: 3P% | M35: FT | N35: FTA | O35: FT% | P35: ORB | Q35: DRB | R35: TRB | S35: AST | T35: STL | U35: BLK | V35: TOV | W35: PF | X35: PTS
A36: 1 | B36: Brook Lopez | C36: 24 | D36: 14 | E36: 14 | F36: 29.7 | G36: 7.9 | H36: 14.9 | I36: 0.534 | J36: 0 | K36: 0 | M36: 2.6 | N36: 4.1 | O36: 0.638 | P36: 2.1 | Q36: 4.6 | R36: 6.8 | S36: 0.8 | T36: 0.5 | U36: 2.5 | V36: 1.7 | W36: 2.6 | X36: 18.5
A37: 2 | B37: Joe Johnson | C37: 31 | D37: 16 | E37: 16 | F37: 37.6 | G37: 5.9 | H37: 14.4 | I37: 0.409 | J37: 1.8 | K37: 5 | L37: 0.363 | M37: 2 | N37: 2.6 | O37: 0.78 | P37: 0.6 | Q37: 2.2 | R37: 2.8 | S37: 3.8 | T37: 0.6 | U37: 0.2 | V37: 1.8 | W37: 1.3 | X37: 15.6
A38: 3 | B38: Deron Williams | C38: 28 | D38: 16 | E38: 16 | F38: 35.9 | G38: 5.1 | H38: 13.3 | I38: 0.382 | J38: 1.4 | K38: 5.1 | L38: 0.268 | M38: 3.9 | N38: 4.6 | O38: 0.838 | P38: 0.5 | Q38: 2.5 | R38: 3 | S38: 8.9 | T38: 1.1 | U38: 0.6 | V38: 2.9 | W38: 2.3 | X38: 15.4
A39: 4 | B39: Andray Blatche | C39: 26 | D39: 16 | E39: 2 | F39: 18.9 | G39: 4 | H39: 8.6 | I39: 0.467 | J39: 0 | K39: 0.2 | L39: 0 | M39: 2.1 | N39: 2.8 | O39: 0.75 | P39: 2.5 | Q39: 3.3 | R39: 5.8 | S39: 1.1 | T39: 0.5 | U39: 0.6 | V39: 1.3 | W39: 1.8 | X39: 10.1
A40: 5 | B40: Gerald Wallace | C40: 30 | D40: 9 | E40: 9 | F40: 30.9 | G40: 3.6 | H40: 8.3 | I40: 0.427 | J40: 1.2 | K40: 3.7 | L40: 0.333 | M40: 1.1 | N40: 2.2 | O40: 0.5 | P40: 0.7 | Q40: 3.4 | R40: 4.1 | S40: 2.4 | T40: 1.9 | U40: 0.7 | V40: 1.8 | W40: 2.6 | X40: 9.4
A41: 6 | B41: Kris Humphries | C41: 27 | D41: 16 | E41: 16 | F41: 24.6 | G41: 3.1 | H41: 6.6 | I41: 0.476 | J41: 0 | K41: 0 | M41: 1.9 | N41: 2.6 | O41: 0.732 | P41: 2.4 | Q41: 5.7 | R41: 8.1 | S41: 0.6 | T41: 0.4 | U41: 0.9 | V41: 0.6 | W41: 2.6 | X41: 8.1
A42: 7 | B42: Jerry Stackhouse | C42: 38 | D42: 10 | E42: 0 | F42: 16.6 | G42: 2.6 | H42: 5.3 | I42: 0.491 | J42: 1.5 | K42: 3.2 | L42: 0.469 | M42: 0.6 | N42: 0.7 | O42: 0.857 | P42: 0.3 | Q42: 1.1 | R42: 1.4 | S42: 0.8 | T42: 0.6 | U42: 0.2 | V42: 0.6 | W42: 0.9 | X42: 7.3
A43: 8 | B43: C.J. Watson | C43: 28 | D43: 16 | E43: 0 | F43: 19.7 | G43: 2.4 | H43: 6.4 | I43: 0.379 | J43: 1.2 | K43: 3.5 | L43: 0.339 | M43: 1.2 | N43: 1.4 | O43: 0.826 | P43: 0.7 | Q43: 0.7 | R43: 1.4 | S43: 1.8 | T43: 0.8 | U43: 0.2 | V43: 0.9 | W43: 1.5 | X43: 7.3
A44: 9 | B44: MarShon Brooks | C44: 24 | D44: 9 | E44: 0 | F44: 12.2 | G44: 2.8 | H44: 4.9 | I44: 0.568 | J44: 0.2 | K44: 0.3 | L44: 0.667 | M44: 1.3 | N44: 2 | O44: 0.667 | P44: 0.6 | Q44: 1.1 | R44: 1.7 | S44: 0.9 | T44: 0.6 | U44: 0.1 | V44: 0.9 | W44: 1.2 | X44: 7.1
A45: 10 | B45: Reggie Evans | C45: 32 | D45: 16 | E45: 0 | F45: 19.6 | G45: 0.9 | H45: 1.6 | I45: 0.577 | J45: 0 | K45: 0 | M45: 1.2 | N45: 2 | O45: 0.594 | P45: 2.8 | Q45: 5.7 | R45: 8.4 | S45: 0.7 | T45: 0.7 | U45: 0.1 | V45: 1.1 | W45: 2.4 | X45: 3.1
A46: 11 | B46: Keith Bogans | C46: 32 | D46: 14 | E46: 7 | F46: 14.9 | G46: 1.1 | H46: 3.3 | I46: 0.348 | J46: 0.8 | K46: 2.5 | L46: 0.314 | M46: 0.1 | N46: 0.2 | O46: 0.333 | P46: 0.3 | Q46: 1.1 | R46: 1.4 | S46: 1.1 | T46: 0.3 | U46: 0 | V46: 0.8 | W46: 1.4 | X46: 3.1
A47: 12 | B47: Mirza Teletovic | C47: 27 | D47: 6 | E47: 0 | F47: 8 | G47: 1.2 | H47: 3.7 | I47: 0.318 | J47: 0.7 | K47: 2.7 | L47: 0.25 | M47: 0 | N47: 0 | P47: 0.2 | Q47: 1 | R47: 1.2 | S47: 0.7 | T47: 0.3 | U47: 0 | V47: 0 | W47: 0.5 | X47: 3
A48: 13 | B48: Tornike Shengelia | C48: 21 | D48: 4 | E48: 0 | F48: 5 | G48: 0.5 | H48: 0.5 | I48: 1 | J48: 0.3 | K48: 0.3 | L48: 1 | M48: 0.8 | N48: 1.3 | O48: 0.6 | P48: 0 | Q48: 0.3 | R48: 0.3 | S48: 0 | T48: 0 | U48: 0 | V48: 0.5 | W48: 0.5 | X48: 2
A49: 14 | B49: Josh Childress | C49: 29 | D49: 10 | E49: 0 | F49: 9.3 | G49: 0.6 | H49: 1.7 | I49: 0.353 | J49: 0.1 | K49: 0.2 | L49: 0.5 | M49: 0.1 | N49: 0.2 | O49: 0.5 | P49: 0.5 | Q49: 0.9 | R49: 1.4 | S49: 0.5 | T49: 0.2 | U49: 0.2 | V49: 0 | W49: 0.3 | X49: 1.4
A50: 15 | B50: Tyshawn Taylor | C50: 22 | D50: 9 | E50: 0 | F50: 3.1 | G50: 0.4 | H50: 1.3 | I50: 0.333 | J50: 0 | K50: 0 | M50: 0.1 | N50: 0.2 | O50: 0.5 | P50: 0 | Q50: 0 | R50: 0 | S50: 0.2 | T50: 0.3 | U50: 0 | V50: 0.3 | W50: 0.3 | X50: 1
A52: CHA
A53: Rk | B53: Player | C53: Age | D53: G | E53: GS | F53: MP | G53: FG | H53: FGA | I53: FG% | J53: 3P | K53: 3PA | L53: 3P% | M53: FT | N53: FTA | O53: FT% | P53: ORB | Q53: DRB | R53: TRB | S53: AST | T53: STL | U53: BLK | V53: TOV | W53: PF | X53: PTS
A54: 1 | B54: Kemba Walker | C54: 22 | D54: 16 | E54: 16 | F54: 36.4 | G54: 6.1 | H54: 15.1 | I54: 0.401 | J54: 0.8 | K54: 3.1 | L54: 0.265 | M54: 3.7 | N54: 4.6 | O54: 0.797 | P54: 0.8 | Q54: 3.1 | R54: 3.9 | S54: 5.9 | T54: 2.1 | U54: 0.5 | V54: 2.4 | W54: 2.1 | X54: 16.6
A55: 2 | B55: Ramon Sessions | C55: 26 | D55: 16 | E55: 0 | F55: 29 | G55: 4.9 | H55: 13 | I55: 0.38 | J55: 0.4 | K55: 2.2 | L55: 0.2 | M55: 5.3 | N55: 6.5 | O55: 0.817 | P55: 0.6 | Q55: 3.2 | R55: 3.8 | S55: 4.7 | T55: 0.9 | U55: 0 | V55: 2.1 | W55: 1.4 | X55: 15.6
A56: 3 | B56: Ben Gordon | C56: 29 | D56: 14 | E56: 0 | F56: 25.3 | G56: 5.2 | H56: 11.6 | I56: 0.451 | J56: 2.5 | K56: 5.1 | L56: 0.486 | M56: 2.1 | N56: 2.4 | O56: 0.853 | P56: 0.4 | Q56: 1.9 | R56: 2.3 | S56: 2.9 | T56: 0.6 | U56: 0.4 | V56: 2.1 | W56: 2 | X56: 15
A57: 4 | B57: Byron Mullens | C57: 23 | D57: 16 | E57: 16 | F57: 33.6 | G57: 4.8 | H57: 12.9 | I57: 0.374 | J57: 1.5 | K57: 5.3 | L57: 0.286 | M57: 1.8 | N57: 2.3 | O57: 0.757 | P57: 1.6 | Q57: 6.8 | R57: 8.4 | S57: 1.2 | T57: 1.1 | U57: 0.8 | V57: 1.3 | W57: 2.6 | X57: 12.9
A58: 5 | B58: Michael Kidd-Gilchrist | C58: 19 | D58: 16 | E58: 16 | F58: 27.2 | G58: 4.1 | H58: 8.9 | I58: 0.458 | J58: 0.1 | K58: 0.1 | L58: 0.5 | M58: 2.6 | N58: 3.3 | O58: 0.774 | P58: 1.9 | Q58: 4.4 | R58: 6.3 | S58: 1.6 | T58: 1.1 | U58: 1.4 | V58: 1.4 | W58: 2.4 | X58: 10.8
A59: 6 | B59: Gerald Henderson | C59: 25 | D59: 3 | E59: 2 | F59: 23.7 | G59: 3.3 | H59: 9 | I59: 0.37 | J59: 1 | K59: 2 | L59: 0.5 | M59: 2.3 | N59: 2.7 | O59: 0.875 | P59: 0.7 | Q59: 1 | R59: 1.7 | S59: 1.7 | T59: 2 | U59: 0.7 | V59: 1.3 | W59: 2.3 | X59: 10
A60: 7 | B60: Jeff Taylor | C60: 23 | D60: 15 | E60: 14 | F60: 24.9 | G60: 3.1 | H60: 7 | I60: 0.438 | J60: 1 | K60: 2.6 | L60: 0.385 | M60: 1.1 | N60: 1.5 | O60: 0.773 | P60: 1 | Q60: 1.4 | R60: 2.4 | S60: 0.9 | T60: 1.2 | U60: 0.3 | V60: 0.9 | W60: 2.3 | X60: 8.3
A61: 8 | B61: Tyrus Thomas | C61: 26 | D61: 8 | E61: 0 | F61: 17.8 | G61: 2.3 | H61: 6.6 | I61: 0.34 | J61: 0 | K61: 0 | M61: 2.1 | N61: 2.5 | O61: 0.85 | P61: 1 | Q61: 2.1 | R61: 3.1 | S61: 1 | T61: 0.5 | U61: 1.4 | V61: 0.9 | W61: 3 | X61: 6.6
A62: 9 | B62: Brendan Haywood | C62: 33 | D62: 15 | E62: 15 | F62: 27.7 | G62: 3 | H62: 5.5 | I62: 0.549 | J62: 0 | K62: 0 | M62: 0.5 | N62: 1.1 | O62: 0.5 | P62: 2.9 | Q62: 3.9 | R62: 6.9 | S62: 0.7 | T62: 0.1 | U62: 1.1 | V62: 1.4 | W62: 2.5 | X62: 6.5
A63: 10 | B63: Bismack Biyombo | C63: 20 | D63: 14 | E63: 1 | F63: 20.5 | G63: 1.9 | H63: 3.4 | I63: 0.553 | J63: 0 | K63: 0 | M63: 0.7 | N63: 1.3 | O63: 0.556 | P63: 1.6 | Q63: 3.5 | R63: 5.1 | S63: 0.1 | T63: 0.3 | U63: 1.6 | V63: 1 | W63: 2.2 | X63: 4.4
A64: 11 | B64: Reggie Williams | C64: 26 | D64: 11 | E64: 0 | F64: 10.1 | G64: 1.6 | H64: 3.5 | I64: 0.462 | J64: 0.6 | K64: 1.8 | L64: 0.35 | M64: 0.2 | N64: 0.2 | O64: 1 | P64: 0.4 | Q64: 0.8 | R64: 1.2 | S64: 0.5 | T64: 0.7 | U64: 0 | V64: 0.5 | W64: 0.6 | X64: 4.1
A65: 12 | B65: Hakim Warrick | C65: 30 | D65: 6 | E65: 0 | F65: 10.7 | G65: 0.3 | H65: 2.5 | I65: 0.133 | J65: 0 | K65: 0 | M65: 1.5 | N65: 2 | O65: 0.75 | P65: 0.5 | Q65: 1.3 | R65: 1.8 | S65: 0.2 | T65: 0.2 | U65: 0.3 | V65: 0.5 | W65: 1 | X65: 2.2
A66: 13 | B66: Cory Higgins | C66: 23 | D66: 5 | E66: 0 | F66: 5.2 | G66: 0.6 | H66: 2.6 | I66: 0.231 | J66: 0.2 | K66: 0.8 | L66: 0.25 | M66: 0 | N66: 0 | P66: 0 | Q66: 0.4 | R66: 0.4 | S66: 0.8 | T66: 0.4 | U66: 0 | V66: 0 | W66: 0.8 | X66: 1.4
A67: 14 | B67: DeSagana Diop | C67: 31 | D67: 8 | E67: 0 | F67: 8.8 | G67: 0 | H67: 0.9 | I67: 0 | J67: 0 | K67: 0 | M67: 0 | N67: 0 | P67: 0.4 | Q67: 1.5 | R67: 1.9 | S67: 0.3 | T67: 0.3 | U67: 0.5 | V67: 0.1 | W67: 0.6 | X67: 0
A68: 15 | B68: Matt Carroll | C68: 32 | D68: 1 | E68: 0 | F68: 6 | G68: 0 | H68: 0 | J68: 0 | K68: 0 | M68: 0 | N68: 0 | P68: 0 | Q68: 0 | R68: 0 | S68: 1 | T68: 0 | U68: 0 | V68: 0 | W68: 1 | X68: 0
A70: CHI
A71: Rk | B71: Player | C71: Age | D71: G | E71: GS | F71: MP | G71: FG | H71: FGA | I71: FG% | J71: 3P | K71: 3PA | L71: 3P% | M71: FT | N71: FTA | O71: FT% | P71: ORB | Q71: DRB | R71: TRB | S71: AST | T71: STL | U71: BLK | V71: TOV | W71: PF | X71: PTS
A72: 1 | B72: Luol Deng | C72: 27 | D72: 15 | E72: 15 | F72: 40.7 | G72: 6.9 | H72: 15 | I72: 0.462 | J72: 0.9 | K72: 3.1 | L72: 0.298 | M72: 3.3 | N72: 4 | O72: 0.817 | P72: 2.1 | Q72: 5.3 | R72: 7.4 | S72: 2.7 | T72: 0.9 | U72: 0.3 | V72: 2.6 | W72: 1.3 | X72: 18.1
A73: 2 | B73: Richard Hamilton | C73: 34 | D73: 15 | E73: 15 | F73: 27.1 | G73: 5.4 | H73: 11.9 | I73: 0.455 | J73: 0.4 | K73: 1.1 | L73: 0.375 | M73: 2.7 | N73: 2.9 | O73: 0.93 | P73: 0.4 | Q73: 1.9 | R73: 2.3 | S73: 2.3 | T73: 0.8 | U73: 0.1 | V73: 2.2 | W73: 1.7 | X73: 13.9
A74: 3 | B74: Carlos Boozer | C74: 31 | D74: 15 | E74: 15 | F74: 29.7 | G74: 5.9 | H74: 12.9 | I74: 0.454 | J74: 0 | K74: 0 | M74: 1.9 | N74: 2.7 | O74: 0.707 | P74: 2.3 | Q74: 7.4 | R74: 9.7 | S74: 1.9 | T74: 0.7 | U74: 0.4 | V74: 2 | W74: 3 | X74: 13.7
A75: 4 | B75: Joakim Noah | C75: 27 | D75: 15 | E75: 15 | F75: 39 | G75: 5 | H75: 10.6 | I75: 0.472 | J75: 0 | K75: 0.1 | L75: 0 | M75: 3.3 | N75: 4.2 | O75: 0.778 | P75: 3.9 | Q75: 6 | R75: 9.9 | S75: 4.3 | T75: 1.4 | U75: 2.2 | V75: 2.5 | W75: 2.9 | X75: 13.3
A76: 5 | B76: Nate Robinson | C76: 28 | D76: 15 | E76: 1 | F76: 20.9 | G76: 4.3 | H76: 9.3 | I76: 0.468 | J76: 1.1 | K76: 2.9 | L76: 0.364 | M76: 1.5 | N76: 1.8 | O76: 0.815 | P76: 0.3 | Q76: 1.8 | R76: 2.1 | S76: 3.6 | T76: 0.9 | U76: 0 | V76: 1.7 | W76: 2.2 | X76: 11.2
A77: 6 | B77: Taj Gibson | C77: 27 | D77: 15 | E77: 0 | F77: 21.1 | G77: 2.7 | H77: 6.1 | I77: 0.44 | J77: 0 | K77: 0.1 | L77: 0 | M77: 1.7 | N77: 2.1 | O77: 0.781 | P77: 1.4 | Q77: 3.5 | R77: 4.9 | S77: 0.9 | T77: 0.6 | U77: 1.3 | V77: 1.2 | W77: 2.1 | X77: 7
A78: 7 | B78: Kirk Hinrich | C78: 32 | D78: 14 | E78: 14 | F78: 27.1 | G78: 2.1 | H78: 6.4 | I78: 0.322 | J78: 0.6 | K78: 2.2 | L78: 0.29 | M78: 1.4 | N78: 2.3 | O78: 0.625 | P78: 0.4 | Q78: 2.2 | R78: 2.6 | S78: 5.6 | T78: 0.9 | U78: 0.3 | V78: 2 | W78: 2.6 | X78: 6.2
A79: 8 | B79: Jimmy Butler | C79: 23 | D79: 15 | E79: 0 | F79: 15.9 | G79: 1.8 | H79: 3.4 | I79: 0.529 | J79: 0.1 | K79: 0.5 | L79: 0.143 | M79: 1.7 | N79: 2.1 | O79: 0.839 | P79: 1.3 | Q79: 1.2 | R79: 2.5 | S79: 0.7 | T79: 0.5 | U79: 0.2 | V79: 0.3 | W79: 0.9 | X79: 5.4
A80: 9 | B80: Marco Belinelli | C80: 26 | D80: 14 | E80: 0 | F80: 14.7 | G80: 1.5 | H80: 4.1 | I80: 0.368 | J80: 0.8 | K80: 1.9 | L80: 0.407 | M80: 1.2 | N80: 1.4 | O80: 0.895 | P80: 0 | Q80: 0.9 | R80: 0.9 | S80: 0.7 | T80: 0.4 | U80: 0.1 | V80: 0.5 | W80: 0.9 | X80: 5
A81: 10 | B81: Vladimir Radmanovic | C81: 32 | D81: 5 | E81: 0 | F81: 3.2 | G81: 0.6 | H81: 1.6 | I81: 0.375 | J81: 0.2 | K81: 1.2 | L81: 0.167 | M81: 0 | N81: 0 | P81: 0.4 | Q81: 0 | R81: 0.4 | S81: 0.2 | T81: 0 | U81: 0 | V81: 0.2 | W81: 1 | X81: 1.4
A82: 11 | B82: Marquis Teague | C82: 19 | D82: 6 | E82: 0 | F82: 5.7 | G82: 0.3 | H82: 1.3 | I82: 0.25 | J82: 0 | K82: 0.2 | L82: 0 | M82: 0.5 | N82: 0.7 | O82: 0.75 | P82: 0 | Q82: 0.7 | R82: 0.7 | S82: 1.2 | T82: 0 | U82: 0 | V82: 0.3 | W82: 1 | X82: 1.2
A83: 12 | B83: Nazr Mohammed | C83: 35 | D83: 11 | E83: 0 | F83: 6.8 | G83: 0.2 | H83: 1.5 | I83: 0.118 | J83: 0 | K83: 0 | M83: 0.4 | N83: 0.7 | O83: 0.5 | P83: 0.6 | Q83: 1.3 | R83: 1.9 | S83: 0.3 | T83: 0.2 | U83: 0.5 | V83: 0.2 | W83: 1 | X83: 0.7
A85: CLE
A86: Rk | B86: Player | C86: Age | D86: G | E86: GS | F86: MP | G86: FG | H86: FGA | I86: FG% | J86: 3P | K86: 3PA | L86: 3P% | M86: FT | N86: FTA | O86: FT% | P86: ORB | Q86: DRB | R86: TRB | S86: AST | T86: STL | U86: BLK | V86: TOV | W86: PF | X86: PTS
A87: 1 | B87: Kyrie Irving | C87: 20 | D87: 10 | E87: 10 | F87: 35.2 | G87: 8.2 | H87: 17.7 | I87: 0.463 | J87: 1.8 | K87: 4.6 | L87: 0.391 | M87: 4.7 | N87: 5.7 | O87: 0.825 | P87: 0.5 | Q87: 3.2 | R87: 3.7 | S87: 5.6 | T87: 1.1 | U87: 0.3 | V87: 4.1 | W87: 2.9 | X87: 22.9
A88: 2 | B88: Dion Waiters | C88: 21 | D88: 17 | E88: 17 | F88: 32 | G88: 5.5 | H88: 15.1 | I88: 0.363 | J88: 1.9 | K88: 5.5 | L88: 0.355 | M88: 2.3 | N88: 2.9 | O88: 0.78 | P88: 0.1 | Q88: 2.2 | R88: 2.3 | S88: 3.4 | T88: 1.2 | U88: 0.2 | V88: 1.9 | W88: 1.7 | X88: 15.2
A89: 3 | B89: Anderson Varejao | C89: 30 | D89: 17 | E89: 17 | F89: 36.6 | G89: 6.2 | H89: 11.8 | I89: 0.522 | J89: 0 | K89: 0.2 | L89: 0 | M89: 2.9 | N89: 3.7 | O89: 0.778 | P89: 6.2 | Q89: 9.2 | R89: 15.4 | S89: 3.2 | T89: 1.5 | U89: 0.4 | V89: 1.8 | W89: 2.5 | X89: 15.2
A90: 4 | B90: Alonzo Gee | C90: 25 | D90: 18 | E90: 18 | F90: 33.1 | G90: 4.2 | H90: 10.6 | I90: 0.398 | J90: 0.9 | K90: 3.2 | L90: 0.298 | M90: 2.7 | N90: 3.2 | O90: 0.845 | P90: 1.1 | Q90: 2.7 | R90: 3.7 | S90: 2.1 | T90: 1.7 | U90: 0.4 | V90: 2.4 | W90: 2.9 | X90: 12.1
A91: 5 | B91: Jeremy Pargo | C91: 26 | D91: 11 | E91: 8 | F91: 26.2 | G91: 4.4 | H91: 10.4 | I91: 0.421 | J91: 1.5 | K91: 3.6 | L91: 0.4 | M91: 1.5 | N91: 2.2 | O91: 0.708 | P91: 0.5 | Q91: 1.5 | R91: 1.9 | S91: 3.8 | T91: 0.8 | U91: 0 | V91: 2.4 | W91: 2 | X91: 11.7
A92: 6 | B92: Tristan Thompson | C92: 21 | D92: 18 | E92: 18 | F92: 30.4 | G92: 3.6 | H92: 8.1 | I92: 0.445 | J92: 0 | K92: 0 | M92: 1.7 | N92: 2.8 | O92: 0.588 | P92: 3.5 | Q92: 4.6 | R92: 8.1 | S92: 1.2 | T92: 0.8 | U92: 0.6 | V92: 1.4 | W92: 3.1 | X92: 8.9
A93: 7 | B93: Daniel Gibson | C93: 26 | D93: 15 | E93: 0 | F93: 24.3 | G93: 2.8 | H93: 7.2 | I93: 0.389 | J93: 1.9 | K93: 4.9 | L93: 0.392 | M93: 0.9 | N93: 1.2 | O93: 0.778 | P93: 0.1 | Q93: 1.5 | R93: 1.7 | S93: 2.1 | T93: 1 | U93: 0.1 | V93: 0.7 | W93: 2.9 | X93: 8.5
A94: 8 | B94: Tyler Zeller | C94: 23 | D94: 14 | E94: 0 | F94: 22.2 | G94: 2.7 | H94: 6.1 | I94: 0.447 | J94: 0 | K94: 0 | M94: 1.2 | N94: 2.2 | O94: 0.548 | P94: 1.9 | Q94: 2.9 | R94: 4.8 | S94: 0.9 | T94: 0.4 | U94: 0.6 | V94: 1.2 | W94: 3 | X94: 6.6
A95: 9 | B95: Omri Casspi | C95: 24 | D95: 14 | E95: 1 | F95: 14.1 | G95: 2.1 | H95: 4.6 | I95: 0.446 | J95: 1.3 | K95: 2.6 | L95: 0.5 | M95: 0.9 | N95: 1.4 | O95: 0.632 | P95: 0.6 | Q95: 1.9 | R95: 2.5 | S95: 0.4 | T95: 0.6 | U95: 0.4 | V95: 0.7 | W95: 1.1 | X95: 6.3
A96: 10 | B96: C.J. Miles | C96: 25 | D96: 12 | E96: 0 | F96: 15.4 | G96: 2.3 | H96: 7.4 | I96: 0.303 | J96: 0.9 | K96: 3.6 | L96: 0.256 | M96: 0.3 | N96: 0.3 | O96: 1 | P96: 0.3 | Q96: 1.8 | R96: 2.1 | S96: 0.7 | T96: 0.4 | U96: 0.1 | V96: 1.3 | W96: 1.8 | X96: 5.8
A97: 11 | B97: Donald Sloan | C97: 25 | D97: 12 | E97: 0 | F97: 10.8 | G97: 1.3 | H97: 3.4 | I97: 0.366 | J97: 0.3 | K97: 0.9 | L97: 0.273 | M97: 0.8 | N97: 1 | O97: 0.75 | P97: 0.3 | Q97: 0.8 | R97: 1.1 | S97: 2 | T97: 0.1 | U97: 0 | V97: 0.7 | W97: 0.7 | X97: 3.5
A98: 12 | B98: Samardo Samuels | C98: 24 | D98: 11 | E98: 1 | F98: 11.6 | G98: 1.3 | H98: 3.3 | I98: 0.389 | J98: 0 | K98: 0 | M98: 0.7 | N98: 1.3 | O98: 0.571 | P98: 0.7 | Q98: 1 | R98: 1.7 | S98: 0.4 | T98: 0.2 | U98: 0.3 | V98: 0.5 | W98: 1.5 | X98: 3.3
A99: 13 | B99: Jon Leuer | C99: 23 | D99: 5 | E99: 0 | F99: 14.4 | G99: 1.4 | H99: 4.2 | I99: 0.333 | J99: 0 | K99: 0.4 | L99: 0 | M99: 0.4 | N99: 1.2 | O99: 0.333 | P99: 0.8 | Q99: 1.2 | R99: 2 | S99: 0.6 | T99: 0.2 | U99: 0 | V99: 0.8 | W99: 1.6 | X99: 3.2
A100: 14 | B100: Luke Walton | C100: 32 | D100: 5 | E100: 0 | F100: 6.4 | G100: 0.2 | H100: 1.4 | I100: 0.143 | J100: 0 | K100: 0.6 | L100: 0 | M100: 0 | N100: 0 | P100: 0.2 | Q100: 0.4 | R100: 0.6 | S100: 0.4 | T100: 0.4 | U100: 0 | V100: 0.6 | W100: 1 | X100: 0.4
A102: DAL
A103: Rk | B103: Player | C103: Age | D103: G | E103: GS | F103: MP | G103: FG | H103: FGA | I103: FG% | J103: 3P | K103: 3PA | L103: 3P% | M103: FT | N103: FTA | O103: FT% | P103: ORB | Q103: DRB | R103: TRB | S103: AST | T103: STL | U103: BLK | V103: TOV | W103: PF | X103: PTS
A104: 1 | B104: O.J. Mayo | C104: 25 | D104: 17 | E104: 17 | F104: 34.6 | G104: 7 | H104: 14.7 | I104: 0.476 | J104: 2.9 | K104: 5.5 | L104: 0.527 | M104: 3.3 | N104: 3.9 | O104: 0.848 | P104: 0.7 | Q104: 2.8 | R104: 3.5 | S104: 3.2 | T104: 0.7 | U104: 0.2 | V104: 2.4 | W104: 2.3 | X104: 20.2
A105: 2 | B105: Chris Kaman | C105: 30 | D105: 15 | E105: 9 | F105: 27.1 | G105: 5.8 | H105: 11.2 | I105: 0.518 | J105: 0 | K105: 0.1 | L105: 0 | M105: 2 | N105: 2.5 | O105: 0.811 | P105: 1.7 | Q105: 5.3 | R105: 6.9 | S105: 1 | T105: 0.2 | U105: 1.1 | V105: 2.1 | W105: 2.7 | X105: 13.6
A106: 3 | B106: Vince Carter | C106: 36 | D106: 17 | E106: 0 | F106: 23.4 | G106: 4.6 | H106: 10.8 | I106: 0.426 | J106: 2.3 | K106: 5.4 | L106: 0.424 | M106: 1.6 | N106: 2.1 | O106: 0.75 | P106: 0.5 | Q106: 2.6 | R106: 3.1 | S106: 1.7 | T106: 0.8 | U106: 0.5 | V106: 1.1 | W106: 3.1 | X106: 13.1
A107: 4 | B107: Darren Collison | C107: 25 | D107: 16 | E107: 14 | F107: 32.3 | G107: 4.5 | H107: 10.3 | I107: 0.436 | J107: 0.4 | K107: 1.3 | L107: 0.333 | M107: 2.9 | N107: 3.3 | O107: 0.887 | P107: 0.2 | Q107: 2.1 | R107: 2.3 | S107: 6.4 | T107: 1.4 | U107: 0 | V107: 2.4 | W107: 1.6 | X107: 12.4
A108: 5 | B108: Shawn Marion | C108: 34 | D108: 12 | E108: 12 | F108: 28.9 | G108: 3.8 | H108: 7.8 | I108: 0.484 | J108: 0.4 | K108: 1.1 | L108: 0.385 | M108: 1.3 | N108: 1.4 | O108: 0.882 | P108: 1.4 | Q108: 6 | R108: 7.4 | S108: 2.8 | T108: 0.8 | U108: 0.7 | V108: 2.3 | W108: 1.4 | X108: 9.2
A109: 6 | B109: Brandan Wright | C109: 25 | D109: 12 | E109: 9 | F109: 17.4 | G109: 3.7 | H109: 5.7 | I109: 0.647 | J109: 0 | K109: 0 | M109: 1.2 | N109: 1.8 | O109: 0.636 | P109: 0.8 | Q109: 2.5 | R109: 3.3 | S109: 0.8 | T109: 0.5 | U109: 0.9 | V109: 0.7 | W109: 1 | X109: 8.5
A110: 7 | B110: Elton Brand | C110: 33 | D110: 16 | E110: 12 | F110: 22.4 | G110: 2.6 | H110: 6.6 | I110: 0.39 | J110: 0 | K110: 0.1 | L110: 0 | M110: 1.8 | N110: 2.2 | O110: 0.8 | P110: 2.2 | Q110: 4.2 | R110: 6.4 | S110: 1.6 | T110: 0.8 | U110: 1.4 | V110: 1 | W110: 2.9 | X110: 6.9
A111: 8 | B111: Jae Crowder | C111: 22 | D111: 16 | E111: 7 | F111: 20.1 | G111: 2.6 | H111: 6.1 | I111: 0.423 | J111: 1.1 | K111: 3.4 | L111: 0.327 | M111: 0.5 | N111: 1.1 | O111: 0.471 | P111: 0.1 | Q111: 2.6 | R111: 2.7 | S111: 1.2 | T111: 1.1 | U111: 0.3 | V111: 0.8 | W111: 2.1 | X111: 6.8
A112: 9 | B112: Troy Murphy | C112: 32 | D112: 14 | E112: 1 | F112: 18.3 | G112: 1.6 | H112: 4.4 | I112: 0.361 | J112: 0.8 | K112: 2.5 | L112: 0.314 | M112: 0.7 | N112: 0.8 | O112: 0.909 | P112: 0.5 | Q112: 3 | R112: 3.5 | S112: 0.5 | T112: 0.7 | U112: 0.4 | V112: 0.5 | W112: 2.1 | X112: 4.6
A113: 10 | B113: Eddy Curry | C113: 30 | D113: 2 | E113: 0 | F113: 12.5 | G113: 2 | H113: 4 | I113: 0.5 | J113: 0 | K113: 0 | M113: 0.5 | N113: 2 | O113: 0.25 | P113: 1 | Q113: 1 | R113: 2 | S113: 0 | T113: 0 | U113: 0 | V113: 1.5 | W113: 3.5 | X113: 4.5
A114: 11 | B114: Rodrigue Beaubois | C114: 24 | D114: 10 | E114: 0 | F114: 16.2 | G114: 1.6 | H114: 5.1 | I114: 0.314 | J114: 0.5 | K114: 1.9 | L114: 0.263 | M114: 0.8 | N114: 1 | O114: 0.8 | P114: 0.2 | Q114: 1.6 | R114: 1.8 | S114: 2.7 | T114: 0.7 | U114: 0.1 | V114: 0.9 | W114: 1.8 | X114: 4.5
A115: 12 | B115: Bernard James | C115: 27 | D115: 13 | E115: 0 | F115: 12.5 | G115: 1.5 | H115: 3.1 | I115: 0.5 | J115: 0 | K115: 0.1 | L115: 0 | M115: 1.2 | N115: 1.7 | O115: 0.682 | P115: 1.4 | Q115: 2.4 | R115: 3.8 | S115: 0 | T115: 0.2 | U115: 0.9 | V115: 0.5 | W115: 1.2 | X115: 4.2
A116: 13 | B116: Dominique Jones | C116: 24 | D116: 12 | E116: 2 | F116: 12.5 | G116: 1.6 | H116: 4.8 | I116: 0.333 | J116: 0 | K116: 0.6 | L116: 0 | M116: 1 | N116: 2 | O116: 0.5 | P116: 0.9 | Q116: 1.2 | R116: 2.1 | S116: 3.6 | T116: 0.8 | U116: 0.1 | V116: 1.5 | W116: 1.3 | X116: 4.2
A117: 14 | B117: Dahntay Jones | C117: 32 | D117: 17 | E117: 1 | F117: 10.9 | G117: 0.7 | H117: 2.2 | I117: 0.316 | J117: 0.2 | K117: 0.6 | L117: 0.273 | M117: 1.2 | N117: 1.4 | O117: 0.833 | P117: 0.3 | Q117: 1.2 | R117: 1.5 | S117: 0.4 | T117: 0.2 | U117: 0.1 | V117: 0.4 | W117: 1.5 | X117: 2.8
A118: 15 | B118: Derek Fisher | C118: 38 | D118: 1 | E118: 1 | F118: 24 | G118: 1 | H118: 8 | I118: 0.125 | J118: 0 | K118: 1 | L118: 0 | M118: 0 | N118: 0 | P118: 0 | Q118: 2 | R118: 2 | S118: 3 | T118: 2 | U118: 0 | V118: 3 | W118: 2 | X118: 2
A119: 16 | B119: Jared Cunningham | C119: 21 | D119: 6 | E119: 0 | F119: 3.3 | G119: 0.7 | H119: 1.8 | I119: 0.364 | J119: 0.3 | K119: 0.5 | L119: 0.667 | M119: 0 | N119: 0 | P119: 0.2 | Q119: 0.2 | R119: 0.3 | S119: 0.2 | T119: 0.2 | U119: 0 | V119: 0.2 | W119: 0.3 | X119: 1.7
A121: DEN
A122: Rk | B122: Player | C122: Age | D122: G | E122: GS | F122: MP | G122: FG | H122: FGA | I122: FG% | J122: 3P | K122: 3PA | L122: 3P% | M122: FT | N122: FTA | O122: FT% | P122: ORB | Q122: DRB | R122: TRB | S122: AST | T122: STL | U122: BLK | V122: TOV | W122: PF | X122: PTS
A123: 1 | B123: Danilo Gallinari | C123: 24 | D123: 17 | E123: 17 | F123: 33.5 | G123: 5.2 | H123: 13.6 | I123: 0.385 | J123: 1.6 | K123: 5.5 | L123: 0.29 | M123: 3.5 | N123: 4.4 | O123: 0.787 | P123: 1 | Q123: 5.1 | R123: 6.1 | S123: 2.4 | T123: 0.6 | U123: 0.6 | V123: 1.6 | W123: 2.3 | X123: 15.5
A124: 2 | B124: Andre Iguodala | C124: 29 | D124: 18 | E124: 18 | F124: 35.2 | G124: 5.7 | H124: 12.4 | I124: 0.457 | J124: 1.4 | K124: 3.7 | L124: 0.388 | M124: 2.2 | N124: 3.2 | O124: 0.684 | P124: 0.9 | Q124: 4.6 | R124: 5.5 | S124: 3.8 | T124: 1.1 | U124: 0.7 | V124: 2.7 | W124: 1.4 | X124: 14.9
A125: 3 | B125: Ty Lawson | C125: 25 | D125: 18 | E125: 18 | F125: 36.1 | G125: 5.3 | H125: 13.2 | I125: 0.403 | J125: 0.8 | K125: 2.8 | L125: 0.28 | M125: 1.9 | N125: 3.3 | O125: 0.593 | P125: 0.9 | Q125: 1.8 | R125: 2.7 | S125: 7.2 | T125: 1.9 | U125: 0.1 | V125: 3.3 | W125: 1.6 | X125: 13.4
A126: 4 | B126: Kenneth Faried | C126: 23 | D126: 18 | E126: 18 | F126: 30.6 | G126: 5.3 | H126: 9.5 | I126: 0.561 | J126: 0 | K126: 0 | M126: 2.6 | N126: 4.4 | O126: 0.582 | P126: 4.8 | Q126: 5.7 | R126: 10.5 | S126: 0.7 | T126: 0.9 | U126: 1.1 | V126: 1.4 | W126: 3.1 | X126: 13.2
A127: 5 | B127: JaVale McGee | C127: 25 | D127: 18 | E127: 0 | F127: 19.1 | G127: 4.5 | H127: 8.1 | I127: 0.555 | J127: 0 | K127: 0 | M127: 1.8 | N127: 2.8 | O127: 0.627 | P127: 2.6 | Q127: 3.1 | R127: 5.7 | S127: 0.6 | T127: 0.2 | U127: 1.8 | V127: 1.2 | W127: 1.8 | X127: 10.8
A128: 6 | B128: Corey Brewer | C128: 26 | D128: 18 | E128: 0 | F128: 22.8 | G128: 3.9 | H128: 9.6 | I128: 0.413 | J128: 1.5 | K128: 3.9 | L128: 0.38 | M128: 1.1 | N128: 1.6 | O128: 0.69 | P128: 0.6 | Q128: 2.4 | R128: 3.1 | S128: 0.7 | T128: 1.4 | U128: 0.3 | V128: 1.1 | W128: 1.8 | X128: 10.5
A129: 7 | B129: Andre Miller | C129: 36 | D129: 18 | E129: 0 | F129: 25 | G129: 3.1 | H129: 6.6 | I129: 0.471 | J129: 0.2 | K129: 0.8 | L129: 0.267 | M129: 1.9 | N129: 2.3 | O129: 0.854 | P129: 0.8 | Q129: 2 | R129: 2.8 | S129: 5.1 | T129: 0.8 | U129: 0.2 | V129: 2.4 | W129: 1.8 | X129: 8.4
A130: 8 | B130: Jordan Hamilton | C130: 22 | D130: 12 | E130: 1 | F130: 12.3 | G130: 2.5 | H130: 5.8 | I130: 0.429 | J130: 0.9 | K130: 2.3 | L130: 0.407 | M130: 0.6 | N130: 0.9 | O130: 0.636 | P130: 0.9 | Q130: 2 | R130: 2.9 | S130: 0.8 | T130: 0.3 | U130: 0.2 | V130: 0.7 | W130: 1 | X130: 6.5
A131: 9 | B131: Wilson Chandler | C131: 25 | D131: 4 | E131: 0 | F131: 17.3 | G131: 2.5 | H131: 8 | I131: 0.313 | J131: 0.5 | K131: 2 | L131: 0.25 | M131: 1 | N131: 2 | O131: 0.5 | P131: 1.5 | Q131: 3.5 | R131: 5 | S131: 0 | T131: 0 | U131: 0.3 | V131: 1.3 | W131: 2.5 | X131: 6.5
A132: 10 | B132: Kosta Koufos | C132: 23 | D132: 18 | E132: 18 | F132: 21.6 | G132: 2.8 | H132: 5.3 | I132: 0.521 | J132: 0 | K132: 0.1 | L132: 0 | M132: 0.8 | N132: 1.4 | O132: 0.538 | P132: 2.2 | Q132: 3.8 | R132: 5.9 | S132: 0.5 | T132: 0.6 | U132: 1.6 | V132: 0.7 | W132: 3.3 | X132: 6.3
A133: 11 | B133: Evan Fournier | C133: 20 | D133: 7 | E133: 0 | F133: 8.1 | G133: 1.4 | H133: 2.7 | I133: 0.526 | J133: 0.4 | K133: 1.6 | L133: 0.273 | M133: 0.1 | N133: 0.3 | O133: 0.5 | P133: 0.1 | Q133: 0.3 | R133: 0.4 | S133: 0.9 | T133: 0 | U133: 0 | V133: 1 | W133: 0.9 | X133: 3.4
A134: 12 | B134: Timofey Mozgov | C134: 26 | D134: 7 | E134: 0 | F134: 11.6 | G134: 1.3 | H134: 2.1 | I134: 0.6 | J134: 0 | K134: 0 | M134: 0.6 | N134: 0.6 | O134: 1 | P134: 1.6 | Q134: 1.7 | R134: 3.3 | S134: 0.3 | T134: 0.3 | U134: 0.6 | V134: 0.7 | W134: 2.4 | X134: 3.1
A135: 13 | B135: Anthony Randolph | C135: 23 | D135: 3 | E135: 0 | F135: 6 | G135: 0.3 | H135: 1 | I135: 0.333 | J135: 0 | K135: 0 | M135: 0 | N135: 0 | P135: 0.7 | Q135: 0.3 | R135: 1 | S135: 1 | T135: 0 | U135: 0.3 | V135: 0.3 | W135: 0.7 | X135: 0.7
A137: DET
A138: Rk | B138: Player | C138: Age | D138: G | E138: GS | F138: MP | G138: FG | H138: FGA | I138: FG% | J138: 3P | K138: 3PA | L138: 3P% | M138: FT | N138: FTA | O138: FT% | P138: ORB | Q138: DRB | R138: TRB | S138: AST | T138: STL | U138: BLK | V138: TOV | W138: PF | X138: PTS
A139: 1 | B139: Greg Monroe | C139: 22 | D139: 19 | E139: 19 | F139: 33.3 | G139: 6.3 | H139: 13.5 | I139: 0.463 | J139: 0 | K139: 0 | M139: 3.2 | N139: 4.5 | O139: 0.698 | P139: 2.6 | Q139: 7.3 | R139: 9.9 | S139: 3.5 | T139: 1.7 | U139: 0.8 | V139: 3.3 | W139: 2.6 | X139: 15.7
A140: 2 | B140: Brandon Knight | C140: 21 | D140: 19 | E140: 19 | F140: 31.3 | G140: 4.5 | H140: 10.7 | I140: 0.422 | J140: 1.6 | K140: 4 | L140: 0.408 | M140: 2.8 | N140: 3.5 | O140: 0.791 | P140: 0.3 | Q140: 3.3 | R140: 3.6 | S140: 5.3 | T140: 0.5 | U140: 0.1 | V140: 3.4 | W140: 2.3 | X140: 13.5
A141: 3 | B141: Tayshaun Prince | C141: 32 | D141: 19 | E141: 19 | F141: 32.5 | G141: 5 | H141: 10.9 | I141: 0.459 | J141: 0.5 | K141: 1.1 | L141: 0.429 | M141: 1.8 | N141: 2.2 | O141: 0.81 | P141: 0.8 | Q141: 3.4 | R141: 4.2 | S141: 2.4 | T141: 0.5 | U141: 0.3 | V141: 1.1 | W141: 0.8 | X141: 12.3
A142: 4 | B142: Kyle Singler | C142: 24 | D142: 19 | E142: 11 | F142: 27.3 | G142: 3.7 | H142: 7.4 | I142: 0.504 | J142: 1.2 | K142: 2.6 | L142: 0.449 | M142: 1.6 | N142: 2.1 | O142: 0.775 | P142: 0.9 | Q142: 2.7 | R142: 3.6 | S142: 1 | T142: 0.5 | U142: 0.6 | V142: 1 | W142: 3.1 | X142: 10.3
A143: 5 | B143: Rodney Stuckey | C143: 26 | D143: 18 | E143: 8 | F143: 28.1 | G143: 3.2 | H143: 9.3 | I143: 0.347 | J143: 0.5 | K143: 2.5 | L143: 0.2 | M143: 2.6 | N143: 3.3 | O143: 0.797 | P143: 0.7 | Q143: 2.3 | R143: 3 | S143: 3.7 | T143: 0.3 | U143: 0.3 | V143: 1.3 | W143: 1.3 | X143: 9.6
A144: 6 | B144: Jason Maxiell | C144: 29 | D144: 19 | E144: 19 | F144: 26.9 | G144: 3.6 | H144: 7.1 | I144: 0.511 | J144: 0 | K144: 0 | M144: 1.6 | N144: 2.4 | O144: 0.689 | P144: 1.7 | Q144: 4.7 | R144: 6.5 | S144: 0.7 | T144: 0.4 | U144: 1.6 | V144: 1.4 | W144: 2.4 | X144: 8.9
A145: 7 | B145: Charlie Villanueva | C145: 28 | D145: 9 | E145: 0 | F145: 12.9 | G145: 2.6 | H145: 6.3 | I145: 0.404 | J145: 1.3 | K145: 3.7 | L145: 0.364 | M145: 0.2 | N145: 1 | O145: 0.222 | P145: 0.4 | Q145: 2.1 | R145: 2.6 | S145: 0.9 | T145: 0.4 | U145: 0.3 | V145: 0.4 | W145: 1 | X145: 6.7
A146: 8 | B146: Andre Drummond | C146: 19 | D146: 19 | E146: 0 | F146: 16.9 | G146: 2.6 | H146: 4.7 | I146: 0.551 | J146: 0.1 | K146: 0.1 | L146: 0.5 | M146: 0.7 | N146: 1.8 | O146: 0.382 | P146: 2.8 | Q146: 3.4 | R146: 6.2 | S146: 0.5 | T146: 0.8 | U146: 1.3 | V146: 0.8 | W146: 1.9 | X146: 5.9
A147: 9 | B147: Jonas Jerebko | C147: 25 | D147: 13 | E147: 0 | F147: 17 | G147: 2.2 | H147: 6 | I147: 0.359 | J147: 0.4 | K147: 1.9 | L147: 0.2 | M147: 1.1 | N147: 1.5 | O147: 0.737 | P147: 1.5 | Q147: 1.4 | R147: 2.9 | S147: 0.5 | T147: 0.9 | U147: 0.2 | V147: 0.7 | W147: 2 | X147: 5.8
A148: 10 | B148: Will Bynum | C148: 30 | D148: 16 | E148: 0 | F148: 14.6 | G148: 2.1 | H148: 5.7 | I148: 0.374 | J148: 0.1 | K148: 0.6 | L148: 0.2 | M148: 1.2 | N148: 1.3 | O148: 0.905 | P148: 0.1 | Q148: 0.8 | R148: 0.9 | S148: 2.5 | T148: 0.6 | U148: 0.1 | V148: 1.2 | W148: 1.9 | X148: 5.6
A149: 11 | B149: Corey Maggette | C149: 33 | D149: 11 | E149: 0 | F149: 14.5 | G149: 1.6 | H149: 4.3 | I149: 0.383 | J149: 0.5 | K149: 1.3 | L149: 0.357 | M149: 1.7 | N149: 2.1 | O149: 0.826 | P149: 0.1 | Q149: 0.9 | R149: 1 | S149: 1.4 | T149: 0.4 | U149: 0.1 | V149: 1.3 | W149: 2.5 | X149: 5.5
A150: 12 | B150: Kim English | C150: 24 | D150: 10 | E150: 0 | F150: 9.2 | G150: 1.1 | H150: 2.9 | I150: 0.379 | J150: 0.8 | K150: 1.6 | L150: 0.5 | M150: 0.2 | N150: 0.2 | O150: 1 | P150: 0.1 | Q150: 0.4 | R150: 0.5 | S150: 0.7 | T150: 0.3 | U150: 0.2 | V150: 0.4 | W150: 0.9 | X150: 3.2
A151: 13 | B151: Austin Daye | C151: 24 | D151: 5 | E151: 0 | F151: 4.4 | G151: 1 | H151: 1.8 | I151: 0.556 | J151: 0.4 | K151: 0.6 | L151: 0.667 | M151: 0 | N151: 0 | P151: 0 | Q151: 1 | R151: 1 | S151: 0.4 | T151: 0 | U151: 0 | V151: 0.2 | W151: 0.2 | X151: 2.4
A152: 14 | B152: Khris Middleton | C152: 21 | D152: 3 | E152: 0 | F152: 4 | G152: 0.3 | H152: 1 | I152: 0.333 | J152: 0 | K152: 0 | M152: 0.7 | N152: 1 | O152: 0.667 | P152: 0 | Q152: 0 | R152: 0 | S152: 0.7 | T152: 0.7 | U152: 0 | V152: 0 | W152: 0.7 | X152: 1.3
A154: GSW
A155: Rk | B155: Player | C155: Age | D155: G | E155: GS | F155: MP | G155: FG | H155: FGA | I155: FG% | J155: 3P | K155: 3PA | L155: 3P% | M155: FT | N155: FTA | O155: FT% | P155: ORB | Q155: DRB | R155: TRB | S155: AST | T155: STL | U155: BLK | V155: TOV | W155: PF | X155: PTS
A156: 1 | B156: Stephen Curry | C156: 24 | D156: 17 | E156: 17 | F156: 37.1 | G156: 6.5 | H156: 15.5 | I156: 0.418 | J156: 2.5 | K156: 6.1 | L156: 0.413 | M156: 3.5 | N156: 3.9 | O156: 0.894 | P156: 0.6 | Q156: 3.4 | R156: 3.9 | S156: 6.4 | T156: 1.6 | U156: 0.1 | V156: 3.2 | W156: 2.9 | X156: 18.9
A157: 2 | B157: David Lee | C157: 29 | D157: 17 | E157: 17 | F157: 37.5 | G157: 7.2 | H157: 14.8 | I157: 0.49 | J157: 0 | K157: 0.1 | L157: 0 | M157: 2.9 | N157: 3.8 | O157: 0.769 | P157: 2.7 | Q157: 8 | R157: 10.7 | S157: 3.8 | T157: 1.1 | U157: 0.3 | V157: 2.6 | W157: 3.6 | X157: 17.4
A158: 3 | B158: Klay Thompson | C158: 22 | D158: 17 | E158: 17 | F158: 35.1 | G158: 5.8 | H158: 15.4 | I158: 0.375 | J158: 2.2 | K158: 6.8 | L158: 0.322 | M158: 1.6 | N158: 2.1 | O158: 0.8 | P158: 0.5 | Q158: 3.5 | R158: 4.1 | S158: 2.2 | T158: 0.4 | U158: 0.4 | V158: 2.2 | W158: 2.6 | X158: 15.4
A159: 4 | B159: Carl Landry | C159: 29 | D159: 17 | E159: 0 | F159: 26.6 | G159: 5.1 | H159: 8.9 | I159: 0.57 | J159: 0 | K159: 0.1 | L159: 0 | M159: 3.9 | N159: 4.9 | O159: 0.795 | P159: 3.1 | Q159: 4 | R159: 7.1 | S159: 1.1 | T159: 0.3 | U159: 0.5 | V159: 1.8 | W159: 2.9 | X159: 14
A160: 5 | B160: Jarrett Jack | C160: 29 | D160: 17 | E160: 0 | F160: 25.2 | G160: 3.9 | H160: 8 | I160: 0.485 | J160: 0.7 | K160: 1.9 | L160: 0.375 | M160: 1.5 | N160: 1.8 | O160: 0.867 | P160: 0.1 | Q160: 2.9 | R160: 3 | S160: 4.5 | T160: 0.8 | U160: 0 | V160: 1.8 | W160: 2 | X160: 10
A161: 6 | B161: Harrison Barnes | C161: 20 | D161: 17 | E161: 17 | F161: 27.8 | G161: 3.8 | H161: 8.2 | I161: 0.46 | J161: 0.7 | K161: 2 | L161: 0.353 | M161: 1.6 | N161: 2.4 | O161: 0.659 | P161: 0.8 | Q161: 4 | R161: 4.8 | S161: 1.4 | T161: 0.6 | U161: 0.2 | V161: 1.4 | W161: 2.2 | X161: 9.8
A162: 7 | B162: Brandon Rush | C162: 27 | D162: 2 | E162: 0 | F162: 12.5 | G162: 3 | H162: 4.5 | I162: 0.667 | J162: 0 | K162: 1 | L162: 0 | M162: 1 | N162: 1.5 | O162: 0.667 | P162: 0 | Q162: 0.5 | R162: 0.5 | S162: 1 | T162: 0 | U162: 0 | V162: 1.5 | W162: 2.5 | X162: 7
A163: 8 | B163: Andrew Bogut | C163: 28 | D163: 4 | E163: 4 | F163: 18.3 | G163: 2.8 | H163: 5 | I163: 0.55 | J163: 0 | K163: 0 | M163: 0.5 | N163: 1 | O163: 0.5 | P163: 1 | Q163: 2.8 | R163: 3.8 | S163: 2 | T163: 0.3 | U163: 1 | V163: 1 | W163: 1.5 | X163: 6
A164: 9 | B164: Richard Jefferson | C164: 32 | D164: 10 | E164: 0 | F164: 15.2 | G164: 1.5 | H164: 4.5 | I164: 0.333 | J164: 0.3 | K164: 1.8 | L164: 0.167 | M164: 0.9 | N164: 1.2 | O164: 0.75 | P164: 0.2 | Q164: 1.2 | R164: 1.4 | S164: 1.2 | T164: 0.5 | U164: 0.3 | V164: 0.3 | W164: 1 | X164: 4.2
A165: 10 | B165: Festus Ezeli | C165: 23 | D165: 17 | E165: 13 | F165: 16.7 | G165: 1.5 | H165: 3 | I165: 0.49 | J165: 0 | K165: 0 | M165: 0.6 | N165: 1.6 | O165: 0.37 | P165: 2.3 | Q165: 2.4 | R165: 4.6 | S165: 0.2 | T165: 0.4 | U165: 1 | V165: 0.9 | W165: 2.1 | X165: 3.5
A166: 11 | B166: Draymond Green | C166: 22 | D166: 17 | E166: 0 | F166: 11.6 | G166: 0.8 | H166: 2.4 | I166: 0.325 | J166: 0.2 | K166: 0.9 | L166: 0.25 | M166: 0.5 | N166: 0.6 | O166: 0.8 | P166: 0.5 | Q166: 2.1 | R166: 2.6 | S166: 0.4 | T166: 0.5 | U166: 0.1 | V166: 0.5 | W166: 2.1 | X166: 2.2
A167: 12 | B167: Charles Jenkins | C167: 23 | D167: 14 | E167: 0 | F167: 4.1 | G167: 0.8 | H167: 1.3 | I167: 0.611 | J167: 0 | K167: 0 | M167: 0.4 | N167: 0.6 | O167: 0.625 | P167: 0.1 | Q167: 0.4 | R167: 0.4 | S167: 0.3 | T167: 0.1 | U167: 0 | V167: 0.5 | W167: 0.3 | X167: 1.9
A168: 13 | B168: Jeremy Tyler | C168: 21 | D168: 5 | E168: 0 | F168: 2 | G168: 0.6 | H168: 1 | I168: 0.6 | J168: 0 | K168: 0 | M168: 0.4 | N168: 0.4 | O168: 1 | P168: 0.2 | Q168: 0 | R168: 0.2 | S168: 0 | T168: 0.2 | U168: 0 | V168: 0.2 | W168: 0 | X168: 1.6
A169: 14 | B169: Andris Biedrins | C169: 26 | D169: 14 | E169: 0 | F169: 9.5 | G169: 0.2 | H169: 0.6 | I169: 0.375 | J169: 0 | K169: 0 | M169: 0.1 | N169: 0.4 | O169: 0.333 | P169: 0.6 | Q169: 2.1 | R169: 2.7 | S169: 0.4 | T169: 0.4 | U169: 0.5 | V169: 0.6 | W169: 1.6 | X169: 0.6
A170: 15 | B170: Kent Bazemore | C170: 23 | D170: 7 | E170: 0 | F170: 1.4 | G170: 0 | H170: 0.9 | I170: 0 | J170: 0 | K170: 0 | M170: 0 | N170: 0 | P170: 0.1 | Q170: 0.1 | R170: 0.3 | S170: 0.1 | T170: 0.3 | U170: 0.3 | V170: 0 | W170: 0 | X170: 0
A172: HOU
A173: Rk | B173: Player | C173: Age | D173: G | E173: GS | F173: MP | G173: FG | H173: FGA | I173: FG% | J173: 3P | K173: 3PA | L173: 3P% | M173: FT | N173: FTA | O173: FT% | P173: ORB | Q173: DRB | R173: TRB | S173: AST | T173: STL | U173: BLK | V173: TOV | W173: PF | X173: PTS
A174: 1 | B174: James Harden | C174: 23 | D174: 16 | E174: 16 | F174: 38.8 | G174: 7.3 | H174: 17.1 | I174: 0.427 | J174: 1.9 | K174: 5.7 | L174: 0.341 | M174: 7.6 | N174: 9.1 | O174: 0.834 | P174: 0.8 | Q174: 3.3 | R174: 4.1 | S174: 5.4 | T174: 1.7 | U174: 0.6 | V174: 4.1 | W174: 2.2 | X174: 24.1
A175: 2 | B175: Chandler Parsons | C175: 24 | D175: 15 | E175: 15 | F175: 38.2 | G175: 5.9 | H175: 12.1 | I175: 0.484 | J175: 2.4 | K175: 5.6 | L175: 0.429 | M175: 1.8 | N175: 2.3 | O175: 0.771 | P175: 1.2 | Q175: 5.5 | R175: 6.7 | S175: 3.5 | T175: 1.1 | U175: 0.2 | V175: 2.1 | W175: 2 | X175: 15.9
A176: 3 | B176: Patrick Patterson | C176: 23 | D176: 15 | E176: 15 | F176: 30.1 | G176: 6.3 | H176: 12.4 | I176: 0.511 | J176: 0.8 | K176: 2.1 | L176: 0.375 | M176: 1.1 | N176: 1.5 | O176: 0.773 | P176: 2 | Q176: 3.3 | R176: 5.3 | S176: 1 | T176: 0.6 | U176: 0.6 | V176: 1.2 | W176: 2 | X176: 14.6
A177: 4 | B177: Omer Asik | C177: 26 | D177: 16 | E177: 16 | F177: 32.8 | G177: 4.2 | H177: 8.4 | I177: 0.496 | J177: 0 | K177: 0 | M177: 2.6 | N177: 4.5 | O177: 0.583 | P177: 3.8 | Q177: 8.5 | R177: 12.3 | S177: 1.3 | T177: 0.8 | U177: 1.3 | V177: 3 | W177: 2.6 | X177: 11
A178: 5 | B178: Jeremy Lin | C178: 24 | D178: 16 | E178: 16 | F178: 34.4 | G178: 4.1 | H178: 10.5 | I178: 0.393 | J178: 0.7 | K178: 2.6 | L178: 0.262 | M178: 1.9 | N178: 2.4 | O178: 0.816 | P178: 0.7 | Q178: 3.7 | R178: 4.4 | S178: 6.6 | T178: 2 | U178: 0.4 | V178: 2.9 | W178: 2.3 | X178: 10.9
A179: 6 | B179: Marcus Morris | C179: 23 | D179: 16 | E179: 1 | F179: 20.7 | G179: 3.4 | H179: 7.5 | I179: 0.45 | J179: 1.2 | K179: 3.1 | L179: 0.388 | M179: 0.8 | N179: 1.3 | O179: 0.6 | P179: 1.6 | Q179: 2.6 | R179: 4.2 | S179: 0.8 | T179: 0.5 | U179: 0.5 | V179: 0.7 | W179: 2.6 | X179: 8.7
A180: 7 | B180: Carlos Delfino | C180: 30 | D180: 9 | E180: 0 | F180: 22.9 | G180: 3 | H180: 8.1 | I180: 0.37 | J180: 2 | K180: 5.8 | L180: 0.346 | M180: 0.7 | N180: 0.9 | O180: 0.75 | P180: 0.2 | Q180: 3.8 | R180: 4 | S180: 2 | T180: 1 | U180: 0.1 | V180: 1.1 | W180: 1.2 | X180: 8.7
A181: 8 | B181: Greg Smith | C181: 22 | D181: 11 | E181: 0 | F181: 12.2 | G181: 2 | H181: 3.5 | I181: 0.579 | J181: 0 | K181: 0 | M181: 1.8 | N181: 2.3 | O181: 0.8 | P181: 1.8 | Q181: 1.7 | R181: 3.5 | S181: 0.7 | T181: 0.3 | U181: 0.4 | V181: 0.3 | W181: 2.4 | X181: 5.8
A182: 9 | B182: Toney Douglas | C182: 26 | D182: 15 | E182: 0 | F182: 15.5 | G182: 1.6 | H182: 5.3 | I182: 0.304 | J182: 0.8 | K182: 2.4 | L182: 0.333 | M182: 1.7 | N182: 1.7 | O182: 1 | P182: 0.4 | Q182: 0.8 | R182: 1.2 | S182: 1.7 | T182: 0.9 | U182: 0 | V182: 1.5 | W182: 1.7 | X182: 5.7
A183: 10 | B183: Daequan Cook | C183: 25 | D183: 8 | E183: 1 | F183: 13.9 | G183: 2 | H183: 5.3 | I183: 0.381 | J183: 1.1 | K183: 2.9 | L183: 0.391 | M183: 0.1 | N183: 0.3 | O183: 0.5 | P183: 0.5 | Q183: 1.1 | R183: 1.6 | S183: 1 | T183: 0.5 | U183: 0.3 | V183: 0.4 | W183: 1.4 | X183: 5.3
A184: 11 | B184: Terrence Jones | C184: 21 | D184: 7 | E184: 0 | F184: 10.4 | G184: 1.3 | H184: 3.9 | I184: 0.333 | J184: 0.1 | K184: 0.7 | L184: 0.2 | M184: 0.9 | N184: 0.9 | O184: 1 | P184: 0.9 | Q184: 1.1 | R184: 2 | S184: 0.4 | T184: 0.4 | U184: 0.6 | V184: 0.3 | W184: 0.4 | X184: 3.6
A185: 12 | B185: Cole Aldrich | C185: 24 | D185: 8 | E185: 0 | F185: 8.6 | G185: 1.4 | H185: 2.6 | I185: 0.524 | J185: 0 | K185: 0 | M185: 0.3 | N185: 0.4 | O185: 0.667 | P185: 0.8 | Q185: 1.4 | R185: 2.1 | S185: 0.3 | T185: 0.1 | U185: 0.3 | V185: 0.3 | W185: 1.8 | X185: 3
A186: 13 | B186: Scott Machado | C186: 22 | D186: 1 | E186: 0 | F186: 3 | G186: 0 | H186: 0 | J186: 0 | K186: 0 | M186: 2 | N186: 2 | O186: 1 | P186: 0 | Q186: 0 | R186: 0 | S186: 1 | T186: 0 | U186: 0 | V186: 0 | W186: 0 | X186: 2
A187: 14 | B187: Donatas Motiejunas | C187: 22 | D187: 3 | E187: 0 | F187: 3 | G187: 0.3 | H187: 0.7 | I187: 0.5 | J187: 0 | K187: 0 | M187: 0.3 | N187: 0.7 | O187: 0.5 | P187: 0 | Q187: 0.3 | R187: 0.3 | S187: 0 | T187: 0 | U187: 0 | V187: 0 | W187: 0.7 | X187: 1
A189: IND
A190: Rk | B190: Player | C190: Age | D190: G | E190: GS | F190: MP | G190: FG | H190: FGA | I190: FG% | J190: 3P | K190: 3PA | L190: 3P% | M190: FT | N190: FTA | O190: FT% | P190: ORB | Q190: DRB | R190: TRB | S190: AST | T190: STL | U190: BLK | V190: TOV | W190: PF | X190: PTS
A191: 1 | B191: David West | C191: 32 | D191: 17 | E191: 17 | F191: 34.3 | G191: 7.2 | H191: 14.7 | I191: 0.492 | J191: 0 | K191: 0.2 | L191: 0 | M191: 3.3 | N191: 4.4 | O191: 0.757 | P191: 2 | Q191: 6.3 | R191: 8.3 | S191: 2.5 | T191: 0.6 | U191: 1.2 | V191: 1.8 | W191: 1.8 | X191: 17.8
A192: 2 | B192: George Hill | C192: 26 | D192: 17 | E192: 17 | F192: 35.2 | G192: 5.2 | H192: 12.4 | I192: 0.424 | J192: 1.5 | K192: 4.5 | L192: 0.325 | M192: 2.8 | N192: 3.4 | O192: 0.842 | P192: 0.6 | Q192: 3.4 | R192: 4.1 | S192: 5.3 | T192: 0.9 | U192: 0.4 | V192: 1.8 | W192: 1.9 | X192: 14.8
A193: 3 | B193: Paul George | C193: 22 | D193: 17 | E193: 17 | F193: 34.7 | G193: 5 | H193: 13 | I193: 0.385 | J193: 1.9 | K193: 5.3 | L193: 0.367 | M193: 1.5 | N193: 1.9 | O193: 0.788 | P193: 0.9 | Q193: 5.6 | R193: 6.5 | S193: 3.4 | T193: 1.2 | U193: 0.6 | V193: 2.5 | W193: 2.6 | X193: 13.5
A194: 4 | B194: Roy Hibbert | C194: 26 | D194: 17 | E194: 17 | F194: 29.1 | G194: 4.2 | H194: 10.7 | I194: 0.39 | J194: 0 | K194: 0.1 | L194: 0 | M194: 1.4 | N194: 2.4 | O194: 0.575 | P194: 4 | Q194: 4.2 | R194: 8.2 | S194: 1.4 | T194: 0.7 | U194: 3.1 | V194: 1.9 | W194: 3.7 | X194: 9.7
A195: 5 | B195: Gerald Green | C195: 27 | D195: 17 | E195: 3 | F195: 22.8 | G195: 2.8 | H195: 7.5 | I195: 0.375 | J195: 1.1 | K195: 3.1 | L195: 0.365 | M195: 1 | N195: 1.4 | O195: 0.739 | P195: 1 | Q195: 3.1 | R195: 4.1 | S195: 0.5 | T195: 0.2 | U195: 0.4 | V195: 1.1 | W195: 1.2 | X195: 7.8
A196: 6 | B196: Lance Stephenson | C196: 22 | D196: 17 | E196: 11 | F196: 24.9 | G196: 2.9 | H196: 6.1 | I196: 0.481 | J196: 0.9 | K196: 2.3 | L196: 0.41 | M196: 0.4 | N196: 0.5 | O196: 0.75 | P196: 0.2 | Q196: 2.7 | R196: 2.9 | S196: 2.5 | T196: 0.6 | U196: 0.1 | V196: 1.5 | W196: 1.7 | X196: 7.2
A197: 7 | B197: Tyler Hansbrough | C197: 27 | D197: 17 | E197: 0 | F197: 17.4 | G197: 1.6 | H197: 4.3 | I197: 0.384 | J197: 0 | K197: 0.1 | L197: 0 | M197: 3.2 | N197: 4.4 | O197: 0.72 | P197: 1.7 | Q197: 3 | R197: 4.7 | S197: 0.2 | T197: 0.4 | U197: 0.2 | V197: 0.8 | W197: 1.7 | X197: 6.5
A198: 8 | B198: Sam Young | C198: 27 | D198: 15 | E198: 3 | F198: 17.1 | G198: 2 | H198: 4.9 | I198: 0.405 | J198: 0.6 | K198: 2.1 | L198: 0.281 | M198: 0.4 | N198: 1 | O198: 0.4 | P198: 0.7 | Q198: 2.8 | R198: 3.5 | S198: 0.9 | T198: 0.5 | U198: 0.1 | V198: 1.1 | W198: 1.3 | X198: 5
A199: 9 | B199: Ian Mahinmi | C199: 26 | D199: 17 | E199: 0 | F199: 14.8 | G199: 1.4 | H199: 3.6 | I199: 0.393 | J199: 0 | K199: 0.1 | L199: 0 | M199: 1.9 | N199: 2.8 | O199: 0.667 | P199: 1.4 | Q199: 2.2 | R199: 3.6 | S199: 0.2 | T199: 0.3 | U199: 1.1 | V199: 1.2 | W199: 2.3 | X199: 4.7
A200: 10 | B200: Jeff Pendergraph | C200: 25 | D200: 3 | E200: 0 | F200: 4 | G200: 1.7 | H200: 2.3 | I200: 0.714 | J200: 0 | K200: 0 | M200: 0.3 | N200: 0.3 | O200: 1 | P200: 1 | Q200: 1.3 | R200: 2.3 | S200: 0.3 | T200: 0 | U200: 0.3 | V200: 0.7 | W200: 0.3 | X200: 3.7
A201: 11 | B201: D.J. Augustin | C201: 25 | D201: 17 | E201: 0 | F201: 13.4 | G201: 1.1 | H201: 4.1 | I201: 0.271 | J201: 0.6 | K201: 2.5 | L201: 0.238 | M201: 0.7 | N201: 0.9 | O201: 0.8 | P201: 0.1 | Q201: 1 | R201: 1.1 | S201: 2.4 | T201: 0.6 | U201: 0.1 | V201: 0.9 | W201: 0.8 | X201: 3.5
A202: 12 | B202: Ben Hansbrough | C202: 25 | D202: 3 | E202: 0 | F202: 4.3 | G202: 0.7 | H202: 1 | I202: 0.667 | J202: 0 | K202: 0.3 | L202: 0 | M202: 0 | N202: 0 | P202: 0 | Q202: 0.3 | R202: 0.3 | S202: 1.3 | T202: 0.3 | U202: 0 | V202: 1 | W202: 0.7 | X202: 1.3
A203: 13 | B203: Miles Plumlee | C203: 24 | D203: 4 | E203: 0 | F203: 4 | G203: 0.3 | H203: 1.3 | I203: 0.2 | J203: 0 | K203: 0 | M203: 0.5 | N203: 0.5 | O203: 1 | P203: 0.8 | Q203: 0.5 | R203: 1.3 | S203: 0.3 | T203: 0 | U203: 0.5 | V203: 0 | W203: 0.3 | X203: 1
A204: 14 | B204: Orlando Johnson | C204: 23 | D204: 2 | E204: 0 | F204: 3 | G204: 0 | H204: 0.5 | I204: 0 | J204: 0 | K204: 0 | M204: 0 | N204: 0 | P204: 0 | Q204: 0.5 | R204: 0.5 | S204: 0 | T204: 0 | U204: 0 | V204: 1 | W204: 0 | X204: 0
A206: LAC
A207: Rk | B207: Player | C207: Age | D207: G | E207: GS | F207: MP | G207: FG | H207: FGA | I207: FG% | J207: 3P | K207: 3PA | L207: 3P% | M207: FT | N207: FTA | O207: FT% | P207: ORB | Q207: DRB | R207: TRB | S207: AST | T207: STL | U207: BLK | V207: TOV | W207: PF | X207: PTS
A208: 1 | B208: Jamal Crawford | C208: 32 | D208: 17 | E208: 0 | F208: 28.9 | G208: 5.8 | H208: 12.9 | I208: 0.445 | J208: 2.1 | K208: 5.2 | L208: 0.398 | M208: 4.1 | N208: 4.3 | O208: 0.945 | P208: 0.1 | Q208: 1.7 | R208: 1.8 | S208: 1.7 | T208: 1.1 | U208: 0.1 | V208: 1.8 | W208: 1.1 | X208: 17.6
A209: 2 | B209: Blake Griffin | C209: 23 | D209: 17 | E209: 17 | F209: 33.2 | G209: 7.2 | H209: 14 | I209: 0.513 | J209: 0 | K209: 0.2 | L209: 0 | M209: 3.1 | N209: 5 | O209: 0.624 | P209: 1.6 | Q209: 7.3 | R209: 8.9 | S209: 3.1 | T209: 1.2 | U209: 0.6 | V209: 2.6 | W209: 3.2 | X209: 17.5
A210: 3 | B210: Chris Paul | C210: 27 | D210: 17 | E210: 17 | F210: 34.2 | G210: 5.7 | H210: 11.8 | I210: 0.483 | J210: 0.9 | K210: 2.9 | L210: 0.32 | M210: 3.9 | N210: 4.4 | O210: 0.892 | P210: 0.6 | Q210: 3.1 | R210: 3.6 | S210: 9.3 | T210: 2.6 | U210: 0 | V210: 2.3 | W210: 2.6 | X210: 16.2
A211: 4 | B211: DeAndre Jordan | C211: 24 | D211: 17 | E211: 17 | F211: 26 | G211: 4.4 | H211: 7.4 | I211: 0.592 | J211: 0 | K211: 0 | M211: 1.4 | N211: 3 | O211: 0.451 | P211: 2.8 | Q211: 4 | R211: 6.8 | S211: 0.3 | T211: 0.8 | U211: 2 | V211: 1.5 | W211: 2.8 | X211: 10.1
A212: 5 | B212: Eric Bledsoe | C212: 23 | D212: 17 | E212: 0 | F212: 18.5 | G212: 3.9 | H212: 7.8 | I212: 0.496 | J212: 0.4 | K212: 1 | L212: 0.353 | M212: 1.8 | N212: 2.3 | O212: 0.795 | P212: 1.2 | Q212: 1.5 | R212: 2.7 | S212: 2.6 | T212: 1.4 | U212: 0.6 | V212: 1.8 | W212: 1.5 | X212: 9.9
... 281 more rows

Sheet 3 (hidden)
A1: Points | B1: ='Create Team'!B24 -> 1 | C1: =Roster!C3 -> G | D1: =F1*$B$2+G1*$B$3+H1*$B$1 -> 27.4 | E1: =per_game!B3 & "-" & D1 -> Josh Smith-27.4 | F1: =per_game!R3 -> 7.6 | G1: =per_game!S3 -> 3.7 | H1: =per_game!X3 -> 16.1 | I1: =per_game!A3 -> 1
A2: Rebounds | B2: ='Create Team'!B25 -> 1 | C2: =Roster!C4 -> C | D2: =F2*$B$2+G2*$B$3+H2*$B$1 -> 28.9 | E2: =per_game!B4 & "-" & D2 -> Al Horford-28.9 | F2: =per_game!R4 -> 9.5 | G2: =per_game!S4 -> 3.5 | H2: =per_game!X4 -> 15.9 | I2: =per_game!A4 -> 2
A3: Assists | B3: ='Create Team'!B26 -> 1 | C3: =Roster!C5 -> G | D3: 19.2 | E3: =per_game!B5 & "-" & D3 -> Louis Williams-19.2 | F3: =per_game!R5 -> 2 | G3: =per_game!S5 -> 3.3 | H3: =per_game!X5 -> 13.9 | I3: =per_game!A5 -> 3
C4: =Roster!C6 -> F | D4: 23.1 | E4: =per_game!B6 & "-" & D4 -> Jeff Teague-23.1 | F4: =per_game!R6 -> 2.4 | G4: =per_game!S6 -> 7.1 | H4: =per_game!X6 -> 13.6 | I4: =per_game!A6 -> 4
C5: =Roster!C7 -> F | D5: 16.1 | E5: =per_game!B7 & "-" & D5 -> Kyle Korver-16.1 | F5: =per_game!R7 -> 3.7 | G5: =per_game!S7 -> 1.6 | H5: =per_game!X7 -> 10.8 | I5: =per_game!A7 -> 5
C6: =Roster!C8 -> G | D6: 15.6 | E6: =per_game!B8 & "-" & D6 -> Zaza Pachulia-15.6 | F6: =per_game!R8 -> 7.1 | G6: =per_game!S8 -> 1.6 | H6: =per_game!X8 -> 6.9 | I6: =per_game!A8 -> 6
C7: =Roster!C9 -> C | D7: 10.9 | E7: =per_game!B9 & "-" & D7 -> Devin Harris-10.9 | F7: =per_game!R9 -> 1.6 | G7: =per_game!S9 -> 2.5 | H7: =per_game!X9 -> 6.8 | I7: =per_game!A9 -> 7
C8: =Roster!C10 -> C | D8: 10.2 | E8: =per_game!B10 & "-" & D8 -> DeShawn Stevenson-10.2 | F8: =per_game!R10 -> 2.7 | G8: =per_game!S10 -> 1.1 | H8: =per_game!X10 -> 6.4 | I8: =per_game!A10 -> 8
C9: =Roster!C11 -> F | D9: 6.4 | E9: =per_game!B11 & "-" & D9 -> Anthony Morrow-6.4 | F9: =per_game!R11 -> 0.6 | G9: =per_game!S11 -> 0.1 | H9: =per_game!X11 -> 5.7 | I9: =per_game!A11 -> 9
C10: =Roster!C12 -> F | D10: 8.5 | E10: =per_game!B12 & "-" & D10 -> Ivan Johnson-8.5 | F10: =per_game!R12 -> 3.1 | G10: =per_game!S12 -> 0.3 | H10: =per_game!X12 -> 5.1 | I10: =per_game!A12 -> 10
C11: =Roster!C13 -> G | D11: 5.5 | E11: =per_game!B13 & "-" & D11 -> Anthony Tolliver-5.5 | F11: =per_game!R13 -> 2.3 | G11: =per_game!S13 -> 0.1 | H11: =per_game!X13 -> 3.1 | I11: =per_game!A13 -> 11
C12: =Roster!C14 -> G | D12: 2.5 | E12: =per_game!B14 & "-" & D12 -> John Jenkins-2.5 | F12: =per_game!R14 -> 1 | G12: =per_game!S14 -> 0 | H12: =per_game!X14 -> 1.5 | I12: =per_game!A14 -> 12
C13: =Roster!C15 -> C | D13: 1.2 | E13: =per_game!B15 & "-" & D13 -> Mike Scott-1.2 | F13: =per_game!R15 -> 0.8 | G13: =per_game!S15 -> 0 | H13: =per_game!X15 -> 0.4 | I13: =per_game!A15 -> 13
C14: =Roster!C16 -> G | D14: 0 | E14: =per_game!B16 & "-" & D14 -> Johan Petro-0 | F14: =per_game!R16 -> 0 | G14: =per_game!S16 -> 0 | H14: =per_game!X16 -> 0 | I14: =per_game!A16 -> 14
C15: =Roster!C17 -> 0 | D15: 0 | F15: =per_game!R17 -> 0 | G15: =per_game!S17 -> 0 | H15: =per_game!X17 -> 0 | I15: =per_game!A17 -> 0
C16: =Roster!C18 -> 0 | D16: 0 | F16: =per_game!R18 -> 0 | G16: =per_game!S18 -> 0 | H16: =per_game!X18 -> 0 | I16: =per_game!A18 -> BOS
C17: =Roster!C19 -> Pos | F17: =per_game!R19 -> TRB | G17: =per_game!S19 -> AST | H17: =per_game!X19 -> PTS | I17: =per_game!A19 -> Rk
C18: =Roster!C20 -> G | D18: 28.1 | E18: =per_game!B20 & "-" & D18 -> Paul Pierce-28.1 | F18: =per_game!R20 -> 5.7 | G18: =per_game!S20 -> 3.2 | H18: =per_game!X20 -> 19.2 | I18: =per_game!A20 -> 1
C19: =Roster!C21 -> F | D19: 24.9 | E19: =per_game!B21 & "-" & D19 -> Kevin Garnett-24.9 | F19: =per_game!R21 -> 7.4 | G19: =per_game!S21 -> 1.9 | H19: =per_game!X21 -> 15.6 | I19: =per_game!A21 -> 2
C20: =Roster!C22 -> C | D20: 30.4 | E20: =per_game!B22 & "-" & D20 -> Rajon Rondo-30.4 | F20: =per_game!R22 -> 4.6 | G20: =per_game!S22 -> 12.9 | H20: =per_game!X22 -> 12.9 | I20: =per_game!A22 -> 3
C21: =Roster!C23 -> F | D21: 15.8 | E21: =per_game!B23 & "-" & D21 -> Jason Terry-15.8 | F21: =per_game!R23 -> 1.8 | G21: =per_game!S23 -> 2.3 | H21: =per_game!X23 -> 11.7 | I21: =per_game!A23 -> 4
C22: =Roster!C24 -> F | D22: 15.8 | E22: =per_game!B24 & "-" & D22 -> Brandon Bass-15.8 | F22: =per_game!R24 -> 5.4 | G22: =per_game!S24 -> 0.9 | H22: =per_game!X24 -> 9.5 | I22: =per_game!A24 -> 5
C23: =Roster!C25 -> F | D23: 12.4 | E23: =per_game!B25 & "-" & D23 -> Jeff Green-12.4 | F23: =per_game!R25 -> 2.8 | G23: =per_game!S25 -> 0.7 | H23: =per_game!X25 -> 8.9 | I23: =per_game!A25 -> 6
C24: =Roster!C26 -> G | D24: 8.7 | E24: =per_game!B26 & "-" & D24 -> Leandro Barbosa-8.7 | F24: =per_game!R26 -> 0.9 | G24: =per_game!S26 -> 1.5 | H24: =per_game!X26 -> 6.3 | I24: =per_game!A26 -> 7
C25: =Roster!C27 -> F-C | D25: 9.9 | E25: =per_game!B27 & "-" & D25 -> Courtney Lee-9.9 | F25: =per_game!R27 -> 2.5 | G25: =per_game!S27 -> 1.5 | H25: =per_game!X27 -> 5.9 | I25: =per_game!A27 -> 8
C26: =Roster!C28 -> F | D26: 10.7 | E26: =per_game!B28 & "-" & D26 -> Jared Sullinger-10.7 | F26: =per_game!R28 -> 4.6 | G26: =per_game!S28 -> 0.6 | H26: =per_game!X28 -> 5.5 | I26: =per_game!A28 -> 9
C27: =Roster!C29 -> G | D27: 6.7 | E27: =per_game!B29 & "-" & D27 -> Chris Wilcox-6.7 | F27: =per_game!R29 -> 2.1 | G27: =per_game!S29 -> 0.3 | H27: =per_game!X29 -> 4.3 | I27: =per_game!A29 -> 10
C28: =Roster!C30 -> F | D28: 2 | E28: =per_game!B30 & "-" & D28 -> Kris Joseph-2 | F28: =per_game!R30 -> 0.5 | G28: =per_game!S30 -> 0.5 | H28: =per_game!X30 -> 1 | I28: =per_game!A30 -> 11
C29: =Roster!C31 -> G | D29: 2.8 | E29: =per_game!B31 & "-" & D29 -> Jason Collins-2.8 | F29: =per_game!R31 -> 2.3 | G29: =per_game!S31 -> 0 | H29: =per_game!X31 -> 0.5 | I29: =per_game!A31 -> 12
C30: =Roster!C32 -> F | D30: 1 | E30: =per_game!B32 & "-" & D30 -> Darko Milicic-1 | F30: =per_game!R32 -> 1 | G30: =per_game!S32 -> 0 | H30: =per_game!X32 -> 0 | I30: =per_game!A32 -> 13
C31: =Roster!C33 -> 0 | D31: 0 | F31: =per_game!R33 -> 0 | G31: =per_game!S33 -> 0 | H31: =per_game!X33 -> 0 | I31: =per_game!A33 -> 0
C32: =Roster!C34 -> 0 | D32: 0 | F32: =per_game!R34 -> 0 | G32: =per_game!S34 -> 0 | H32: =per_game!X34 -> 0 | I32: =per_game!A34 -> BRK
C33: =Roster!C35 -> Pos | F33: =per_game!R35 -> TRB | G33: =per_game!S35 -> AST | H33: =per_game!X35 -> PTS | I33: =per_game!A35 -> Rk
C34: =Roster!C36 -> F | D34: 26.1 | E34: =per_game!B36 & "-" & D34 -> Brook Lopez-26.1 | F34: =per_game!R36 -> 6.8 | G34: =per_game!S36 -> 0.8 | H34: =per_game!X36 -> 18.5 | I34: =per_game!A36 -> 1
C35: =Roster!C37 -> G-F | D35: 22.2 | E35: =per_game!B37 & "-" & D35 -> Joe Johnson-22.2 | F35: =per_game!R37 -> 2.8 | G35: =per_game!S37 -> 3.8 | H35: =per_game!X37 -> 15.6 | I35: =per_game!A37 -> 2
C36: =Roster!C38 -> G-F | D36: 27.3 | E36: =per_game!B38 & "-" & D36 -> Deron Williams-27.3 | F36: =per_game!R38 -> 3 | G36: =per_game!S38 -> 8.9 | H36: =per_game!X38 -> 15.4 | I36: =per_game!A38 -> 3
C37: =Roster!C39 -> G-F | D37: 17 | E37: =per_game!B39 & "-" & D37 -> Andray Blatche-17 | F37: =per_game!R39 -> 5.8 | G37: =per_game!S39 -> 1.1 | H37: =per_game!X39 -> 10.1 | I37: =per_game!A39 -> 4
C38: =Roster!C40 -> F | D38: 15.9 | E38: =per_game!B40 & "-" & D38 -> Gerald Wallace-15.9 | F38: =per_game!R40 -> 4.1 | G38: =per_game!S40 -> 2.4 | H38: =per_game!X40 -> 9.4 | I38: =per_game!A40 -> 5
C39: =Roster!C41 -> F | D39: 16.8 | E39: =per_game!B41 & "-" & D39 -> Kris Humphries-16.8 | F39: =per_game!R41 -> 8.1 | G39: =per_game!S41 -> 0.6 | H39: =per_game!X41 -> 8.1 | I39: =per_game!A41 -> 6
C40: =Roster!C42 -> G | D40: 9.5 | E40: =per_game!B42 & "-" & D40 -> Jerry Stackhouse-9.5 | F40: =per_game!R42 -> 1.4 | G40: =per_game!S42 -> 0.8 | H40: =per_game!X42 -> 7.3 | I40: =per_game!A42 -> 7
C41: =Roster!C43 -> C | D41: 10.5 | E41: =per_game!B43 & "-" & D41 -> C.J. Watson-10.5 | F41: =per_game!R43 -> 1.4 | G41: =per_game!S43 -> 1.8 | H41: =per_game!X43 -> 7.3 | I41: =per_game!A43 -> 8
C42: =Roster!C44 -> F | D42: 9.7 | E42: =per_game!B44 & "-" & D42 -> MarShon Brooks-9.7 | F42: =per_game!R44 -> 1.7 | G42: =per_game!S44 -> 0.9 | H42: =per_game!X44 -> 7.1 | I42: =per_game!A44 -> 9
C43: =Roster!C45 -> G-F | D43: 12.2 | E43: =per_game!B45 & "-" & D43 -> Reggie Evans-12.2 | F43: =per_game!R45 -> 8.4 | G43: =per_game!S45 -> 0.7 | H43: =per_game!X45 -> 3.1 | I43: =per_game!A45 -> 10
C44: =Roster!C46 -> G | D44: 5.6 | E44: =per_game!B46 & "-" & D44 -> Keith Bogans-5.6 | F44: =per_game!R46 -> 1.4 | G44: =per_game!S46 -> 1.1 | H44: =per_game!X46 -> 3.1 | I44: =per_game!A46 -> 11
C45: =Roster!C47 -> F | D45: 4.9 | E45: =per_game!B47 & "-" & D45 -> Mirza Teletovic-4.9 | F45: =per_game!R47 -> 1.2 | G45: =per_game!S47 -> 0.7 | H45: =per_game!X47 -> 3 | I45: =per_game!A47 -> 12
C46: =Roster!C48 -> F | D46: 2.3 | E46: =per_game!B48 & "-" & D46 -> Tornike Shengelia-2.3 | F46: =per_game!R48 -> 0.3 | G46: =per_game!S48 -> 0 | H46: =per_game!X48 -> 2 | I46: =per_game!A48 -> 13
C47: =Roster!C49 -> G | D47: 3.3 | E47: =per_game!B49 & "-" & D47 -> Josh Childress-3.3 | F47: =per_game!R49 -> 1.4 | G47: =per_game!S49 -> 0.5 | H47: =per_game!X49 -> 1.4 | I47: =per_game!A49 -> 14
C48: =Roster!C50 -> G | D48: 1.2 | E48: =per_game!B50 & "-" & D48 -> Tyshawn Taylor-1.2 | F48: =per_game!R50 -> 0 | G48: =per_game!S50 -> 0.2 | H48: =per_game!X50 -> 1 | I48: =per_game!A50 -> 15
C49: =Roster!C51 -> 0 | D49: 0 | F49: =per_game!R51 -> 0 | G49: =per_game!S51 -> 0 | H49: =per_game!X51 -> 0 | I49: =per_game!A51 -> 0
C50: =Roster!C52 -> 0 | D50: 0 | F50: =per_game!R52 -> 0 | G50: =per_game!S52 -> 0 | H50: =per_game!X52 -> 0 | I50: =per_game!A52 -> CHA
C51: =Roster!C53 -> Pos | F51: =per_game!R53 -> TRB | G51: =per_game!S53 -> AST | H51: =per_game!X53 -> PTS | I51: =per_game!A53 -> Rk
C52: =Roster!C54 -> F | D52: 26.4 | E52: =per_game!B54 & "-" & D52 -> Kemba Walker-26.4 | F52: =per_game!R54 -> 3.9 | G52: =per_game!S54 -> 5.9 | H52: =per_game!X54 -> 16.6 | I52: =per_game!A54 -> 1
C53: =Roster!C55 -> G | D53: 24.1 | E53: =per_game!B55 & "-" & D53 -> Ramon Sessions-24.1 | F53: =per_game!R55 -> 3.8 | G53: =per_game!S55 -> 4.7 | H53: =per_game!X55 -> 15.6 | I53: =per_game!A55 -> 2
C54: =Roster!C56 -> C | D54: 20.2 | E54: =per_game!B56 & "-" & D54 -> Ben Gordon-20.2 | F54: =per_game!R56 -> 2.3 | G54: =per_game!S56 -> 2.9 | H54: =per_game!X56 -> 15 | I54: =per_game!A56 -> 3
C55: =Roster!C57 -> G | D55: 22.5 | E55: =per_game!B57 & "-" & D55 -> Byron Mullens-22.5 | F55: =per_game!R57 -> 8.4 | G55: =per_game!S57 -> 1.2 | H55: =per_game!X57 -> 12.9 | I55: =per_game!A57 -> 4
C56: =Roster!C58 -> C | D56: 18.7 | E56: =per_game!B58 & "-" & D56 -> Michael Kidd-Gilchrist-18.7 | F56: =per_game!R58 -> 6.3 | G56: =per_game!S58 -> 1.6 | H56: =per_game!X58 -> 10.8 | I56: =per_game!A58 -> 5
C57: =Roster!C59 -> G | D57: 13.4 | E57: =per_game!B59 & "-" & D57 -> Gerald Henderson-13.4 | F57: =per_game!R59 -> 1.7 | G57: =per_game!S59 -> 1.7 | H57: =per_game!X59 -> 10 | I57: =per_game!A59 -> 6
C58: =Roster!C60 -> G | D58: 11.6 | E58: =per_game!B60 & "-" & D58 -> Jeff Taylor-11.6 | F58: =per_game!R60 -> 2.4 | G58: =per_game!S60 -> 0.9 | H58: =per_game!X60 -> 8.3 | I58: =per_game!A60 -> 7
C59: =Roster!C61 -> F | D59: 10.7 | E59: =per_game!B61 & "-" & D59 -> Tyrus Thomas-10.7 | F59: =per_game!R61 -> 3.1 | G59: =per_game!S61 -> 1 | H59: =per_game!X61 -> 6.6 | I59: =per_game!A61 -> 8
C60: =Roster!C62 -> C | D60: 14.1 | E60: =per_game!B62 & "-" & D60 -> Brendan Haywood-14.1 | F60: =per_game!R62 -> 6.9 | G60: =per_game!S62 -> 0.7 | H60: =per_game!X62 -> 6.5 | I60: =per_game!A62 -> 9
C61: =Roster!C63 -> G | D61: 9.6 | E61: =per_game!B63 & "-" & D61 -> Bismack Biyombo-9.6 | F61: =per_game!R63 -> 5.1 | G61: =per_game!S63 -> 0.1 | H61: =per_game!X63 -> 4.4 | I61: =per_game!A63 -> 10
C62: =Roster!C64 -> F | D62: 5.8 | E62: =per_game!B64 & "-" & D62 -> Reggie Williams-5.8 | F62: =per_game!R64 -> 1.2 | G62: =per_game!S64 -> 0.5 | H62: =per_game!X64 -> 4.1 | I62: =per_game!A64 -> 11
C63: =Roster!C65 -> F | D63: 4.2 | E63: =per_game!B65 & "-" & D63 -> Hakim Warrick-4.2 | F63: =per_game!R65 -> 1.8 | G63: =per_game!S65 -> 0.2 | H63: =per_game!X65 -> 2.2 | I63: =per_game!A65 -> 12
C64: =Roster!C66 -> G | D64: 2.6 | E64: =per_game!B66 & "-" & D64 -> Cory Higgins-2.6 | F64: =per_game!R66 -> 0.4 | G64: =per_game!S66 -> 0.8 | H64: =per_game!X66 -> 1.4 | I64: =per_game!A66 -> 13
C65: =Roster!C67 -> F | D65: 2.2 | E65: =per_game!B67 & "-" & D65 -> DeSagana Diop-2.2 | F65: =per_game!R67 -> 1.9 | G65: =per_game!S67 -> 0.3 | H65: =per_game!X67 -> 0 | I65: =per_game!A67 -> 14
C66: =Roster!C68 -> F | D66: =F66*$B$2+G66*$B$3+H66*$B$1 -> 1 | E66: =per_game!B68 & "-" & D66 -> Matt Carroll-1 | F66: =per_game!R68 -> 0 | G66: =per_game!S68 -> 1 | H66: =per_game!X68 -> 0 | I66: =per_game!A68 -> 15
C67: =Roster!C69 -> 0 | D67: 0 | F67: =per_game!R69 -> 0 | G67: =per_game!S69 -> 0 | H67: =per_game!X69 -> 0 | I67: =per_game!A69 -> 0
C68: =Roster!C70 -> 0 | D68: 0 | F68: =per_game!R70 -> 0 | G68: =per_game!S70 -> 0 | H68: =per_game!X70 -> 0 | I68: =per_game!A70 -> CHI
C69: =Roster!C71 -> Pos | F69: =per_game!R71 -> TRB | G69: =per_game!S71 -> AST | H69: =per_game!X71 -> PTS | I69: =per_game!A71 -> Rk
C70: =Roster!C72 -> G | D70: 28.2 | E70: =per_game!B72 & "-" & D70 -> Luol Deng-28.2 | F70: =per_game!R72 -> 7.4 | G70: =per_game!S72 -> 2.7 | H70: =per_game!X72 -> 18.1 | I70: =per_game!A72 -> 1
C71: =Roster!C73 -> F-C | D71: 18.5 | E71: =per_game!B73 & "-" & D71 -> Richard Hamilton-18.5 | F71: =per_game!R73 -> 2.3 | G71: =per_game!S73 -> 2.3 | H71: =per_game!X73 -> 13.9 | I71: =per_game!A73 -> 2
C72: =Roster!C74 -> F | D72: 25.3 | E72: =per_game!B74 & "-" & D72 -> Carlos Boozer-25.3 | F72: =per_game!R74 -> 9.7 | G72: =per_game!S74 -> 1.9 | H72: =per_game!X74 -> 13.7 | I72: =per_game!A74 -> 3
C73: =Roster!C75 -> F | D73: 27.5 | E73: =per_game!B75 & "-" & D73 -> Joakim Noah-27.5 | F73: =per_game!R75 -> 9.9 | G73: =per_game!S75 -> 4.3 | H73: =per_game!X75 -> 13.3 | I73: =per_game!A75 -> 4
C74: =Roster!C76 -> F | D74: 16.9 | E74: =per_game!B76 & "-" & D74 -> Nate Robinson-16.9 | F74: =per_game!R76 -> 2.1 | G74: =per_game!S76 -> 3.6 | H74: =per_game!X76 -> 11.2 | I74: =per_game!A76 -> 5
C75: =Roster!C77 -> G-F | D75: 12.8 | E75: =per_game!B77 & "-" & D75 -> Taj Gibson-12.8 | F75: =per_game!R77 -> 4.9 | G75: =per_game!S77 -> 0.9 | H75: =per_game!X77 -> 7 | I75: =per_game!A77 -> 6
C76: =Roster!C78 -> G | D76: 14.4 | E76: =per_game!B78 & "-" & D76 -> Kirk Hinrich-14.4 | F76: =per_game!R78 -> 2.6 | G76: =per_game!S78 -> 5.6 | H76: =per_game!X78 -> 6.2 | I76: =per_game!A78 -> 7
C77: =Roster!C79 -> C | D77: 8.6 | E77: =per_game!B79 & "-" & D77 -> Jimmy Butler-8.6 | F77: =per_game!R79 -> 2.5 | G77: =per_game!S79 -> 0.7 | H77: =per_game!X79 -> 5.4 | I77: =per_game!A79 -> 8
C78: =Roster!C80 -> C | D78: 6.6 | E78: =per_game!B80 & "-" & D78 -> Marco Belinelli-6.6 | F78: =per_game!R80 -> 0.9 | G78: =per_game!S80 -> 0.7 | H78: =per_game!X80 -> 5 | I78: =per_game!A80 -> 9
C79: =Roster!C81 -> F | D79: 2 | E79: =per_game!B81 & "-" & D79 -> Vladimir Radmanovic-2 | F79: =per_game!R81 -> 0.4 | G79: =per_game!S81 -> 0.2 | H79: =per_game!X81 -> 1.4 | I79: =per_game!A81 -> 10
C80: =Roster!C82 -> G | D80: 3.1 | E80: =per_game!B82 & "-" & D80 -> Marquis Teague-3.1 | F80: =per_game!R82 -> 0.7 | G80: =per_game!S82 -> 1.2 | H80: =per_game!X82 -> 1.2 | I80: =per_game!A82 -> 11
C81: =Roster!C83 -> G | D81: 2.9 | E81: =per_game!B83 & "-" & D81 -> Nazr Mohammed-2.9 | F81: =per_game!R83 -> 1.9 | G81: =per_game!S83 -> 0.3 | H81: =per_game!X83 -> 0.7 | I81: =per_game!A83 -> 12
C82: =Roster!C84 -> 0 | D82: 0 | F82: =per_game!R84 -> 0 | G82: =per_game!S84 -> 0 | H82: =per_game!X84 -> 0 | I82: =per_game!A84 -> 0
C83: =Roster!C85 -> 0 | D83: 0 | F83: =per_game!R85 -> 0 | G83: =per_game!S85 -> 0 | H83: =per_game!X85 -> 0 | I83: =per_game!A85 -> CLE
C84: =Roster!C86 -> Pos | F84: =per_game!R86 -> TRB | G84: =per_game!S86 -> AST | H84: =per_game!X86 -> PTS | I84: =per_game!A86 -> Rk
C85: =Roster!C87 -> F | D85: 32.2 | E85: =per_game!B87 & "-" & D85 -> Kyrie Irving-32.2 | F85: =per_game!R87 -> 3.7 | G85: =per_game!S87 -> 5.6 | H85: =per_game!X87 -> 22.9 | I85: =per_game!A87 -> 1
C86: =Roster!C88 -> G | D86: 20.9 | E86: =per_game!B88 & "-" & D86 -> Dion Waiters-20.9 | F86: =per_game!R88 -> 2.3 | G86: =per_game!S88 -> 3.4 | H86: =per_game!X88 -> 15.2 | I86: =per_game!A88 -> 2
C87: =Roster!C89 -> G | D87: 33.8 | E87: =per_game!B89 & "-" & D87 -> Anderson Varejao-33.8 | F87: =per_game!R89 -> 15.4 | G87: =per_game!S89 -> 3.2 | H87: =per_game!X89 -> 15.2 | I87: =per_game!A89 -> 3
C88: =Roster!C90 -> G | D88: 17.9 | E88: =per_game!B90 & "-" & D88 -> Alonzo Gee-17.9 | F88: =per_game!R90 -> 3.7 | G88: =per_game!S90 -> 2.1 | H88: =per_game!X90 -> 12.1 | I88: =per_game!A90 -> 4
C89: =Roster!C91 -> F | D89: 17.4 | E89: =per_game!B91 & "-" & D89 -> Jeremy Pargo-17.4 | F89: =per_game!R91 -> 1.9 | G89: =per_game!S91 -> 3.8 | H89: =per_game!X91 -> 11.7 | I89: =per_game!A91 -> 5
C90: =Roster!C92 -> G | D90: 18.2 | E90: =per_game!B92 & "-" & D90 -> Tristan Thompson-18.2 | F90: =per_game!R92 -> 8.1 | G90: =per_game!S92 -> 1.2 | H90: =per_game!X92 -> 8.9 | I90: =per_game!A92 -> 6
C91: =Roster!C93 -> G | D91: 12.3 | E91: =per_game!B93 & "-" & D91 -> Daniel Gibson-12.3 | F91: =per_game!R93 -> 1.7 | G91: =per_game!S93 -> 2.1 | H91: =per_game!X93 -> 8.5 | I91: =per_game!A93 -> 7
C92: =Roster!C94 -> F | D92: 12.3 | E92: =per_game!B94 & "-" & D92 -> Tyler Zeller-12.3 | F92: =per_game!R94 -> 4.8 | G92: =per_game!S94 -> 0.9 | H92: =per_game!X94 -> 6.6 | I92: =per_game!A94 -> 8
C93: =Roster!C95 -> G | D93: 9.2 | E93: =per_game!B95 & "-" & D93 -> Omri Casspi-9.2 | F93: =per_game!R95 -> 2.5 | G93: =per_game!S95 -> 0.4 | H93: =per_game!X95 -> 6.3 | I93: =per_game!A95 -> 9
C94: =Roster!C96 -> F | D94: 8.6 | E94: =per_game!B96 & "-" & D94 -> C.J. Miles-8.6 | F94: =per_game!R96 -> 2.1 | G94: =per_game!S96 -> 0.7 | H94: =per_game!X96 -> 5.8 | I94: =per_game!A96 -> 10
C95: =Roster!C97 -> F-C | D95: 6.6 | E95: =per_game!B97 & "-" & D95 -> Donald Sloan-6.6 | F95: =per_game!R97 -> 1.1 | G95: =per_game!S97 -> 2 | H95: =per_game!X97 -> 3.5 | I95: =per_game!A97 -> 11
C96: =Roster!C98 -> G | D96: 5.4 | E96: =per_game!B98 & "-" & D96 -> Samardo Samuels-5.4 | F96: =per_game!R98 -> 1.7 | G96: =per_game!S98 -> 0.4 | H96: =per_game!X98 -> 3.3 | I96: =per_game!A98 -> 12
C97: =Roster!C99 -> F | D97: 5.8 | E97: =per_game!B99 & "-" & D97 -> Jon Leuer-5.8 | F97: =per_game!R99 -> 2 | G97: =per_game!S99 -> 0.6 | H97: =per_game!X99 -> 3.2 | I97: =per_game!A99 -> 13
C98: =Roster!C100 -> F-C | D98: 1.4 | E98: =per_game!B100 & "-" & D98 -> Luke Walton-1.4 | F98: =per_game!R100 -> 0.6 | G98: =per_game!S100 -> 0.4 | H98: =per_game!X100 -> 0.4 | I98: =per_game!A100 -> 14
C99: =Roster!C101 -> 0 | D99: 0 | F99: =per_game!R101 -> 0 | G99: =per_game!S101 -> 0 | H99: =per_game!X101 -> 0 | I99: =per_game!A101 -> 0
C100: =Roster!C102 -> 0 | D100: 0 | F100: =per_game!R102 -> 0 | G100: =per_game!S102 -> 0 | H100: =per_game!X102 -> 0 | I100: =per_game!A102 -> DAL
C101: =Roster!C103 -> Pos | F101: =per_game!R103 -> TRB | G101: =per_game!S103 -> AST | H101: =per_game!X103 -> PTS | I101: =per_game!A103 -> Rk
C102: =Roster!C104 -> G | D102: 26.9 | E102: =per_game!B104 & "-" & D102 -> O.J. Mayo-26.9 | F102: =per_game!R104 -> 3.5 | G102: =per_game!S104 -> 3.2 | H102: =per_game!X104 -> 20.2 | I102: =per_game!A104 -> 1
C103: =Roster!C105 -> F | D103: 21.5 | E103: =per_game!B105 & "-" & D103 -> Chris Kaman-21.5 | F103: =per_game!R105 -> 6.9 | G103: =per_game!S105 -> 1 | H103: =per_game!X105 -> 13.6 | I103: =per_game!A105 -> 2
C104: =Roster!C106 -> G-F | D104: 17.9 | E104: =per_game!B106 & "-" & D104 -> Vince Carter-17.9 | F104: =per_game!R106 -> 3.1 | G104: =per_game!S106 -> 1.7 | H104: =per_game!X106 -> 13.1 | I104: =per_game!A106 -> 3
C105: =Roster!C107 -> G | D105: 21.1 | E105: =per_game!B107 & "-" & D105 -> Darren Collison-21.1 | F105: =per_game!R107 -> 2.3 | G105: =per_game!S107 -> 6.4 | H105: =per_game!X107 -> 12.4 | I105: =per_game!A107 -> 4
C106: =Roster!C108 -> F | D106: 19.4 | E106: =per_game!B108 & "-" & D106 -> Shawn Marion-19.4 | F106: =per_game!R108 -> 7.4 | G106: =per_game!S108 -> 2.8 | H106: =per_game!X108 -> 9.2 | I106: =per_game!A108 -> 5
C107: =Roster!C109 -> G | D107: 12.6 | E107: =per_game!B109 & "-" & D107 -> Brandan Wright-12.6 | F107: =per_game!R109 -> 3.3 | G107: =per_game!S109 -> 0.8 | H107: =per_game!X109 -> 8.5 | I107: =per_game!A109 -> 6
C108: =Roster!C110 -> C | D108: 14.9 | E108: =per_game!B110 & "-" & D108 -> Elton Brand-14.9 | F108: =per_game!R110 -> 6.4 | G108: =per_game!S110 -> 1.6 | H108: =per_game!X110 -> 6.9 | I108: =per_game!A110 -> 7
C109: =Roster!C111 -> G | D109: 10.7 | E109: =per_game!B111 & "-" & D109 -> Jae Crowder-10.7 | F109: =per_game!R111 -> 2.7 | G109: =per_game!S111 -> 1.2 | H109: =per_game!X111 -> 6.8 | I109: =per_game!A111 -> 8
C110: =Roster!C112 -> C | D110: 8.6 | E110: =per_game!B112 & "-" & D110 -> Troy Murphy-8.6 | F110: =per_game!R112 -> 3.5 | G110: =per_game!S112 -> 0.5 | H110: =per_game!X112 -> 4.6 | I110: =per_game!A112 -> 9
C111: =Roster!C113 -> G | D111: 6.5 | E111: =per_game!B113 & "-" & D111 -> Eddy Curry-6.5 | F111: =per_game!R113 -> 2 | G111: =per_game!S113 -> 0 | H111: =per_game!X113 -> 4.5 | I111: =per_game!A113 -> 10
C112: =Roster!C114 -> G | D112: 9 | E112: =per_game!B114 & "-" & D112 -> Rodrigue Beaubois-9 | F112: =per_game!R114 -> 1.8 | G112: =per_game!S114 -> 2.7 | H112: =per_game!X114 -> 4.5 | I112: =per_game!A114 -> 11
C113: =Roster!C115 -> C | D113: 8 | E113: =per_game!B115 & "-" & D113 -> Bernard James-8 | F113: =per_game!R115 -> 3.8 | G113: =per_game!S115 -> 0 | H113: =per_game!X115 -> 4.2 | I113: =per_game!A115 -> 12
C114: =Roster!C116 -> F | D114: 9.9 | E114: =per_game!B116 & "-" & D114 -> Dominique Jones-9.9 | F114: =per_game!R116 -> 2.1 | G114: =per_game!S116 -> 3.6 | H114: =per_game!X116 -> 4.2 | I114: =per_game!A116 -> 13
C115: =Roster!C117 -> G | D115: 4.7 | E115: =per_game!B117 & "-" & D115 -> Dahntay Jones-4.7 | F115: =per_game!R117 -> 1.5 | G115: =per_game!S117 -> 0.4 | H115: =per_game!X117 -> 2.8 | I115: =per_game!A117 -> 14
C116: =Roster!C118 -> F | D116: 7 | E116: =per_game!B118 & "-" & D116 -> Derek Fisher-7 | F116: =per_game!R118 -> 2 | G116: =per_game!S118 -> 3 | H116: =per_game!X118 -> 2 | I116: =per_game!A118 -> 15
C117: =Roster!C119 -> F | D117: 2.2 | F117: =per_game!R119 -> 0.3 | G117: =per_game!S119 -> 0.2 | H117: =per_game!X119 -> 1.7 | I117: =per_game!A119 -> 16
C118: =Roster!C120 -> 0 | D118: 0 | F118: =per_game!R120 -> 0 | G118: =per_game!S120 -> 0 | H118: =per_game!X120 -> 0 | I118: =per_game!A120 -> 0
C119: =Roster!C121 -> 0 | D119: 0 | F119: =per_game!R121 -> 0 | G119: =per_game!S121 -> 0 | H119: =per_game!X121 -> 0 | I119: =per_game!A121 -> DEN
C120: =Roster!C122 -> Pos | E120: =per_game!B122 & "-" & D120 -> Player- | F120: =per_game!R122 -> TRB | G120: =per_game!S122 -> AST | H120: =per_game!X122 -> PTS | I120: =per_game!A122 -> Rk
C121: =Roster!C123 -> F | D121: 24 | E121: =per_game!B123 & "-" & D121 -> Danilo Gallinari-24 | F121: =per_game!R123 -> 6.1 | G121: =per_game!S123 -> 2.4 | H121: =per_game!X123 -> 15.5 | I121: =per_game!A123 -> 1
C122: =Roster!C124 -> F | D122: 24.2 | E122: =per_game!B124 & "-" & D122 -> Andre Iguodala-24.2 | F122: =per_game!R124 -> 5.5 | G122: =per_game!S124 -> 3.8 | H122: =per_game!X124 -> 14.9 | I122: =per_game!A124 -> 2
C123: =Roster!C125 -> F | D123: 23.3 | E123: =per_game!B125 & "-" & D123 -> Ty Lawson-23.3 | F123: =per_game!R125 -> 2.7 | G123: =per_game!S125 -> 7.2 | H123: =per_game!X125 -> 13.4 | I123: =per_game!A125 -> 3
C124: =Roster!C126 -> G-F | D124: 24.4 | E124: =per_game!B126 & "-" & D124 -> Kenneth Faried-24.4 | F124: =per_game!R126 -> 10.5 | G124: =per_game!S126 -> 0.7 | H124: =per_game!X126 -> 13.2 | I124: =per_game!A126 -> 4
C125: =Roster!C127 -> F | D125: 17.1 | E125: =per_game!B127 & "-" & D125 -> JaVale McGee-17.1 | F125: =per_game!R127 -> 5.7 | G125: =per_game!S127 -> 0.6 | H125: =per_game!X127 -> 10.8 | I125: =per_game!A127 -> 5
C126: =Roster!C128 -> G-F | D126: 14.3 | E126: =per_game!B128 & "-" & D126 -> Corey Brewer-14.3 | F126: =per_game!R128 -> 3.1 | G126: =per_game!S128 -> 0.7 | H126: =per_game!X128 -> 10.5 | I126: =per_game!A128 -> 6
C127: =Roster!C129 -> G-F | D127: 16.3 | E127: =per_game!B129 & "-" & D127 -> Andre Miller-16.3 | F127: =per_game!R129 -> 2.8 | G127: =per_game!S129 -> 5.1 | H127: =per_game!X129 -> 8.4 | I127: =per_game!A129 -> 7
C128: =Roster!C130 -> C | D128: 10.2 | E128: =per_game!B130 & "-" & D128 -> Jordan Hamilton-10.2 | F128: =per_game!R130 -> 2.9 | G128: =per_game!S130 -> 0.8 | H128: =per_game!X130 -> 6.5 | I128: =per_game!A130 -> 8
C129: =Roster!C131 -> G | D129: 11.5 | E129: =per_game!B131 & "-" & D129 -> Wilson Chandler-11.5 | F129: =per_game!R131 -> 5 | G129: =per_game!S131 -> 0 | H129: =per_game!X131 -> 6.5 | I129: =per_game!A131 -> 9
C130: =Roster!C132 -> C | D130: =F130*$B$2+G130*$B$3+H130*$B$1 -> 12.7 | E130: =per_game!B132 & "-" & D130 -> Kosta Koufos-12.7 | F130: =per_game!R132 -> 5.9 | G130: =per_game!S132 -> 0.5 | H130: =per_game!X132 -> 6.3 | I130: =per_game!A132 -> 10
C131: =Roster!C133 -> G | D131: 4.7 | E131: =per_game!B133 & "-" & D131 -> Evan Fournier-4.7 | F131: =per_game!R133 -> 0.4 | G131: =per_game!S133 -> 0.9 | H131: =per_game!X133 -> 3.4 | I131: =per_game!A133 -> 11
C132: =Roster!C134 -> C | D132: 6.7 | E132: =per_game!B134 & "-" & D132 -> Timofey Mozgov-6.7 | F132: =per_game!R134 -> 3.3 | G132: =per_game!S134 -> 0.3 | H132: =per_game!X134 -> 3.1 | I132: =per_game!A134 -> 12
C133: =Roster!C135 -> F | D133: 2.7 | F133: =per_game!R135 -> 1 | G133: =per_game!S135 -> 1 | H133: =per_game!X135 -> 0.7 | I133: =per_game!A135 -> 13
C134: =Roster!C136 -> 0 | D134: 0 | F134: =per_game!R136 -> 0 | G134: =per_game!S136 -> 0 | H134: =per_game!X136 -> 0 | I134: =per_game!A136 -> 0
C135: =Roster!C137 -> 0 | D135: 0 | F135: =per_game!R137 -> 0 | G135: =per_game!S137 -> 0 | H135: =per_game!X137 -> 0 | I135: =per_game!A137 -> DET
C136: =Roster!C138 -> Pos | E136: =per_game!B138 & "-" & D136 -> Player- | F136: =per_game!R138 -> TRB | G136: =per_game!S138 -> AST | H136: =per_game!X138 -> PTS | I136: =per_game!A138 -> Rk
C137: =Roster!C139 -> G | D137: 29.1 | E137: =per_game!B139 & "-" & D137 -> Greg Monroe-29.1 | F137: =per_game!R139 -> 9.9 | G137: =per_game!S139 -> 3.5 | H137: =per_game!X139 -> 15.7 | I137: =per_game!A139 -> 1
C138: =Roster!C140 -> F | D138: 22.4 | E138: =per_game!B140 & "-" & D138 -> Brandon Knight-22.4 | F138: =per_game!R140 -> 3.6 | G138: =per_game!S140 -> 5.3 | H138: =per_game!X140 -> 13.5 | I138: =per_game!A140 -> 2
C139: =Roster!C141 -> C | D139: 18.9 | E139: =per_game!B141 & "-" & D139 -> Tayshaun Prince-18.9 | F139: =per_game!R141 -> 4.2 | G139: =per_game!S141 -> 2.4 | H139: =per_game!X141 -> 12.3 | I139: =per_game!A141 -> 3
C140: =Roster!C142 -> G | D140: 14.9 | E140: =per_game!B142 & "-" & D140 -> Kyle Singler-14.9 | F140: =per_game!R142 -> 3.6 | G140: =per_game!S142 -> 1 | H140: =per_game!X142 -> 10.3 | I140: =per_game!A142 -> 4
C141: =Roster!C143 -> F | D141: 16.3 | E141: =per_game!B143 & "-" & D141 -> Rodney Stuckey-16.3 | F141: =per_game!R143 -> 3 | G141: =per_game!S143 -> 3.7 | H141: =per_game!X143 -> 9.6 | I141: =per_game!A143 -> 5
C142: =Roster!C144 -> G | D142: 16.1 | E142: =per_game!B144 & "-" & D142 -> Jason Maxiell-16.1 | F142: =per_game!R144 -> 6.5 | G142: =per_game!S144 -> 0.7 | H142: =per_game!X144 -> 8.9 | I142: =per_game!A144 -> 6
C143: =Roster!C145 -> F | D143: 10.2 | E143: =per_game!B145 & "-" & D143 -> Charlie Villanueva-10.2 | F143: =per_game!R145 -> 2.6 | G143: =per_game!S145 -> 0.9 | H143: =per_game!X145 -> 6.7 | I143: =per_game!A145 -> 7
C144: =Roster!C146 -> F | D144: 12.6 | E144: =per_game!B146 & "-" & D144 -> Andre Drummond-12.6 | F144: =per_game!R146 -> 6.2 | G144: =per_game!S146 -> 0.5 | H144: =per_game!X146 -> 5.9 | I144: =per_game!A146 -> 8
C145: =Roster!C147 -> F | D145: 9.2 | E145: =per_game!B147 & "-" & D145 -> Jonas Jerebko-9.2 | F145: =per_game!R147 -> 2.9 | G145: =per_game!S147 -> 0.5 | H145: =per_game!X147 -> 5.8 | I145: =per_game!A147 -> 9
C146: =Roster!C148 -> F-C | D146: 9 | E146: =per_game!B148 & "-" & D146 -> Will Bynum-9 | F146: =per_game!R148 -> 0.9 | G146: =per_game!S148 -> 2.5 | H146: =per_game!X148 -> 5.6 | I146: =per_game!A148 -> 10
C147: =Roster!C149 -> F | D147: 7.9 | E147: =per_game!B149 & "-" & D147 -> Corey Maggette-7.9 | F147: =per_game!R149 -> 1 | G147: =per_game!S149 -> 1.4 | H147: =per_game!X149 -> 5.5 | I147: =per_game!A149 -> 11
C148: =Roster!C150 -> F | D148: 4.4 | E148: =per_game!B150 & "-" & D148 -> Kim English-4.4 | F148: =per_game!R150 -> 0.5 | G148: =per_game!S150 -> 0.7 | H148: =per_game!X150 -> 3.2 | I148: =per_game!A150 -> 12
C149: =Roster!C151 -> G | D149: 3.8 | E149: =per_game!B151 & "-" & D149 -> Austin Daye-3.8 | F149: =per_game!R151 -> 1 | G149: =per_game!S151 -> 0.4 | H149: =per_game!X151 -> 2.4 | I149: =per_game!A151 -> 13
C150: =Roster!C152 -> F | D150: 2 | F150: =per_game!R152 -> 0 | G150: =per_game!S152 -> 0.7 | H150: =per_game!X152 -> 1.3 | I150: =per_game!A152 -> 14
C151: =Roster!C153 -> 0 | D151: 0 | F151: =per_game!R153 -> 0 | G151: =per_game!S153 -> 0 | H151: =per_game!X153 -> 0 | I151: =per_game!A153 -> 0
C152: =Roster!C154 -> 0 | D152: 0 | F152: =per_game!R154 -> 0 | G152: =per_game!S154 -> 0 | H152: =per_game!X154 -> 0 | I152: =per_game!A154 -> GSW
C153: =Roster!C155 -> Pos | E153: =per_game!B155 & "-" & D153 -> Player- | F153: =per_game!R155 -> TRB | G153: =per_game!S155 -> AST | H153: =per_game!X155 -> PTS | I153: =per_game!A155 -> Rk
C154: =Roster!C156 -> F | D154: 29.2 | E154: =per_game!B156 & "-" & D154 -> Stephen Curry-29.2 | F154: =per_game!R156 -> 3.9 | G154: =per_game!S156 -> 6.4 | H154: =per_game!X156 -> 18.9 | I154: =per_game!A156 -> 1
C155: =Roster!C157 -> G | D155: 31.9 | E155: =per_game!B157 & "-" & D155 -> David Lee-31.9 | F155: =per_game!R157 -> 10.7 | G155: =per_game!S157 -> 3.8 | H155: =per_game!X157 -> 17.4 | I155: =per_game!A157 -> 2
C156: =Roster!C158 -> C | D156: 21.7 | E156: =per_game!B158 & "-" & D156 -> Klay Thompson-21.7 | F156: =per_game!R158 -> 4.1 | G156: =per_game!S158 -> 2.2 | H156: =per_game!X158 -> 15.4 | I156: =per_game!A158 -> 3
C157: =Roster!C159 -> C | D157: 22.2 | E157: =per_game!B159 & "-" & D157 -> Carl Landry-22.2 | F157: =per_game!R159 -> 7.1 | G157: =per_game!S159 -> 1.1 | H157: =per_game!X159 -> 14 | I157: =per_game!A159 -> 4
C158: =Roster!C160 -> G | D158: 17.5 | E158: =per_game!B160 & "-" & D158 -> Jarrett Jack-17.5 | F158: =per_game!R160 -> 3 | G158: =per_game!S160 -> 4.5 | H158: =per_game!X160 -> 10 | I158: =per_game!A160 -> 5
C159: =Roster!C161 -> C | D159: 16 | E159: =per_game!B161 & "-" & D159 -> Harrison Barnes-16 | F159: =per_game!R161 -> 4.8 | G159: =per_game!S161 -> 1.4 | H159: =per_game!X161 -> 9.8 | I159: =per_game!A161 -> 6
C160: =Roster!C162 -> F | D160: 8.5 | E160: =per_game!B162 & "-" & D160 -> Brandon Rush-8.5 | F160: =per_game!R162 -> 0.5 | G160: =per_game!S162 -> 1 | H160: =per_game!X162 -> 7 | I160: =per_game!A162 -> 7
C161: =Roster!C163 -> G | D161: 11.8 | E161: =per_game!B163 & "-" & D161 -> Andrew Bogut-11.8 | F161: =per_game!R163 -> 3.8 | G161: =per_game!S163 -> 2 | H161: =per_game!X163 -> 6 | I161: =per_game!A163 -> 8
C162: =Roster!C164 -> F | D162: 6.8 | E162: =per_game!B164 & "-" & D162 -> Richard Jefferson-6.8 | F162: =per_game!R164 -> 1.4 | G162: =per_game!S164 -> 1.2 | H162: =per_game!X164 -> 4.2 | I162: =per_game!A164 -> 9
C163: =Roster!C165 -> G | D163: 8.3 | E163: =per_game!B165 & "-" & D163 -> Festus Ezeli-8.3 | F163: =per_game!R165 -> 4.6 | G163: =per_game!S165 -> 0.2 | H163: =per_game!X165 -> 3.5 | I163: =per_game!A165 -> 10
C164: =Roster!C166 -> F | D164: 5.2 | E164: =per_game!B166 & "-" & D164 -> Draymond Green-5.2 | F164: =per_game!R166 -> 2.6 | G164: =per_game!S166 -> 0.4 | H164: =per_game!X166 -> 2.2 | I164: =per_game!A166 -> 11
C165: =Roster!C167 -> F | D165: 2.6 | E165: =per_game!B167 & "-" & D165 -> Charles Jenkins-2.6 | F165: =per_game!R167 -> 0.4 | G165: =per_game!S167 -> 0.3 | H165: =per_game!X167 -> 1.9 | I165: =per_game!A167 -> 12
C166: =Roster!C168 -> F | D166: 1.8 | E166: =per_game!B168 & "-" & D166 -> Jeremy Tyler-1.8 | F166: =per_game!R168 -> 0.2 | G166: =per_game!S168 -> 0 | H166: =per_game!X168 -> 1.6 | I166: =per_game!A168 -> 13
C167: =Roster!C169 -> G | D167: 3.7 | E167: =per_game!B169 & "-" & D167 -> Andris Biedrins-3.7 | F167: =per_game!R169 -> 2.7 | G167: =per_game!S169 -> 0.4 | H167: =per_game!X169 -> 0.6 | I167: =per_game!A169 -> 14
C168: =Roster!C170 -> C | D168: 0.4 | F168: =per_game!R170 -> 0.3 | G168: =per_game!S170 -> 0.1 | H168: =per_game!X170 -> 0 | I168: =per_game!A170 -> 15
C169: =Roster!C171 -> 0 | D169: 0 | F169: =per_game!R171 -> 0 | G169: =per_game!S171 -> 0 | H169: =per_game!X171 -> 0 | I169: =per_game!A171 -> 0
C170: =Roster!C172 -> 0 | D170: 0 | F170: =per_game!R172 -> 0 | G170: =per_game!S172 -> 0 | H170: =per_game!X172 -> 0 | I170: =per_game!A172 -> HOU
C171: =Roster!C173 -> Pos | E171: =per_game!B173 & "-" & D171 -> Player- | F171: =per_game!R173 -> TRB | G171: =per_game!S173 -> AST | H171: =per_game!X173 -> PTS | I171: =per_game!A173 -> Rk
C172: =Roster!C174 -> C | D172: 33.6 | E172: =per_game!B174 & "-" & D172 -> James Harden-33.6 | F172: =per_game!R174 -> 4.1 | G172: =per_game!S174 -> 5.4 | H172: =per_game!X174 -> 24.1 | I172: =per_game!A174 -> 1
C173: =Roster!C175 -> C | D173: 26.1 | E173: =per_game!B175 & "-" & D173 -> Chandler Parsons-26.1 | F173: =per_game!R175 -> 6.7 | G173: =per_game!S175 -> 3.5 | H173: =per_game!X175 -> 15.9 | I173: =per_game!A175 -> 2
C174: =Roster!C176 -> G | D174: 20.9 | E174: =per_game!B176 & "-" & D174 -> Patrick Patterson-20.9 | F174: =per_game!R176 -> 5.3 | G174: =per_game!S176 -> 1 | H174: =per_game!X176 -> 14.6 | I174: =per_game!A176 -> 3
C175: =Roster!C177 -> G | D175: 24.6 | E175: =per_game!B177 & "-" & D175 -> Omer Asik-24.6 | F175: =per_game!R177 -> 12.3 | G175: =per_game!S177 -> 1.3 | H175: =per_game!X177 -> 11 | I175: =per_game!A177 -> 4
C176: =Roster!C178 -> G | D176: 21.9 | E176: =per_game!B178 & "-" & D176 -> Jeremy Lin-21.9 | F176: =per_game!R178 -> 4.4 | G176: =per_game!S178 -> 6.6 | H176: =per_game!X178 -> 10.9 | I176: =per_game!A178 -> 5
C177: =Roster!C179 -> G | D177: 13.7 | E177: =per_game!B179 & "-" & D177 -> Marcus Morris-13.7 | F177: =per_game!R179 -> 4.2 | G177: =per_game!S179 -> 0.8 | H177: =per_game!X179 -> 8.7 | I177: =per_game!A179 -> 6
C178: =Roster!C180 -> F | D178: 14.7 | E178: =per_game!B180 & "-" & D178 -> Carlos Delfino-14.7 | F178: =per_game!R180 -> 4 | G178: =per_game!S180 -> 2 | H178: =per_game!X180 -> 8.7 | I178: =per_game!A180 -> 7
C179: =Roster!C181 -> G | D179: 10 | E179: =per_game!B181 & "-" & D179 -> Greg Smith-10 | F179: =per_game!R181 -> 3.5 | G179: =per_game!S181 -> 0.7 | H179: =per_game!X181 -> 5.8 | I179: =per_game!A181 -> 8
C180: =Roster!C182 -> G | D180: 8.6 | E180: =per_game!B182 & "-" & D180 -> Toney Douglas-8.6 | F180: =per_game!R182 -> 1.2 | G180: =per_game!S182 -> 1.7 | H180: =per_game!X182 -> 5.7 | I180: =per_game!A182 -> 9
C181: =Roster!C183 -> F | D181: 7.9 | E181: =per_game!B183 & "-" & D181 -> Daequan Cook-7.9 | F181: =per_game!R183 -> 1.6 | G181: =per_game!S183 -> 1 | H181: =per_game!X183 -> 5.3 | I181: =per_game!A183 -> 10
C182: =Roster!C184 -> F | D182: 6 | E182: =per_game!B184 & "-" & D182 -> Terrence Jones-6 | F182: =per_game!R184 -> 2 | G182: =per_game!S184 -> 0.4 | H182: =per_game!X184 -> 3.6 | I182: =per_game!A184 -> 11
C183: =Roster!C185 -> F | D183: 5.4 | E183: =per_game!B185 & "-" & D183 -> Cole Aldrich-5.4 | F183: =per_game!R185 -> 2.1 | G183: =per_game!S185 -> 0.3 | H183: =per_game!X185 -> 3 | I183: =per_game!A185 -> 12
C184: =Roster!C186 -> F | D184: 3 | E184: =per_game!B186 & "-" & D184 -> Scott Machado-3 | F184: =per_game!R186 -> 0 | G184: =per_game!S186 -> 1 | H184: =per_game!X186 -> 2 | I184: =per_game!A186 -> 13
C185: =Roster!C187 -> C | D185: 1.3 | F185: =per_game!R187 -> 0.3 | G185: =per_game!S187 -> 0 | H185: =per_game!X187 -> 1 | I185: =per_game!A187 -> 14
C186: =Roster!C188 -> 0 | D186: 0 | F186: =per_game!R188 -> 0 | G186: =per_game!S188 -> 0 | H186: =per_game!X188 -> 0 | I186: =per_game!A188 -> 0
C187: =Roster!C189 -> 0 | D187: 0 | F187: =per_game!R189 -> 0 | G187: =per_game!S189 -> 0 | H187: =per_game!X189 -> 0 | I187: =per_game!A189 -> IND
C188: =Roster!C190 -> Pos | E188: =per_game!B190 & "-" & D188 -> Player- | F188: =per_game!R190 -> TRB | G188: =per_game!S190 -> AST | H188: =per_game!X190 -> PTS | I188: =per_game!A190 -> Rk
C189: =Roster!C191 -> G | D189: 28.6 | E189: =per_game!B191 & "-" & D189 -> David West-28.6 | F189: =per_game!R191 -> 8.3 | G189: =per_game!S191 -> 2.5 | H189: =per_game!X191 -> 17.8 | I189: =per_game!A191 -> 1
C190: =Roster!C192 -> F | D190: 24.2 | E190: =per_game!B192 & "-" & D190 -> George Hill-24.2 | F190: =per_game!R192 -> 4.1 | G190: =per_game!S192 -> 5.3 | H190: =per_game!X192 -> 14.8 | I190: =per_game!A192 -> 2
C191: =Roster!C193 -> F | D191: 23.4 | E191: =per_game!B193 & "-" & D191 -> Paul George-23.4 | F191: =per_game!R193 -> 6.5 | G191: =per_game!S193 -> 3.4 | H191: =per_game!X193 -> 13.5 | I191: =per_game!A193 -> 3
C192: =Roster!C194 -> G | D192: 19.3 | E192: =per_game!B194 & "-" & D192 -> Roy Hibbert-19.3 | F192: =per_game!R194 -> 8.2 | G192: =per_game!S194 -> 1.4 | H192: =per_game!X194 -> 9.7 | I192: =per_game!A194 -> 4
C193: =Roster!C195 -> F | D193: 12.4 | E193: =per_game!B195 & "-" & D193 -> Gerald Green-12.4 | F193: =per_game!R195 -> 4.1 | G193: =per_game!S195 -> 0.5 | H193: =per_game!X195 -> 7.8 | I193: =per_game!A195 -> 5
C194: =Roster!C196 -> C | D194: =F194*$B$2+G194*$B$3+H194*$B$1 -> 12.6 | E194: =per_game!B196 & "-" & D194 -> Lance Stephenson-12.6 | F194: =per_game!R196 -> 2.9 | G194: =per_game!S196 -> 2.5 | H194: =per_game!X196 -> 7.2 | I194: =per_game!A196 -> 6
C195: =Roster!C197 -> G | D195: 11.4 | E195: =per_game!B197 & "-" & D195 -> Tyler Hansbrough-11.4 | F195: =per_game!R197 -> 4.7 | G195: =per_game!S197 -> 0.2 | H195: =per_game!X197 -> 6.5 | I195: =per_game!A197 -> 7
C196: =Roster!C198 -> G | D196: 9.4 | E196: =per_game!B198 & "-" & D196 -> Sam Young-9.4 | F196: =per_game!R198 -> 3.5 | G196: =per_game!S198 -> 0.9 | H196: =per_game!X198 -> 5 | I196: =per_game!A198 -> 8
C197: =Roster!C199 -> C | D197: 8.5 | E197: =per_game!B199 & "-" & D197 -> Ian Mahinmi-8.5 | F197: =per_game!R199 -> 3.6 | G197: =per_game!S199 -> 0.2 | H197: =per_game!X199 -> 4.7 | I197: =per_game!A199 -> 9
C198: =Roster!C200 -> F | D198: 6.3 | E198: =per_game!B200 & "-" & D198 -> Jeff Pendergraph-6.3 | F198: =per_game!R200 -> 2.3 | G198: =per_game!S200 -> 0.3 | H198: =per_game!X200 -> 3.7 | I198: =per_game!A200 -> 10
C199: =Roster!C201 -> F | D199: 7 | E199: =per_game!B201 & "-" & D199 -> D.J. Augustin-7 | F199: =per_game!R201 -> 1.1 | G199: =per_game!S201 -> 2.4 | H199: =per_game!X201 -> 3.5 | I199: =per_game!A201 -> 11
C200: =Roster!C202 -> G | D200: 2.9 | E200: =per_game!B202 & "-" & D200 -> Ben Hansbrough-2.9 | F200: =per_game!R202 -> 0.3 | G200: =per_game!S202 -> 1.3 | H200: =per_game!X202 -> 1.3 | I200: =per_game!A202 -> 12
... 308 more rows

Sheet 5 (hidden)
A1: Points | B1: ='Create Team'!B24 -> 1
A2: Rebounds | B2: ='Create Team'!B25 -> 1 | F2: TRB | G2: AST | H2: PTS | I2: BLKS | J2: STL
A3: Assists | B3: ='Create Team'!B26 -> 1 | C3: =Roster!C3 -> G | D3: =F3*$B$2+G3*$B$3+H3*$B$1+I3*$B$4+J3*$B$5 -> 31.2 | E3: =per_game!B3 & "-" & D3 -> Josh Smith-31.2 | F3: =per_game!R3 -> 7.6 | G3: =per_game!S3 -> 3.7 | H3: =per_game!X3 -> 16.1 | I3: =per_game!U3 -> 2.4 | J3: =per_game!T3 -> 1.4 | K3: C
A4: Blocks | B4: ='Create Team'!B27 -> 1 | C4: =Roster!C4 -> C | D4: =F4*$B$2+G4*$B$3+H4*$B$1+I4*$B$4+J4*$B$5 -> 30.5 | E4: =per_game!B4 & "-" & D4 -> Al Horford-30.5 | F4: =per_game!R4 -> 9.5 | G4: =per_game!S4 -> 3.5 | H4: =per_game!X4 -> 15.9 | I4: =per_game!U4 -> 1.1 | J4: =per_game!T4 -> 0.5 | K4: F
A5: Steals | B5: ='Create Team'!B28 -> 1 | C5: =Roster!C5 -> G | D5: 20.6 | E5: =per_game!B5 & "-" & D5 -> Louis Williams-20.6 | F5: =per_game!R5 -> 2 | G5: =per_game!S5 -> 3.3 | H5: =per_game!X5 -> 13.9 | I5: =per_game!U5 -> 0.3 | J5: =per_game!T5 -> 1.1 | K5: G
C6: =Roster!C6 -> F | D6: 25.3 | E6: =per_game!B6 & "-" & D6 -> Jeff Teague-25.3 | F6: =per_game!R6 -> 2.4 | G6: =per_game!S6 -> 7.1 | H6: =per_game!X6 -> 13.6 | I6: =per_game!U6 -> 0.4 | J6: =per_game!T6 -> 1.8 | K6: G
C7: =Roster!C7 -> F | D7: 17.5 | E7: =per_game!B7 & "-" & D7 -> Kyle Korver-17.5 | F7: =per_game!R7 -> 3.7 | G7: =per_game!S7 -> 1.6 | H7: =per_game!X7 -> 10.8 | I7: =per_game!U7 -> 0.4 | J7: =per_game!T7 -> 1 | K7: F
C8: =Roster!C8 -> G | D8: 16.8 | E8: =per_game!B8 & "-" & D8 -> Zaza Pachulia-16.8 | F8: =per_game!R8 -> 7.1 | G8: =per_game!S8 -> 1.6 | H8: =per_game!X8 -> 6.9 | I8: =per_game!U8 -> 0.4 | J8: =per_game!T8 -> 0.8 | K8: C
C9: =Roster!C9 -> C | D9: 12.3 | E9: =per_game!B9 & "-" & D9 -> Devin Harris-12.3 | F9: =per_game!R9 -> 1.6 | G9: =per_game!S9 -> 2.5 | H9: =per_game!X9 -> 6.8 | I9: =per_game!U9 -> 0.4 | J9: =per_game!T9 -> 1 | K9: G
C10: =Roster!C10 -> C | D10: 11 | E10: =per_game!B10 & "-" & D10 -> DeShawn Stevenson-11 | F10: =per_game!R10 -> 2.7 | G10: =per_game!S10 -> 1.1 | H10: =per_game!X10 -> 6.4 | I10: =per_game!U10 -> 0.3 | J10: =per_game!T10 -> 0.5 | K10: G
C11: =Roster!C11 -> F | D11: 7.2 | E11: =per_game!B11 & "-" & D11 -> Anthony Morrow-7.2 | F11: =per_game!R11 -> 0.6 | G11: =per_game!S11 -> 0.1 | H11: =per_game!X11 -> 5.7 | I11: =per_game!U11 -> 0.1 | J11: =per_game!T11 -> 0.7 | K11: G
C12: =Roster!C12 -> F | D12: 9.4 | E12: =per_game!B12 & "-" & D12 -> Ivan Johnson-9.4 | F12: =per_game!R12 -> 3.1 | G12: =per_game!S12 -> 0.3 | H12: =per_game!X12 -> 5.1 | I12: =per_game!U12 -> 0.1 | J12: =per_game!T12 -> 0.8 | K12: F
C13: =Roster!C13 -> G | D13: 6 | E13: =per_game!B13 & "-" & D13 -> Anthony Tolliver-6 | F13: =per_game!R13 -> 2.3 | G13: =per_game!S13 -> 0.1 | H13: =per_game!X13 -> 3.1 | I13: =per_game!U13 -> 0 | J13: =per_game!T13 -> 0.5 | K13: C
C14: =Roster!C14 -> G | D14: 2.5 | E14: =per_game!B14 & "-" & D14 -> John Jenkins-2.5 | F14: =per_game!R14 -> 1 | G14: =per_game!S14 -> 0 | H14: =per_game!X14 -> 1.5 | I14: =per_game!U14 -> 0 | J14: =per_game!T14 -> 0 | K14: G
C15: =Roster!C15 -> C | D15: 1.2 | E15: =per_game!B15 & "-" & D15 -> Mike Scott-1.2 | F15: =per_game!R15 -> 0.8 | G15: =per_game!S15 -> 0 | H15: =per_game!X15 -> 0.4 | I15: =per_game!U15 -> 0 | J15: =per_game!T15 -> 0 | K15: F
C16: =Roster!C16 -> G | D16: 0 | E16: =per_game!B16 & "-" & D16 -> Johan Petro-0 | F16: =per_game!R16 -> 0 | G16: =per_game!S16 -> 0 | H16: =per_game!X16 -> 0 | I16: =per_game!U16 -> 0 | J16: =per_game!T16 -> 0 | K16: C
C17: =Roster!C17 -> 0 | D17: 0 | F17: =per_game!R17 -> 0 | G17: =per_game!S17 -> 0 | H17: =per_game!X17 -> 0 | I17: =per_game!U17 -> 0 | J17: =per_game!T17 -> 0
C18: =Roster!C18 -> 0 | D18: 0 | F18: =per_game!R18 -> 0 | G18: =per_game!S18 -> 0 | H18: =per_game!X18 -> 0 | I18: =per_game!U18 -> 0 | J18: =per_game!T18 -> 0 | K18: BOS
C19: =Roster!C19 -> Pos | F19: =per_game!R19 -> TRB | G19: =per_game!S19 -> AST | H19: =per_game!X19 -> PTS | I19: =per_game!U19 -> BLK | J19: =per_game!T19 -> STL | K19: Rk | L19: BRK
C20: =Roster!C20 -> G | D20: 29.9 | E20: =per_game!B20 & "-" & D20 -> Paul Pierce-29.9 | F20: =per_game!R20 -> 5.7 | G20: =per_game!S20 -> 3.2 | H20: =per_game!X20 -> 19.2 | I20: =per_game!U20 -> 0.3 | J20: =per_game!T20 -> 1.5 | K20: F
C21: =Roster!C21 -> F | D21: 26.5 | E21: =per_game!B21 & "-" & D21 -> Kevin Garnett-26.5 | F21: =per_game!R21 -> 7.4 | G21: =per_game!S21 -> 1.9 | H21: =per_game!X21 -> 15.6 | I21: =per_game!U21 -> 0.8 | J21: =per_game!T21 -> 0.8 | K21: F
C22: =Roster!C22 -> C | D22: 32.3 | E22: =per_game!B22 & "-" & D22 -> Rajon Rondo-32.3 | F22: =per_game!R22 -> 4.6 | G22: =per_game!S22 -> 12.9 | H22: =per_game!X22 -> 12.9 | I22: =per_game!U22 -> 0 | J22: =per_game!T22 -> 1.9 | K22: G
C23: =Roster!C23 -> F | D23: 17 | E23: =per_game!B23 & "-" & D23 -> Jason Terry-17 | F23: =per_game!R23 -> 1.8 | G23: =per_game!S23 -> 2.3 | H23: =per_game!X23 -> 11.7 | I23: =per_game!U23 -> 0.1 | J23: =per_game!T23 -> 1.1 | K23: G
C24: =Roster!C24 -> F | D24: 17.1 | E24: =per_game!B24 & "-" & D24 -> Brandon Bass-17.1 | F24: =per_game!R24 -> 5.4 | G24: =per_game!S24 -> 0.9 | H24: =per_game!X24 -> 9.5 | I24: =per_game!U24 -> 0.8 | J24: =per_game!T24 -> 0.5 | K24: F
C25: =Roster!C25 -> F | D25: 13.5 | E25: =per_game!B25 & "-" & D25 -> Jeff Green-13.5 | F25: =per_game!R25 -> 2.8 | G25: =per_game!S25 -> 0.7 | H25: =per_game!X25 -> 8.9 | I25: =per_game!U25 -> 0.5 | J25: =per_game!T25 -> 0.6 | K25: F
C26: =Roster!C26 -> G | D26: 9.5 | E26: =per_game!B26 & "-" & D26 -> Leandro Barbosa-9.5 | F26: =per_game!R26 -> 0.9 | G26: =per_game!S26 -> 1.5 | H26: =per_game!X26 -> 6.3 | I26: =per_game!U26 -> 0.3 | J26: =per_game!T26 -> 0.5 | K26: G
C27: =Roster!C27 -> F-C | D27: 10.9 | E27: =per_game!B27 & "-" & D27 -> Courtney Lee-10.9 | F27: =per_game!R27 -> 2.5 | G27: =per_game!S27 -> 1.5 | H27: =per_game!X27 -> 5.9 | I27: =per_game!U27 -> 0.1 | J27: =per_game!T27 -> 0.9 | K27: F
C28: =Roster!C28 -> F | D28: 11.6 | E28: =per_game!B28 & "-" & D28 -> Jared Sullinger-11.6 | F28: =per_game!R28 -> 4.6 | G28: =per_game!S28 -> 0.6 | H28: =per_game!X28 -> 5.5 | I28: =per_game!U28 -> 0.5 | J28: =per_game!T28 -> 0.4 | K28: G
C29: =Roster!C29 -> G | D29: 7.3 | E29: =per_game!B29 & "-" & D29 -> Chris Wilcox-7.3 | F29: =per_game!R29 -> 2.1 | G29: =per_game!S29 -> 0.3 | H29: =per_game!X29 -> 4.3 | I29: =per_game!U29 -> 0.3 | J29: =per_game!T29 -> 0.3 | K29: F
C30: =Roster!C30 -> F | D30: 2 | E30: =per_game!B30 & "-" & D30 -> Kris Joseph-2 | F30: =per_game!R30 -> 0.5 | G30: =per_game!S30 -> 0.5 | H30: =per_game!X30 -> 1 | I30: =per_game!U30 -> 0 | J30: =per_game!T30 -> 0 | K30: C
C31: =Roster!C31 -> G | D31: 3.6 | E31: =per_game!B31 & "-" & D31 -> Jason Collins-3.6 | F31: =per_game!R31 -> 2.3 | G31: =per_game!S31 -> 0 | H31: =per_game!X31 -> 0.5 | I31: =per_game!U31 -> 0.3 | J31: =per_game!T31 -> 0.5 | K31: F
C32: =Roster!C32 -> F | D32: 1 | E32: =per_game!B32 & "-" & D32 -> Darko Milicic-1 | F32: =per_game!R32 -> 1 | G32: =per_game!S32 -> 0 | H32: =per_game!X32 -> 0 | I32: =per_game!U32 -> 0 | J32: =per_game!T32 -> 0 | K32: F-C
C33: =Roster!C33 -> 0 | D33: 0 | F33: =per_game!R33 -> 0 | G33: =per_game!S33 -> 0 | H33: =per_game!X33 -> 0 | I33: =per_game!U33 -> 0 | J33: =per_game!T33 -> 0
C34: =Roster!C34 -> 0 | D34: 0 | F34: =per_game!R34 -> 0 | G34: =per_game!S34 -> 0 | H34: =per_game!X34 -> 0 | I34: =per_game!U34 -> 0 | J34: =per_game!T34 -> 0 | K34: BRK
C35: =Roster!C35 -> Pos | F35: =per_game!R35 -> TRB | G35: =per_game!S35 -> AST | H35: =per_game!X35 -> PTS | I35: =per_game!U35 -> BLK | J35: =per_game!T35 -> STL | K35: Rk
C36: =Roster!C36 -> F | D36: 29.1 | E36: =per_game!B36 & "-" & D36 -> Brook Lopez-29.1 | F36: =per_game!R36 -> 6.8 | G36: =per_game!S36 -> 0.8 | H36: =per_game!X36 -> 18.5 | I36: =per_game!U36 -> 2.5 | J36: =per_game!T36 -> 0.5 | K36: C
C37: =Roster!C37 -> G-F | D37: 23 | E37: =per_game!B37 & "-" & D37 -> Joe Johnson-23 | F37: =per_game!R37 -> 2.8 | G37: =per_game!S37 -> 3.8 | H37: =per_game!X37 -> 15.6 | I37: =per_game!U37 -> 0.2 | J37: =per_game!T37 -> 0.6 | K37: G
C38: =Roster!C38 -> G-F | D38: 29 | E38: =per_game!B38 & "-" & D38 -> Deron Williams-29 | F38: =per_game!R38 -> 3 | G38: =per_game!S38 -> 8.9 | H38: =per_game!X38 -> 15.4 | I38: =per_game!U38 -> 0.6 | J38: =per_game!T38 -> 1.1 | K38: G
C39: =Roster!C39 -> G-F | D39: 18.1 | E39: =per_game!B39 & "-" & D39 -> Andray Blatche-18.1 | F39: =per_game!R39 -> 5.8 | G39: =per_game!S39 -> 1.1 | H39: =per_game!X39 -> 10.1 | I39: =per_game!U39 -> 0.6 | J39: =per_game!T39 -> 0.5 | K39: F
C40: =Roster!C40 -> F | D40: 18.5 | E40: =per_game!B40 & "-" & D40 -> Gerald Wallace-18.5 | F40: =per_game!R40 -> 4.1 | G40: =per_game!S40 -> 2.4 | H40: =per_game!X40 -> 9.4 | I40: =per_game!U40 -> 0.7 | J40: =per_game!T40 -> 1.9 | K40: F
C41: =Roster!C41 -> F | D41: 18.1 | E41: =per_game!B41 & "-" & D41 -> Kris Humphries-18.1 | F41: =per_game!R41 -> 8.1 | G41: =per_game!S41 -> 0.6 | H41: =per_game!X41 -> 8.1 | I41: =per_game!U41 -> 0.9 | J41: =per_game!T41 -> 0.4 | K41: G-F
C42: =Roster!C42 -> G | D42: 10.3 | E42: =per_game!B42 & "-" & D42 -> Jerry Stackhouse-10.3 | F42: =per_game!R42 -> 1.4 | G42: =per_game!S42 -> 0.8 | H42: =per_game!X42 -> 7.3 | I42: =per_game!U42 -> 0.2 | J42: =per_game!T42 -> 0.6 | K42: F
C43: =Roster!C43 -> C | D43: 11.5 | E43: =per_game!B43 & "-" & D43 -> C.J. Watson-11.5 | F43: =per_game!R43 -> 1.4 | G43: =per_game!S43 -> 1.8 | H43: =per_game!X43 -> 7.3 | I43: =per_game!U43 -> 0.2 | J43: =per_game!T43 -> 0.8 | K43: G
C44: =Roster!C44 -> F | D44: 10.4 | E44: =per_game!B44 & "-" & D44 -> MarShon Brooks-10.4 | F44: =per_game!R44 -> 1.7 | G44: =per_game!S44 -> 0.9 | H44: =per_game!X44 -> 7.1 | I44: =per_game!U44 -> 0.1 | J44: =per_game!T44 -> 0.6 | K44: G-F
C45: =Roster!C45 -> G-F | D45: 13 | E45: =per_game!B45 & "-" & D45 -> Reggie Evans-13 | F45: =per_game!R45 -> 8.4 | G45: =per_game!S45 -> 0.7 | H45: =per_game!X45 -> 3.1 | I45: =per_game!U45 -> 0.1 | J45: =per_game!T45 -> 0.7 | K45: F
C46: =Roster!C46 -> G | D46: 5.9 | E46: =per_game!B46 & "-" & D46 -> Keith Bogans-5.9 | F46: =per_game!R46 -> 1.4 | G46: =per_game!S46 -> 1.1 | H46: =per_game!X46 -> 3.1 | I46: =per_game!U46 -> 0 | J46: =per_game!T46 -> 0.3 | K46: G-F
C47: =Roster!C47 -> F | D47: 5.2 | E47: =per_game!B47 & "-" & D47 -> Mirza Teletovic-5.2 | F47: =per_game!R47 -> 1.2 | G47: =per_game!S47 -> 0.7 | H47: =per_game!X47 -> 3 | I47: =per_game!U47 -> 0 | J47: =per_game!T47 -> 0.3 | K47: F
C48: =Roster!C48 -> F | D48: 2.3 | E48: =per_game!B48 & "-" & D48 -> Tornike Shengelia-2.3 | F48: =per_game!R48 -> 0.3 | G48: =per_game!S48 -> 0 | H48: =per_game!X48 -> 2 | I48: =per_game!U48 -> 0 | J48: =per_game!T48 -> 0 | K48: F
C49: =Roster!C49 -> G | D49: 3.7 | E49: =per_game!B49 & "-" & D49 -> Josh Childress-3.7 | F49: =per_game!R49 -> 1.4 | G49: =per_game!S49 -> 0.5 | H49: =per_game!X49 -> 1.4 | I49: =per_game!U49 -> 0.2 | J49: =per_game!T49 -> 0.2 | K49: G-F
C50: =Roster!C50 -> G | D50: 1.5 | E50: =per_game!B50 & "-" & D50 -> Tyshawn Taylor-1.5 | F50: =per_game!R50 -> 0 | G50: =per_game!S50 -> 0.2 | H50: =per_game!X50 -> 1 | I50: =per_game!U50 -> 0 | J50: =per_game!T50 -> 0.3 | K50: G
C51: =Roster!C51 -> 0 | D51: 0 | F51: =per_game!R51 -> 0 | G51: =per_game!S51 -> 0 | H51: =per_game!X51 -> 0 | I51: =per_game!U51 -> 0 | J51: =per_game!T51 -> 0
C52: =Roster!C52 -> 0 | D52: 0 | F52: =per_game!R52 -> 0 | G52: =per_game!S52 -> 0 | H52: =per_game!X52 -> 0 | I52: =per_game!U52 -> 0 | J52: =per_game!T52 -> 0 | K52: CHA
C53: =Roster!C53 -> Pos | F53: =per_game!R53 -> TRB | G53: =per_game!S53 -> AST | H53: =per_game!X53 -> PTS | I53: =per_game!U53 -> BLK | J53: =per_game!T53 -> STL | K53: Rk
C54: =Roster!C54 -> F | D54: 29 | E54: =per_game!B54 & "-" & D54 -> Kemba Walker-29 | F54: =per_game!R54 -> 3.9 | G54: =per_game!S54 -> 5.9 | H54: =per_game!X54 -> 16.6 | I54: =per_game!U54 -> 0.5 | J54: =per_game!T54 -> 2.1 | K54: G
C55: =Roster!C55 -> G | D55: 25 | E55: =per_game!B55 & "-" & D55 -> Ramon Sessions-25 | F55: =per_game!R55 -> 3.8 | G55: =per_game!S55 -> 4.7 | H55: =per_game!X55 -> 15.6 | I55: =per_game!U55 -> 0 | J55: =per_game!T55 -> 0.9 | K55: G
C56: =Roster!C56 -> C | D56: 21.2 | E56: =per_game!B56 & "-" & D56 -> Ben Gordon-21.2 | F56: =per_game!R56 -> 2.3 | G56: =per_game!S56 -> 2.9 | H56: =per_game!X56 -> 15 | I56: =per_game!U56 -> 0.4 | J56: =per_game!T56 -> 0.6 | K56: G
C57: =Roster!C57 -> G | D57: 24.4 | E57: =per_game!B57 & "-" & D57 -> Byron Mullens-24.4 | F57: =per_game!R57 -> 8.4 | G57: =per_game!S57 -> 1.2 | H57: =per_game!X57 -> 12.9 | I57: =per_game!U57 -> 0.8 | J57: =per_game!T57 -> 1.1 | K57: C
C58: =Roster!C58 -> C | D58: 21.2 | E58: =per_game!B58 & "-" & D58 -> Michael Kidd-Gilchrist-21.2 | F58: =per_game!R58 -> 6.3 | G58: =per_game!S58 -> 1.6 | H58: =per_game!X58 -> 10.8 | I58: =per_game!U58 -> 1.4 | J58: =per_game!T58 -> 1.1 | K58: G
C59: =Roster!C59 -> G | D59: 16.1 | E59: =per_game!B59 & "-" & D59 -> Gerald Henderson-16.1 | F59: =per_game!R59 -> 1.7 | G59: =per_game!S59 -> 1.7 | H59: =per_game!X59 -> 10 | I59: =per_game!U59 -> 0.7 | J59: =per_game!T59 -> 2 | K59: F
C60: =Roster!C60 -> G | D60: 13.1 | E60: =per_game!B60 & "-" & D60 -> Jeff Taylor-13.1 | F60: =per_game!R60 -> 2.4 | G60: =per_game!S60 -> 0.9 | H60: =per_game!X60 -> 8.3 | I60: =per_game!U60 -> 0.3 | J60: =per_game!T60 -> 1.2 | K60: F
C61: =Roster!C61 -> F | D61: 12.6 | E61: =per_game!B61 & "-" & D61 -> Tyrus Thomas-12.6 | F61: =per_game!R61 -> 3.1 | G61: =per_game!S61 -> 1 | H61: =per_game!X61 -> 6.6 | I61: =per_game!U61 -> 1.4 | J61: =per_game!T61 -> 0.5 | K61: F
C62: =Roster!C62 -> C | D62: 15.3 | E62: =per_game!B62 & "-" & D62 -> Brendan Haywood-15.3 | F62: =per_game!R62 -> 6.9 | G62: =per_game!S62 -> 0.7 | H62: =per_game!X62 -> 6.5 | I62: =per_game!U62 -> 1.1 | J62: =per_game!T62 -> 0.1 | K62: C
C63: =Roster!C63 -> G | D63: 11.5 | E63: =per_game!B63 & "-" & D63 -> Bismack Biyombo-11.5 | F63: =per_game!R63 -> 5.1 | G63: =per_game!S63 -> 0.1 | H63: =per_game!X63 -> 4.4 | I63: =per_game!U63 -> 1.6 | J63: =per_game!T63 -> 0.3 | K63: F
C64: =Roster!C64 -> F | D64: 6.5 | E64: =per_game!B64 & "-" & D64 -> Reggie Williams-6.5 | F64: =per_game!R64 -> 1.2 | G64: =per_game!S64 -> 0.5 | H64: =per_game!X64 -> 4.1 | I64: =per_game!U64 -> 0 | J64: =per_game!T64 -> 0.7 | K64: F
C65: =Roster!C65 -> F | D65: 4.7 | E65: =per_game!B65 & "-" & D65 -> Hakim Warrick-4.7 | F65: =per_game!R65 -> 1.8 | G65: =per_game!S65 -> 0.2 | H65: =per_game!X65 -> 2.2 | I65: =per_game!U65 -> 0.3 | J65: =per_game!T65 -> 0.2 | K65: F
C66: =Roster!C66 -> G | D66: 3 | E66: =per_game!B66 & "-" & D66 -> Cory Higgins-3 | F66: =per_game!R66 -> 0.4 | G66: =per_game!S66 -> 0.8 | H66: =per_game!X66 -> 1.4 | I66: =per_game!U66 -> 0 | J66: =per_game!T66 -> 0.4 | K66: G
C67: =Roster!C67 -> F | D67: 3 | E67: =per_game!B67 & "-" & D67 -> DeSagana Diop-3 | F67: =per_game!R67 -> 1.9 | G67: =per_game!S67 -> 0.3 | H67: =per_game!X67 -> 0 | I67: =per_game!U67 -> 0.5 | J67: =per_game!T67 -> 0.3 | K67: C
C68: =Roster!C68 -> F | D68: =F68*$B$2+G68*$B$3+H68*$B$1+I68*$B$4+J68*$B$5 -> 1 | E68: =per_game!B68 & "-" & D68 -> Matt Carroll-1 | F68: =per_game!R68 -> 0 | G68: =per_game!S68 -> 1 | H68: =per_game!X68 -> 0 | I68: =per_game!U68 -> 0 | J68: =per_game!T68 -> 0 | K68: G
C69: =Roster!C69 -> 0 | D69: 0 | F69: =per_game!R69 -> 0 | G69: =per_game!S69 -> 0 | H69: =per_game!X69 -> 0 | I69: =per_game!U69 -> 0 | J69: =per_game!T69 -> 0
C70: =Roster!C70 -> 0 | D70: 0 | F70: =per_game!R70 -> 0 | G70: =per_game!S70 -> 0 | H70: =per_game!X70 -> 0 | I70: =per_game!U70 -> 0 | J70: =per_game!T70 -> 0 | K70: CHI
C71: =Roster!C71 -> Pos | F71: =per_game!R71 -> TRB | G71: =per_game!S71 -> AST | H71: =per_game!X71 -> PTS | I71: =per_game!U71 -> BLK | J71: =per_game!T71 -> STL | K71: Rk
C72: =Roster!C72 -> G | D72: 29.4 | E72: =per_game!B72 & "-" & D72 -> Luol Deng-29.4 | F72: =per_game!R72 -> 7.4 | G72: =per_game!S72 -> 2.7 | H72: =per_game!X72 -> 18.1 | I72: =per_game!U72 -> 0.3 | J72: =per_game!T72 -> 0.9 | K72: F
C73: =Roster!C73 -> F-C | D73: 19.4 | E73: =per_game!B73 & "-" & D73 -> Richard Hamilton-19.4 | F73: =per_game!R73 -> 2.3 | G73: =per_game!S73 -> 2.3 | H73: =per_game!X73 -> 13.9 | I73: =per_game!U73 -> 0.1 | J73: =per_game!T73 -> 0.8 | K73: G-F
C74: =Roster!C74 -> F | D74: 26.4 | E74: =per_game!B74 & "-" & D74 -> Carlos Boozer-26.4 | F74: =per_game!R74 -> 9.7 | G74: =per_game!S74 -> 1.9 | H74: =per_game!X74 -> 13.7 | I74: =per_game!U74 -> 0.4 | J74: =per_game!T74 -> 0.7 | K74: F-C
C75: =Roster!C75 -> F | D75: 31.1 | E75: =per_game!B75 & "-" & D75 -> Joakim Noah-31.1 | F75: =per_game!R75 -> 9.9 | G75: =per_game!S75 -> 4.3 | H75: =per_game!X75 -> 13.3 | I75: =per_game!U75 -> 2.2 | J75: =per_game!T75 -> 1.4 | K75: C
C76: =Roster!C76 -> F | D76: 17.8 | E76: =per_game!B76 & "-" & D76 -> Nate Robinson-17.8 | F76: =per_game!R76 -> 2.1 | G76: =per_game!S76 -> 3.6 | H76: =per_game!X76 -> 11.2 | I76: =per_game!U76 -> 0 | J76: =per_game!T76 -> 0.9 | K76: G
C77: =Roster!C77 -> G-F | D77: 14.7 | E77: =per_game!B77 & "-" & D77 -> Taj Gibson-14.7 | F77: =per_game!R77 -> 4.9 | G77: =per_game!S77 -> 0.9 | H77: =per_game!X77 -> 7 | I77: =per_game!U77 -> 1.3 | J77: =per_game!T77 -> 0.6 | K77: F
C78: =Roster!C78 -> G | D78: 15.6 | E78: =per_game!B78 & "-" & D78 -> Kirk Hinrich-15.6 | F78: =per_game!R78 -> 2.6 | G78: =per_game!S78 -> 5.6 | H78: =per_game!X78 -> 6.2 | I78: =per_game!U78 -> 0.3 | J78: =per_game!T78 -> 0.9 | K78: G
C79: =Roster!C79 -> C | D79: 9.3 | E79: =per_game!B79 & "-" & D79 -> Jimmy Butler-9.3 | F79: =per_game!R79 -> 2.5 | G79: =per_game!S79 -> 0.7 | H79: =per_game!X79 -> 5.4 | I79: =per_game!U79 -> 0.2 | J79: =per_game!T79 -> 0.5 | K79: F
C80: =Roster!C80 -> C | D80: 7.1 | E80: =per_game!B80 & "-" & D80 -> Marco Belinelli-7.1 | F80: =per_game!R80 -> 0.9 | G80: =per_game!S80 -> 0.7 | H80: =per_game!X80 -> 5 | I80: =per_game!U80 -> 0.1 | J80: =per_game!T80 -> 0.4 | K80: G
C81: =Roster!C81 -> F | D81: 2 | E81: =per_game!B81 & "-" & D81 -> Vladimir Radmanovic-2 | F81: =per_game!R81 -> 0.4 | G81: =per_game!S81 -> 0.2 | H81: =per_game!X81 -> 1.4 | I81: =per_game!U81 -> 0 | J81: =per_game!T81 -> 0 | K81: F
C82: =Roster!C82 -> G | D82: 3.1 | E82: =per_game!B82 & "-" & D82 -> Marquis Teague-3.1 | F82: =per_game!R82 -> 0.7 | G82: =per_game!S82 -> 1.2 | H82: =per_game!X82 -> 1.2 | I82: =per_game!U82 -> 0 | J82: =per_game!T82 -> 0 | K82: G
C83: =Roster!C83 -> G | D83: 3.6 | E83: =per_game!B83 & "-" & D83 -> Nazr Mohammed-3.6 | F83: =per_game!R83 -> 1.9 | G83: =per_game!S83 -> 0.3 | H83: =per_game!X83 -> 0.7 | I83: =per_game!U83 -> 0.5 | J83: =per_game!T83 -> 0.2 | K83: C
C84: =Roster!C84 -> 0 | D84: 0 | F84: =per_game!R84 -> 0 | G84: =per_game!S84 -> 0 | H84: =per_game!X84 -> 0 | I84: =per_game!U84 -> 0 | J84: =per_game!T84 -> 0
C85: =Roster!C85 -> 0 | D85: 0 | F85: =per_game!R85 -> 0 | G85: =per_game!S85 -> 0 | H85: =per_game!X85 -> 0 | I85: =per_game!U85 -> 0 | J85: =per_game!T85 -> 0 | K85: CLE
C86: =Roster!C86 -> Pos | F86: =per_game!R86 -> TRB | G86: =per_game!S86 -> AST | H86: =per_game!X86 -> PTS | I86: =per_game!U86 -> BLK | J86: =per_game!T86 -> STL | K86: Rk
C87: =Roster!C87 -> F | D87: 33.6 | E87: =per_game!B87 & "-" & D87 -> Kyrie Irving-33.6 | F87: =per_game!R87 -> 3.7 | G87: =per_game!S87 -> 5.6 | H87: =per_game!X87 -> 22.9 | I87: =per_game!U87 -> 0.3 | J87: =per_game!T87 -> 1.1 | K87: G
C88: =Roster!C88 -> G | D88: 22.3 | E88: =per_game!B88 & "-" & D88 -> Dion Waiters-22.3 | F88: =per_game!R88 -> 2.3 | G88: =per_game!S88 -> 3.4 | H88: =per_game!X88 -> 15.2 | I88: =per_game!U88 -> 0.2 | J88: =per_game!T88 -> 1.2 | K88: G
C89: =Roster!C89 -> G | D89: 35.7 | E89: =per_game!B89 & "-" & D89 -> Anderson Varejao-35.7 | F89: =per_game!R89 -> 15.4 | G89: =per_game!S89 -> 3.2 | H89: =per_game!X89 -> 15.2 | I89: =per_game!U89 -> 0.4 | J89: =per_game!T89 -> 1.5 | K89: F-C
C90: =Roster!C90 -> G | D90: 20 | E90: =per_game!B90 & "-" & D90 -> Alonzo Gee-20 | F90: =per_game!R90 -> 3.7 | G90: =per_game!S90 -> 2.1 | H90: =per_game!X90 -> 12.1 | I90: =per_game!U90 -> 0.4 | J90: =per_game!T90 -> 1.7 | K90: G
C91: =Roster!C91 -> F | D91: 18.2 | E91: =per_game!B91 & "-" & D91 -> Jeremy Pargo-18.2 | F91: =per_game!R91 -> 1.9 | G91: =per_game!S91 -> 3.8 | H91: =per_game!X91 -> 11.7 | I91: =per_game!U91 -> 0 | J91: =per_game!T91 -> 0.8 | K91: G
C92: =Roster!C92 -> G | D92: 19.6 | E92: =per_game!B92 & "-" & D92 -> Tristan Thompson-19.6 | F92: =per_game!R92 -> 8.1 | G92: =per_game!S92 -> 1.2 | H92: =per_game!X92 -> 8.9 | I92: =per_game!U92 -> 0.6 | J92: =per_game!T92 -> 0.8 | K92: G
C93: =Roster!C93 -> G | D93: 13.4 | E93: =per_game!B93 & "-" & D93 -> Daniel Gibson-13.4 | F93: =per_game!R93 -> 1.7 | G93: =per_game!S93 -> 2.1 | H93: =per_game!X93 -> 8.5 | I93: =per_game!U93 -> 0.1 | J93: =per_game!T93 -> 1 | K93: F
C94: =Roster!C94 -> F | D94: 13.3 | E94: =per_game!B94 & "-" & D94 -> Tyler Zeller-13.3 | F94: =per_game!R94 -> 4.8 | G94: =per_game!S94 -> 0.9 | H94: =per_game!X94 -> 6.6 | I94: =per_game!U94 -> 0.6 | J94: =per_game!T94 -> 0.4 | K94: G
C95: =Roster!C95 -> G | D95: 10.2 | E95: =per_game!B95 & "-" & D95 -> Omri Casspi-10.2 | F95: =per_game!R95 -> 2.5 | G95: =per_game!S95 -> 0.4 | H95: =per_game!X95 -> 6.3 | I95: =per_game!U95 -> 0.4 | J95: =per_game!T95 -> 0.6 | K95: F-C
C96: =Roster!C96 -> F | D96: 9.1 | E96: =per_game!B96 & "-" & D96 -> C.J. Miles-9.1 | F96: =per_game!R96 -> 2.1 | G96: =per_game!S96 -> 0.7 | H96: =per_game!X96 -> 5.8 | I96: =per_game!U96 -> 0.1 | J96: =per_game!T96 -> 0.4 | K96: F
C97: =Roster!C97 -> F-C | D97: 6.7 | E97: =per_game!B97 & "-" & D97 -> Donald Sloan-6.7 | F97: =per_game!R97 -> 1.1 | G97: =per_game!S97 -> 2 | H97: =per_game!X97 -> 3.5 | I97: =per_game!U97 -> 0 | J97: =per_game!T97 -> 0.1 | K97: F
C98: =Roster!C98 -> G | D98: 5.9 | E98: =per_game!B98 & "-" & D98 -> Samardo Samuels-5.9 | F98: =per_game!R98 -> 1.7 | G98: =per_game!S98 -> 0.4 | H98: =per_game!X98 -> 3.3 | I98: =per_game!U98 -> 0.3 | J98: =per_game!T98 -> 0.2 | K98: F
C99: =Roster!C99 -> F | D99: 6 | E99: =per_game!B99 & "-" & D99 -> Jon Leuer-6 | F99: =per_game!R99 -> 2 | G99: =per_game!S99 -> 0.6 | H99: =per_game!X99 -> 3.2 | I99: =per_game!U99 -> 0 | J99: =per_game!T99 -> 0.2 | K99: G
C100: =Roster!C100 -> F-C | D100: 1.8 | E100: =per_game!B100 & "-" & D100 -> Luke Walton-1.8 | F100: =per_game!R100 -> 0.6 | G100: =per_game!S100 -> 0.4 | H100: =per_game!X100 -> 0.4 | I100: =per_game!U100 -> 0 | J100: =per_game!T100 -> 0.4 | K100: F
C101: =Roster!C101 -> 0 | D101: 0 | F101: =per_game!R101 -> 0 | G101: =per_game!S101 -> 0 | H101: =per_game!X101 -> 0 | I101: =per_game!U101 -> 0 | J101: =per_game!T101 -> 0
C102: =Roster!C102 -> 0 | D102: 0 | F102: =per_game!R102 -> 0 | G102: =per_game!S102 -> 0 | H102: =per_game!X102 -> 0 | I102: =per_game!U102 -> 0 | J102: =per_game!T102 -> 0 | K102: DAL
C103: =Roster!C103 -> Pos | F103: =per_game!R103 -> TRB | G103: =per_game!S103 -> AST | H103: =per_game!X103 -> PTS | I103: =per_game!U103 -> BLK | J103: =per_game!T103 -> STL | K103: Rk
C104: =Roster!C104 -> G | D104: 27.8 | E104: =per_game!B104 & "-" & D104 -> O.J. Mayo-27.8 | F104: =per_game!R104 -> 3.5 | G104: =per_game!S104 -> 3.2 | H104: =per_game!X104 -> 20.2 | I104: =per_game!U104 -> 0.2 | J104: =per_game!T104 -> 0.7 | K104: G
C105: =Roster!C105 -> F | D105: 22.8 | E105: =per_game!B105 & "-" & D105 -> Chris Kaman-22.8 | F105: =per_game!R105 -> 6.9 | G105: =per_game!S105 -> 1 | H105: =per_game!X105 -> 13.6 | I105: =per_game!U105 -> 1.1 | J105: =per_game!T105 -> 0.2 | K105: C
C106: =Roster!C106 -> G-F | D106: 19.2 | E106: =per_game!B106 & "-" & D106 -> Vince Carter-19.2 | F106: =per_game!R106 -> 3.1 | G106: =per_game!S106 -> 1.7 | H106: =per_game!X106 -> 13.1 | I106: =per_game!U106 -> 0.5 | J106: =per_game!T106 -> 0.8 | K106: G-F
C107: =Roster!C107 -> G | D107: 22.5 | E107: =per_game!B107 & "-" & D107 -> Darren Collison-22.5 | F107: =per_game!R107 -> 2.3 | G107: =per_game!S107 -> 6.4 | H107: =per_game!X107 -> 12.4 | I107: =per_game!U107 -> 0 | J107: =per_game!T107 -> 1.4 | K107: G
C108: =Roster!C108 -> F | D108: 20.9 | E108: =per_game!B108 & "-" & D108 -> Shawn Marion-20.9 | F108: =per_game!R108 -> 7.4 | G108: =per_game!S108 -> 2.8 | H108: =per_game!X108 -> 9.2 | I108: =per_game!U108 -> 0.7 | J108: =per_game!T108 -> 0.8 | K108: F
C109: =Roster!C109 -> G | D109: 14 | E109: =per_game!B109 & "-" & D109 -> Brandan Wright-14 | F109: =per_game!R109 -> 3.3 | G109: =per_game!S109 -> 0.8 | H109: =per_game!X109 -> 8.5 | I109: =per_game!U109 -> 0.9 | J109: =per_game!T109 -> 0.5 | K109: F
C110: =Roster!C110 -> C | D110: 17.1 | E110: =per_game!B110 & "-" & D110 -> Elton Brand-17.1 | F110: =per_game!R110 -> 6.4 | G110: =per_game!S110 -> 1.6 | H110: =per_game!X110 -> 6.9 | I110: =per_game!U110 -> 1.4 | J110: =per_game!T110 -> 0.8 | K110: F
C111: =Roster!C111 -> G | D111: 12.1 | E111: =per_game!B111 & "-" & D111 -> Jae Crowder-12.1 | F111: =per_game!R111 -> 2.7 | G111: =per_game!S111 -> 1.2 | H111: =per_game!X111 -> 6.8 | I111: =per_game!U111 -> 0.3 | J111: =per_game!T111 -> 1.1 | K111: F
C112: =Roster!C112 -> C | D112: 9.7 | E112: =per_game!B112 & "-" & D112 -> Troy Murphy-9.7 | F112: =per_game!R112 -> 3.5 | G112: =per_game!S112 -> 0.5 | H112: =per_game!X112 -> 4.6 | I112: =per_game!U112 -> 0.4 | J112: =per_game!T112 -> 0.7 | K112: F
C113: =Roster!C113 -> G | D113: 6.5 | E113: =per_game!B113 & "-" & D113 -> Eddy Curry-6.5 | F113: =per_game!R113 -> 2 | G113: =per_game!S113 -> 0 | H113: =per_game!X113 -> 4.5 | I113: =per_game!U113 -> 0 | J113: =per_game!T113 -> 0 | K113: C
C114: =Roster!C114 -> G | D114: 9.8 | E114: =per_game!B114 & "-" & D114 -> Rodrigue Beaubois-9.8 | F114: =per_game!R114 -> 1.8 | G114: =per_game!S114 -> 2.7 | H114: =per_game!X114 -> 4.5 | I114: =per_game!U114 -> 0.1 | J114: =per_game!T114 -> 0.7 | K114: G
C115: =Roster!C115 -> C | D115: 9.1 | E115: =per_game!B115 & "-" & D115 -> Bernard James-9.1 | F115: =per_game!R115 -> 3.8 | G115: =per_game!S115 -> 0 | H115: =per_game!X115 -> 4.2 | I115: =per_game!U115 -> 0.9 | J115: =per_game!T115 -> 0.2 | K115: G
C116: =Roster!C116 -> F | D116: 10.8 | E116: =per_game!B116 & "-" & D116 -> Dominique Jones-10.8 | F116: =per_game!R116 -> 2.1 | G116: =per_game!S116 -> 3.6 | H116: =per_game!X116 -> 4.2 | I116: =per_game!U116 -> 0.1 | J116: =per_game!T116 -> 0.8 | K116: C
C117: =Roster!C117 -> G | D117: 5 | E117: =per_game!B117 & "-" & D117 -> Dahntay Jones-5 | F117: =per_game!R117 -> 1.5 | G117: =per_game!S117 -> 0.4 | H117: =per_game!X117 -> 2.8 | I117: =per_game!U117 -> 0.1 | J117: =per_game!T117 -> 0.2 | K117: G
C118: =Roster!C118 -> F | D118: 9 | E118: =per_game!B118 & "-" & D118 -> Derek Fisher-9 | F118: =per_game!R118 -> 2 | G118: =per_game!S118 -> 3 | H118: =per_game!X118 -> 2 | I118: =per_game!U118 -> 0 | J118: =per_game!T118 -> 2 | K118: G
C119: =Roster!C119 -> F | D119: 2.4 | F119: =per_game!R119 -> 0.3 | G119: =per_game!S119 -> 0.2 | H119: =per_game!X119 -> 1.7 | I119: =per_game!U119 -> 0 | J119: =per_game!T119 -> 0.2
C120: =Roster!C120 -> 0 | D120: 0 | F120: =per_game!R120 -> 0 | G120: =per_game!S120 -> 0 | H120: =per_game!X120 -> 0 | I120: =per_game!U120 -> 0 | J120: =per_game!T120 -> 0 | K120: DEN
C121: =Roster!C121 -> 0 | D121: 0 | F121: =per_game!R121 -> 0 | G121: =per_game!S121 -> 0 | H121: =per_game!X121 -> 0 | I121: =per_game!U121 -> 0 | J121: =per_game!T121 -> 0 | K121: Rk
C122: =Roster!C122 -> Pos | E122: =per_game!B122 & "-" & D122 -> Player- | F122: =per_game!R122 -> TRB | G122: =per_game!S122 -> AST | H122: =per_game!X122 -> PTS | I122: =per_game!U122 -> BLK | J122: =per_game!T122 -> STL | K122: G-F
C123: =Roster!C123 -> F | D123: 25.2 | E123: =per_game!B123 & "-" & D123 -> Danilo Gallinari-25.2 | F123: =per_game!R123 -> 6.1 | G123: =per_game!S123 -> 2.4 | H123: =per_game!X123 -> 15.5 | I123: =per_game!U123 -> 0.6 | J123: =per_game!T123 -> 0.6 | K123: F
C124: =Roster!C124 -> F | D124: 26 | E124: =per_game!B124 & "-" & D124 -> Andre Iguodala-26 | F124: =per_game!R124 -> 5.5 | G124: =per_game!S124 -> 3.8 | H124: =per_game!X124 -> 14.9 | I124: =per_game!U124 -> 0.7 | J124: =per_game!T124 -> 1.1 | K124: G
C125: =Roster!C125 -> F | D125: 25.3 | E125: =per_game!B125 & "-" & D125 -> Ty Lawson-25.3 | F125: =per_game!R125 -> 2.7 | G125: =per_game!S125 -> 7.2 | H125: =per_game!X125 -> 13.4 | I125: =per_game!U125 -> 0.1 | J125: =per_game!T125 -> 1.9 | K125: F
C126: =Roster!C126 -> G-F | D126: 26.4 | E126: =per_game!B126 & "-" & D126 -> Kenneth Faried-26.4 | F126: =per_game!R126 -> 10.5 | G126: =per_game!S126 -> 0.7 | H126: =per_game!X126 -> 13.2 | I126: =per_game!U126 -> 1.1 | J126: =per_game!T126 -> 0.9 | K126: C
C127: =Roster!C127 -> F | D127: 19.1 | E127: =per_game!B127 & "-" & D127 -> JaVale McGee-19.1 | F127: =per_game!R127 -> 5.7 | G127: =per_game!S127 -> 0.6 | H127: =per_game!X127 -> 10.8 | I127: =per_game!U127 -> 1.8 | J127: =per_game!T127 -> 0.2 | K127: F
C128: =Roster!C128 -> G-F | D128: 16 | E128: =per_game!B128 & "-" & D128 -> Corey Brewer-16 | F128: =per_game!R128 -> 3.1 | G128: =per_game!S128 -> 0.7 | H128: =per_game!X128 -> 10.5 | I128: =per_game!U128 -> 0.3 | J128: =per_game!T128 -> 1.4 | K128: G
C129: =Roster!C129 -> G-F | D129: 17.3 | E129: =per_game!B129 & "-" & D129 -> Andre Miller-17.3 | F129: =per_game!R129 -> 2.8 | G129: =per_game!S129 -> 5.1 | H129: =per_game!X129 -> 8.4 | I129: =per_game!U129 -> 0.2 | J129: =per_game!T129 -> 0.8 | K129: F
C130: =Roster!C130 -> C | D130: 10.7 | E130: =per_game!B130 & "-" & D130 -> Jordan Hamilton-10.7 | F130: =per_game!R130 -> 2.9 | G130: =per_game!S130 -> 0.8 | H130: =per_game!X130 -> 6.5 | I130: =per_game!U130 -> 0.2 | J130: =per_game!T130 -> 0.3 | K130: C
C131: =Roster!C131 -> G | D131: 11.8 | E131: =per_game!B131 & "-" & D131 -> Wilson Chandler-11.8 | F131: =per_game!R131 -> 5 | G131: =per_game!S131 -> 0 | H131: =per_game!X131 -> 6.5 | I131: =per_game!U131 -> 0.3 | J131: =per_game!T131 -> 0 | K131: G-F
C132: =Roster!C132 -> C | D132: =F132*$B$2+G132*$B$3+H132*$B$1+I132*$B$4+J132*$B$5 -> 14.9 | E132: =per_game!B132 & "-" & D132 -> Kosta Koufos-14.9 | F132: =per_game!R132 -> 5.9 | G132: =per_game!S132 -> 0.5 | H132: =per_game!X132 -> 6.3 | I132: =per_game!U132 -> 1.6 | J132: =per_game!T132 -> 0.6 | K132: G-F
C133: =Roster!C133 -> G | D133: 4.7 | E133: =per_game!B133 & "-" & D133 -> Evan Fournier-4.7 | F133: =per_game!R133 -> 0.4 | G133: =per_game!S133 -> 0.9 | H133: =per_game!X133 -> 3.4 | I133: =per_game!U133 -> 0 | J133: =per_game!T133 -> 0 | K133: C
C134: =Roster!C134 -> C | D134: 7.6 | E134: =per_game!B134 & "-" & D134 -> Timofey Mozgov-7.6 | F134: =per_game!R134 -> 3.3 | G134: =per_game!S134 -> 0.3 | H134: =per_game!X134 -> 3.1 | I134: =per_game!U134 -> 0.6 | J134: =per_game!T134 -> 0.3 | K134: F
C135: =Roster!C135 -> F | D135: 3 | F135: =per_game!R135 -> 1 | G135: =per_game!S135 -> 1 | H135: =per_game!X135 -> 0.7 | I135: =per_game!U135 -> 0.3 | J135: =per_game!T135 -> 0
C136: =Roster!C136 -> 0 | D136: 0 | F136: =per_game!R136 -> 0 | G136: =per_game!S136 -> 0 | H136: =per_game!X136 -> 0 | I136: =per_game!U136 -> 0 | J136: =per_game!T136 -> 0 | K136: DET
C137: =Roster!C137 -> 0 | D137: 0 | F137: =per_game!R137 -> 0 | G137: =per_game!S137 -> 0 | H137: =per_game!X137 -> 0 | I137: =per_game!U137 -> 0 | J137: =per_game!T137 -> 0 | K137: Rk
C138: =Roster!C138 -> Pos | E138: =per_game!B138 & "-" & D138 -> Player- | F138: =per_game!R138 -> TRB | G138: =per_game!S138 -> AST | H138: =per_game!X138 -> PTS | I138: =per_game!U138 -> BLK | J138: =per_game!T138 -> STL | K138: F-C
C139: =Roster!C139 -> G | D139: 31.6 | E139: =per_game!B139 & "-" & D139 -> Greg Monroe-31.6 | F139: =per_game!R139 -> 9.9 | G139: =per_game!S139 -> 3.5 | H139: =per_game!X139 -> 15.7 | I139: =per_game!U139 -> 0.8 | J139: =per_game!T139 -> 1.7 | K139: G
C140: =Roster!C140 -> F | D140: 23 | E140: =per_game!B140 & "-" & D140 -> Brandon Knight-23 | F140: =per_game!R140 -> 3.6 | G140: =per_game!S140 -> 5.3 | H140: =per_game!X140 -> 13.5 | I140: =per_game!U140 -> 0.1 | J140: =per_game!T140 -> 0.5 | K140: F
C141: =Roster!C141 -> C | D141: 19.7 | E141: =per_game!B141 & "-" & D141 -> Tayshaun Prince-19.7 | F141: =per_game!R141 -> 4.2 | G141: =per_game!S141 -> 2.4 | H141: =per_game!X141 -> 12.3 | I141: =per_game!U141 -> 0.3 | J141: =per_game!T141 -> 0.5 | K141: G
C142: =Roster!C142 -> G | D142: 16 | E142: =per_game!B142 & "-" & D142 -> Kyle Singler-16 | F142: =per_game!R142 -> 3.6 | G142: =per_game!S142 -> 1 | H142: =per_game!X142 -> 10.3 | I142: =per_game!U142 -> 0.6 | J142: =per_game!T142 -> 0.5 | K142: F
C143: =Roster!C143 -> F | D143: 16.9 | E143: =per_game!B143 & "-" & D143 -> Rodney Stuckey-16.9 | F143: =per_game!R143 -> 3 | G143: =per_game!S143 -> 3.7 | H143: =per_game!X143 -> 9.6 | I143: =per_game!U143 -> 0.3 | J143: =per_game!T143 -> 0.3 | K143: F
C144: =Roster!C144 -> G | D144: 18.1 | E144: =per_game!B144 & "-" & D144 -> Jason Maxiell-18.1 | F144: =per_game!R144 -> 6.5 | G144: =per_game!S144 -> 0.7 | H144: =per_game!X144 -> 8.9 | I144: =per_game!U144 -> 1.6 | J144: =per_game!T144 -> 0.4 | K144: F
C145: =Roster!C145 -> F | D145: 10.9 | E145: =per_game!B145 & "-" & D145 -> Charlie Villanueva-10.9 | F145: =per_game!R145 -> 2.6 | G145: =per_game!S145 -> 0.9 | H145: =per_game!X145 -> 6.7 | I145: =per_game!U145 -> 0.3 | J145: =per_game!T145 -> 0.4 | K145: C
C146: =Roster!C146 -> F | D146: 14.7 | E146: =per_game!B146 & "-" & D146 -> Andre Drummond-14.7 | F146: =per_game!R146 -> 6.2 | G146: =per_game!S146 -> 0.5 | H146: =per_game!X146 -> 5.9 | I146: =per_game!U146 -> 1.3 | J146: =per_game!T146 -> 0.8 | K146: F
C147: =Roster!C147 -> F | D147: 10.3 | E147: =per_game!B147 & "-" & D147 -> Jonas Jerebko-10.3 | F147: =per_game!R147 -> 2.9 | G147: =per_game!S147 -> 0.5 | H147: =per_game!X147 -> 5.8 | I147: =per_game!U147 -> 0.2 | J147: =per_game!T147 -> 0.9 | K147: F
C148: =Roster!C148 -> F-C | D148: 9.7 | E148: =per_game!B148 & "-" & D148 -> Will Bynum-9.7 | F148: =per_game!R148 -> 0.9 | G148: =per_game!S148 -> 2.5 | H148: =per_game!X148 -> 5.6 | I148: =per_game!U148 -> 0.1 | J148: =per_game!T148 -> 0.6 | K148: G
C149: =Roster!C149 -> F | D149: 8.4 | E149: =per_game!B149 & "-" & D149 -> Corey Maggette-8.4 | F149: =per_game!R149 -> 1 | G149: =per_game!S149 -> 1.4 | H149: =per_game!X149 -> 5.5 | I149: =per_game!U149 -> 0.1 | J149: =per_game!T149 -> 0.4 | K149: G
C150: =Roster!C150 -> F | D150: 4.9 | E150: =per_game!B150 & "-" & D150 -> Kim English-4.9 | F150: =per_game!R150 -> 0.5 | G150: =per_game!S150 -> 0.7 | H150: =per_game!X150 -> 3.2 | I150: =per_game!U150 -> 0.2 | J150: =per_game!T150 -> 0.3 | K150: F
C151: =Roster!C151 -> G | D151: 3.8 | E151: =per_game!B151 & "-" & D151 -> Austin Daye-3.8 | F151: =per_game!R151 -> 1 | G151: =per_game!S151 -> 0.4 | H151: =per_game!X151 -> 2.4 | I151: =per_game!U151 -> 0 | J151: =per_game!T151 -> 0 | K151: F
C152: =Roster!C152 -> F | D152: 2.7 | F152: =per_game!R152 -> 0 | G152: =per_game!S152 -> 0.7 | H152: =per_game!X152 -> 1.3 | I152: =per_game!U152 -> 0 | J152: =per_game!T152 -> 0.7
C153: =Roster!C153 -> 0 | D153: 0 | F153: =per_game!R153 -> 0 | G153: =per_game!S153 -> 0 | H153: =per_game!X153 -> 0 | I153: =per_game!U153 -> 0 | J153: =per_game!T153 -> 0 | K153: GSW
C154: =Roster!C154 -> 0 | D154: 0 | F154: =per_game!R154 -> 0 | G154: =per_game!S154 -> 0 | H154: =per_game!X154 -> 0 | I154: =per_game!U154 -> 0 | J154: =per_game!T154 -> 0 | K154: Rk
C155: =Roster!C155 -> Pos | E155: =per_game!B155 & "-" & D155 -> Player- | F155: =per_game!R155 -> TRB | G155: =per_game!S155 -> AST | H155: =per_game!X155 -> PTS | I155: =per_game!U155 -> BLK | J155: =per_game!T155 -> STL | K155: G
C156: =Roster!C156 -> F | D156: 30.9 | E156: =per_game!B156 & "-" & D156 -> Stephen Curry-30.9 | F156: =per_game!R156 -> 3.9 | G156: =per_game!S156 -> 6.4 | H156: =per_game!X156 -> 18.9 | I156: =per_game!U156 -> 0.1 | J156: =per_game!T156 -> 1.6 | K156: F
C157: =Roster!C157 -> G | D157: 33.3 | E157: =per_game!B157 & "-" & D157 -> David Lee-33.3 | F157: =per_game!R157 -> 10.7 | G157: =per_game!S157 -> 3.8 | H157: =per_game!X157 -> 17.4 | I157: =per_game!U157 -> 0.3 | J157: =per_game!T157 -> 1.1 | K157: G
C158: =Roster!C158 -> C | D158: 22.5 | E158: =per_game!B158 & "-" & D158 -> Klay Thompson-22.5 | F158: =per_game!R158 -> 4.1 | G158: =per_game!S158 -> 2.2 | H158: =per_game!X158 -> 15.4 | I158: =per_game!U158 -> 0.4 | J158: =per_game!T158 -> 0.4 | K158: F
C159: =Roster!C159 -> C | D159: 23 | E159: =per_game!B159 & "-" & D159 -> Carl Landry-23 | F159: =per_game!R159 -> 7.1 | G159: =per_game!S159 -> 1.1 | H159: =per_game!X159 -> 14 | I159: =per_game!U159 -> 0.5 | J159: =per_game!T159 -> 0.3 | K159: F
C160: =Roster!C160 -> G | D160: 18.3 | E160: =per_game!B160 & "-" & D160 -> Jarrett Jack-18.3 | F160: =per_game!R160 -> 3 | G160: =per_game!S160 -> 4.5 | H160: =per_game!X160 -> 10 | I160: =per_game!U160 -> 0 | J160: =per_game!T160 -> 0.8 | K160: G
C161: =Roster!C161 -> C | D161: 16.8 | E161: =per_game!B161 & "-" & D161 -> Harrison Barnes-16.8 | F161: =per_game!R161 -> 4.8 | G161: =per_game!S161 -> 1.4 | H161: =per_game!X161 -> 9.8 | I161: =per_game!U161 -> 0.2 | J161: =per_game!T161 -> 0.6 | K161: F
C162: =Roster!C162 -> F | D162: 8.5 | E162: =per_game!B162 & "-" & D162 -> Brandon Rush-8.5 | F162: =per_game!R162 -> 0.5 | G162: =per_game!S162 -> 1 | H162: =per_game!X162 -> 7 | I162: =per_game!U162 -> 0 | J162: =per_game!T162 -> 0 | K162: C
C163: =Roster!C163 -> G | D163: 13.1 | E163: =per_game!B163 & "-" & D163 -> Andrew Bogut-13.1 | F163: =per_game!R163 -> 3.8 | G163: =per_game!S163 -> 2 | H163: =per_game!X163 -> 6 | I163: =per_game!U163 -> 1 | J163: =per_game!T163 -> 0.3 | K163: F
C164: =Roster!C164 -> F | D164: 7.6 | E164: =per_game!B164 & "-" & D164 -> Richard Jefferson-7.6 | F164: =per_game!R164 -> 1.4 | G164: =per_game!S164 -> 1.2 | H164: =per_game!X164 -> 4.2 | I164: =per_game!U164 -> 0.3 | J164: =per_game!T164 -> 0.5 | K164: C
C165: =Roster!C165 -> G | D165: 9.7 | E165: =per_game!B165 & "-" & D165 -> Festus Ezeli-9.7 | F165: =per_game!R165 -> 4.6 | G165: =per_game!S165 -> 0.2 | H165: =per_game!X165 -> 3.5 | I165: =per_game!U165 -> 1 | J165: =per_game!T165 -> 0.4 | K165: F
C166: =Roster!C166 -> F | D166: 5.8 | E166: =per_game!B166 & "-" & D166 -> Draymond Green-5.8 | F166: =per_game!R166 -> 2.6 | G166: =per_game!S166 -> 0.4 | H166: =per_game!X166 -> 2.2 | I166: =per_game!U166 -> 0.1 | J166: =per_game!T166 -> 0.5 | K166: G
C167: =Roster!C167 -> F | D167: 2.7 | E167: =per_game!B167 & "-" & D167 -> Charles Jenkins-2.7 | F167: =per_game!R167 -> 0.4 | G167: =per_game!S167 -> 0.3 | H167: =per_game!X167 -> 1.9 | I167: =per_game!U167 -> 0 | J167: =per_game!T167 -> 0.1 | K167: C
C168: =Roster!C168 -> F | D168: 2 | E168: =per_game!B168 & "-" & D168 -> Jeremy Tyler-2 | F168: =per_game!R168 -> 0.2 | G168: =per_game!S168 -> 0 | H168: =per_game!X168 -> 1.6 | I168: =per_game!U168 -> 0 | J168: =per_game!T168 -> 0.2 | K168: C
C169: =Roster!C169 -> G | D169: 4.6 | E169: =per_game!B169 & "-" & D169 -> Andris Biedrins-4.6 | F169: =per_game!R169 -> 2.7 | G169: =per_game!S169 -> 0.4 | H169: =per_game!X169 -> 0.6 | I169: =per_game!U169 -> 0.5 | J169: =per_game!T169 -> 0.4 | K169: G
C170: =Roster!C170 -> C | D170: 1 | F170: =per_game!R170 -> 0.3 | G170: =per_game!S170 -> 0.1 | H170: =per_game!X170 -> 0 | I170: =per_game!U170 -> 0.3 | J170: =per_game!T170 -> 0.3
C171: =Roster!C171 -> 0 | D171: 0 | F171: =per_game!R171 -> 0 | G171: =per_game!S171 -> 0 | H171: =per_game!X171 -> 0 | I171: =per_game!U171 -> 0 | J171: =per_game!T171 -> 0 | K171: HOU
C172: =Roster!C172 -> 0 | D172: 0 | F172: =per_game!R172 -> 0 | G172: =per_game!S172 -> 0 | H172: =per_game!X172 -> 0 | I172: =per_game!U172 -> 0 | J172: =per_game!T172 -> 0 | K172: Rk
C173: =Roster!C173 -> Pos | E173: =per_game!B173 & "-" & D173 -> Player- | F173: =per_game!R173 -> TRB | G173: =per_game!S173 -> AST | H173: =per_game!X173 -> PTS | I173: =per_game!U173 -> BLK | J173: =per_game!T173 -> STL | K173: G
C174: =Roster!C174 -> C | D174: 35.9 | E174: =per_game!B174 & "-" & D174 -> James Harden-35.9 | F174: =per_game!R174 -> 4.1 | G174: =per_game!S174 -> 5.4 | H174: =per_game!X174 -> 24.1 | I174: =per_game!U174 -> 0.6 | J174: =per_game!T174 -> 1.7 | K174: F
C175: =Roster!C175 -> C | D175: 27.4 | E175: =per_game!B175 & "-" & D175 -> Chandler Parsons-27.4 | F175: =per_game!R175 -> 6.7 | G175: =per_game!S175 -> 3.5 | H175: =per_game!X175 -> 15.9 | I175: =per_game!U175 -> 0.2 | J175: =per_game!T175 -> 1.1 | K175: F
C176: =Roster!C176 -> G | D176: 22.1 | E176: =per_game!B176 & "-" & D176 -> Patrick Patterson-22.1 | F176: =per_game!R176 -> 5.3 | G176: =per_game!S176 -> 1 | H176: =per_game!X176 -> 14.6 | I176: =per_game!U176 -> 0.6 | J176: =per_game!T176 -> 0.6 | K176: C
C177: =Roster!C177 -> G | D177: 26.7 | E177: =per_game!B177 & "-" & D177 -> Omer Asik-26.7 | F177: =per_game!R177 -> 12.3 | G177: =per_game!S177 -> 1.3 | H177: =per_game!X177 -> 11 | I177: =per_game!U177 -> 1.3 | J177: =per_game!T177 -> 0.8 | K177: G
C178: =Roster!C178 -> G | D178: 24.3 | E178: =per_game!B178 & "-" & D178 -> Jeremy Lin-24.3 | F178: =per_game!R178 -> 4.4 | G178: =per_game!S178 -> 6.6 | H178: =per_game!X178 -> 10.9 | I178: =per_game!U178 -> 0.4 | J178: =per_game!T178 -> 2 | K178: F
C179: =Roster!C179 -> G | D179: 14.7 | E179: =per_game!B179 & "-" & D179 -> Marcus Morris-14.7 | F179: =per_game!R179 -> 4.2 | G179: =per_game!S179 -> 0.8 | H179: =per_game!X179 -> 8.7 | I179: =per_game!U179 -> 0.5 | J179: =per_game!T179 -> 0.5 | K179: G
C180: =Roster!C180 -> F | D180: 15.8 | E180: =per_game!B180 & "-" & D180 -> Carlos Delfino-15.8 | F180: =per_game!R180 -> 4 | G180: =per_game!S180 -> 2 | H180: =per_game!X180 -> 8.7 | I180: =per_game!U180 -> 0.1 | J180: =per_game!T180 -> 1 | K180: G
C181: =Roster!C181 -> G | D181: 10.7 | E181: =per_game!B181 & "-" & D181 -> Greg Smith-10.7 | F181: =per_game!R181 -> 3.5 | G181: =per_game!S181 -> 0.7 | H181: =per_game!X181 -> 5.8 | I181: =per_game!U181 -> 0.4 | J181: =per_game!T181 -> 0.3 | K181: G
C182: =Roster!C182 -> G | D182: 9.5 | E182: =per_game!B182 & "-" & D182 -> Toney Douglas-9.5 | F182: =per_game!R182 -> 1.2 | G182: =per_game!S182 -> 1.7 | H182: =per_game!X182 -> 5.7 | I182: =per_game!U182 -> 0 | J182: =per_game!T182 -> 0.9 | K182: C
C183: =Roster!C183 -> F | D183: 8.7 | E183: =per_game!B183 & "-" & D183 -> Daequan Cook-8.7 | F183: =per_game!R183 -> 1.6 | G183: =per_game!S183 -> 1 | H183: =per_game!X183 -> 5.3 | I183: =per_game!U183 -> 0.3 | J183: =per_game!T183 -> 0.5 | K183: F
C184: =Roster!C184 -> F | D184: 7 | E184: =per_game!B184 & "-" & D184 -> Terrence Jones-7 | F184: =per_game!R184 -> 2 | G184: =per_game!S184 -> 0.4 | H184: =per_game!X184 -> 3.6 | I184: =per_game!U184 -> 0.6 | J184: =per_game!T184 -> 0.4 | K184: C
C185: =Roster!C185 -> F | D185: 5.8 | E185: =per_game!B185 & "-" & D185 -> Cole Aldrich-5.8 | F185: =per_game!R185 -> 2.1 | G185: =per_game!S185 -> 0.3 | H185: =per_game!X185 -> 3 | I185: =per_game!U185 -> 0.3 | J185: =per_game!T185 -> 0.1 | K185: G
C186: =Roster!C186 -> F | D186: 3 | E186: =per_game!B186 & "-" & D186 -> Scott Machado-3 | F186: =per_game!R186 -> 0 | G186: =per_game!S186 -> 1 | H186: =per_game!X186 -> 2 | I186: =per_game!U186 -> 0 | J186: =per_game!T186 -> 0 | K186: F
C187: =Roster!C187 -> C | D187: 1.3 | F187: =per_game!R187 -> 0.3 | G187: =per_game!S187 -> 0 | H187: =per_game!X187 -> 1 | I187: =per_game!U187 -> 0 | J187: =per_game!T187 -> 0
C188: =Roster!C188 -> 0 | D188: 0 | F188: =per_game!R188 -> 0 | G188: =per_game!S188 -> 0 | H188: =per_game!X188 -> 0 | I188: =per_game!U188 -> 0 | J188: =per_game!T188 -> 0 | K188: IND
C189: =Roster!C189 -> 0 | D189: 0 | F189: =per_game!R189 -> 0 | G189: =per_game!S189 -> 0 | H189: =per_game!X189 -> 0 | I189: =per_game!U189 -> 0 | J189: =per_game!T189 -> 0 | K189: Rk
C190: =Roster!C190 -> Pos | E190: =per_game!B190 & "-" & D190 -> Player- | F190: =per_game!R190 -> TRB | G190: =per_game!S190 -> AST | H190: =per_game!X190 -> PTS | I190: =per_game!U190 -> BLK | J190: =per_game!T190 -> STL | K190: F
C191: =Roster!C191 -> G | D191: 30.4 | E191: =per_game!B191 & "-" & D191 -> David West-30.4 | F191: =per_game!R191 -> 8.3 | G191: =per_game!S191 -> 2.5 | H191: =per_game!X191 -> 17.8 | I191: =per_game!U191 -> 1.2 | J191: =per_game!T191 -> 0.6 | K191: F
C192: =Roster!C192 -> F | D192: 25.5 | E192: =per_game!B192 & "-" & D192 -> George Hill-25.5 | F192: =per_game!R192 -> 4.1 | G192: =per_game!S192 -> 5.3 | H192: =per_game!X192 -> 14.8 | I192: =per_game!U192 -> 0.4 | J192: =per_game!T192 -> 0.9 | K192: G
C193: =Roster!C193 -> F | D193: 25.2 | E193: =per_game!B193 & "-" & D193 -> Paul George-25.2 | F193: =per_game!R193 -> 6.5 | G193: =per_game!S193 -> 3.4 | H193: =per_game!X193 -> 13.5 | I193: =per_game!U193 -> 0.6 | J193: =per_game!T193 -> 1.2 | K193: C
C194: =Roster!C194 -> G | D194: 23.1 | E194: =per_game!B194 & "-" & D194 -> Roy Hibbert-23.1 | F194: =per_game!R194 -> 8.2 | G194: =per_game!S194 -> 1.4 | H194: =per_game!X194 -> 9.7 | I194: =per_game!U194 -> 3.1 | J194: =per_game!T194 -> 0.7 | K194: F
C195: =Roster!C195 -> F | D195: 13 | E195: =per_game!B195 & "-" & D195 -> Gerald Green-13 | F195: =per_game!R195 -> 4.1 | G195: =per_game!S195 -> 0.5 | H195: =per_game!X195 -> 7.8 | I195: =per_game!U195 -> 0.4 | J195: =per_game!T195 -> 0.2 | K195: G
C196: =Roster!C196 -> C | D196: =F196*$B$2+G196*$B$3+H196*$B$1+I196*$B$4+J196*$B$5 -> 13.3 | E196: =per_game!B196 & "-" & D196 -> Lance Stephenson-13.3 | F196: =per_game!R196 -> 2.9 | G196: =per_game!S196 -> 2.5 | H196: =per_game!X196 -> 7.2 | I196: =per_game!U196 -> 0.1 | J196: =per_game!T196 -> 0.6 | K196: F
C197: =Roster!C197 -> G | D197: 12 | E197: =per_game!B197 & "-" & D197 -> Tyler Hansbrough-12 | F197: =per_game!R197 -> 4.7 | G197: =per_game!S197 -> 0.2 | H197: =per_game!X197 -> 6.5 | I197: =per_game!U197 -> 0.2 | J197: =per_game!T197 -> 0.4 | K197: C
C198: =Roster!C198 -> G | D198: 10 | E198: =per_game!B198 & "-" & D198 -> Sam Young-10 | F198: =per_game!R198 -> 3.5 | G198: =per_game!S198 -> 0.9 | H198: =per_game!X198 -> 5 | I198: =per_game!U198 -> 0.1 | J198: =per_game!T198 -> 0.5 | K198: F
C199: =Roster!C199 -> C | D199: 9.9 | E199: =per_game!B199 & "-" & D199 -> Ian Mahinmi-9.9 | F199: =per_game!R199 -> 3.6 | G199: =per_game!S199 -> 0.2 | H199: =per_game!X199 -> 4.7 | I199: =per_game!U199 -> 1.1 | J199: =per_game!T199 -> 0.3 | K199: F
C200: =Roster!C200 -> F | D200: 6.6 | E200: =per_game!B200 & "-" & D200 -> Jeff Pendergraph-6.6 | F200: =per_game!R200 -> 2.3 | G200: =per_game!S200 -> 0.3 | H200: =per_game!X200 -> 3.7 | I200: =per_game!U200 -> 0.3 | J200: =per_game!T200 -> 0 | K200: G
... 310 more rows

Sheet 8 (hidden)
A1: Points | B1: ='Create Team'!B24 -> 1
A2: Rebounds | B2: ='Create Team'!B25 -> 1 | F2: FG% | G2: 3P% | H2: FT% | I2: TRB | J2: AST | K2: STL | L2: BLK | M2: PTS
A3: Assists | B3: ='Create Team'!B26 -> 1 | C3: =Roster!C3 -> G | D3: =F3*$B$6+G3*$B$8+H3*$B$7+I3*$B$2+J3*$B$3+K3*$B$5+L3*$B$4+M3*$B$1 -> 32.479 | E3: =per_game!B3 & "-" & D3 -> Josh Smith-32.479 | F3: =per_game!I3 -> 0.444 | G3: =per_game!L3 -> 0.357 | H3: =per_game!O3 -> 0.478 | I3: =per_game!R3 -> 7.6 | J3: =per_game!S3 -> 3.7 | K3: =per_game!T3 -> 1.4 | L3: =per_game!U3 -> 2.4 | M3: =per_game!X3 -> 16.1 | N3: F
A4: Blocks | B4: ='Create Team'!B27 -> 1 | C4: =Roster!C4 -> C | D4: 31.558 | E4: =per_game!B4 & "-" & D4 -> Al Horford-31.558 | F4: =per_game!I4 -> 0.535 | G4: =per_game!L4 -> 0 | H4: =per_game!O4 -> 0.523 | I4: =per_game!R4 -> 9.5 | J4: =per_game!S4 -> 3.5 | K4: =per_game!T4 -> 0.5 | L4: =per_game!U4 -> 1.1 | M4: =per_game!X4 -> 15.9 | N4: F
A5: Steals | B5: ='Create Team'!B28 -> 1 | C5: =Roster!C5 -> G | D5: 22.214 | E5: =per_game!B5 & "-" & D5 -> Louis Williams-22.214 | F5: =per_game!I5 -> 0.423 | G5: =per_game!L5 -> 0.318 | H5: =per_game!O5 -> 0.873 | I5: =per_game!R5 -> 2 | J5: =per_game!S5 -> 3.3 | K5: =per_game!T5 -> 1.1 | L5: =per_game!U5 -> 0.3 | M5: =per_game!X5 -> 13.9 | N5: G
A6: FG % | B6: ='Create Team'!B29 -> 1 | C6: =Roster!C6 -> F | D6: 27.088 | E6: =per_game!B6 & "-" & D6 -> Jeff Teague-27.088 | F6: =per_game!I6 -> 0.466 | G6: =per_game!L6 -> 0.455 | H6: =per_game!O6 -> 0.867 | I6: =per_game!R6 -> 2.4 | J6: =per_game!S6 -> 7.1 | K6: =per_game!T6 -> 1.8 | L6: =per_game!U6 -> 0.4 | M6: =per_game!X6 -> 13.6 | N6: G
A7: FT % | B7: ='Create Team'!B30 -> 1 | C7: =Roster!C7 -> F | D7: 19.204 | E7: =per_game!B7 & "-" & D7 -> Kyle Korver-19.204 | F7: =per_game!I7 -> 0.427 | G7: =per_game!L7 -> 0.42 | H7: =per_game!O7 -> 0.857 | I7: =per_game!R7 -> 3.7 | J7: =per_game!S7 -> 1.6 | K7: =per_game!T7 -> 1 | L7: =per_game!U7 -> 0.4 | M7: =per_game!X7 -> 10.8 | N7: F
A8: 3 pt % | B8: ='Create Team'!B31 -> 1 | C8: =Roster!C8 -> G | D8: 18.027 | E8: =per_game!B8 & "-" & D8 -> Zaza Pachulia-18.027 | F8: =per_game!I8 -> 0.5 | G8: =per_game!L8 -> 0 | H8: =per_game!O8 -> 0.727 | I8: =per_game!R8 -> 7.1 | J8: =per_game!S8 -> 1.6 | K8: =per_game!T8 -> 0.8 | L8: =per_game!U8 -> 0.4 | M8: =per_game!X8 -> 6.9 | N8: F
C9: =Roster!C9 -> C | D9: 13.672 | E9: =per_game!B9 & "-" & D9 -> Devin Harris-13.672 | F9: =per_game!I9 -> 0.411 | G9: =per_game!L9 -> 0.314 | H9: =per_game!O9 -> 0.647 | I9: =per_game!R9 -> 1.6 | J9: =per_game!S9 -> 2.5 | K9: =per_game!T9 -> 1 | L9: =per_game!U9 -> 0.4 | M9: =per_game!X9 -> 6.8 | N9: G
C10: =Roster!C10 -> C | D10: 12.2 | E10: =per_game!B10 & "-" & D10 -> DeShawn Stevenson-12.2 | F10: =per_game!I10 -> 0.4 | G10: =per_game!L10 -> 0.4 | H10: =per_game!O10 -> 0.4 | I10: =per_game!R10 -> 2.7 | J10: =per_game!S10 -> 1.1 | K10: =per_game!T10 -> 0.5 | L10: =per_game!U10 -> 0.3 | M10: =per_game!X10 -> 6.4 | N10: G
C11: =Roster!C11 -> F | D11: 9.088 | E11: =per_game!B11 & "-" & D11 -> Anthony Morrow-9.088 | F11: =per_game!I11 -> 0.48 | G11: =per_game!L11 -> 0.533 | H11: =per_game!O11 -> 0.875 | I11: =per_game!R11 -> 0.6 | J11: =per_game!S11 -> 0.1 | K11: =per_game!T11 -> 0.7 | L11: =per_game!U11 -> 0.1 | M11: =per_game!X11 -> 5.7 | N11: F
C12: =Roster!C12 -> F | D12: 10.951 | E12: =per_game!B12 & "-" & D12 -> Ivan Johnson-10.951 | F12: =per_game!I12 -> 0.651 | G12: =per_game!L12 -> 0.5 | H12: =per_game!O12 -> 0.4 | I12: =per_game!R12 -> 3.1 | J12: =per_game!S12 -> 0.3 | K12: =per_game!T12 -> 0.8 | L12: =per_game!U12 -> 0.1 | M12: =per_game!X12 -> 5.1 | N12: F
C13: =Roster!C13 -> G | D13: 7.249 | E13: =per_game!B13 & "-" & D13 -> Anthony Tolliver-7.249 | F13: =per_game!I13 -> 0.273 | G13: =per_game!L13 -> 0.176 | H13: =per_game!O13 -> 0.8 | I13: =per_game!R13 -> 2.3 | J13: =per_game!S13 -> 0.1 | K13: =per_game!T13 -> 0.5 | L13: =per_game!U13 -> 0 | M13: =per_game!X13 -> 3.1 | N13: C
C14: =Roster!C14 -> G | D14: 3.786 | E14: =per_game!B14 & "-" & D14 -> John Jenkins-3.786 | F14: =per_game!I14 -> 0.286 | G14: =per_game!L14 -> 0 | H14: =per_game!O14 -> 1 | I14: =per_game!R14 -> 1 | J14: =per_game!S14 -> 0 | K14: =per_game!T14 -> 0 | L14: =per_game!U14 -> 0 | M14: =per_game!X14 -> 1.5 | N14: F
C15: =Roster!C15 -> C | D15: 1.367 | E15: =per_game!B15 & "-" & D15 -> Mike Scott-1.367 | F15: =per_game!I15 -> 0.167 | G15: =per_game!L15 -> 0 | H15: =per_game!O15 -> 0 | I15: =per_game!R15 -> 0.8 | J15: =per_game!S15 -> 0 | K15: =per_game!T15 -> 0 | L15: =per_game!U15 -> 0 | M15: =per_game!X15 -> 0.4 | N15: F-C
C16: =Roster!C16 -> G | D16: 0 | E16: =per_game!B16 & "-" & D16 -> Johan Petro-0 | F16: =per_game!I16 -> 0 | G16: =per_game!L16 -> 0 | H16: =per_game!O16 -> 0 | I16: =per_game!R16 -> 0 | J16: =per_game!S16 -> 0 | K16: =per_game!T16 -> 0 | L16: =per_game!U16 -> 0 | M16: =per_game!X16 -> 0
C17: =Roster!C17 -> 0 | D17: 0 | F17: =per_game!I17 -> 0 | G17: =per_game!L17 -> 0 | H17: =per_game!O17 -> 0 | I17: =per_game!R17 -> 0 | J17: =per_game!S17 -> 0 | K17: =per_game!T17 -> 0 | L17: =per_game!U17 -> 0 | M17: =per_game!X17 -> 0 | N17: BRK
C18: =Roster!C18 -> 0 | D18: 0 | F18: =per_game!I18 -> 0 | G18: =per_game!L18 -> 0 | H18: =per_game!O18 -> 0 | I18: =per_game!R18 -> 0 | J18: =per_game!S18 -> 0 | K18: =per_game!T18 -> 0 | L18: =per_game!U18 -> 0 | M18: =per_game!X18 -> 0 | N18: Rk
C19: =Roster!C19 -> Pos | F19: =per_game!I19 -> FG% | G19: =per_game!L19 -> 3P% | H19: =per_game!O19 -> FT% | I19: =per_game!R19 -> TRB | J19: =per_game!S19 -> AST | K19: =per_game!T19 -> STL | L19: =per_game!U19 -> BLK | M19: =per_game!X19 -> PTS | N19: G
C20: =Roster!C20 -> G | D20: 31.549 | E20: =per_game!B20 & "-" & D20 -> Paul Pierce-31.549 | F20: =per_game!I20 -> 0.418 | G20: =per_game!L20 -> 0.395 | H20: =per_game!O20 -> 0.836 | I20: =per_game!R20 -> 5.7 | J20: =per_game!S20 -> 3.2 | K20: =per_game!T20 -> 1.5 | L20: =per_game!U20 -> 0.3 | M20: =per_game!X20 -> 19.2 | N20: C
C21: =Roster!C21 -> F | D21: 27.825 | E21: =per_game!B21 & "-" & D21 -> Kevin Garnett-27.825 | F21: =per_game!I21 -> 0.522 | G21: =per_game!L21 -> 0 | H21: =per_game!O21 -> 0.803 | I21: =per_game!R21 -> 7.4 | J21: =per_game!S21 -> 1.9 | K21: =per_game!T21 -> 0.8 | L21: =per_game!U21 -> 0.8 | M21: =per_game!X21 -> 15.6 | N21: G
C22: =Roster!C22 -> C | D22: 33.735 | E22: =per_game!B22 & "-" & D22 -> Rajon Rondo-33.735 | F22: =per_game!I22 -> 0.506 | G22: =per_game!L22 -> 0.316 | H22: =per_game!O22 -> 0.613 | I22: =per_game!R22 -> 4.6 | J22: =per_game!S22 -> 12.9 | K22: =per_game!T22 -> 1.9 | L22: =per_game!U22 -> 0 | M22: =per_game!X22 -> 12.9 | N22: F
C23: =Roster!C23 -> F | D23: 18.74 | E23: =per_game!B23 & "-" & D23 -> Jason Terry-18.74 | F23: =per_game!I23 -> 0.483 | G23: =per_game!L23 -> 0.382 | H23: =per_game!O23 -> 0.875 | I23: =per_game!R23 -> 1.8 | J23: =per_game!S23 -> 2.3 | K23: =per_game!T23 -> 1.1 | L23: =per_game!U23 -> 0.1 | M23: =per_game!X23 -> 11.7 | N23: F
C24: =Roster!C24 -> F | D24: 18.425 | E24: =per_game!B24 & "-" & D24 -> Brandon Bass-18.425 | F24: =per_game!I24 -> 0.443 | G24: =per_game!L24 -> 0 | H24: =per_game!O24 -> 0.882 | I24: =per_game!R24 -> 5.4 | J24: =per_game!S24 -> 0.9 | K24: =per_game!T24 -> 0.5 | L24: =per_game!U24 -> 0.8 | M24: =per_game!X24 -> 9.5 | N24: G-F
C25: =Roster!C25 -> F | D25: 15.023 | E25: =per_game!B25 & "-" & D25 -> Jeff Green-15.023 | F25: =per_game!I25 -> 0.434 | G25: =per_game!L25 -> 0.333 | H25: =per_game!O25 -> 0.756 | I25: =per_game!R25 -> 2.8 | J25: =per_game!S25 -> 0.7 | K25: =per_game!T25 -> 0.6 | L25: =per_game!U25 -> 0.5 | M25: =per_game!X25 -> 8.9 | N25: G
C26: =Roster!C26 -> G | D26: 11.1 | E26: =per_game!B26 & "-" & D26 -> Leandro Barbosa-11.1 | F26: =per_game!I26 -> 0.444 | G26: =per_game!L26 -> 0.417 | H26: =per_game!O26 -> 0.739 | I26: =per_game!R26 -> 0.9 | J26: =per_game!S26 -> 1.5 | K26: =per_game!T26 -> 0.5 | L26: =per_game!U26 -> 0.3 | M26: =per_game!X26 -> 6.3 | N26: F
C27: =Roster!C27 -> F-C | D27: 12.602 | E27: =per_game!B27 & "-" & D27 -> Courtney Lee-12.602 | F27: =per_game!I27 -> 0.462 | G27: =per_game!L27 -> 0.24 | H27: =per_game!O27 -> 1 | I27: =per_game!R27 -> 2.5 | J27: =per_game!S27 -> 1.5 | K27: =per_game!T27 -> 0.9 | L27: =per_game!U27 -> 0.1 | M27: =per_game!X27 -> 5.9 | N27: G-F
C28: =Roster!C28 -> F | D28: 14.029 | E28: =per_game!B28 & "-" & D28 -> Jared Sullinger-14.029 | F28: =per_game!I28 -> 0.506 | G28: =per_game!L28 -> 1 | H28: =per_game!O28 -> 0.923 | I28: =per_game!R28 -> 4.6 | J28: =per_game!S28 -> 0.6 | K28: =per_game!T28 -> 0.4 | L28: =per_game!U28 -> 0.5 | M28: =per_game!X28 -> 5.5 | N28: F
C29: =Roster!C29 -> G | D29: 8.765 | E29: =per_game!B29 & "-" & D29 -> Chris Wilcox-8.765 | F29: =per_game!I29 -> 0.703 | G29: =per_game!L29 -> 0 | H29: =per_game!O29 -> 0.762 | I29: =per_game!R29 -> 2.1 | J29: =per_game!S29 -> 0.3 | K29: =per_game!T29 -> 0.3 | L29: =per_game!U29 -> 0.3 | M29: =per_game!X29 -> 4.3 | N29: G-F
C30: =Roster!C30 -> F | D30: 3 | E30: =per_game!B30 & "-" & D30 -> Kris Joseph-3 | F30: =per_game!I30 -> 0 | G30: =per_game!L30 -> 0 | H30: =per_game!O30 -> 1 | I30: =per_game!R30 -> 0.5 | J30: =per_game!S30 -> 0.5 | K30: =per_game!T30 -> 0 | L30: =per_game!U30 -> 0 | M30: =per_game!X30 -> 1 | N30: F
C31: =Roster!C31 -> G | D31: 3.85 | E31: =per_game!B31 & "-" & D31 -> Jason Collins-3.85 | F31: =per_game!I31 -> 0.25 | G31: =per_game!L31 -> 0 | H31: =per_game!O31 -> 0 | I31: =per_game!R31 -> 2.3 | J31: =per_game!S31 -> 0 | K31: =per_game!T31 -> 0.5 | L31: =per_game!U31 -> 0.3 | M31: =per_game!X31 -> 0.5 | N31: F
C32: =Roster!C32 -> F | D32: 1 | E32: =per_game!B32 & "-" & D32 -> Darko Milicic-1 | F32: =per_game!I32 -> 0 | G32: =per_game!L32 -> 0 | H32: =per_game!O32 -> 0 | I32: =per_game!R32 -> 1 | J32: =per_game!S32 -> 0 | K32: =per_game!T32 -> 0 | L32: =per_game!U32 -> 0 | M32: =per_game!X32 -> 0 | N32: G
C33: =Roster!C33 -> 0 | D33: 0 | F33: =per_game!I33 -> 0 | G33: =per_game!L33 -> 0 | H33: =per_game!O33 -> 0 | I33: =per_game!R33 -> 0 | J33: =per_game!S33 -> 0 | K33: =per_game!T33 -> 0 | L33: =per_game!U33 -> 0 | M33: =per_game!X33 -> 0 | N33: G-F
C34: =Roster!C34 -> 0 | D34: 0 | F34: =per_game!I34 -> 0 | G34: =per_game!L34 -> 0 | H34: =per_game!O34 -> 0 | I34: =per_game!R34 -> 0 | J34: =per_game!S34 -> 0 | K34: =per_game!T34 -> 0 | L34: =per_game!U34 -> 0 | M34: =per_game!X34 -> 0
C35: =Roster!C35 -> Pos | F35: =per_game!I35 -> FG% | G35: =per_game!L35 -> 3P% | H35: =per_game!O35 -> FT% | I35: =per_game!R35 -> TRB | J35: =per_game!S35 -> AST | K35: =per_game!T35 -> STL | L35: =per_game!U35 -> BLK | M35: =per_game!X35 -> PTS | N35: CHA
C36: =Roster!C36 -> F | D36: 30.272 | E36: =per_game!B36 & "-" & D36 -> Brook Lopez-30.272 | F36: =per_game!I36 -> 0.534 | G36: =per_game!L36 -> 0 | H36: =per_game!O36 -> 0.638 | I36: =per_game!R36 -> 6.8 | J36: =per_game!S36 -> 0.8 | K36: =per_game!T36 -> 0.5 | L36: =per_game!U36 -> 2.5 | M36: =per_game!X36 -> 18.5 | N36: Rk
C37: =Roster!C37 -> G-F | D37: 24.552 | E37: =per_game!B37 & "-" & D37 -> Joe Johnson-24.552 | F37: =per_game!I37 -> 0.409 | G37: =per_game!L37 -> 0.363 | H37: =per_game!O37 -> 0.78 | I37: =per_game!R37 -> 2.8 | J37: =per_game!S37 -> 3.8 | K37: =per_game!T37 -> 0.6 | L37: =per_game!U37 -> 0.2 | M37: =per_game!X37 -> 15.6 | N37: G
C38: =Roster!C38 -> G-F | D38: 30.488 | E38: =per_game!B38 & "-" & D38 -> Deron Williams-30.488 | F38: =per_game!I38 -> 0.382 | G38: =per_game!L38 -> 0.268 | H38: =per_game!O38 -> 0.838 | I38: =per_game!R38 -> 3 | J38: =per_game!S38 -> 8.9 | K38: =per_game!T38 -> 1.1 | L38: =per_game!U38 -> 0.6 | M38: =per_game!X38 -> 15.4 | N38: G
C39: =Roster!C39 -> G-F | D39: 19.317 | E39: =per_game!B39 & "-" & D39 -> Andray Blatche-19.317 | F39: =per_game!I39 -> 0.467 | G39: =per_game!L39 -> 0 | H39: =per_game!O39 -> 0.75 | I39: =per_game!R39 -> 5.8 | J39: =per_game!S39 -> 1.1 | K39: =per_game!T39 -> 0.5 | L39: =per_game!U39 -> 0.6 | M39: =per_game!X39 -> 10.1 | N39: G
C40: =Roster!C40 -> F | D40: 19.76 | E40: =per_game!B40 & "-" & D40 -> Gerald Wallace-19.76 | F40: =per_game!I40 -> 0.427 | G40: =per_game!L40 -> 0.333 | H40: =per_game!O40 -> 0.5 | I40: =per_game!R40 -> 4.1 | J40: =per_game!S40 -> 2.4 | K40: =per_game!T40 -> 1.9 | L40: =per_game!U40 -> 0.7 | M40: =per_game!X40 -> 9.4 | N40: G
C41: =Roster!C41 -> F | D41: 19.308 | E41: =per_game!B41 & "-" & D41 -> Kris Humphries-19.308 | F41: =per_game!I41 -> 0.476 | G41: =per_game!L41 -> 0 | H41: =per_game!O41 -> 0.732 | I41: =per_game!R41 -> 8.1 | J41: =per_game!S41 -> 0.6 | K41: =per_game!T41 -> 0.4 | L41: =per_game!U41 -> 0.9 | M41: =per_game!X41 -> 8.1 | N41: C
C42: =Roster!C42 -> G | D42: 12.117 | E42: =per_game!B42 & "-" & D42 -> Jerry Stackhouse-12.117 | F42: =per_game!I42 -> 0.491 | G42: =per_game!L42 -> 0.469 | H42: =per_game!O42 -> 0.857 | I42: =per_game!R42 -> 1.4 | J42: =per_game!S42 -> 0.8 | K42: =per_game!T42 -> 0.6 | L42: =per_game!U42 -> 0.2 | M42: =per_game!X42 -> 7.3 | N42: F
C43: =Roster!C43 -> C | D43: 13.044 | E43: =per_game!B43 & "-" & D43 -> C.J. Watson-13.044 | F43: =per_game!I43 -> 0.379 | G43: =per_game!L43 -> 0.339 | H43: =per_game!O43 -> 0.826 | I43: =per_game!R43 -> 1.4 | J43: =per_game!S43 -> 1.8 | K43: =per_game!T43 -> 0.8 | L43: =per_game!U43 -> 0.2 | M43: =per_game!X43 -> 7.3 | N43: C
C44: =Roster!C44 -> F | D44: 12.302 | E44: =per_game!B44 & "-" & D44 -> MarShon Brooks-12.302 | F44: =per_game!I44 -> 0.568 | G44: =per_game!L44 -> 0.667 | H44: =per_game!O44 -> 0.667 | I44: =per_game!R44 -> 1.7 | J44: =per_game!S44 -> 0.9 | K44: =per_game!T44 -> 0.6 | L44: =per_game!U44 -> 0.1 | M44: =per_game!X44 -> 7.1 | N44: F
C45: =Roster!C45 -> G-F | D45: 14.171 | E45: =per_game!B45 & "-" & D45 -> Reggie Evans-14.171 | F45: =per_game!I45 -> 0.577 | G45: =per_game!L45 -> 0 | H45: =per_game!O45 -> 0.594 | I45: =per_game!R45 -> 8.4 | J45: =per_game!S45 -> 0.7 | K45: =per_game!T45 -> 0.7 | L45: =per_game!U45 -> 0.1 | M45: =per_game!X45 -> 3.1 | N45: F
C46: =Roster!C46 -> G | D46: 6.895 | E46: =per_game!B46 & "-" & D46 -> Keith Bogans-6.895 | F46: =per_game!I46 -> 0.348 | G46: =per_game!L46 -> 0.314 | H46: =per_game!O46 -> 0.333 | I46: =per_game!R46 -> 1.4 | J46: =per_game!S46 -> 1.1 | K46: =per_game!T46 -> 0.3 | L46: =per_game!U46 -> 0 | M46: =per_game!X46 -> 3.1 | N46: F
C47: =Roster!C47 -> F | D47: 5.768 | E47: =per_game!B47 & "-" & D47 -> Mirza Teletovic-5.768 | F47: =per_game!I47 -> 0.318 | G47: =per_game!L47 -> 0.25 | H47: =per_game!O47 -> 0 | I47: =per_game!R47 -> 1.2 | J47: =per_game!S47 -> 0.7 | K47: =per_game!T47 -> 0.3 | L47: =per_game!U47 -> 0 | M47: =per_game!X47 -> 3 | N47: F
C48: =Roster!C48 -> F | D48: 4.9 | E48: =per_game!B48 & "-" & D48 -> Tornike Shengelia-4.9 | F48: =per_game!I48 -> 1 | G48: =per_game!L48 -> 1 | H48: =per_game!O48 -> 0.6 | I48: =per_game!R48 -> 0.3 | J48: =per_game!S48 -> 0 | K48: =per_game!T48 -> 0 | L48: =per_game!U48 -> 0 | M48: =per_game!X48 -> 2 | N48: C
C49: =Roster!C49 -> G | D49: 5.053 | E49: =per_game!B49 & "-" & D49 -> Josh Childress-5.053 | F49: =per_game!I49 -> 0.353 | G49: =per_game!L49 -> 0.5 | H49: =per_game!O49 -> 0.5 | I49: =per_game!R49 -> 1.4 | J49: =per_game!S49 -> 0.5 | K49: =per_game!T49 -> 0.2 | L49: =per_game!U49 -> 0.2 | M49: =per_game!X49 -> 1.4 | N49: G
C50: =Roster!C50 -> G | D50: 2.333 | E50: =per_game!B50 & "-" & D50 -> Tyshawn Taylor-2.333 | F50: =per_game!I50 -> 0.333 | G50: =per_game!L50 -> 0 | H50: =per_game!O50 -> 0.5 | I50: =per_game!R50 -> 0 | J50: =per_game!S50 -> 0.2 | K50: =per_game!T50 -> 0.3 | L50: =per_game!U50 -> 0 | M50: =per_game!X50 -> 1 | N50: G
C51: =Roster!C51 -> 0 | D51: 0 | F51: =per_game!I51 -> 0 | G51: =per_game!L51 -> 0 | H51: =per_game!O51 -> 0 | I51: =per_game!R51 -> 0 | J51: =per_game!S51 -> 0 | K51: =per_game!T51 -> 0 | L51: =per_game!U51 -> 0 | M51: =per_game!X51 -> 0
C52: =Roster!C52 -> 0 | D52: 0 | F52: =per_game!I52 -> 0 | G52: =per_game!L52 -> 0 | H52: =per_game!O52 -> 0 | I52: =per_game!R52 -> 0 | J52: =per_game!S52 -> 0 | K52: =per_game!T52 -> 0 | L52: =per_game!U52 -> 0 | M52: =per_game!X52 -> 0 | N52: CHI
C53: =Roster!C53 -> Pos | F53: =per_game!I53 -> FG% | G53: =per_game!L53 -> 3P% | H53: =per_game!O53 -> FT% | I53: =per_game!R53 -> TRB | J53: =per_game!S53 -> AST | K53: =per_game!T53 -> STL | L53: =per_game!U53 -> BLK | M53: =per_game!X53 -> PTS | N53: Rk
C54: =Roster!C54 -> F | D54: 30.463 | E54: =per_game!B54 & "-" & D54 -> Kemba Walker-30.463 | F54: =per_game!I54 -> 0.401 | G54: =per_game!L54 -> 0.265 | H54: =per_game!O54 -> 0.797 | I54: =per_game!R54 -> 3.9 | J54: =per_game!S54 -> 5.9 | K54: =per_game!T54 -> 2.1 | L54: =per_game!U54 -> 0.5 | M54: =per_game!X54 -> 16.6 | N54: F
C55: =Roster!C55 -> G | D55: 26.397 | E55: =per_game!B55 & "-" & D55 -> Ramon Sessions-26.397 | F55: =per_game!I55 -> 0.38 | G55: =per_game!L55 -> 0.2 | H55: =per_game!O55 -> 0.817 | I55: =per_game!R55 -> 3.8 | J55: =per_game!S55 -> 4.7 | K55: =per_game!T55 -> 0.9 | L55: =per_game!U55 -> 0 | M55: =per_game!X55 -> 15.6 | N55: C
C56: =Roster!C56 -> C | D56: 22.99 | E56: =per_game!B56 & "-" & D56 -> Ben Gordon-22.99 | F56: =per_game!I56 -> 0.451 | G56: =per_game!L56 -> 0.486 | H56: =per_game!O56 -> 0.853 | I56: =per_game!R56 -> 2.3 | J56: =per_game!S56 -> 2.9 | K56: =per_game!T56 -> 0.6 | L56: =per_game!U56 -> 0.4 | M56: =per_game!X56 -> 15 | N56: F-C
C57: =Roster!C57 -> G | D57: 25.817 | E57: =per_game!B57 & "-" & D57 -> Byron Mullens-25.817 | F57: =per_game!I57 -> 0.374 | G57: =per_game!L57 -> 0.286 | H57: =per_game!O57 -> 0.757 | I57: =per_game!R57 -> 8.4 | J57: =per_game!S57 -> 1.2 | K57: =per_game!T57 -> 1.1 | L57: =per_game!U57 -> 0.8 | M57: =per_game!X57 -> 12.9 | N57: G-F
C58: =Roster!C58 -> C | D58: 22.932 | E58: =per_game!B58 & "-" & D58 -> Michael Kidd-Gilchrist-22.932 | F58: =per_game!I58 -> 0.458 | G58: =per_game!L58 -> 0.5 | H58: =per_game!O58 -> 0.774 | I58: =per_game!R58 -> 6.3 | J58: =per_game!S58 -> 1.6 | K58: =per_game!T58 -> 1.1 | L58: =per_game!U58 -> 1.4 | M58: =per_game!X58 -> 10.8 | N58: G
C59: =Roster!C59 -> G | D59: 17.845 | E59: =per_game!B59 & "-" & D59 -> Gerald Henderson-17.845 | F59: =per_game!I59 -> 0.37 | G59: =per_game!L59 -> 0.5 | H59: =per_game!O59 -> 0.875 | I59: =per_game!R59 -> 1.7 | J59: =per_game!S59 -> 1.7 | K59: =per_game!T59 -> 2 | L59: =per_game!U59 -> 0.7 | M59: =per_game!X59 -> 10 | N59: F
C60: =Roster!C60 -> G | D60: 14.696 | E60: =per_game!B60 & "-" & D60 -> Jeff Taylor-14.696 | F60: =per_game!I60 -> 0.438 | G60: =per_game!L60 -> 0.385 | H60: =per_game!O60 -> 0.773 | I60: =per_game!R60 -> 2.4 | J60: =per_game!S60 -> 0.9 | K60: =per_game!T60 -> 1.2 | L60: =per_game!U60 -> 0.3 | M60: =per_game!X60 -> 8.3 | N60: G
C61: =Roster!C61 -> F | D61: 13.79 | E61: =per_game!B61 & "-" & D61 -> Tyrus Thomas-13.79 | F61: =per_game!I61 -> 0.34 | G61: =per_game!L61 -> 0 | H61: =per_game!O61 -> 0.85 | I61: =per_game!R61 -> 3.1 | J61: =per_game!S61 -> 1 | K61: =per_game!T61 -> 0.5 | L61: =per_game!U61 -> 1.4 | M61: =per_game!X61 -> 6.6 | N61: G
C62: =Roster!C62 -> C | D62: 16.349 | E62: =per_game!B62 & "-" & D62 -> Brendan Haywood-16.349 | F62: =per_game!I62 -> 0.549 | G62: =per_game!L62 -> 0 | H62: =per_game!O62 -> 0.5 | I62: =per_game!R62 -> 6.9 | J62: =per_game!S62 -> 0.7 | K62: =per_game!T62 -> 0.1 | L62: =per_game!U62 -> 1.1 | M62: =per_game!X62 -> 6.5 | N62: F
C63: =Roster!C63 -> G | D63: 12.609 | E63: =per_game!B63 & "-" & D63 -> Bismack Biyombo-12.609 | F63: =per_game!I63 -> 0.553 | G63: =per_game!L63 -> 0 | H63: =per_game!O63 -> 0.556 | I63: =per_game!R63 -> 5.1 | J63: =per_game!S63 -> 0.1 | K63: =per_game!T63 -> 0.3 | L63: =per_game!U63 -> 1.6 | M63: =per_game!X63 -> 4.4 | N63: G
C64: =Roster!C64 -> F | D64: 8.312 | E64: =per_game!B64 & "-" & D64 -> Reggie Williams-8.312 | F64: =per_game!I64 -> 0.462 | G64: =per_game!L64 -> 0.35 | H64: =per_game!O64 -> 1 | I64: =per_game!R64 -> 1.2 | J64: =per_game!S64 -> 0.5 | K64: =per_game!T64 -> 0.7 | L64: =per_game!U64 -> 0 | M64: =per_game!X64 -> 4.1 | N64: F
C65: =Roster!C65 -> F | D65: 5.583 | E65: =per_game!B65 & "-" & D65 -> Hakim Warrick-5.583 | F65: =per_game!I65 -> 0.133 | G65: =per_game!L65 -> 0 | H65: =per_game!O65 -> 0.75 | I65: =per_game!R65 -> 1.8 | J65: =per_game!S65 -> 0.2 | K65: =per_game!T65 -> 0.2 | L65: =per_game!U65 -> 0.3 | M65: =per_game!X65 -> 2.2 | N65: C
C66: =Roster!C66 -> G | D66: 3.481 | E66: =per_game!B66 & "-" & D66 -> Cory Higgins-3.481 | F66: =per_game!I66 -> 0.231 | G66: =per_game!L66 -> 0.25 | H66: =per_game!O66 -> 0 | I66: =per_game!R66 -> 0.4 | J66: =per_game!S66 -> 0.8 | K66: =per_game!T66 -> 0.4 | L66: =per_game!U66 -> 0 | M66: =per_game!X66 -> 1.4
C67: =Roster!C67 -> F | D67: =F67*$B$6+G67*$B$8+H67*$B$7+I67*$B$2+J67*$B$3+K67*$B$5+L67*$B$4+M67*$B$1 -> 3 | E67: =per_game!B67 & "-" & D67 -> DeSagana Diop-3 | F67: =per_game!I67 -> 0 | G67: =per_game!L67 -> 0 | H67: =per_game!O67 -> 0 | I67: =per_game!R67 -> 1.9 | J67: =per_game!S67 -> 0.3 | K67: =per_game!T67 -> 0.3 | L67: =per_game!U67 -> 0.5 | M67: =per_game!X67 -> 0 | N67: CLE
C68: =Roster!C68 -> F | D68: 1 | E68: =per_game!B68 & "-" & D68 -> Matt Carroll-1 | F68: =per_game!I68 -> 0 | G68: =per_game!L68 -> 0 | H68: =per_game!O68 -> 0 | I68: =per_game!R68 -> 0 | J68: =per_game!S68 -> 1 | K68: =per_game!T68 -> 0 | L68: =per_game!U68 -> 0 | M68: =per_game!X68 -> 0 | N68: Rk
C69: =Roster!C69 -> 0 | D69: 0 | F69: =per_game!I69 -> 0 | G69: =per_game!L69 -> 0 | H69: =per_game!O69 -> 0 | I69: =per_game!R69 -> 0 | J69: =per_game!S69 -> 0 | K69: =per_game!T69 -> 0 | L69: =per_game!U69 -> 0 | M69: =per_game!X69 -> 0 | N69: G
C70: =Roster!C70 -> 0 | D70: 0 | F70: =per_game!I70 -> 0 | G70: =per_game!L70 -> 0 | H70: =per_game!O70 -> 0 | I70: =per_game!R70 -> 0 | J70: =per_game!S70 -> 0 | K70: =per_game!T70 -> 0 | L70: =per_game!U70 -> 0 | M70: =per_game!X70 -> 0 | N70: F-C
C71: =Roster!C71 -> Pos | F71: =per_game!I71 -> FG% | G71: =per_game!L71 -> 3P% | H71: =per_game!O71 -> FT% | I71: =per_game!R71 -> TRB | J71: =per_game!S71 -> AST | K71: =per_game!T71 -> STL | L71: =per_game!U71 -> BLK | M71: =per_game!X71 -> PTS | N71: G
C72: =Roster!C72 -> G | D72: 30.977 | E72: =per_game!B72 & "-" & D72 -> Luol Deng-30.977 | F72: =per_game!I72 -> 0.462 | G72: =per_game!L72 -> 0.298 | H72: =per_game!O72 -> 0.817 | I72: =per_game!R72 -> 7.4 | J72: =per_game!S72 -> 2.7 | K72: =per_game!T72 -> 0.9 | L72: =per_game!U72 -> 0.3 | M72: =per_game!X72 -> 18.1 | N72: G
C73: =Roster!C73 -> F-C | D73: 21.16 | E73: =per_game!B73 & "-" & D73 -> Richard Hamilton-21.16 | F73: =per_game!I73 -> 0.455 | G73: =per_game!L73 -> 0.375 | H73: =per_game!O73 -> 0.93 | I73: =per_game!R73 -> 2.3 | J73: =per_game!S73 -> 2.3 | K73: =per_game!T73 -> 0.8 | L73: =per_game!U73 -> 0.1 | M73: =per_game!X73 -> 13.9 | N73: F
C74: =Roster!C74 -> F | D74: 27.561 | E74: =per_game!B74 & "-" & D74 -> Carlos Boozer-27.561 | F74: =per_game!I74 -> 0.454 | G74: =per_game!L74 -> 0 | H74: =per_game!O74 -> 0.707 | I74: =per_game!R74 -> 9.7 | J74: =per_game!S74 -> 1.9 | K74: =per_game!T74 -> 0.7 | L74: =per_game!U74 -> 0.4 | M74: =per_game!X74 -> 13.7 | N74: G
C75: =Roster!C75 -> F | D75: 32.35 | E75: =per_game!B75 & "-" & D75 -> Joakim Noah-32.35 | F75: =per_game!I75 -> 0.472 | G75: =per_game!L75 -> 0 | H75: =per_game!O75 -> 0.778 | I75: =per_game!R75 -> 9.9 | J75: =per_game!S75 -> 4.3 | K75: =per_game!T75 -> 1.4 | L75: =per_game!U75 -> 2.2 | M75: =per_game!X75 -> 13.3 | N75: F-C
C76: =Roster!C76 -> F | D76: 19.447 | E76: =per_game!B76 & "-" & D76 -> Nate Robinson-19.447 | F76: =per_game!I76 -> 0.468 | G76: =per_game!L76 -> 0.364 | H76: =per_game!O76 -> 0.815 | I76: =per_game!R76 -> 2.1 | J76: =per_game!S76 -> 3.6 | K76: =per_game!T76 -> 0.9 | L76: =per_game!U76 -> 0 | M76: =per_game!X76 -> 11.2 | N76: G
C77: =Roster!C77 -> G-F | D77: 15.921 | E77: =per_game!B77 & "-" & D77 -> Taj Gibson-15.921 | F77: =per_game!I77 -> 0.44 | G77: =per_game!L77 -> 0 | H77: =per_game!O77 -> 0.781 | I77: =per_game!R77 -> 4.9 | J77: =per_game!S77 -> 0.9 | K77: =per_game!T77 -> 0.6 | L77: =per_game!U77 -> 1.3 | M77: =per_game!X77 -> 7 | N77: F
C78: =Roster!C78 -> G | D78: 16.837 | E78: =per_game!B78 & "-" & D78 -> Kirk Hinrich-16.837 | F78: =per_game!I78 -> 0.322 | G78: =per_game!L78 -> 0.29 | H78: =per_game!O78 -> 0.625 | I78: =per_game!R78 -> 2.6 | J78: =per_game!S78 -> 5.6 | K78: =per_game!T78 -> 0.9 | L78: =per_game!U78 -> 0.3 | M78: =per_game!X78 -> 6.2 | N78: F
C79: =Roster!C79 -> C | D79: 10.811 | E79: =per_game!B79 & "-" & D79 -> Jimmy Butler-10.811 | F79: =per_game!I79 -> 0.529 | G79: =per_game!L79 -> 0.143 | H79: =per_game!O79 -> 0.839 | I79: =per_game!R79 -> 2.5 | J79: =per_game!S79 -> 0.7 | K79: =per_game!T79 -> 0.5 | L79: =per_game!U79 -> 0.2 | M79: =per_game!X79 -> 5.4 | N79: F
C80: =Roster!C80 -> C | D80: 8.77 | E80: =per_game!B80 & "-" & D80 -> Marco Belinelli-8.77 | F80: =per_game!I80 -> 0.368 | G80: =per_game!L80 -> 0.407 | H80: =per_game!O80 -> 0.895 | I80: =per_game!R80 -> 0.9 | J80: =per_game!S80 -> 0.7 | K80: =per_game!T80 -> 0.4 | L80: =per_game!U80 -> 0.1 | M80: =per_game!X80 -> 5 | N80: G
C81: =Roster!C81 -> F | D81: 2.542 | E81: =per_game!B81 & "-" & D81 -> Vladimir Radmanovic-2.542 | F81: =per_game!I81 -> 0.375 | G81: =per_game!L81 -> 0.167 | H81: =per_game!O81 -> 0 | I81: =per_game!R81 -> 0.4 | J81: =per_game!S81 -> 0.2 | K81: =per_game!T81 -> 0 | L81: =per_game!U81 -> 0 | M81: =per_game!X81 -> 1.4 | N81: G
C82: =Roster!C82 -> G | D82: 4.1 | E82: =per_game!B82 & "-" & D82 -> Marquis Teague-4.1 | F82: =per_game!I82 -> 0.25 | G82: =per_game!L82 -> 0 | H82: =per_game!O82 -> 0.75 | I82: =per_game!R82 -> 0.7 | J82: =per_game!S82 -> 1.2 | K82: =per_game!T82 -> 0 | L82: =per_game!U82 -> 0 | M82: =per_game!X82 -> 1.2 | N82: F
C83: =Roster!C83 -> G | D83: 4.218 | E83: =per_game!B83 & "-" & D83 -> Nazr Mohammed-4.218 | F83: =per_game!I83 -> 0.118 | G83: =per_game!L83 -> 0 | H83: =per_game!O83 -> 0.5 | I83: =per_game!R83 -> 1.9 | J83: =per_game!S83 -> 0.3 | K83: =per_game!T83 -> 0.2 | L83: =per_game!U83 -> 0.5 | M83: =per_game!X83 -> 0.7
C84: =Roster!C84 -> 0 | D84: 0 | F84: =per_game!I84 -> 0 | G84: =per_game!L84 -> 0 | H84: =per_game!O84 -> 0 | I84: =per_game!R84 -> 0 | J84: =per_game!S84 -> 0 | K84: =per_game!T84 -> 0 | L84: =per_game!U84 -> 0 | M84: =per_game!X84 -> 0 | N84: DAL
C85: =Roster!C85 -> 0 | D85: 0 | F85: =per_game!I85 -> 0 | G85: =per_game!L85 -> 0 | H85: =per_game!O85 -> 0 | I85: =per_game!R85 -> 0 | J85: =per_game!S85 -> 0 | K85: =per_game!T85 -> 0 | L85: =per_game!U85 -> 0 | M85: =per_game!X85 -> 0 | N85: Rk
C86: =Roster!C86 -> Pos | F86: =per_game!I86 -> FG% | G86: =per_game!L86 -> 3P% | H86: =per_game!O86 -> FT% | I86: =per_game!R86 -> TRB | J86: =per_game!S86 -> AST | K86: =per_game!T86 -> STL | L86: =per_game!U86 -> BLK | M86: =per_game!X86 -> PTS | N86: G
C87: =Roster!C87 -> F | D87: 35.279 | E87: =per_game!B87 & "-" & D87 -> Kyrie Irving-35.279 | F87: =per_game!I87 -> 0.463 | G87: =per_game!L87 -> 0.391 | H87: =per_game!O87 -> 0.825 | I87: =per_game!R87 -> 3.7 | J87: =per_game!S87 -> 5.6 | K87: =per_game!T87 -> 1.1 | L87: =per_game!U87 -> 0.3 | M87: =per_game!X87 -> 22.9 | N87: C
C88: =Roster!C88 -> G | D88: 23.798 | E88: =per_game!B88 & "-" & D88 -> Dion Waiters-23.798 | F88: =per_game!I88 -> 0.363 | G88: =per_game!L88 -> 0.355 | H88: =per_game!O88 -> 0.78 | I88: =per_game!R88 -> 2.3 | J88: =per_game!S88 -> 3.4 | K88: =per_game!T88 -> 1.2 | L88: =per_game!U88 -> 0.2 | M88: =per_game!X88 -> 15.2 | N88: G
C89: =Roster!C89 -> G | D89: 37 | E89: =per_game!B89 & "-" & D89 -> Anderson Varejao-37 | F89: =per_game!I89 -> 0.522 | G89: =per_game!L89 -> 0 | H89: =per_game!O89 -> 0.778 | I89: =per_game!R89 -> 15.4 | J89: =per_game!S89 -> 3.2 | K89: =per_game!T89 -> 1.5 | L89: =per_game!U89 -> 0.4 | M89: =per_game!X89 -> 15.2 | N89: G-F
C90: =Roster!C90 -> G | D90: 21.541 | E90: =per_game!B90 & "-" & D90 -> Alonzo Gee-21.541 | F90: =per_game!I90 -> 0.398 | G90: =per_game!L90 -> 0.298 | H90: =per_game!O90 -> 0.845 | I90: =per_game!R90 -> 3.7 | J90: =per_game!S90 -> 2.1 | K90: =per_game!T90 -> 1.7 | L90: =per_game!U90 -> 0.4 | M90: =per_game!X90 -> 12.1 | N90: F
C91: =Roster!C91 -> F | D91: 19.729 | E91: =per_game!B91 & "-" & D91 -> Jeremy Pargo-19.729 | F91: =per_game!I91 -> 0.421 | G91: =per_game!L91 -> 0.4 | H91: =per_game!O91 -> 0.708 | I91: =per_game!R91 -> 1.9 | J91: =per_game!S91 -> 3.8 | K91: =per_game!T91 -> 0.8 | L91: =per_game!U91 -> 0 | M91: =per_game!X91 -> 11.7 | N91: F
C92: =Roster!C92 -> G | D92: 20.633 | E92: =per_game!B92 & "-" & D92 -> Tristan Thompson-20.633 | F92: =per_game!I92 -> 0.445 | G92: =per_game!L92 -> 0 | H92: =per_game!O92 -> 0.588 | I92: =per_game!R92 -> 8.1 | J92: =per_game!S92 -> 1.2 | K92: =per_game!T92 -> 0.8 | L92: =per_game!U92 -> 0.6 | M92: =per_game!X92 -> 8.9 | N92: F
C93: =Roster!C93 -> G | D93: 14.959 | E93: =per_game!B93 & "-" & D93 -> Daniel Gibson-14.959 | F93: =per_game!I93 -> 0.389 | G93: =per_game!L93 -> 0.392 | H93: =per_game!O93 -> 0.778 | I93: =per_game!R93 -> 1.7 | J93: =per_game!S93 -> 2.1 | K93: =per_game!T93 -> 1 | L93: =per_game!U93 -> 0.1 | M93: =per_game!X93 -> 8.5 | N93: F
C94: =Roster!C94 -> F | D94: 14.295 | E94: =per_game!B94 & "-" & D94 -> Tyler Zeller-14.295 | F94: =per_game!I94 -> 0.447 | G94: =per_game!L94 -> 0 | H94: =per_game!O94 -> 0.548 | I94: =per_game!R94 -> 4.8 | J94: =per_game!S94 -> 0.9 | K94: =per_game!T94 -> 0.4 | L94: =per_game!U94 -> 0.6 | M94: =per_game!X94 -> 6.6 | N94: G
C95: =Roster!C95 -> G | D95: 11.778 | E95: =per_game!B95 & "-" & D95 -> Omri Casspi-11.778 | F95: =per_game!I95 -> 0.446 | G95: =per_game!L95 -> 0.5 | H95: =per_game!O95 -> 0.632 | I95: =per_game!R95 -> 2.5 | J95: =per_game!S95 -> 0.4 | K95: =per_game!T95 -> 0.6 | L95: =per_game!U95 -> 0.4 | M95: =per_game!X95 -> 6.3 | N95: C
C96: =Roster!C96 -> F | D96: 10.659 | E96: =per_game!B96 & "-" & D96 -> C.J. Miles-10.659 | F96: =per_game!I96 -> 0.303 | G96: =per_game!L96 -> 0.256 | H96: =per_game!O96 -> 1 | I96: =per_game!R96 -> 2.1 | J96: =per_game!S96 -> 0.7 | K96: =per_game!T96 -> 0.4 | L96: =per_game!U96 -> 0.1 | M96: =per_game!X96 -> 5.8 | N96: F
C97: =Roster!C97 -> F-C | D97: 8.089 | E97: =per_game!B97 & "-" & D97 -> Donald Sloan-8.089 | F97: =per_game!I97 -> 0.366 | G97: =per_game!L97 -> 0.273 | H97: =per_game!O97 -> 0.75 | I97: =per_game!R97 -> 1.1 | J97: =per_game!S97 -> 2 | K97: =per_game!T97 -> 0.1 | L97: =per_game!U97 -> 0 | M97: =per_game!X97 -> 3.5 | N97: C
C98: =Roster!C98 -> G | D98: 6.86 | E98: =per_game!B98 & "-" & D98 -> Samardo Samuels-6.86 | F98: =per_game!I98 -> 0.389 | G98: =per_game!L98 -> 0 | H98: =per_game!O98 -> 0.571 | I98: =per_game!R98 -> 1.7 | J98: =per_game!S98 -> 0.4 | K98: =per_game!T98 -> 0.2 | L98: =per_game!U98 -> 0.3 | M98: =per_game!X98 -> 3.3 | N98: G
C99: =Roster!C99 -> F | D99: 6.666 | E99: =per_game!B99 & "-" & D99 -> Jon Leuer-6.666 | F99: =per_game!I99 -> 0.333 | G99: =per_game!L99 -> 0 | H99: =per_game!O99 -> 0.333 | I99: =per_game!R99 -> 2 | J99: =per_game!S99 -> 0.6 | K99: =per_game!T99 -> 0.2 | L99: =per_game!U99 -> 0 | M99: =per_game!X99 -> 3.2 | N99: G
C100: =Roster!C100 -> F-C | D100: 1.943 | E100: =per_game!B100 & "-" & D100 -> Luke Walton-1.943 | F100: =per_game!I100 -> 0.143 | G100: =per_game!L100 -> 0 | H100: =per_game!O100 -> 0 | I100: =per_game!R100 -> 0.6 | J100: =per_game!S100 -> 0.4 | K100: =per_game!T100 -> 0.4 | L100: =per_game!U100 -> 0 | M100: =per_game!X100 -> 0.4 | N100: G
C101: =Roster!C101 -> 0 | D101: 0 | F101: =per_game!I101 -> 0 | G101: =per_game!L101 -> 0 | H101: =per_game!O101 -> 0 | I101: =per_game!R101 -> 0 | J101: =per_game!S101 -> 0 | K101: =per_game!T101 -> 0 | L101: =per_game!U101 -> 0 | M101: =per_game!X101 -> 0
C102: =Roster!C102 -> 0 | D102: 0 | F102: =per_game!I102 -> 0 | G102: =per_game!L102 -> 0 | H102: =per_game!O102 -> 0 | I102: =per_game!R102 -> 0 | J102: =per_game!S102 -> 0 | K102: =per_game!T102 -> 0 | L102: =per_game!U102 -> 0 | M102: =per_game!X102 -> 0 | N102: DEN
C103: =Roster!C103 -> Pos | F103: =per_game!I103 -> FG% | G103: =per_game!L103 -> 3P% | H103: =per_game!O103 -> FT% | I103: =per_game!R103 -> TRB | J103: =per_game!S103 -> AST | K103: =per_game!T103 -> STL | L103: =per_game!U103 -> BLK | M103: =per_game!X103 -> PTS | N103: Rk
C104: =Roster!C104 -> G | D104: 29.651 | E104: =per_game!B104 & "-" & D104 -> O.J. Mayo-29.651 | F104: =per_game!I104 -> 0.476 | G104: =per_game!L104 -> 0.527 | H104: =per_game!O104 -> 0.848 | I104: =per_game!R104 -> 3.5 | J104: =per_game!S104 -> 3.2 | K104: =per_game!T104 -> 0.7 | L104: =per_game!U104 -> 0.2 | M104: =per_game!X104 -> 20.2 | N104: G-F
C105: =Roster!C105 -> F | D105: 24.129 | E105: =per_game!B105 & "-" & D105 -> Chris Kaman-24.129 | F105: =per_game!I105 -> 0.518 | G105: =per_game!L105 -> 0 | H105: =per_game!O105 -> 0.811 | I105: =per_game!R105 -> 6.9 | J105: =per_game!S105 -> 1 | K105: =per_game!T105 -> 0.2 | L105: =per_game!U105 -> 1.1 | M105: =per_game!X105 -> 13.6 | N105: F
C106: =Roster!C106 -> G-F | D106: 20.8 | E106: =per_game!B106 & "-" & D106 -> Vince Carter-20.8 | F106: =per_game!I106 -> 0.426 | G106: =per_game!L106 -> 0.424 | H106: =per_game!O106 -> 0.75 | I106: =per_game!R106 -> 3.1 | J106: =per_game!S106 -> 1.7 | K106: =per_game!T106 -> 0.8 | L106: =per_game!U106 -> 0.5 | M106: =per_game!X106 -> 13.1 | N106: F
C107: =Roster!C107 -> G | D107: 24.156 | E107: =per_game!B107 & "-" & D107 -> Darren Collison-24.156 | F107: =per_game!I107 -> 0.436 | G107: =per_game!L107 -> 0.333 | H107: =per_game!O107 -> 0.887 | I107: =per_game!R107 -> 2.3 | J107: =per_game!S107 -> 6.4 | K107: =per_game!T107 -> 1.4 | L107: =per_game!U107 -> 0 | M107: =per_game!X107 -> 12.4 | N107: G
C108: =Roster!C108 -> F | D108: 22.651 | E108: =per_game!B108 & "-" & D108 -> Shawn Marion-22.651 | F108: =per_game!I108 -> 0.484 | G108: =per_game!L108 -> 0.385 | H108: =per_game!O108 -> 0.882 | I108: =per_game!R108 -> 7.4 | J108: =per_game!S108 -> 2.8 | K108: =per_game!T108 -> 0.8 | L108: =per_game!U108 -> 0.7 | M108: =per_game!X108 -> 9.2 | N108: C
C109: =Roster!C109 -> G | D109: 15.283 | E109: =per_game!B109 & "-" & D109 -> Brandan Wright-15.283 | F109: =per_game!I109 -> 0.647 | G109: =per_game!L109 -> 0 | H109: =per_game!O109 -> 0.636 | I109: =per_game!R109 -> 3.3 | J109: =per_game!S109 -> 0.8 | K109: =per_game!T109 -> 0.5 | L109: =per_game!U109 -> 0.9 | M109: =per_game!X109 -> 8.5 | N109: G
C110: =Roster!C110 -> C | D110: 18.29 | E110: =per_game!B110 & "-" & D110 -> Elton Brand-18.29 | F110: =per_game!I110 -> 0.39 | G110: =per_game!L110 -> 0 | H110: =per_game!O110 -> 0.8 | I110: =per_game!R110 -> 6.4 | J110: =per_game!S110 -> 1.6 | K110: =per_game!T110 -> 0.8 | L110: =per_game!U110 -> 1.4 | M110: =per_game!X110 -> 6.9 | N110: F
C111: =Roster!C111 -> G | D111: 13.321 | E111: =per_game!B111 & "-" & D111 -> Jae Crowder-13.321 | F111: =per_game!I111 -> 0.423 | G111: =per_game!L111 -> 0.327 | H111: =per_game!O111 -> 0.471 | I111: =per_game!R111 -> 2.7 | J111: =per_game!S111 -> 1.2 | K111: =per_game!T111 -> 1.1 | L111: =per_game!U111 -> 0.3 | M111: =per_game!X111 -> 6.8 | N111: C
C112: =Roster!C112 -> C | D112: 11.284 | E112: =per_game!B112 & "-" & D112 -> Troy Murphy-11.284 | F112: =per_game!I112 -> 0.361 | G112: =per_game!L112 -> 0.314 | H112: =per_game!O112 -> 0.909 | I112: =per_game!R112 -> 3.5 | J112: =per_game!S112 -> 0.5 | K112: =per_game!T112 -> 0.7 | L112: =per_game!U112 -> 0.4 | M112: =per_game!X112 -> 4.6 | N112: F
C113: =Roster!C113 -> G | D113: 7.25 | E113: =per_game!B113 & "-" & D113 -> Eddy Curry-7.25 | F113: =per_game!I113 -> 0.5 | G113: =per_game!L113 -> 0 | H113: =per_game!O113 -> 0.25 | I113: =per_game!R113 -> 2 | J113: =per_game!S113 -> 0 | K113: =per_game!T113 -> 0 | L113: =per_game!U113 -> 0 | M113: =per_game!X113 -> 4.5 | N113: G-F
C114: =Roster!C114 -> G | D114: 11.177 | E114: =per_game!B114 & "-" & D114 -> Rodrigue Beaubois-11.177 | F114: =per_game!I114 -> 0.314 | G114: =per_game!L114 -> 0.263 | H114: =per_game!O114 -> 0.8 | I114: =per_game!R114 -> 1.8 | J114: =per_game!S114 -> 2.7 | K114: =per_game!T114 -> 0.7 | L114: =per_game!U114 -> 0.1 | M114: =per_game!X114 -> 4.5 | N114: G-F
C115: =Roster!C115 -> C | D115: 10.282 | E115: =per_game!B115 & "-" & D115 -> Bernard James-10.282 | F115: =per_game!I115 -> 0.5 | G115: =per_game!L115 -> 0 | H115: =per_game!O115 -> 0.682 | I115: =per_game!R115 -> 3.8 | J115: =per_game!S115 -> 0 | K115: =per_game!T115 -> 0.2 | L115: =per_game!U115 -> 0.9 | M115: =per_game!X115 -> 4.2 | N115: C
C116: =Roster!C116 -> F | D116: 11.633 | E116: =per_game!B116 & "-" & D116 -> Dominique Jones-11.633 | F116: =per_game!I116 -> 0.333 | G116: =per_game!L116 -> 0 | H116: =per_game!O116 -> 0.5 | I116: =per_game!R116 -> 2.1 | J116: =per_game!S116 -> 3.6 | K116: =per_game!T116 -> 0.8 | L116: =per_game!U116 -> 0.1 | M116: =per_game!X116 -> 4.2 | N116: F
C117: =Roster!C117 -> G | D117: 6.422 | E117: =per_game!B117 & "-" & D117 -> Dahntay Jones-6.422 | F117: =per_game!I117 -> 0.316 | G117: =per_game!L117 -> 0.273 | H117: =per_game!O117 -> 0.833 | I117: =per_game!R117 -> 1.5 | J117: =per_game!S117 -> 0.4 | K117: =per_game!T117 -> 0.2 | L117: =per_game!U117 -> 0.1 | M117: =per_game!X117 -> 2.8
C118: =Roster!C118 -> F | D118: 9.125 | E118: =per_game!B118 & "-" & D118 -> Derek Fisher-9.125 | F118: =per_game!I118 -> 0.125 | G118: =per_game!L118 -> 0 | H118: =per_game!O118 -> 0 | I118: =per_game!R118 -> 2 | J118: =per_game!S118 -> 3 | K118: =per_game!T118 -> 2 | L118: =per_game!U118 -> 0 | M118: =per_game!X118 -> 2 | N118: DET
C119: =Roster!C119 -> F | D119: 3.431 | F119: =per_game!I119 -> 0.364 | G119: =per_game!L119 -> 0.667 | H119: =per_game!O119 -> 0 | I119: =per_game!R119 -> 0.3 | J119: =per_game!S119 -> 0.2 | K119: =per_game!T119 -> 0.2 | L119: =per_game!U119 -> 0 | M119: =per_game!X119 -> 1.7 | N119: Rk
C120: =Roster!C120 -> 0 | D120: 0 | F120: =per_game!I120 -> 0 | G120: =per_game!L120 -> 0 | H120: =per_game!O120 -> 0 | I120: =per_game!R120 -> 0 | J120: =per_game!S120 -> 0 | K120: =per_game!T120 -> 0 | L120: =per_game!U120 -> 0 | M120: =per_game!X120 -> 0 | N120: F-C
C121: =Roster!C121 -> 0 | D121: 0 | F121: =per_game!I121 -> 0 | G121: =per_game!L121 -> 0 | H121: =per_game!O121 -> 0 | I121: =per_game!R121 -> 0 | J121: =per_game!S121 -> 0 | K121: =per_game!T121 -> 0 | L121: =per_game!U121 -> 0 | M121: =per_game!X121 -> 0 | N121: F
C122: =Roster!C122 -> Pos | E122: =per_game!B122 & "-" & D122 -> Player- | F122: =per_game!I122 -> FG% | G122: =per_game!L122 -> 3P% | H122: =per_game!O122 -> FT% | I122: =per_game!R122 -> TRB | J122: =per_game!S122 -> AST | K122: =per_game!T122 -> STL | L122: =per_game!U122 -> BLK | M122: =per_game!X122 -> PTS | N122: G
C123: =Roster!C123 -> F | D123: 26.662 | E123: =per_game!B123 & "-" & D123 -> Danilo Gallinari-26.662 | F123: =per_game!I123 -> 0.385 | G123: =per_game!L123 -> 0.29 | H123: =per_game!O123 -> 0.787 | I123: =per_game!R123 -> 6.1 | J123: =per_game!S123 -> 2.4 | K123: =per_game!T123 -> 0.6 | L123: =per_game!U123 -> 0.6 | M123: =per_game!X123 -> 15.5 | N123: G
C124: =Roster!C124 -> F | D124: 27.529 | E124: =per_game!B124 & "-" & D124 -> Andre Iguodala-27.529 | F124: =per_game!I124 -> 0.457 | G124: =per_game!L124 -> 0.388 | H124: =per_game!O124 -> 0.684 | I124: =per_game!R124 -> 5.5 | J124: =per_game!S124 -> 3.8 | K124: =per_game!T124 -> 1.1 | L124: =per_game!U124 -> 0.7 | M124: =per_game!X124 -> 14.9 | N124: F
C125: =Roster!C125 -> F | D125: 26.576 | E125: =per_game!B125 & "-" & D125 -> Ty Lawson-26.576 | F125: =per_game!I125 -> 0.403 | G125: =per_game!L125 -> 0.28 | H125: =per_game!O125 -> 0.593 | I125: =per_game!R125 -> 2.7 | J125: =per_game!S125 -> 7.2 | K125: =per_game!T125 -> 1.9 | L125: =per_game!U125 -> 0.1 | M125: =per_game!X125 -> 13.4 | N125: F
C126: =Roster!C126 -> G-F | D126: 27.543 | E126: =per_game!B126 & "-" & D126 -> Kenneth Faried-27.543 | F126: =per_game!I126 -> 0.561 | G126: =per_game!L126 -> 0 | H126: =per_game!O126 -> 0.582 | I126: =per_game!R126 -> 10.5 | J126: =per_game!S126 -> 0.7 | K126: =per_game!T126 -> 0.9 | L126: =per_game!U126 -> 1.1 | M126: =per_game!X126 -> 13.2 | N126: F
C127: =Roster!C127 -> F | D127: 20.282 | E127: =per_game!B127 & "-" & D127 -> JaVale McGee-20.282 | F127: =per_game!I127 -> 0.555 | G127: =per_game!L127 -> 0 | H127: =per_game!O127 -> 0.627 | I127: =per_game!R127 -> 5.7 | J127: =per_game!S127 -> 0.6 | K127: =per_game!T127 -> 0.2 | L127: =per_game!U127 -> 1.8 | M127: =per_game!X127 -> 10.8 | N127: F
C128: =Roster!C128 -> G-F | D128: 17.483 | E128: =per_game!B128 & "-" & D128 -> Corey Brewer-17.483 | F128: =per_game!I128 -> 0.413 | G128: =per_game!L128 -> 0.38 | H128: =per_game!O128 -> 0.69 | I128: =per_game!R128 -> 3.1 | J128: =per_game!S128 -> 0.7 | K128: =per_game!T128 -> 1.4 | L128: =per_game!U128 -> 0.3 | M128: =per_game!X128 -> 10.5 | N128: G
C129: =Roster!C129 -> G-F | D129: 18.892 | E129: =per_game!B129 & "-" & D129 -> Andre Miller-18.892 | F129: =per_game!I129 -> 0.471 | G129: =per_game!L129 -> 0.267 | H129: =per_game!O129 -> 0.854 | I129: =per_game!R129 -> 2.8 | J129: =per_game!S129 -> 5.1 | K129: =per_game!T129 -> 0.8 | L129: =per_game!U129 -> 0.2 | M129: =per_game!X129 -> 8.4 | N129: C
C130: =Roster!C130 -> C | D130: 12.172 | E130: =per_game!B130 & "-" & D130 -> Jordan Hamilton-12.172 | F130: =per_game!I130 -> 0.429 | G130: =per_game!L130 -> 0.407 | H130: =per_game!O130 -> 0.636 | I130: =per_game!R130 -> 2.9 | J130: =per_game!S130 -> 0.8 | K130: =per_game!T130 -> 0.3 | L130: =per_game!U130 -> 0.2 | M130: =per_game!X130 -> 6.5 | N130: F
C131: =Roster!C131 -> G | D131: =F131*$B$6+G131*$B$8+H131*$B$7+I131*$B$2+J131*$B$3+K131*$B$5+L131*$B$4+M131*$B$1 -> 12.863 | E131: =per_game!B131 & "-" & D131 -> Wilson Chandler-12.863 | F131: =per_game!I131 -> 0.313 | G131: =per_game!L131 -> 0.25 | H131: =per_game!O131 -> 0.5 | I131: =per_game!R131 -> 5 | J131: =per_game!S131 -> 0 | K131: =per_game!T131 -> 0 | L131: =per_game!U131 -> 0.3 | M131: =per_game!X131 -> 6.5 | N131: G
C132: =Roster!C132 -> C | D132: 15.959 | E132: =per_game!B132 & "-" & D132 -> Kosta Koufos-15.959 | F132: =per_game!I132 -> 0.521 | G132: =per_game!L132 -> 0 | H132: =per_game!O132 -> 0.538 | I132: =per_game!R132 -> 5.9 | J132: =per_game!S132 -> 0.5 | K132: =per_game!T132 -> 0.6 | L132: =per_game!U132 -> 1.6 | M132: =per_game!X132 -> 6.3 | N132: F
C133: =Roster!C133 -> G | D133: 5.999 | E133: =per_game!B133 & "-" & D133 -> Evan Fournier-5.999 | F133: =per_game!I133 -> 0.526 | G133: =per_game!L133 -> 0.273 | H133: =per_game!O133 -> 0.5 | I133: =per_game!R133 -> 0.4 | J133: =per_game!S133 -> 0.9 | K133: =per_game!T133 -> 0 | L133: =per_game!U133 -> 0 | M133: =per_game!X133 -> 3.4 | N133: F
C134: =Roster!C134 -> C | D134: 9.2 | E134: =per_game!B134 & "-" & D134 -> Timofey Mozgov-9.2 | F134: =per_game!I134 -> 0.6 | G134: =per_game!L134 -> 0 | H134: =per_game!O134 -> 1 | I134: =per_game!R134 -> 3.3 | J134: =per_game!S134 -> 0.3 | K134: =per_game!T134 -> 0.3 | L134: =per_game!U134 -> 0.6 | M134: =per_game!X134 -> 3.1
C135: =Roster!C135 -> F | D135: 3.333 | F135: =per_game!I135 -> 0.333 | G135: =per_game!L135 -> 0 | H135: =per_game!O135 -> 0 | I135: =per_game!R135 -> 1 | J135: =per_game!S135 -> 1 | K135: =per_game!T135 -> 0 | L135: =per_game!U135 -> 0.3 | M135: =per_game!X135 -> 0.7 | N135: GSW
C136: =Roster!C136 -> 0 | D136: 0 | F136: =per_game!I136 -> 0 | G136: =per_game!L136 -> 0 | H136: =per_game!O136 -> 0 | I136: =per_game!R136 -> 0 | J136: =per_game!S136 -> 0 | K136: =per_game!T136 -> 0 | L136: =per_game!U136 -> 0 | M136: =per_game!X136 -> 0 | N136: Rk
C137: =Roster!C137 -> 0 | D137: 0 | F137: =per_game!I137 -> 0 | G137: =per_game!L137 -> 0 | H137: =per_game!O137 -> 0 | I137: =per_game!R137 -> 0 | J137: =per_game!S137 -> 0 | K137: =per_game!T137 -> 0 | L137: =per_game!U137 -> 0 | M137: =per_game!X137 -> 0 | N137: G
C138: =Roster!C138 -> Pos | E138: =per_game!B138 & "-" & D138 -> Player- | F138: =per_game!I138 -> FG% | G138: =per_game!L138 -> 3P% | H138: =per_game!O138 -> FT% | I138: =per_game!R138 -> TRB | J138: =per_game!S138 -> AST | K138: =per_game!T138 -> STL | L138: =per_game!U138 -> BLK | M138: =per_game!X138 -> PTS | N138: G
C139: =Roster!C139 -> G | D139: 32.761 | E139: =per_game!B139 & "-" & D139 -> Greg Monroe-32.761 | F139: =per_game!I139 -> 0.463 | G139: =per_game!L139 -> 0 | H139: =per_game!O139 -> 0.698 | I139: =per_game!R139 -> 9.9 | J139: =per_game!S139 -> 3.5 | K139: =per_game!T139 -> 1.7 | L139: =per_game!U139 -> 0.8 | M139: =per_game!X139 -> 15.7 | N139: F
C140: =Roster!C140 -> F | D140: 24.621 | E140: =per_game!B140 & "-" & D140 -> Brandon Knight-24.621 | F140: =per_game!I140 -> 0.422 | G140: =per_game!L140 -> 0.408 | H140: =per_game!O140 -> 0.791 | I140: =per_game!R140 -> 3.6 | J140: =per_game!S140 -> 5.3 | K140: =per_game!T140 -> 0.5 | L140: =per_game!U140 -> 0.1 | M140: =per_game!X140 -> 13.5 | N140: F
C141: =Roster!C141 -> C | D141: 21.398 | E141: =per_game!B141 & "-" & D141 -> Tayshaun Prince-21.398 | F141: =per_game!I141 -> 0.459 | G141: =per_game!L141 -> 0.429 | H141: =per_game!O141 -> 0.81 | I141: =per_game!R141 -> 4.2 | J141: =per_game!S141 -> 2.4 | K141: =per_game!T141 -> 0.5 | L141: =per_game!U141 -> 0.3 | M141: =per_game!X141 -> 12.3 | N141: F
C142: =Roster!C142 -> G | D142: 17.728 | E142: =per_game!B142 & "-" & D142 -> Kyle Singler-17.728 | F142: =per_game!I142 -> 0.504 | G142: =per_game!L142 -> 0.449 | H142: =per_game!O142 -> 0.775 | I142: =per_game!R142 -> 3.6 | J142: =per_game!S142 -> 1 | K142: =per_game!T142 -> 0.5 | L142: =per_game!U142 -> 0.6 | M142: =per_game!X142 -> 10.3 | N142: G
C143: =Roster!C143 -> F | D143: 18.244 | E143: =per_game!B143 & "-" & D143 -> Rodney Stuckey-18.244 | F143: =per_game!I143 -> 0.347 | G143: =per_game!L143 -> 0.2 | H143: =per_game!O143 -> 0.797 | I143: =per_game!R143 -> 3 | J143: =per_game!S143 -> 3.7 | K143: =per_game!T143 -> 0.3 | L143: =per_game!U143 -> 0.3 | M143: =per_game!X143 -> 9.6 | N143: F
C144: =Roster!C144 -> G | D144: 19.3 | E144: =per_game!B144 & "-" & D144 -> Jason Maxiell-19.3 | F144: =per_game!I144 -> 0.511 | G144: =per_game!L144 -> 0 | H144: =per_game!O144 -> 0.689 | I144: =per_game!R144 -> 6.5 | J144: =per_game!S144 -> 0.7 | K144: =per_game!T144 -> 0.4 | L144: =per_game!U144 -> 1.6 | M144: =per_game!X144 -> 8.9 | N144: C
C145: =Roster!C145 -> F | D145: 11.89 | E145: =per_game!B145 & "-" & D145 -> Charlie Villanueva-11.89 | F145: =per_game!I145 -> 0.404 | G145: =per_game!L145 -> 0.364 | H145: =per_game!O145 -> 0.222 | I145: =per_game!R145 -> 2.6 | J145: =per_game!S145 -> 0.9 | K145: =per_game!T145 -> 0.4 | L145: =per_game!U145 -> 0.3 | M145: =per_game!X145 -> 6.7 | N145: C
C146: =Roster!C146 -> F | D146: 16.133 | E146: =per_game!B146 & "-" & D146 -> Andre Drummond-16.133 | F146: =per_game!I146 -> 0.551 | G146: =per_game!L146 -> 0.5 | H146: =per_game!O146 -> 0.382 | I146: =per_game!R146 -> 6.2 | J146: =per_game!S146 -> 0.5 | K146: =per_game!T146 -> 0.8 | L146: =per_game!U146 -> 1.3 | M146: =per_game!X146 -> 5.9 | N146: F
C147: =Roster!C147 -> F | D147: 11.596 | E147: =per_game!B147 & "-" & D147 -> Jonas Jerebko-11.596 | F147: =per_game!I147 -> 0.359 | G147: =per_game!L147 -> 0.2 | H147: =per_game!O147 -> 0.737 | I147: =per_game!R147 -> 2.9 | J147: =per_game!S147 -> 0.5 | K147: =per_game!T147 -> 0.9 | L147: =per_game!U147 -> 0.2 | M147: =per_game!X147 -> 5.8 | N147: C
C148: =Roster!C148 -> F-C | D148: 11.179 | E148: =per_game!B148 & "-" & D148 -> Will Bynum-11.179 | F148: =per_game!I148 -> 0.374 | G148: =per_game!L148 -> 0.2 | H148: =per_game!O148 -> 0.905 | I148: =per_game!R148 -> 0.9 | J148: =per_game!S148 -> 2.5 | K148: =per_game!T148 -> 0.6 | L148: =per_game!U148 -> 0.1 | M148: =per_game!X148 -> 5.6 | N148: G
C149: =Roster!C149 -> F | D149: 9.966 | E149: =per_game!B149 & "-" & D149 -> Corey Maggette-9.966 | F149: =per_game!I149 -> 0.383 | G149: =per_game!L149 -> 0.357 | H149: =per_game!O149 -> 0.826 | I149: =per_game!R149 -> 1 | J149: =per_game!S149 -> 1.4 | K149: =per_game!T149 -> 0.4 | L149: =per_game!U149 -> 0.1 | M149: =per_game!X149 -> 5.5 | N149: F
C150: =Roster!C150 -> F | D150: 6.779 | E150: =per_game!B150 & "-" & D150 -> Kim English-6.779 | F150: =per_game!I150 -> 0.379 | G150: =per_game!L150 -> 0.5 | H150: =per_game!O150 -> 1 | I150: =per_game!R150 -> 0.5 | J150: =per_game!S150 -> 0.7 | K150: =per_game!T150 -> 0.3 | L150: =per_game!U150 -> 0.2 | M150: =per_game!X150 -> 3.2 | N150: C
C151: =Roster!C151 -> G | D151: 5.023 | E151: =per_game!B151 & "-" & D151 -> Austin Daye-5.023 | F151: =per_game!I151 -> 0.556 | G151: =per_game!L151 -> 0.667 | H151: =per_game!O151 -> 0 | I151: =per_game!R151 -> 1 | J151: =per_game!S151 -> 0.4 | K151: =per_game!T151 -> 0 | L151: =per_game!U151 -> 0 | M151: =per_game!X151 -> 2.4 | N151: G
C152: =Roster!C152 -> F | D152: 3.7 | F152: =per_game!I152 -> 0.333 | G152: =per_game!L152 -> 0 | H152: =per_game!O152 -> 0.667 | I152: =per_game!R152 -> 0 | J152: =per_game!S152 -> 0.7 | K152: =per_game!T152 -> 0.7 | L152: =per_game!U152 -> 0 | M152: =per_game!X152 -> 1.3
C153: =Roster!C153 -> 0 | D153: 0 | F153: =per_game!I153 -> 0 | G153: =per_game!L153 -> 0 | H153: =per_game!O153 -> 0 | I153: =per_game!R153 -> 0 | J153: =per_game!S153 -> 0 | K153: =per_game!T153 -> 0 | L153: =per_game!U153 -> 0 | M153: =per_game!X153 -> 0 | N153: HOU
C154: =Roster!C154 -> 0 | D154: 0 | F154: =per_game!I154 -> 0 | G154: =per_game!L154 -> 0 | H154: =per_game!O154 -> 0 | I154: =per_game!R154 -> 0 | J154: =per_game!S154 -> 0 | K154: =per_game!T154 -> 0 | L154: =per_game!U154 -> 0 | M154: =per_game!X154 -> 0 | N154: Rk
C155: =Roster!C155 -> Pos | E155: =per_game!B155 & "-" & D155 -> Player- | F155: =per_game!I155 -> FG% | G155: =per_game!L155 -> 3P% | H155: =per_game!O155 -> FT% | I155: =per_game!R155 -> TRB | J155: =per_game!S155 -> AST | K155: =per_game!T155 -> STL | L155: =per_game!U155 -> BLK | M155: =per_game!X155 -> PTS | N155: G
C156: =Roster!C156 -> F | D156: 32.625 | E156: =per_game!B156 & "-" & D156 -> Stephen Curry-32.625 | F156: =per_game!I156 -> 0.418 | G156: =per_game!L156 -> 0.413 | H156: =per_game!O156 -> 0.894 | I156: =per_game!R156 -> 3.9 | J156: =per_game!S156 -> 6.4 | K156: =per_game!T156 -> 1.6 | L156: =per_game!U156 -> 0.1 | M156: =per_game!X156 -> 18.9 | N156: F
C157: =Roster!C157 -> G | D157: 34.559 | E157: =per_game!B157 & "-" & D157 -> David Lee-34.559 | F157: =per_game!I157 -> 0.49 | G157: =per_game!L157 -> 0 | H157: =per_game!O157 -> 0.769 | I157: =per_game!R157 -> 10.7 | J157: =per_game!S157 -> 3.8 | K157: =per_game!T157 -> 1.1 | L157: =per_game!U157 -> 0.3 | M157: =per_game!X157 -> 17.4 | N157: G
C158: =Roster!C158 -> C | D158: 23.997 | E158: =per_game!B158 & "-" & D158 -> Klay Thompson-23.997 | F158: =per_game!I158 -> 0.375 | G158: =per_game!L158 -> 0.322 | H158: =per_game!O158 -> 0.8 | I158: =per_game!R158 -> 4.1 | J158: =per_game!S158 -> 2.2 | K158: =per_game!T158 -> 0.4 | L158: =per_game!U158 -> 0.4 | M158: =per_game!X158 -> 15.4 | N158: C
C159: =Roster!C159 -> C | D159: 24.365 | E159: =per_game!B159 & "-" & D159 -> Carl Landry-24.365 | F159: =per_game!I159 -> 0.57 | G159: =per_game!L159 -> 0 | H159: =per_game!O159 -> 0.795 | I159: =per_game!R159 -> 7.1 | J159: =per_game!S159 -> 1.1 | K159: =per_game!T159 -> 0.3 | L159: =per_game!U159 -> 0.5 | M159: =per_game!X159 -> 14 | N159: F
C160: =Roster!C160 -> G | D160: 20.027 | E160: =per_game!B160 & "-" & D160 -> Jarrett Jack-20.027 | F160: =per_game!I160 -> 0.485 | G160: =per_game!L160 -> 0.375 | H160: =per_game!O160 -> 0.867 | I160: =per_game!R160 -> 3 | J160: =per_game!S160 -> 4.5 | K160: =per_game!T160 -> 0.8 | L160: =per_game!U160 -> 0 | M160: =per_game!X160 -> 10 | N160: F
C161: =Roster!C161 -> C | D161: 18.272 | E161: =per_game!B161 & "-" & D161 -> Harrison Barnes-18.272 | F161: =per_game!I161 -> 0.46 | G161: =per_game!L161 -> 0.353 | H161: =per_game!O161 -> 0.659 | I161: =per_game!R161 -> 4.8 | J161: =per_game!S161 -> 1.4 | K161: =per_game!T161 -> 0.6 | L161: =per_game!U161 -> 0.2 | M161: =per_game!X161 -> 9.8 | N161: G
C162: =Roster!C162 -> F | D162: 9.834 | E162: =per_game!B162 & "-" & D162 -> Brandon Rush-9.834 | F162: =per_game!I162 -> 0.667 | G162: =per_game!L162 -> 0 | H162: =per_game!O162 -> 0.667 | I162: =per_game!R162 -> 0.5 | J162: =per_game!S162 -> 1 | K162: =per_game!T162 -> 0 | L162: =per_game!U162 -> 0 | M162: =per_game!X162 -> 7 | N162: C
C163: =Roster!C163 -> G | D163: 14.15 | E163: =per_game!B163 & "-" & D163 -> Andrew Bogut-14.15 | F163: =per_game!I163 -> 0.55 | G163: =per_game!L163 -> 0 | H163: =per_game!O163 -> 0.5 | I163: =per_game!R163 -> 3.8 | J163: =per_game!S163 -> 2 | K163: =per_game!T163 -> 0.3 | L163: =per_game!U163 -> 1 | M163: =per_game!X163 -> 6 | N163: G
C164: =Roster!C164 -> F | D164: 8.85 | E164: =per_game!B164 & "-" & D164 -> Richard Jefferson-8.85 | F164: =per_game!I164 -> 0.333 | G164: =per_game!L164 -> 0.167 | H164: =per_game!O164 -> 0.75 | I164: =per_game!R164 -> 1.4 | J164: =per_game!S164 -> 1.2 | K164: =per_game!T164 -> 0.5 | L164: =per_game!U164 -> 0.3 | M164: =per_game!X164 -> 4.2 | N164: C
C165: =Roster!C165 -> G | D165: 10.56 | E165: =per_game!B165 & "-" & D165 -> Festus Ezeli-10.56 | F165: =per_game!I165 -> 0.49 | G165: =per_game!L165 -> 0 | H165: =per_game!O165 -> 0.37 | I165: =per_game!R165 -> 4.6 | J165: =per_game!S165 -> 0.2 | K165: =per_game!T165 -> 0.4 | L165: =per_game!U165 -> 1 | M165: =per_game!X165 -> 3.5 | N165: F
C166: =Roster!C166 -> F | D166: 7.175 | E166: =per_game!B166 & "-" & D166 -> Draymond Green-7.175 | F166: =per_game!I166 -> 0.325 | G166: =per_game!L166 -> 0.25 | H166: =per_game!O166 -> 0.8 | I166: =per_game!R166 -> 2.6 | J166: =per_game!S166 -> 0.4 | K166: =per_game!T166 -> 0.5 | L166: =per_game!U166 -> 0.1 | M166: =per_game!X166 -> 2.2 | N166: F
C167: =Roster!C167 -> F | D167: 3.936 | E167: =per_game!B167 & "-" & D167 -> Charles Jenkins-3.936 | F167: =per_game!I167 -> 0.611 | G167: =per_game!L167 -> 0 | H167: =per_game!O167 -> 0.625 | I167: =per_game!R167 -> 0.4 | J167: =per_game!S167 -> 0.3 | K167: =per_game!T167 -> 0.1 | L167: =per_game!U167 -> 0 | M167: =per_game!X167 -> 1.9 | N167: G
C168: =Roster!C168 -> F | D168: 3.6 | E168: =per_game!B168 & "-" & D168 -> Jeremy Tyler-3.6 | F168: =per_game!I168 -> 0.6 | G168: =per_game!L168 -> 0 | H168: =per_game!O168 -> 1 | I168: =per_game!R168 -> 0.2 | J168: =per_game!S168 -> 0 | K168: =per_game!T168 -> 0.2 | L168: =per_game!U168 -> 0 | M168: =per_game!X168 -> 1.6
C169: =Roster!C169 -> G | D169: 5.308 | E169: =per_game!B169 & "-" & D169 -> Andris Biedrins-5.308 | F169: =per_game!I169 -> 0.375 | G169: =per_game!L169 -> 0 | H169: =per_game!O169 -> 0.333 | I169: =per_game!R169 -> 2.7 | J169: =per_game!S169 -> 0.4 | K169: =per_game!T169 -> 0.4 | L169: =per_game!U169 -> 0.5 | M169: =per_game!X169 -> 0.6 | N169: IND
C170: =Roster!C170 -> C | D170: 1 | F170: =per_game!I170 -> 0 | G170: =per_game!L170 -> 0 | H170: =per_game!O170 -> 0 | I170: =per_game!R170 -> 0.3 | J170: =per_game!S170 -> 0.1 | K170: =per_game!T170 -> 0.3 | L170: =per_game!U170 -> 0.3 | M170: =per_game!X170 -> 0 | N170: Rk
C171: =Roster!C171 -> 0 | D171: 0 | F171: =per_game!I171 -> 0 | G171: =per_game!L171 -> 0 | H171: =per_game!O171 -> 0 | I171: =per_game!R171 -> 0 | J171: =per_game!S171 -> 0 | K171: =per_game!T171 -> 0 | L171: =per_game!U171 -> 0 | M171: =per_game!X171 -> 0 | N171: F
C172: =Roster!C172 -> 0 | D172: 0 | F172: =per_game!I172 -> 0 | G172: =per_game!L172 -> 0 | H172: =per_game!O172 -> 0 | I172: =per_game!R172 -> 0 | J172: =per_game!S172 -> 0 | K172: =per_game!T172 -> 0 | L172: =per_game!U172 -> 0 | M172: =per_game!X172 -> 0 | N172: G
C173: =Roster!C173 -> Pos | E173: =per_game!B173 & "-" & D173 -> Player- | F173: =per_game!I173 -> FG% | G173: =per_game!L173 -> 3P% | H173: =per_game!O173 -> FT% | I173: =per_game!R173 -> TRB | J173: =per_game!S173 -> AST | K173: =per_game!T173 -> STL | L173: =per_game!U173 -> BLK | M173: =per_game!X173 -> PTS | N173: F
C174: =Roster!C174 -> C | D174: 37.502 | E174: =per_game!B174 & "-" & D174 -> James Harden-37.502 | F174: =per_game!I174 -> 0.427 | G174: =per_game!L174 -> 0.341 | H174: =per_game!O174 -> 0.834 | I174: =per_game!R174 -> 4.1 | J174: =per_game!S174 -> 5.4 | K174: =per_game!T174 -> 1.7 | L174: =per_game!U174 -> 0.6 | M174: =per_game!X174 -> 24.1 | N174: F
C175: =Roster!C175 -> C | D175: 29.084 | E175: =per_game!B175 & "-" & D175 -> Chandler Parsons-29.084 | F175: =per_game!I175 -> 0.484 | G175: =per_game!L175 -> 0.429 | H175: =per_game!O175 -> 0.771 | I175: =per_game!R175 -> 6.7 | J175: =per_game!S175 -> 3.5 | K175: =per_game!T175 -> 1.1 | L175: =per_game!U175 -> 0.2 | M175: =per_game!X175 -> 15.9 | N175: F
C176: =Roster!C176 -> G | D176: 23.759 | E176: =per_game!B176 & "-" & D176 -> Patrick Patterson-23.759 | F176: =per_game!I176 -> 0.511 | G176: =per_game!L176 -> 0.375 | H176: =per_game!O176 -> 0.773 | I176: =per_game!R176 -> 5.3 | J176: =per_game!S176 -> 1 | K176: =per_game!T176 -> 0.6 | L176: =per_game!U176 -> 0.6 | M176: =per_game!X176 -> 14.6 | N176: C
C177: =Roster!C177 -> G | D177: 27.779 | E177: =per_game!B177 & "-" & D177 -> Omer Asik-27.779 | F177: =per_game!I177 -> 0.496 | G177: =per_game!L177 -> 0 | H177: =per_game!O177 -> 0.583 | I177: =per_game!R177 -> 12.3 | J177: =per_game!S177 -> 1.3 | K177: =per_game!T177 -> 0.8 | L177: =per_game!U177 -> 1.3 | M177: =per_game!X177 -> 11 | N177: G
C178: =Roster!C178 -> G | D178: 25.771 | E178: =per_game!B178 & "-" & D178 -> Jeremy Lin-25.771 | F178: =per_game!I178 -> 0.393 | G178: =per_game!L178 -> 0.262 | H178: =per_game!O178 -> 0.816 | I178: =per_game!R178 -> 4.4 | J178: =per_game!S178 -> 6.6 | K178: =per_game!T178 -> 2 | L178: =per_game!U178 -> 0.4 | M178: =per_game!X178 -> 10.9 | N178: C
C179: =Roster!C179 -> G | D179: 16.138 | E179: =per_game!B179 & "-" & D179 -> Marcus Morris-16.138 | F179: =per_game!I179 -> 0.45 | G179: =per_game!L179 -> 0.388 | H179: =per_game!O179 -> 0.6 | I179: =per_game!R179 -> 4.2 | J179: =per_game!S179 -> 0.8 | K179: =per_game!T179 -> 0.5 | L179: =per_game!U179 -> 0.5 | M179: =per_game!X179 -> 8.7 | N179: F
C180: =Roster!C180 -> F | D180: 17.266 | E180: =per_game!B180 & "-" & D180 -> Carlos Delfino-17.266 | F180: =per_game!I180 -> 0.37 | G180: =per_game!L180 -> 0.346 | H180: =per_game!O180 -> 0.75 | I180: =per_game!R180 -> 4 | J180: =per_game!S180 -> 2 | K180: =per_game!T180 -> 1 | L180: =per_game!U180 -> 0.1 | M180: =per_game!X180 -> 8.7 | N180: G
C181: =Roster!C181 -> G | D181: 12.079 | E181: =per_game!B181 & "-" & D181 -> Greg Smith-12.079 | F181: =per_game!I181 -> 0.579 | G181: =per_game!L181 -> 0 | H181: =per_game!O181 -> 0.8 | I181: =per_game!R181 -> 3.5 | J181: =per_game!S181 -> 0.7 | K181: =per_game!T181 -> 0.3 | L181: =per_game!U181 -> 0.4 | M181: =per_game!X181 -> 5.8 | N181: F
C182: =Roster!C182 -> G | D182: 11.137 | E182: =per_game!B182 & "-" & D182 -> Toney Douglas-11.137 | F182: =per_game!I182 -> 0.304 | G182: =per_game!L182 -> 0.333 | H182: =per_game!O182 -> 1 | I182: =per_game!R182 -> 1.2 | J182: =per_game!S182 -> 1.7 | K182: =per_game!T182 -> 0.9 | L182: =per_game!U182 -> 0 | M182: =per_game!X182 -> 5.7 | N182: F
C183: =Roster!C183 -> F | D183: 9.972 | E183: =per_game!B183 & "-" & D183 -> Daequan Cook-9.972 | F183: =per_game!I183 -> 0.381 | G183: =per_game!L183 -> 0.391 | H183: =per_game!O183 -> 0.5 | I183: =per_game!R183 -> 1.6 | J183: =per_game!S183 -> 1 | K183: =per_game!T183 -> 0.5 | L183: =per_game!U183 -> 0.3 | M183: =per_game!X183 -> 5.3 | N183: G
C184: =Roster!C184 -> F | D184: 8.533 | E184: =per_game!B184 & "-" & D184 -> Terrence Jones-8.533 | F184: =per_game!I184 -> 0.333 | G184: =per_game!L184 -> 0.2 | H184: =per_game!O184 -> 1 | I184: =per_game!R184 -> 2 | J184: =per_game!S184 -> 0.4 | K184: =per_game!T184 -> 0.4 | L184: =per_game!U184 -> 0.6 | M184: =per_game!X184 -> 3.6 | N184: G
C185: =Roster!C185 -> F | D185: 6.991 | E185: =per_game!B185 & "-" & D185 -> Cole Aldrich-6.991 | F185: =per_game!I185 -> 0.524 | G185: =per_game!L185 -> 0 | H185: =per_game!O185 -> 0.667 | I185: =per_game!R185 -> 2.1 | J185: =per_game!S185 -> 0.3 | K185: =per_game!T185 -> 0.1 | L185: =per_game!U185 -> 0.3 | M185: =per_game!X185 -> 3
C186: =Roster!C186 -> F | D186: 4 | E186: =per_game!B186 & "-" & D186 -> Scott Machado-4 | F186: =per_game!I186 -> 0 | G186: =per_game!L186 -> 0 | H186: =per_game!O186 -> 1 | I186: =per_game!R186 -> 0 | J186: =per_game!S186 -> 1 | K186: =per_game!T186 -> 0 | L186: =per_game!U186 -> 0 | M186: =per_game!X186 -> 2 | N186: LAC
C187: =Roster!C187 -> C | D187: 2.3 | F187: =per_game!I187 -> 0.5 | G187: =per_game!L187 -> 0 | H187: =per_game!O187 -> 0.5 | I187: =per_game!R187 -> 0.3 | J187: =per_game!S187 -> 0 | K187: =per_game!T187 -> 0 | L187: =per_game!U187 -> 0 | M187: =per_game!X187 -> 1 | N187: Rk
C188: =Roster!C188 -> 0 | D188: 0 | F188: =per_game!I188 -> 0 | G188: =per_game!L188 -> 0 | H188: =per_game!O188 -> 0 | I188: =per_game!R188 -> 0 | J188: =per_game!S188 -> 0 | K188: =per_game!T188 -> 0 | L188: =per_game!U188 -> 0 | M188: =per_game!X188 -> 0 | N188: G
C189: =Roster!C189 -> 0 | D189: 0 | F189: =per_game!I189 -> 0 | G189: =per_game!L189 -> 0 | H189: =per_game!O189 -> 0 | I189: =per_game!R189 -> 0 | J189: =per_game!S189 -> 0 | K189: =per_game!T189 -> 0 | L189: =per_game!U189 -> 0 | M189: =per_game!X189 -> 0 | N189: G
C190: =Roster!C190 -> Pos | E190: =per_game!B190 & "-" & D190 -> Player- | F190: =per_game!I190 -> FG% | G190: =per_game!L190 -> 3P% | H190: =per_game!O190 -> FT% | I190: =per_game!R190 -> TRB | J190: =per_game!S190 -> AST | K190: =per_game!T190 -> STL | L190: =per_game!U190 -> BLK | M190: =per_game!X190 -> PTS | N190: F
C191: =Roster!C191 -> G | D191: 31.649 | E191: =per_game!B191 & "-" & D191 -> David West-31.649 | F191: =per_game!I191 -> 0.492 | G191: =per_game!L191 -> 0 | H191: =per_game!O191 -> 0.757 | I191: =per_game!R191 -> 8.3 | J191: =per_game!S191 -> 2.5 | K191: =per_game!T191 -> 0.6 | L191: =per_game!U191 -> 1.2 | M191: =per_game!X191 -> 17.8 | N191: F
C192: =Roster!C192 -> F | D192: 27.091 | E192: =per_game!B192 & "-" & D192 -> George Hill-27.091 | F192: =per_game!I192 -> 0.424 | G192: =per_game!L192 -> 0.325 | H192: =per_game!O192 -> 0.842 | I192: =per_game!R192 -> 4.1 | J192: =per_game!S192 -> 5.3 | K192: =per_game!T192 -> 0.9 | L192: =per_game!U192 -> 0.4 | M192: =per_game!X192 -> 14.8 | N192: C
C193: =Roster!C193 -> F | D193: 26.74 | E193: =per_game!B193 & "-" & D193 -> Paul George-26.74 | F193: =per_game!I193 -> 0.385 | G193: =per_game!L193 -> 0.367 | H193: =per_game!O193 -> 0.788 | I193: =per_game!R193 -> 6.5 | J193: =per_game!S193 -> 3.4 | K193: =per_game!T193 -> 1.2 | L193: =per_game!U193 -> 0.6 | M193: =per_game!X193 -> 13.5 | N193: G
C194: =Roster!C194 -> G | D194: 24.065 | E194: =per_game!B194 & "-" & D194 -> Roy Hibbert-24.065 | F194: =per_game!I194 -> 0.39 | G194: =per_game!L194 -> 0 | H194: =per_game!O194 -> 0.575 | I194: =per_game!R194 -> 8.2 | J194: =per_game!S194 -> 1.4 | K194: =per_game!T194 -> 0.7 | L194: =per_game!U194 -> 3.1 | M194: =per_game!X194 -> 9.7 | N194: G
C195: =Roster!C195 -> F | D195: =F195*$B$6+G195*$B$8+H195*$B$7+I195*$B$2+J195*$B$3+K195*$B$5+L195*$B$4+M195*$B$1 -> 14.479 | E195: =per_game!B195 & "-" & D195 -> Gerald Green-14.479 | F195: =per_game!I195 -> 0.375 | G195: =per_game!L195 -> 0.365 | H195: =per_game!O195 -> 0.739 | I195: =per_game!R195 -> 4.1 | J195: =per_game!S195 -> 0.5 | K195: =per_game!T195 -> 0.2 | L195: =per_game!U195 -> 0.4 | M195: =per_game!X195 -> 7.8 | N195: F
C196: =Roster!C196 -> C | D196: 14.941 | E196: =per_game!B196 & "-" & D196 -> Lance Stephenson-14.941 | F196: =per_game!I196 -> 0.481 | G196: =per_game!L196 -> 0.41 | H196: =per_game!O196 -> 0.75 | I196: =per_game!R196 -> 2.9 | J196: =per_game!S196 -> 2.5 | K196: =per_game!T196 -> 0.6 | L196: =per_game!U196 -> 0.1 | M196: =per_game!X196 -> 7.2 | N196: C
C197: =Roster!C197 -> G | D197: 13.104 | E197: =per_game!B197 & "-" & D197 -> Tyler Hansbrough-13.104 | F197: =per_game!I197 -> 0.384 | G197: =per_game!L197 -> 0 | H197: =per_game!O197 -> 0.72 | I197: =per_game!R197 -> 4.7 | J197: =per_game!S197 -> 0.2 | K197: =per_game!T197 -> 0.4 | L197: =per_game!U197 -> 0.2 | M197: =per_game!X197 -> 6.5 | N197: F
C198: =Roster!C198 -> G | D198: 11.086 | E198: =per_game!B198 & "-" & D198 -> Sam Young-11.086 | F198: =per_game!I198 -> 0.405 | G198: =per_game!L198 -> 0.281 | H198: =per_game!O198 -> 0.4 | I198: =per_game!R198 -> 3.5 | J198: =per_game!S198 -> 0.9 | K198: =per_game!T198 -> 0.5 | L198: =per_game!U198 -> 0.1 | M198: =per_game!X198 -> 5 | N198: F
C199: =Roster!C199 -> C | D199: 10.96 | E199: =per_game!B199 & "-" & D199 -> Ian Mahinmi-10.96 | F199: =per_game!I199 -> 0.393 | G199: =per_game!L199 -> 0 | H199: =per_game!O199 -> 0.667 | I199: =per_game!R199 -> 3.6 | J199: =per_game!S199 -> 0.2 | K199: =per_game!T199 -> 0.3 | L199: =per_game!U199 -> 1.1 | M199: =per_game!X199 -> 4.7
C200: =Roster!C200 -> F | D200: 8.314 | E200: =per_game!B200 & "-" & D200 -> Jeff Pendergraph-8.314 | F200: =per_game!I200 -> 0.714 | G200: =per_game!L200 -> 0 | H200: =per_game!O200 -> 1 | I200: =per_game!R200 -> 2.3 | J200: =per_game!S200 -> 0.3 | K200: =per_game!T200 -> 0 | L200: =per_game!U200 -> 0.3 | M200: =per_game!X200 -> 3.7 | N200: LAL
... 312 more rows

Sheet 9 (hidden)
A1: Points | B1: ='Create Team'!B24 -> 1
A2: Rebounds | B2: ='Create Team'!B25 -> 1 | E2: Player | F2: FG% | G2: 3P% | H2: FT% | I2: TRB | J2: AST | K2: STL | L2: BLK | M2: TOV | N2: PTS
A3: Assists | B3: ='Create Team'!B26 -> 1 | C3: =Roster!C3 -> G | D3: =$B$1*N3+$B$2*I3+$B$3*J3+$B$4*L3+$B$5*K3+$B$6*F3+$B$7*H3+$B$8*G3+$B$9*M3 -> 29.279 | E3: =per_game!B3 & "-" & D3 -> Josh Smith-29.279 | F3: =per_game!I3 -> 0.444 | G3: =per_game!L3 -> 0.357 | H3: =per_game!O3 -> 0.478 | I3: =per_game!R3 -> 7.6 | J3: =per_game!S3 -> 3.7 | K3: =per_game!T3 -> 1.4 | L3: =per_game!U3 -> 2.4 | M3: =per_game!V3 -> 3.2 | N3: =per_game!X3 -> 16.1
A4: Blocks | B4: ='Create Team'!B27 -> 1 | C4: =Roster!C4 -> C | D4: =$B$1*N4+$B$2*I4+$B$3*J4+$B$4*L4+$B$5*K4+$B$6*F4+$B$7*H4+$B$8*G4+$B$9*M4 -> 29.758 | E4: =per_game!B4 & "-" & D4 -> Al Horford-29.758 | F4: =per_game!I4 -> 0.535 | G4: =per_game!L4 -> 0 | H4: =per_game!O4 -> 0.523 | I4: =per_game!R4 -> 9.5 | J4: =per_game!S4 -> 3.5 | K4: =per_game!T4 -> 0.5 | L4: =per_game!U4 -> 1.1 | M4: =per_game!V4 -> 1.8 | N4: =per_game!X4 -> 15.9
A5: Steals | B5: ='Create Team'!B28 -> 1 | C5: =Roster!C5 -> G | D5: 20.814 | E5: =per_game!B5 & "-" & D5 -> Louis Williams-20.814 | F5: =per_game!I5 -> 0.423 | G5: =per_game!L5 -> 0.318 | H5: =per_game!O5 -> 0.873 | I5: =per_game!R5 -> 2 | J5: =per_game!S5 -> 3.3 | K5: =per_game!T5 -> 1.1 | L5: =per_game!U5 -> 0.3 | M5: =per_game!V5 -> 1.4 | N5: =per_game!X5 -> 13.9
A6: FG % | B6: ='Create Team'!B29 -> 1 | C6: =Roster!C6 -> F | D6: 24.088 | E6: =per_game!B6 & "-" & D6 -> Jeff Teague-24.088 | F6: =per_game!I6 -> 0.466 | G6: =per_game!L6 -> 0.455 | H6: =per_game!O6 -> 0.867 | I6: =per_game!R6 -> 2.4 | J6: =per_game!S6 -> 7.1 | K6: =per_game!T6 -> 1.8 | L6: =per_game!U6 -> 0.4 | M6: =per_game!V6 -> 3 | N6: =per_game!X6 -> 13.6
A7: FT % | B7: ='Create Team'!B30 -> 1 | C7: =Roster!C7 -> F | D7: 18.504 | E7: =per_game!B7 & "-" & D7 -> Kyle Korver-18.504 | F7: =per_game!I7 -> 0.427 | G7: =per_game!L7 -> 0.42 | H7: =per_game!O7 -> 0.857 | I7: =per_game!R7 -> 3.7 | J7: =per_game!S7 -> 1.6 | K7: =per_game!T7 -> 1 | L7: =per_game!U7 -> 0.4 | M7: =per_game!V7 -> 0.7 | N7: =per_game!X7 -> 10.8
A8: 3 pt % | B8: ='Create Team'!B31 -> 1 | C8: =Roster!C8 -> G | D8: 16.327 | E8: =per_game!B8 & "-" & D8 -> Zaza Pachulia-16.327 | F8: =per_game!I8 -> 0.5 | G8: =per_game!L8 -> 0 | H8: =per_game!O8 -> 0.727 | I8: =per_game!R8 -> 7.1 | J8: =per_game!S8 -> 1.6 | K8: =per_game!T8 -> 0.8 | L8: =per_game!U8 -> 0.4 | M8: =per_game!V8 -> 1.7 | N8: =per_game!X8 -> 6.9
A9: Turnovers | B9: ='Create Team'!B32 -> -1 | C9: =Roster!C9 -> C | D9: 12.472 | E9: =per_game!B9 & "-" & D9 -> Devin Harris-12.472 | F9: =per_game!I9 -> 0.411 | G9: =per_game!L9 -> 0.314 | H9: =per_game!O9 -> 0.647 | I9: =per_game!R9 -> 1.6 | J9: =per_game!S9 -> 2.5 | K9: =per_game!T9 -> 1 | L9: =per_game!U9 -> 0.4 | M9: =per_game!V9 -> 1.2 | N9: =per_game!X9 -> 6.8
C10: =Roster!C10 -> C | D10: 11.7 | E10: =per_game!B10 & "-" & D10 -> DeShawn Stevenson-11.7 | F10: =per_game!I10 -> 0.4 | G10: =per_game!L10 -> 0.4 | H10: =per_game!O10 -> 0.4 | I10: =per_game!R10 -> 2.7 | J10: =per_game!S10 -> 1.1 | K10: =per_game!T10 -> 0.5 | L10: =per_game!U10 -> 0.3 | M10: =per_game!V10 -> 0.5 | N10: =per_game!X10 -> 6.4
C11: =Roster!C11 -> F | D11: 8.888 | E11: =per_game!B11 & "-" & D11 -> Anthony Morrow-8.888 | F11: =per_game!I11 -> 0.48 | G11: =per_game!L11 -> 0.533 | H11: =per_game!O11 -> 0.875 | I11: =per_game!R11 -> 0.6 | J11: =per_game!S11 -> 0.1 | K11: =per_game!T11 -> 0.7 | L11: =per_game!U11 -> 0.1 | M11: =per_game!V11 -> 0.2 | N11: =per_game!X11 -> 5.7
C12: =Roster!C12 -> F | D12: 10.051 | E12: =per_game!B12 & "-" & D12 -> Ivan Johnson-10.051 | F12: =per_game!I12 -> 0.651 | G12: =per_game!L12 -> 0.5 | H12: =per_game!O12 -> 0.4 | I12: =per_game!R12 -> 3.1 | J12: =per_game!S12 -> 0.3 | K12: =per_game!T12 -> 0.8 | L12: =per_game!U12 -> 0.1 | M12: =per_game!V12 -> 0.9 | N12: =per_game!X12 -> 5.1
C13: =Roster!C13 -> G | D13: 6.349 | E13: =per_game!B13 & "-" & D13 -> Anthony Tolliver-6.349 | F13: =per_game!I13 -> 0.273 | G13: =per_game!L13 -> 0.176 | H13: =per_game!O13 -> 0.8 | I13: =per_game!R13 -> 2.3 | J13: =per_game!S13 -> 0.1 | K13: =per_game!T13 -> 0.5 | L13: =per_game!U13 -> 0 | M13: =per_game!V13 -> 0.9 | N13: =per_game!X13 -> 3.1
C14: =Roster!C14 -> G | D14: 3.786 | E14: =per_game!B14 & "-" & D14 -> John Jenkins-3.786 | F14: =per_game!I14 -> 0.286 | G14: =per_game!L14 -> 0 | H14: =per_game!O14 -> 1 | I14: =per_game!R14 -> 1 | J14: =per_game!S14 -> 0 | K14: =per_game!T14 -> 0 | L14: =per_game!U14 -> 0 | M14: =per_game!V14 -> 0 | N14: =per_game!X14 -> 1.5
C15: =Roster!C15 -> C | D15: 0.767 | E15: =per_game!B15 & "-" & D15 -> Mike Scott-0.767 | F15: =per_game!I15 -> 0.167 | G15: =per_game!L15 -> 0 | H15: =per_game!O15 -> 0 | I15: =per_game!R15 -> 0.8 | J15: =per_game!S15 -> 0 | K15: =per_game!T15 -> 0 | L15: =per_game!U15 -> 0 | M15: =per_game!V15 -> 0.6 | N15: =per_game!X15 -> 0.4
C16: =Roster!C16 -> G | D16: -0.5 | E16: =per_game!B16 & "-" & D16 -> Johan Petro--0.5 | F16: =per_game!I16 -> 0 | G16: =per_game!L16 -> 0 | H16: =per_game!O16 -> 0 | I16: =per_game!R16 -> 0 | J16: =per_game!S16 -> 0 | K16: =per_game!T16 -> 0 | L16: =per_game!U16 -> 0 | M16: =per_game!V16 -> 0.5 | N16: =per_game!X16 -> 0
C17: =Roster!C17 -> 0 | D17: 0 | F17: =per_game!I17 -> 0 | G17: =per_game!L17 -> 0 | H17: =per_game!O17 -> 0 | I17: =per_game!R17 -> 0 | J17: =per_game!S17 -> 0 | K17: =per_game!T17 -> 0 | L17: =per_game!U17 -> 0 | M17: =per_game!V17 -> 0 | N17: =per_game!X17 -> 0
C18: =Roster!C18 -> 0 | D18: 0 | F18: =per_game!I18 -> 0 | G18: =per_game!L18 -> 0 | H18: =per_game!O18 -> 0 | I18: =per_game!R18 -> 0 | J18: =per_game!S18 -> 0 | K18: =per_game!T18 -> 0 | L18: =per_game!U18 -> 0 | M18: =per_game!V18 -> 0 | N18: =per_game!X18 -> 0
C19: =Roster!C19 -> Pos | F19: =per_game!I19 -> FG% | G19: =per_game!L19 -> 3P% | H19: =per_game!O19 -> FT% | I19: =per_game!R19 -> TRB | J19: =per_game!S19 -> AST | K19: =per_game!T19 -> STL | L19: =per_game!U19 -> BLK | M19: =per_game!V19 -> TOV | N19: =per_game!X19 -> PTS
C20: =Roster!C20 -> G | D20: 29.049 | E20: =per_game!B20 & "-" & D20 -> Paul Pierce-29.049 | F20: =per_game!I20 -> 0.418 | G20: =per_game!L20 -> 0.395 | H20: =per_game!O20 -> 0.836 | I20: =per_game!R20 -> 5.7 | J20: =per_game!S20 -> 3.2 | K20: =per_game!T20 -> 1.5 | L20: =per_game!U20 -> 0.3 | M20: =per_game!V20 -> 2.5 | N20: =per_game!X20 -> 19.2
C21: =Roster!C21 -> F | D21: 26.125 | E21: =per_game!B21 & "-" & D21 -> Kevin Garnett-26.125 | F21: =per_game!I21 -> 0.522 | G21: =per_game!L21 -> 0 | H21: =per_game!O21 -> 0.803 | I21: =per_game!R21 -> 7.4 | J21: =per_game!S21 -> 1.9 | K21: =per_game!T21 -> 0.8 | L21: =per_game!U21 -> 0.8 | M21: =per_game!V21 -> 1.7 | N21: =per_game!X21 -> 15.6
C22: =Roster!C22 -> C | D22: 30.535 | E22: =per_game!B22 & "-" & D22 -> Rajon Rondo-30.535 | F22: =per_game!I22 -> 0.506 | G22: =per_game!L22 -> 0.316 | H22: =per_game!O22 -> 0.613 | I22: =per_game!R22 -> 4.6 | J22: =per_game!S22 -> 12.9 | K22: =per_game!T22 -> 1.9 | L22: =per_game!U22 -> 0 | M22: =per_game!V22 -> 3.2 | N22: =per_game!X22 -> 12.9
C23: =Roster!C23 -> F | D23: 17.54 | E23: =per_game!B23 & "-" & D23 -> Jason Terry-17.54 | F23: =per_game!I23 -> 0.483 | G23: =per_game!L23 -> 0.382 | H23: =per_game!O23 -> 0.875 | I23: =per_game!R23 -> 1.8 | J23: =per_game!S23 -> 2.3 | K23: =per_game!T23 -> 1.1 | L23: =per_game!U23 -> 0.1 | M23: =per_game!V23 -> 1.2 | N23: =per_game!X23 -> 11.7
C24: =Roster!C24 -> F | D24: 17.525 | E24: =per_game!B24 & "-" & D24 -> Brandon Bass-17.525 | F24: =per_game!I24 -> 0.443 | G24: =per_game!L24 -> 0 | H24: =per_game!O24 -> 0.882 | I24: =per_game!R24 -> 5.4 | J24: =per_game!S24 -> 0.9 | K24: =per_game!T24 -> 0.5 | L24: =per_game!U24 -> 0.8 | M24: =per_game!V24 -> 0.9 | N24: =per_game!X24 -> 9.5
C25: =Roster!C25 -> F | D25: 13.523 | E25: =per_game!B25 & "-" & D25 -> Jeff Green-13.523 | F25: =per_game!I25 -> 0.434 | G25: =per_game!L25 -> 0.333 | H25: =per_game!O25 -> 0.756 | I25: =per_game!R25 -> 2.8 | J25: =per_game!S25 -> 0.7 | K25: =per_game!T25 -> 0.6 | L25: =per_game!U25 -> 0.5 | M25: =per_game!V25 -> 1.5 | N25: =per_game!X25 -> 8.9
C26: =Roster!C26 -> G | D26: 10.5 | E26: =per_game!B26 & "-" & D26 -> Leandro Barbosa-10.5 | F26: =per_game!I26 -> 0.444 | G26: =per_game!L26 -> 0.417 | H26: =per_game!O26 -> 0.739 | I26: =per_game!R26 -> 0.9 | J26: =per_game!S26 -> 1.5 | K26: =per_game!T26 -> 0.5 | L26: =per_game!U26 -> 0.3 | M26: =per_game!V26 -> 0.6 | N26: =per_game!X26 -> 6.3
C27: =Roster!C27 -> F-C | D27: 11.102 | E27: =per_game!B27 & "-" & D27 -> Courtney Lee-11.102 | F27: =per_game!I27 -> 0.462 | G27: =per_game!L27 -> 0.24 | H27: =per_game!O27 -> 1 | I27: =per_game!R27 -> 2.5 | J27: =per_game!S27 -> 1.5 | K27: =per_game!T27 -> 0.9 | L27: =per_game!U27 -> 0.1 | M27: =per_game!V27 -> 1.5 | N27: =per_game!X27 -> 5.9
C28: =Roster!C28 -> F | D28: 13.429 | E28: =per_game!B28 & "-" & D28 -> Jared Sullinger-13.429 | F28: =per_game!I28 -> 0.506 | G28: =per_game!L28 -> 1 | H28: =per_game!O28 -> 0.923 | I28: =per_game!R28 -> 4.6 | J28: =per_game!S28 -> 0.6 | K28: =per_game!T28 -> 0.4 | L28: =per_game!U28 -> 0.5 | M28: =per_game!V28 -> 0.6 | N28: =per_game!X28 -> 5.5
C29: =Roster!C29 -> G | D29: 8.165 | E29: =per_game!B29 & "-" & D29 -> Chris Wilcox-8.165 | F29: =per_game!I29 -> 0.703 | G29: =per_game!L29 -> 0 | H29: =per_game!O29 -> 0.762 | I29: =per_game!R29 -> 2.1 | J29: =per_game!S29 -> 0.3 | K29: =per_game!T29 -> 0.3 | L29: =per_game!U29 -> 0.3 | M29: =per_game!V29 -> 0.6 | N29: =per_game!X29 -> 4.3
C30: =Roster!C30 -> F | D30: 2.5 | E30: =per_game!B30 & "-" & D30 -> Kris Joseph-2.5 | F30: =per_game!I30 -> 0 | G30: =per_game!L30 -> 0 | H30: =per_game!O30 -> 1 | I30: =per_game!R30 -> 0.5 | J30: =per_game!S30 -> 0.5 | K30: =per_game!T30 -> 0 | L30: =per_game!U30 -> 0 | M30: =per_game!V30 -> 0.5 | N30: =per_game!X30 -> 1
C31: =Roster!C31 -> G | D31: 2.85 | E31: =per_game!B31 & "-" & D31 -> Jason Collins-2.85 | F31: =per_game!I31 -> 0.25 | G31: =per_game!L31 -> 0 | H31: =per_game!O31 -> 0 | I31: =per_game!R31 -> 2.3 | J31: =per_game!S31 -> 0 | K31: =per_game!T31 -> 0.5 | L31: =per_game!U31 -> 0.3 | M31: =per_game!V31 -> 1 | N31: =per_game!X31 -> 0.5
C32: =Roster!C32 -> F | D32: -1 | E32: =per_game!B32 & "-" & D32 -> Darko Milicic--1 | F32: =per_game!I32 -> 0 | G32: =per_game!L32 -> 0 | H32: =per_game!O32 -> 0 | I32: =per_game!R32 -> 1 | J32: =per_game!S32 -> 0 | K32: =per_game!T32 -> 0 | L32: =per_game!U32 -> 0 | M32: =per_game!V32 -> 2 | N32: =per_game!X32 -> 0
C33: =Roster!C33 -> 0 | D33: 0 | F33: =per_game!I33 -> 0 | G33: =per_game!L33 -> 0 | H33: =per_game!O33 -> 0 | I33: =per_game!R33 -> 0 | J33: =per_game!S33 -> 0 | K33: =per_game!T33 -> 0 | L33: =per_game!U33 -> 0 | M33: =per_game!V33 -> 0 | N33: =per_game!X33 -> 0
C34: =Roster!C34 -> 0 | D34: 0 | F34: =per_game!I34 -> 0 | G34: =per_game!L34 -> 0 | H34: =per_game!O34 -> 0 | I34: =per_game!R34 -> 0 | J34: =per_game!S34 -> 0 | K34: =per_game!T34 -> 0 | L34: =per_game!U34 -> 0 | M34: =per_game!V34 -> 0 | N34: =per_game!X34 -> 0
C35: =Roster!C35 -> Pos | F35: =per_game!I35 -> FG% | G35: =per_game!L35 -> 3P% | H35: =per_game!O35 -> FT% | I35: =per_game!R35 -> TRB | J35: =per_game!S35 -> AST | K35: =per_game!T35 -> STL | L35: =per_game!U35 -> BLK | M35: =per_game!V35 -> TOV | N35: =per_game!X35 -> PTS
C36: =Roster!C36 -> F | D36: 28.572 | E36: =per_game!B36 & "-" & D36 -> Brook Lopez-28.572 | F36: =per_game!I36 -> 0.534 | G36: =per_game!L36 -> 0 | H36: =per_game!O36 -> 0.638 | I36: =per_game!R36 -> 6.8 | J36: =per_game!S36 -> 0.8 | K36: =per_game!T36 -> 0.5 | L36: =per_game!U36 -> 2.5 | M36: =per_game!V36 -> 1.7 | N36: =per_game!X36 -> 18.5
C37: =Roster!C37 -> G-F | D37: 22.752 | E37: =per_game!B37 & "-" & D37 -> Joe Johnson-22.752 | F37: =per_game!I37 -> 0.409 | G37: =per_game!L37 -> 0.363 | H37: =per_game!O37 -> 0.78 | I37: =per_game!R37 -> 2.8 | J37: =per_game!S37 -> 3.8 | K37: =per_game!T37 -> 0.6 | L37: =per_game!U37 -> 0.2 | M37: =per_game!V37 -> 1.8 | N37: =per_game!X37 -> 15.6
C38: =Roster!C38 -> G-F | D38: 27.588 | E38: =per_game!B38 & "-" & D38 -> Deron Williams-27.588 | F38: =per_game!I38 -> 0.382 | G38: =per_game!L38 -> 0.268 | H38: =per_game!O38 -> 0.838 | I38: =per_game!R38 -> 3 | J38: =per_game!S38 -> 8.9 | K38: =per_game!T38 -> 1.1 | L38: =per_game!U38 -> 0.6 | M38: =per_game!V38 -> 2.9 | N38: =per_game!X38 -> 15.4
C39: =Roster!C39 -> G-F | D39: 18.017 | E39: =per_game!B39 & "-" & D39 -> Andray Blatche-18.017 | F39: =per_game!I39 -> 0.467 | G39: =per_game!L39 -> 0 | H39: =per_game!O39 -> 0.75 | I39: =per_game!R39 -> 5.8 | J39: =per_game!S39 -> 1.1 | K39: =per_game!T39 -> 0.5 | L39: =per_game!U39 -> 0.6 | M39: =per_game!V39 -> 1.3 | N39: =per_game!X39 -> 10.1
C40: =Roster!C40 -> F | D40: 17.96 | E40: =per_game!B40 & "-" & D40 -> Gerald Wallace-17.96 | F40: =per_game!I40 -> 0.427 | G40: =per_game!L40 -> 0.333 | H40: =per_game!O40 -> 0.5 | I40: =per_game!R40 -> 4.1 | J40: =per_game!S40 -> 2.4 | K40: =per_game!T40 -> 1.9 | L40: =per_game!U40 -> 0.7 | M40: =per_game!V40 -> 1.8 | N40: =per_game!X40 -> 9.4
C41: =Roster!C41 -> F | D41: 18.708 | E41: =per_game!B41 & "-" & D41 -> Kris Humphries-18.708 | F41: =per_game!I41 -> 0.476 | G41: =per_game!L41 -> 0 | H41: =per_game!O41 -> 0.732 | I41: =per_game!R41 -> 8.1 | J41: =per_game!S41 -> 0.6 | K41: =per_game!T41 -> 0.4 | L41: =per_game!U41 -> 0.9 | M41: =per_game!V41 -> 0.6 | N41: =per_game!X41 -> 8.1
C42: =Roster!C42 -> G | D42: 11.517 | E42: =per_game!B42 & "-" & D42 -> Jerry Stackhouse-11.517 | F42: =per_game!I42 -> 0.491 | G42: =per_game!L42 -> 0.469 | H42: =per_game!O42 -> 0.857 | I42: =per_game!R42 -> 1.4 | J42: =per_game!S42 -> 0.8 | K42: =per_game!T42 -> 0.6 | L42: =per_game!U42 -> 0.2 | M42: =per_game!V42 -> 0.6 | N42: =per_game!X42 -> 7.3
C43: =Roster!C43 -> C | D43: 12.144 | E43: =per_game!B43 & "-" & D43 -> C.J. Watson-12.144 | F43: =per_game!I43 -> 0.379 | G43: =per_game!L43 -> 0.339 | H43: =per_game!O43 -> 0.826 | I43: =per_game!R43 -> 1.4 | J43: =per_game!S43 -> 1.8 | K43: =per_game!T43 -> 0.8 | L43: =per_game!U43 -> 0.2 | M43: =per_game!V43 -> 0.9 | N43: =per_game!X43 -> 7.3
C44: =Roster!C44 -> F | D44: 11.402 | E44: =per_game!B44 & "-" & D44 -> MarShon Brooks-11.402 | F44: =per_game!I44 -> 0.568 | G44: =per_game!L44 -> 0.667 | H44: =per_game!O44 -> 0.667 | I44: =per_game!R44 -> 1.7 | J44: =per_game!S44 -> 0.9 | K44: =per_game!T44 -> 0.6 | L44: =per_game!U44 -> 0.1 | M44: =per_game!V44 -> 0.9 | N44: =per_game!X44 -> 7.1
C45: =Roster!C45 -> G-F | D45: 13.071 | E45: =per_game!B45 & "-" & D45 -> Reggie Evans-13.071 | F45: =per_game!I45 -> 0.577 | G45: =per_game!L45 -> 0 | H45: =per_game!O45 -> 0.594 | I45: =per_game!R45 -> 8.4 | J45: =per_game!S45 -> 0.7 | K45: =per_game!T45 -> 0.7 | L45: =per_game!U45 -> 0.1 | M45: =per_game!V45 -> 1.1 | N45: =per_game!X45 -> 3.1
C46: =Roster!C46 -> G | D46: 6.095 | E46: =per_game!B46 & "-" & D46 -> Keith Bogans-6.095 | F46: =per_game!I46 -> 0.348 | G46: =per_game!L46 -> 0.314 | H46: =per_game!O46 -> 0.333 | I46: =per_game!R46 -> 1.4 | J46: =per_game!S46 -> 1.1 | K46: =per_game!T46 -> 0.3 | L46: =per_game!U46 -> 0 | M46: =per_game!V46 -> 0.8 | N46: =per_game!X46 -> 3.1
C47: =Roster!C47 -> F | D47: 5.768 | E47: =per_game!B47 & "-" & D47 -> Mirza Teletovic-5.768 | F47: =per_game!I47 -> 0.318 | G47: =per_game!L47 -> 0.25 | H47: =per_game!O47 -> 0 | I47: =per_game!R47 -> 1.2 | J47: =per_game!S47 -> 0.7 | K47: =per_game!T47 -> 0.3 | L47: =per_game!U47 -> 0 | M47: =per_game!V47 -> 0 | N47: =per_game!X47 -> 3
C48: =Roster!C48 -> F | D48: 4.4 | E48: =per_game!B48 & "-" & D48 -> Tornike Shengelia-4.4 | F48: =per_game!I48 -> 1 | G48: =per_game!L48 -> 1 | H48: =per_game!O48 -> 0.6 | I48: =per_game!R48 -> 0.3 | J48: =per_game!S48 -> 0 | K48: =per_game!T48 -> 0 | L48: =per_game!U48 -> 0 | M48: =per_game!V48 -> 0.5 | N48: =per_game!X48 -> 2
C49: =Roster!C49 -> G | D49: 5.053 | E49: =per_game!B49 & "-" & D49 -> Josh Childress-5.053 | F49: =per_game!I49 -> 0.353 | G49: =per_game!L49 -> 0.5 | H49: =per_game!O49 -> 0.5 | I49: =per_game!R49 -> 1.4 | J49: =per_game!S49 -> 0.5 | K49: =per_game!T49 -> 0.2 | L49: =per_game!U49 -> 0.2 | M49: =per_game!V49 -> 0 | N49: =per_game!X49 -> 1.4
C50: =Roster!C50 -> G | D50: 2.033 | E50: =per_game!B50 & "-" & D50 -> Tyshawn Taylor-2.033 | F50: =per_game!I50 -> 0.333 | G50: =per_game!L50 -> 0 | H50: =per_game!O50 -> 0.5 | I50: =per_game!R50 -> 0 | J50: =per_game!S50 -> 0.2 | K50: =per_game!T50 -> 0.3 | L50: =per_game!U50 -> 0 | M50: =per_game!V50 -> 0.3 | N50: =per_game!X50 -> 1
C51: =Roster!C51 -> 0 | D51: 0 | F51: =per_game!I51 -> 0 | G51: =per_game!L51 -> 0 | H51: =per_game!O51 -> 0 | I51: =per_game!R51 -> 0 | J51: =per_game!S51 -> 0 | K51: =per_game!T51 -> 0 | L51: =per_game!U51 -> 0 | M51: =per_game!V51 -> 0 | N51: =per_game!X51 -> 0
C52: =Roster!C52 -> 0 | D52: 0 | F52: =per_game!I52 -> 0 | G52: =per_game!L52 -> 0 | H52: =per_game!O52 -> 0 | I52: =per_game!R52 -> 0 | J52: =per_game!S52 -> 0 | K52: =per_game!T52 -> 0 | L52: =per_game!U52 -> 0 | M52: =per_game!V52 -> 0 | N52: =per_game!X52 -> 0
C53: =Roster!C53 -> Pos | F53: =per_game!I53 -> FG% | G53: =per_game!L53 -> 3P% | H53: =per_game!O53 -> FT% | I53: =per_game!R53 -> TRB | J53: =per_game!S53 -> AST | K53: =per_game!T53 -> STL | L53: =per_game!U53 -> BLK | M53: =per_game!V53 -> TOV | N53: =per_game!X53 -> PTS
C54: =Roster!C54 -> F | D54: 28.063 | E54: =per_game!B54 & "-" & D54 -> Kemba Walker-28.063 | F54: =per_game!I54 -> 0.401 | G54: =per_game!L54 -> 0.265 | H54: =per_game!O54 -> 0.797 | I54: =per_game!R54 -> 3.9 | J54: =per_game!S54 -> 5.9 | K54: =per_game!T54 -> 2.1 | L54: =per_game!U54 -> 0.5 | M54: =per_game!V54 -> 2.4 | N54: =per_game!X54 -> 16.6
C55: =Roster!C55 -> G | D55: 24.297 | E55: =per_game!B55 & "-" & D55 -> Ramon Sessions-24.297 | F55: =per_game!I55 -> 0.38 | G55: =per_game!L55 -> 0.2 | H55: =per_game!O55 -> 0.817 | I55: =per_game!R55 -> 3.8 | J55: =per_game!S55 -> 4.7 | K55: =per_game!T55 -> 0.9 | L55: =per_game!U55 -> 0 | M55: =per_game!V55 -> 2.1 | N55: =per_game!X55 -> 15.6
C56: =Roster!C56 -> C | D56: 20.89 | E56: =per_game!B56 & "-" & D56 -> Ben Gordon-20.89 | F56: =per_game!I56 -> 0.451 | G56: =per_game!L56 -> 0.486 | H56: =per_game!O56 -> 0.853 | I56: =per_game!R56 -> 2.3 | J56: =per_game!S56 -> 2.9 | K56: =per_game!T56 -> 0.6 | L56: =per_game!U56 -> 0.4 | M56: =per_game!V56 -> 2.1 | N56: =per_game!X56 -> 15
C57: =Roster!C57 -> G | D57: 24.517 | E57: =per_game!B57 & "-" & D57 -> Byron Mullens-24.517 | F57: =per_game!I57 -> 0.374 | G57: =per_game!L57 -> 0.286 | H57: =per_game!O57 -> 0.757 | I57: =per_game!R57 -> 8.4 | J57: =per_game!S57 -> 1.2 | K57: =per_game!T57 -> 1.1 | L57: =per_game!U57 -> 0.8 | M57: =per_game!V57 -> 1.3 | N57: =per_game!X57 -> 12.9
C58: =Roster!C58 -> C | D58: 21.532 | E58: =per_game!B58 & "-" & D58 -> Michael Kidd-Gilchrist-21.532 | F58: =per_game!I58 -> 0.458 | G58: =per_game!L58 -> 0.5 | H58: =per_game!O58 -> 0.774 | I58: =per_game!R58 -> 6.3 | J58: =per_game!S58 -> 1.6 | K58: =per_game!T58 -> 1.1 | L58: =per_game!U58 -> 1.4 | M58: =per_game!V58 -> 1.4 | N58: =per_game!X58 -> 10.8
C59: =Roster!C59 -> G | D59: 16.545 | E59: =per_game!B59 & "-" & D59 -> Gerald Henderson-16.545 | F59: =per_game!I59 -> 0.37 | G59: =per_game!L59 -> 0.5 | H59: =per_game!O59 -> 0.875 | I59: =per_game!R59 -> 1.7 | J59: =per_game!S59 -> 1.7 | K59: =per_game!T59 -> 2 | L59: =per_game!U59 -> 0.7 | M59: =per_game!V59 -> 1.3 | N59: =per_game!X59 -> 10
C60: =Roster!C60 -> G | D60: 13.796 | E60: =per_game!B60 & "-" & D60 -> Jeff Taylor-13.796 | F60: =per_game!I60 -> 0.438 | G60: =per_game!L60 -> 0.385 | H60: =per_game!O60 -> 0.773 | I60: =per_game!R60 -> 2.4 | J60: =per_game!S60 -> 0.9 | K60: =per_game!T60 -> 1.2 | L60: =per_game!U60 -> 0.3 | M60: =per_game!V60 -> 0.9 | N60: =per_game!X60 -> 8.3
C61: =Roster!C61 -> F | D61: 12.89 | E61: =per_game!B61 & "-" & D61 -> Tyrus Thomas-12.89 | F61: =per_game!I61 -> 0.34 | G61: =per_game!L61 -> 0 | H61: =per_game!O61 -> 0.85 | I61: =per_game!R61 -> 3.1 | J61: =per_game!S61 -> 1 | K61: =per_game!T61 -> 0.5 | L61: =per_game!U61 -> 1.4 | M61: =per_game!V61 -> 0.9 | N61: =per_game!X61 -> 6.6
C62: =Roster!C62 -> C | D62: 14.949 | E62: =per_game!B62 & "-" & D62 -> Brendan Haywood-14.949 | F62: =per_game!I62 -> 0.549 | G62: =per_game!L62 -> 0 | H62: =per_game!O62 -> 0.5 | I62: =per_game!R62 -> 6.9 | J62: =per_game!S62 -> 0.7 | K62: =per_game!T62 -> 0.1 | L62: =per_game!U62 -> 1.1 | M62: =per_game!V62 -> 1.4 | N62: =per_game!X62 -> 6.5
C63: =Roster!C63 -> G | D63: 11.609 | E63: =per_game!B63 & "-" & D63 -> Bismack Biyombo-11.609 | F63: =per_game!I63 -> 0.553 | G63: =per_game!L63 -> 0 | H63: =per_game!O63 -> 0.556 | I63: =per_game!R63 -> 5.1 | J63: =per_game!S63 -> 0.1 | K63: =per_game!T63 -> 0.3 | L63: =per_game!U63 -> 1.6 | M63: =per_game!V63 -> 1 | N63: =per_game!X63 -> 4.4
C64: =Roster!C64 -> F | D64: 7.812 | E64: =per_game!B64 & "-" & D64 -> Reggie Williams-7.812 | F64: =per_game!I64 -> 0.462 | G64: =per_game!L64 -> 0.35 | H64: =per_game!O64 -> 1 | I64: =per_game!R64 -> 1.2 | J64: =per_game!S64 -> 0.5 | K64: =per_game!T64 -> 0.7 | L64: =per_game!U64 -> 0 | M64: =per_game!V64 -> 0.5 | N64: =per_game!X64 -> 4.1
C65: =Roster!C65 -> F | D65: 5.083 | E65: =per_game!B65 & "-" & D65 -> Hakim Warrick-5.083 | F65: =per_game!I65 -> 0.133 | G65: =per_game!L65 -> 0 | H65: =per_game!O65 -> 0.75 | I65: =per_game!R65 -> 1.8 | J65: =per_game!S65 -> 0.2 | K65: =per_game!T65 -> 0.2 | L65: =per_game!U65 -> 0.3 | M65: =per_game!V65 -> 0.5 | N65: =per_game!X65 -> 2.2
C66: =Roster!C66 -> G | D66: 3.481 | E66: =per_game!B66 & "-" & D66 -> Cory Higgins-3.481 | F66: =per_game!I66 -> 0.231 | G66: =per_game!L66 -> 0.25 | H66: =per_game!O66 -> 0 | I66: =per_game!R66 -> 0.4 | J66: =per_game!S66 -> 0.8 | K66: =per_game!T66 -> 0.4 | L66: =per_game!U66 -> 0 | M66: =per_game!V66 -> 0 | N66: =per_game!X66 -> 1.4
C67: =Roster!C67 -> F | D67: 2.9 | E67: =per_game!B67 & "-" & D67 -> DeSagana Diop-2.9 | F67: =per_game!I67 -> 0 | G67: =per_game!L67 -> 0 | H67: =per_game!O67 -> 0 | I67: =per_game!R67 -> 1.9 | J67: =per_game!S67 -> 0.3 | K67: =per_game!T67 -> 0.3 | L67: =per_game!U67 -> 0.5 | M67: =per_game!V67 -> 0.1 | N67: =per_game!X67 -> 0
C68: =Roster!C68 -> F | D68: =$B$1*N68+$B$2*I68+$B$3*J68+$B$4*L68+$B$5*K68+$B$6*F68+$B$7*H68+$B$8*G68+$B$9*M68 -> 1 | E68: =per_game!B68 & "-" & D68 -> Matt Carroll-1 | F68: =per_game!I68 -> 0 | G68: =per_game!L68 -> 0 | H68: =per_game!O68 -> 0 | I68: =per_game!R68 -> 0 | J68: =per_game!S68 -> 1 | K68: =per_game!T68 -> 0 | L68: =per_game!U68 -> 0 | M68: =per_game!V68 -> 0 | N68: =per_game!X68 -> 0
C69: =Roster!C69 -> 0 | D69: 0 | F69: =per_game!I69 -> 0 | G69: =per_game!L69 -> 0 | H69: =per_game!O69 -> 0 | I69: =per_game!R69 -> 0 | J69: =per_game!S69 -> 0 | K69: =per_game!T69 -> 0 | L69: =per_game!U69 -> 0 | M69: =per_game!V69 -> 0 | N69: =per_game!X69 -> 0
C70: =Roster!C70 -> 0 | D70: 0 | F70: =per_game!I70 -> 0 | G70: =per_game!L70 -> 0 | H70: =per_game!O70 -> 0 | I70: =per_game!R70 -> 0 | J70: =per_game!S70 -> 0 | K70: =per_game!T70 -> 0 | L70: =per_game!U70 -> 0 | M70: =per_game!V70 -> 0 | N70: =per_game!X70 -> 0
C71: =Roster!C71 -> Pos | F71: =per_game!I71 -> FG% | G71: =per_game!L71 -> 3P% | H71: =per_game!O71 -> FT% | I71: =per_game!R71 -> TRB | J71: =per_game!S71 -> AST | K71: =per_game!T71 -> STL | L71: =per_game!U71 -> BLK | M71: =per_game!V71 -> TOV | N71: =per_game!X71 -> PTS
C72: =Roster!C72 -> G | D72: 28.377 | E72: =per_game!B72 & "-" & D72 -> Luol Deng-28.377 | F72: =per_game!I72 -> 0.462 | G72: =per_game!L72 -> 0.298 | H72: =per_game!O72 -> 0.817 | I72: =per_game!R72 -> 7.4 | J72: =per_game!S72 -> 2.7 | K72: =per_game!T72 -> 0.9 | L72: =per_game!U72 -> 0.3 | M72: =per_game!V72 -> 2.6 | N72: =per_game!X72 -> 18.1
C73: =Roster!C73 -> F-C | D73: 18.96 | E73: =per_game!B73 & "-" & D73 -> Richard Hamilton-18.96 | F73: =per_game!I73 -> 0.455 | G73: =per_game!L73 -> 0.375 | H73: =per_game!O73 -> 0.93 | I73: =per_game!R73 -> 2.3 | J73: =per_game!S73 -> 2.3 | K73: =per_game!T73 -> 0.8 | L73: =per_game!U73 -> 0.1 | M73: =per_game!V73 -> 2.2 | N73: =per_game!X73 -> 13.9
C74: =Roster!C74 -> F | D74: 25.561 | E74: =per_game!B74 & "-" & D74 -> Carlos Boozer-25.561 | F74: =per_game!I74 -> 0.454 | G74: =per_game!L74 -> 0 | H74: =per_game!O74 -> 0.707 | I74: =per_game!R74 -> 9.7 | J74: =per_game!S74 -> 1.9 | K74: =per_game!T74 -> 0.7 | L74: =per_game!U74 -> 0.4 | M74: =per_game!V74 -> 2 | N74: =per_game!X74 -> 13.7
C75: =Roster!C75 -> F | D75: 29.85 | E75: =per_game!B75 & "-" & D75 -> Joakim Noah-29.85 | F75: =per_game!I75 -> 0.472 | G75: =per_game!L75 -> 0 | H75: =per_game!O75 -> 0.778 | I75: =per_game!R75 -> 9.9 | J75: =per_game!S75 -> 4.3 | K75: =per_game!T75 -> 1.4 | L75: =per_game!U75 -> 2.2 | M75: =per_game!V75 -> 2.5 | N75: =per_game!X75 -> 13.3
C76: =Roster!C76 -> F | D76: 17.747 | E76: =per_game!B76 & "-" & D76 -> Nate Robinson-17.747 | F76: =per_game!I76 -> 0.468 | G76: =per_game!L76 -> 0.364 | H76: =per_game!O76 -> 0.815 | I76: =per_game!R76 -> 2.1 | J76: =per_game!S76 -> 3.6 | K76: =per_game!T76 -> 0.9 | L76: =per_game!U76 -> 0 | M76: =per_game!V76 -> 1.7 | N76: =per_game!X76 -> 11.2
C77: =Roster!C77 -> G-F | D77: 14.721 | E77: =per_game!B77 & "-" & D77 -> Taj Gibson-14.721 | F77: =per_game!I77 -> 0.44 | G77: =per_game!L77 -> 0 | H77: =per_game!O77 -> 0.781 | I77: =per_game!R77 -> 4.9 | J77: =per_game!S77 -> 0.9 | K77: =per_game!T77 -> 0.6 | L77: =per_game!U77 -> 1.3 | M77: =per_game!V77 -> 1.2 | N77: =per_game!X77 -> 7
C78: =Roster!C78 -> G | D78: 14.837 | E78: =per_game!B78 & "-" & D78 -> Kirk Hinrich-14.837 | F78: =per_game!I78 -> 0.322 | G78: =per_game!L78 -> 0.29 | H78: =per_game!O78 -> 0.625 | I78: =per_game!R78 -> 2.6 | J78: =per_game!S78 -> 5.6 | K78: =per_game!T78 -> 0.9 | L78: =per_game!U78 -> 0.3 | M78: =per_game!V78 -> 2 | N78: =per_game!X78 -> 6.2
C79: =Roster!C79 -> C | D79: 10.511 | E79: =per_game!B79 & "-" & D79 -> Jimmy Butler-10.511 | F79: =per_game!I79 -> 0.529 | G79: =per_game!L79 -> 0.143 | H79: =per_game!O79 -> 0.839 | I79: =per_game!R79 -> 2.5 | J79: =per_game!S79 -> 0.7 | K79: =per_game!T79 -> 0.5 | L79: =per_game!U79 -> 0.2 | M79: =per_game!V79 -> 0.3 | N79: =per_game!X79 -> 5.4
C80: =Roster!C80 -> C | D80: 8.27 | E80: =per_game!B80 & "-" & D80 -> Marco Belinelli-8.27 | F80: =per_game!I80 -> 0.368 | G80: =per_game!L80 -> 0.407 | H80: =per_game!O80 -> 0.895 | I80: =per_game!R80 -> 0.9 | J80: =per_game!S80 -> 0.7 | K80: =per_game!T80 -> 0.4 | L80: =per_game!U80 -> 0.1 | M80: =per_game!V80 -> 0.5 | N80: =per_game!X80 -> 5
C81: =Roster!C81 -> F | D81: 2.342 | E81: =per_game!B81 & "-" & D81 -> Vladimir Radmanovic-2.342 | F81: =per_game!I81 -> 0.375 | G81: =per_game!L81 -> 0.167 | H81: =per_game!O81 -> 0 | I81: =per_game!R81 -> 0.4 | J81: =per_game!S81 -> 0.2 | K81: =per_game!T81 -> 0 | L81: =per_game!U81 -> 0 | M81: =per_game!V81 -> 0.2 | N81: =per_game!X81 -> 1.4
C82: =Roster!C82 -> G | D82: 3.8 | E82: =per_game!B82 & "-" & D82 -> Marquis Teague-3.8 | F82: =per_game!I82 -> 0.25 | G82: =per_game!L82 -> 0 | H82: =per_game!O82 -> 0.75 | I82: =per_game!R82 -> 0.7 | J82: =per_game!S82 -> 1.2 | K82: =per_game!T82 -> 0 | L82: =per_game!U82 -> 0 | M82: =per_game!V82 -> 0.3 | N82: =per_game!X82 -> 1.2
C83: =Roster!C83 -> G | D83: 4.018 | E83: =per_game!B83 & "-" & D83 -> Nazr Mohammed-4.018 | F83: =per_game!I83 -> 0.118 | G83: =per_game!L83 -> 0 | H83: =per_game!O83 -> 0.5 | I83: =per_game!R83 -> 1.9 | J83: =per_game!S83 -> 0.3 | K83: =per_game!T83 -> 0.2 | L83: =per_game!U83 -> 0.5 | M83: =per_game!V83 -> 0.2 | N83: =per_game!X83 -> 0.7
C84: =Roster!C84 -> 0 | D84: 0 | F84: =per_game!I84 -> 0 | G84: =per_game!L84 -> 0 | H84: =per_game!O84 -> 0 | I84: =per_game!R84 -> 0 | J84: =per_game!S84 -> 0 | K84: =per_game!T84 -> 0 | L84: =per_game!U84 -> 0 | M84: =per_game!V84 -> 0 | N84: =per_game!X84 -> 0
C85: =Roster!C85 -> 0 | D85: 0 | F85: =per_game!I85 -> 0 | G85: =per_game!L85 -> 0 | H85: =per_game!O85 -> 0 | I85: =per_game!R85 -> 0 | J85: =per_game!S85 -> 0 | K85: =per_game!T85 -> 0 | L85: =per_game!U85 -> 0 | M85: =per_game!V85 -> 0 | N85: =per_game!X85 -> 0
C86: =Roster!C86 -> Pos | F86: =per_game!I86 -> FG% | G86: =per_game!L86 -> 3P% | H86: =per_game!O86 -> FT% | I86: =per_game!R86 -> TRB | J86: =per_game!S86 -> AST | K86: =per_game!T86 -> STL | L86: =per_game!U86 -> BLK | M86: =per_game!V86 -> TOV | N86: =per_game!X86 -> PTS
C87: =Roster!C87 -> F | D87: 31.179 | E87: =per_game!B87 & "-" & D87 -> Kyrie Irving-31.179 | F87: =per_game!I87 -> 0.463 | G87: =per_game!L87 -> 0.391 | H87: =per_game!O87 -> 0.825 | I87: =per_game!R87 -> 3.7 | J87: =per_game!S87 -> 5.6 | K87: =per_game!T87 -> 1.1 | L87: =per_game!U87 -> 0.3 | M87: =per_game!V87 -> 4.1 | N87: =per_game!X87 -> 22.9
C88: =Roster!C88 -> G | D88: 21.898 | E88: =per_game!B88 & "-" & D88 -> Dion Waiters-21.898 | F88: =per_game!I88 -> 0.363 | G88: =per_game!L88 -> 0.355 | H88: =per_game!O88 -> 0.78 | I88: =per_game!R88 -> 2.3 | J88: =per_game!S88 -> 3.4 | K88: =per_game!T88 -> 1.2 | L88: =per_game!U88 -> 0.2 | M88: =per_game!V88 -> 1.9 | N88: =per_game!X88 -> 15.2
C89: =Roster!C89 -> G | D89: 35.2 | E89: =per_game!B89 & "-" & D89 -> Anderson Varejao-35.2 | F89: =per_game!I89 -> 0.522 | G89: =per_game!L89 -> 0 | H89: =per_game!O89 -> 0.778 | I89: =per_game!R89 -> 15.4 | J89: =per_game!S89 -> 3.2 | K89: =per_game!T89 -> 1.5 | L89: =per_game!U89 -> 0.4 | M89: =per_game!V89 -> 1.8 | N89: =per_game!X89 -> 15.2
C90: =Roster!C90 -> G | D90: 19.141 | E90: =per_game!B90 & "-" & D90 -> Alonzo Gee-19.141 | F90: =per_game!I90 -> 0.398 | G90: =per_game!L90 -> 0.298 | H90: =per_game!O90 -> 0.845 | I90: =per_game!R90 -> 3.7 | J90: =per_game!S90 -> 2.1 | K90: =per_game!T90 -> 1.7 | L90: =per_game!U90 -> 0.4 | M90: =per_game!V90 -> 2.4 | N90: =per_game!X90 -> 12.1
C91: =Roster!C91 -> F | D91: 17.329 | E91: =per_game!B91 & "-" & D91 -> Jeremy Pargo-17.329 | F91: =per_game!I91 -> 0.421 | G91: =per_game!L91 -> 0.4 | H91: =per_game!O91 -> 0.708 | I91: =per_game!R91 -> 1.9 | J91: =per_game!S91 -> 3.8 | K91: =per_game!T91 -> 0.8 | L91: =per_game!U91 -> 0 | M91: =per_game!V91 -> 2.4 | N91: =per_game!X91 -> 11.7
C92: =Roster!C92 -> G | D92: 19.233 | E92: =per_game!B92 & "-" & D92 -> Tristan Thompson-19.233 | F92: =per_game!I92 -> 0.445 | G92: =per_game!L92 -> 0 | H92: =per_game!O92 -> 0.588 | I92: =per_game!R92 -> 8.1 | J92: =per_game!S92 -> 1.2 | K92: =per_game!T92 -> 0.8 | L92: =per_game!U92 -> 0.6 | M92: =per_game!V92 -> 1.4 | N92: =per_game!X92 -> 8.9
C93: =Roster!C93 -> G | D93: 14.259 | E93: =per_game!B93 & "-" & D93 -> Daniel Gibson-14.259 | F93: =per_game!I93 -> 0.389 | G93: =per_game!L93 -> 0.392 | H93: =per_game!O93 -> 0.778 | I93: =per_game!R93 -> 1.7 | J93: =per_game!S93 -> 2.1 | K93: =per_game!T93 -> 1 | L93: =per_game!U93 -> 0.1 | M93: =per_game!V93 -> 0.7 | N93: =per_game!X93 -> 8.5
C94: =Roster!C94 -> F | D94: 13.095 | E94: =per_game!B94 & "-" & D94 -> Tyler Zeller-13.095 | F94: =per_game!I94 -> 0.447 | G94: =per_game!L94 -> 0 | H94: =per_game!O94 -> 0.548 | I94: =per_game!R94 -> 4.8 | J94: =per_game!S94 -> 0.9 | K94: =per_game!T94 -> 0.4 | L94: =per_game!U94 -> 0.6 | M94: =per_game!V94 -> 1.2 | N94: =per_game!X94 -> 6.6
C95: =Roster!C95 -> G | D95: 11.078 | E95: =per_game!B95 & "-" & D95 -> Omri Casspi-11.078 | F95: =per_game!I95 -> 0.446 | G95: =per_game!L95 -> 0.5 | H95: =per_game!O95 -> 0.632 | I95: =per_game!R95 -> 2.5 | J95: =per_game!S95 -> 0.4 | K95: =per_game!T95 -> 0.6 | L95: =per_game!U95 -> 0.4 | M95: =per_game!V95 -> 0.7 | N95: =per_game!X95 -> 6.3
C96: =Roster!C96 -> F | D96: 9.359 | E96: =per_game!B96 & "-" & D96 -> C.J. Miles-9.359 | F96: =per_game!I96 -> 0.303 | G96: =per_game!L96 -> 0.256 | H96: =per_game!O96 -> 1 | I96: =per_game!R96 -> 2.1 | J96: =per_game!S96 -> 0.7 | K96: =per_game!T96 -> 0.4 | L96: =per_game!U96 -> 0.1 | M96: =per_game!V96 -> 1.3 | N96: =per_game!X96 -> 5.8
C97: =Roster!C97 -> F-C | D97: 7.389 | E97: =per_game!B97 & "-" & D97 -> Donald Sloan-7.389 | F97: =per_game!I97 -> 0.366 | G97: =per_game!L97 -> 0.273 | H97: =per_game!O97 -> 0.75 | I97: =per_game!R97 -> 1.1 | J97: =per_game!S97 -> 2 | K97: =per_game!T97 -> 0.1 | L97: =per_game!U97 -> 0 | M97: =per_game!V97 -> 0.7 | N97: =per_game!X97 -> 3.5
C98: =Roster!C98 -> G | D98: 6.36 | E98: =per_game!B98 & "-" & D98 -> Samardo Samuels-6.36 | F98: =per_game!I98 -> 0.389 | G98: =per_game!L98 -> 0 | H98: =per_game!O98 -> 0.571 | I98: =per_game!R98 -> 1.7 | J98: =per_game!S98 -> 0.4 | K98: =per_game!T98 -> 0.2 | L98: =per_game!U98 -> 0.3 | M98: =per_game!V98 -> 0.5 | N98: =per_game!X98 -> 3.3
C99: =Roster!C99 -> F | D99: 5.866 | E99: =per_game!B99 & "-" & D99 -> Jon Leuer-5.866 | F99: =per_game!I99 -> 0.333 | G99: =per_game!L99 -> 0 | H99: =per_game!O99 -> 0.333 | I99: =per_game!R99 -> 2 | J99: =per_game!S99 -> 0.6 | K99: =per_game!T99 -> 0.2 | L99: =per_game!U99 -> 0 | M99: =per_game!V99 -> 0.8 | N99: =per_game!X99 -> 3.2
C100: =Roster!C100 -> F-C | D100: 1.343 | E100: =per_game!B100 & "-" & D100 -> Luke Walton-1.343 | F100: =per_game!I100 -> 0.143 | G100: =per_game!L100 -> 0 | H100: =per_game!O100 -> 0 | I100: =per_game!R100 -> 0.6 | J100: =per_game!S100 -> 0.4 | K100: =per_game!T100 -> 0.4 | L100: =per_game!U100 -> 0 | M100: =per_game!V100 -> 0.6 | N100: =per_game!X100 -> 0.4
C101: =Roster!C101 -> 0 | D101: 0 | F101: =per_game!I101 -> 0 | G101: =per_game!L101 -> 0 | H101: =per_game!O101 -> 0 | I101: =per_game!R101 -> 0 | J101: =per_game!S101 -> 0 | K101: =per_game!T101 -> 0 | L101: =per_game!U101 -> 0 | M101: =per_game!V101 -> 0 | N101: =per_game!X101 -> 0
C102: =Roster!C102 -> 0 | D102: 0 | F102: =per_game!I102 -> 0 | G102: =per_game!L102 -> 0 | H102: =per_game!O102 -> 0 | I102: =per_game!R102 -> 0 | J102: =per_game!S102 -> 0 | K102: =per_game!T102 -> 0 | L102: =per_game!U102 -> 0 | M102: =per_game!V102 -> 0 | N102: =per_game!X102 -> 0
C103: =Roster!C103 -> Pos | F103: =per_game!I103 -> FG% | G103: =per_game!L103 -> 3P% | H103: =per_game!O103 -> FT% | I103: =per_game!R103 -> TRB | J103: =per_game!S103 -> AST | K103: =per_game!T103 -> STL | L103: =per_game!U103 -> BLK | M103: =per_game!V103 -> TOV | N103: =per_game!X103 -> PTS
C104: =Roster!C104 -> G | D104: 27.251 | E104: =per_game!B104 & "-" & D104 -> O.J. Mayo-27.251 | F104: =per_game!I104 -> 0.476 | G104: =per_game!L104 -> 0.527 | H104: =per_game!O104 -> 0.848 | I104: =per_game!R104 -> 3.5 | J104: =per_game!S104 -> 3.2 | K104: =per_game!T104 -> 0.7 | L104: =per_game!U104 -> 0.2 | M104: =per_game!V104 -> 2.4 | N104: =per_game!X104 -> 20.2
C105: =Roster!C105 -> F | D105: 22.029 | E105: =per_game!B105 & "-" & D105 -> Chris Kaman-22.029 | F105: =per_game!I105 -> 0.518 | G105: =per_game!L105 -> 0 | H105: =per_game!O105 -> 0.811 | I105: =per_game!R105 -> 6.9 | J105: =per_game!S105 -> 1 | K105: =per_game!T105 -> 0.2 | L105: =per_game!U105 -> 1.1 | M105: =per_game!V105 -> 2.1 | N105: =per_game!X105 -> 13.6
C106: =Roster!C106 -> G-F | D106: 19.7 | E106: =per_game!B106 & "-" & D106 -> Vince Carter-19.7 | F106: =per_game!I106 -> 0.426 | G106: =per_game!L106 -> 0.424 | H106: =per_game!O106 -> 0.75 | I106: =per_game!R106 -> 3.1 | J106: =per_game!S106 -> 1.7 | K106: =per_game!T106 -> 0.8 | L106: =per_game!U106 -> 0.5 | M106: =per_game!V106 -> 1.1 | N106: =per_game!X106 -> 13.1
C107: =Roster!C107 -> G | D107: 21.756 | E107: =per_game!B107 & "-" & D107 -> Darren Collison-21.756 | F107: =per_game!I107 -> 0.436 | G107: =per_game!L107 -> 0.333 | H107: =per_game!O107 -> 0.887 | I107: =per_game!R107 -> 2.3 | J107: =per_game!S107 -> 6.4 | K107: =per_game!T107 -> 1.4 | L107: =per_game!U107 -> 0 | M107: =per_game!V107 -> 2.4 | N107: =per_game!X107 -> 12.4
C108: =Roster!C108 -> F | D108: 20.351 | E108: =per_game!B108 & "-" & D108 -> Shawn Marion-20.351 | F108: =per_game!I108 -> 0.484 | G108: =per_game!L108 -> 0.385 | H108: =per_game!O108 -> 0.882 | I108: =per_game!R108 -> 7.4 | J108: =per_game!S108 -> 2.8 | K108: =per_game!T108 -> 0.8 | L108: =per_game!U108 -> 0.7 | M108: =per_game!V108 -> 2.3 | N108: =per_game!X108 -> 9.2
C109: =Roster!C109 -> G | D109: 14.583 | E109: =per_game!B109 & "-" & D109 -> Brandan Wright-14.583 | F109: =per_game!I109 -> 0.647 | G109: =per_game!L109 -> 0 | H109: =per_game!O109 -> 0.636 | I109: =per_game!R109 -> 3.3 | J109: =per_game!S109 -> 0.8 | K109: =per_game!T109 -> 0.5 | L109: =per_game!U109 -> 0.9 | M109: =per_game!V109 -> 0.7 | N109: =per_game!X109 -> 8.5
C110: =Roster!C110 -> C | D110: 17.29 | E110: =per_game!B110 & "-" & D110 -> Elton Brand-17.29 | F110: =per_game!I110 -> 0.39 | G110: =per_game!L110 -> 0 | H110: =per_game!O110 -> 0.8 | I110: =per_game!R110 -> 6.4 | J110: =per_game!S110 -> 1.6 | K110: =per_game!T110 -> 0.8 | L110: =per_game!U110 -> 1.4 | M110: =per_game!V110 -> 1 | N110: =per_game!X110 -> 6.9
C111: =Roster!C111 -> G | D111: 12.521 | E111: =per_game!B111 & "-" & D111 -> Jae Crowder-12.521 | F111: =per_game!I111 -> 0.423 | G111: =per_game!L111 -> 0.327 | H111: =per_game!O111 -> 0.471 | I111: =per_game!R111 -> 2.7 | J111: =per_game!S111 -> 1.2 | K111: =per_game!T111 -> 1.1 | L111: =per_game!U111 -> 0.3 | M111: =per_game!V111 -> 0.8 | N111: =per_game!X111 -> 6.8
C112: =Roster!C112 -> C | D112: 10.784 | E112: =per_game!B112 & "-" & D112 -> Troy Murphy-10.784 | F112: =per_game!I112 -> 0.361 | G112: =per_game!L112 -> 0.314 | H112: =per_game!O112 -> 0.909 | I112: =per_game!R112 -> 3.5 | J112: =per_game!S112 -> 0.5 | K112: =per_game!T112 -> 0.7 | L112: =per_game!U112 -> 0.4 | M112: =per_game!V112 -> 0.5 | N112: =per_game!X112 -> 4.6
C113: =Roster!C113 -> G | D113: 5.75 | E113: =per_game!B113 & "-" & D113 -> Eddy Curry-5.75 | F113: =per_game!I113 -> 0.5 | G113: =per_game!L113 -> 0 | H113: =per_game!O113 -> 0.25 | I113: =per_game!R113 -> 2 | J113: =per_game!S113 -> 0 | K113: =per_game!T113 -> 0 | L113: =per_game!U113 -> 0 | M113: =per_game!V113 -> 1.5 | N113: =per_game!X113 -> 4.5
C114: =Roster!C114 -> G | D114: 10.277 | E114: =per_game!B114 & "-" & D114 -> Rodrigue Beaubois-10.277 | F114: =per_game!I114 -> 0.314 | G114: =per_game!L114 -> 0.263 | H114: =per_game!O114 -> 0.8 | I114: =per_game!R114 -> 1.8 | J114: =per_game!S114 -> 2.7 | K114: =per_game!T114 -> 0.7 | L114: =per_game!U114 -> 0.1 | M114: =per_game!V114 -> 0.9 | N114: =per_game!X114 -> 4.5
C115: =Roster!C115 -> C | D115: 9.782 | E115: =per_game!B115 & "-" & D115 -> Bernard James-9.782 | F115: =per_game!I115 -> 0.5 | G115: =per_game!L115 -> 0 | H115: =per_game!O115 -> 0.682 | I115: =per_game!R115 -> 3.8 | J115: =per_game!S115 -> 0 | K115: =per_game!T115 -> 0.2 | L115: =per_game!U115 -> 0.9 | M115: =per_game!V115 -> 0.5 | N115: =per_game!X115 -> 4.2
C116: =Roster!C116 -> F | D116: 10.133 | E116: =per_game!B116 & "-" & D116 -> Dominique Jones-10.133 | F116: =per_game!I116 -> 0.333 | G116: =per_game!L116 -> 0 | H116: =per_game!O116 -> 0.5 | I116: =per_game!R116 -> 2.1 | J116: =per_game!S116 -> 3.6 | K116: =per_game!T116 -> 0.8 | L116: =per_game!U116 -> 0.1 | M116: =per_game!V116 -> 1.5 | N116: =per_game!X116 -> 4.2
C117: =Roster!C117 -> G | D117: 6.022 | E117: =per_game!B117 & "-" & D117 -> Dahntay Jones-6.022 | F117: =per_game!I117 -> 0.316 | G117: =per_game!L117 -> 0.273 | H117: =per_game!O117 -> 0.833 | I117: =per_game!R117 -> 1.5 | J117: =per_game!S117 -> 0.4 | K117: =per_game!T117 -> 0.2 | L117: =per_game!U117 -> 0.1 | M117: =per_game!V117 -> 0.4 | N117: =per_game!X117 -> 2.8
C118: =Roster!C118 -> F | D118: 6.125 | E118: =per_game!B118 & "-" & D118 -> Derek Fisher-6.125 | F118: =per_game!I118 -> 0.125 | G118: =per_game!L118 -> 0 | H118: =per_game!O118 -> 0 | I118: =per_game!R118 -> 2 | J118: =per_game!S118 -> 3 | K118: =per_game!T118 -> 2 | L118: =per_game!U118 -> 0 | M118: =per_game!V118 -> 3 | N118: =per_game!X118 -> 2
C119: =Roster!C119 -> F | D119: 3.231 | F119: =per_game!I119 -> 0.364 | G119: =per_game!L119 -> 0.667 | H119: =per_game!O119 -> 0 | I119: =per_game!R119 -> 0.3 | J119: =per_game!S119 -> 0.2 | K119: =per_game!T119 -> 0.2 | L119: =per_game!U119 -> 0 | M119: =per_game!V119 -> 0.2 | N119: =per_game!X119 -> 1.7
C120: =Roster!C120 -> 0 | D120: 0 | F120: =per_game!I120 -> 0 | G120: =per_game!L120 -> 0 | H120: =per_game!O120 -> 0 | I120: =per_game!R120 -> 0 | J120: =per_game!S120 -> 0 | K120: =per_game!T120 -> 0 | L120: =per_game!U120 -> 0 | M120: =per_game!V120 -> 0 | N120: =per_game!X120 -> 0
C121: =Roster!C121 -> 0 | D121: 0 | F121: =per_game!I121 -> 0 | G121: =per_game!L121 -> 0 | H121: =per_game!O121 -> 0 | I121: =per_game!R121 -> 0 | J121: =per_game!S121 -> 0 | K121: =per_game!T121 -> 0 | L121: =per_game!U121 -> 0 | M121: =per_game!V121 -> 0 | N121: =per_game!X121 -> 0
C122: =Roster!C122 -> Pos | E122: =per_game!B122 & "-" & D122 -> Player- | F122: =per_game!I122 -> FG% | G122: =per_game!L122 -> 3P% | H122: =per_game!O122 -> FT% | I122: =per_game!R122 -> TRB | J122: =per_game!S122 -> AST | K122: =per_game!T122 -> STL | L122: =per_game!U122 -> BLK | M122: =per_game!V122 -> TOV | N122: =per_game!X122 -> PTS
C123: =Roster!C123 -> F | D123: 25.062 | E123: =per_game!B123 & "-" & D123 -> Danilo Gallinari-25.062 | F123: =per_game!I123 -> 0.385 | G123: =per_game!L123 -> 0.29 | H123: =per_game!O123 -> 0.787 | I123: =per_game!R123 -> 6.1 | J123: =per_game!S123 -> 2.4 | K123: =per_game!T123 -> 0.6 | L123: =per_game!U123 -> 0.6 | M123: =per_game!V123 -> 1.6 | N123: =per_game!X123 -> 15.5
C124: =Roster!C124 -> F | D124: 24.829 | E124: =per_game!B124 & "-" & D124 -> Andre Iguodala-24.829 | F124: =per_game!I124 -> 0.457 | G124: =per_game!L124 -> 0.388 | H124: =per_game!O124 -> 0.684 | I124: =per_game!R124 -> 5.5 | J124: =per_game!S124 -> 3.8 | K124: =per_game!T124 -> 1.1 | L124: =per_game!U124 -> 0.7 | M124: =per_game!V124 -> 2.7 | N124: =per_game!X124 -> 14.9
C125: =Roster!C125 -> F | D125: 23.276 | E125: =per_game!B125 & "-" & D125 -> Ty Lawson-23.276 | F125: =per_game!I125 -> 0.403 | G125: =per_game!L125 -> 0.28 | H125: =per_game!O125 -> 0.593 | I125: =per_game!R125 -> 2.7 | J125: =per_game!S125 -> 7.2 | K125: =per_game!T125 -> 1.9 | L125: =per_game!U125 -> 0.1 | M125: =per_game!V125 -> 3.3 | N125: =per_game!X125 -> 13.4
C126: =Roster!C126 -> G-F | D126: 26.143 | E126: =per_game!B126 & "-" & D126 -> Kenneth Faried-26.143 | F126: =per_game!I126 -> 0.561 | G126: =per_game!L126 -> 0 | H126: =per_game!O126 -> 0.582 | I126: =per_game!R126 -> 10.5 | J126: =per_game!S126 -> 0.7 | K126: =per_game!T126 -> 0.9 | L126: =per_game!U126 -> 1.1 | M126: =per_game!V126 -> 1.4 | N126: =per_game!X126 -> 13.2
C127: =Roster!C127 -> F | D127: 19.082 | E127: =per_game!B127 & "-" & D127 -> JaVale McGee-19.082 | F127: =per_game!I127 -> 0.555 | G127: =per_game!L127 -> 0 | H127: =per_game!O127 -> 0.627 | I127: =per_game!R127 -> 5.7 | J127: =per_game!S127 -> 0.6 | K127: =per_game!T127 -> 0.2 | L127: =per_game!U127 -> 1.8 | M127: =per_game!V127 -> 1.2 | N127: =per_game!X127 -> 10.8
C128: =Roster!C128 -> G-F | D128: 16.383 | E128: =per_game!B128 & "-" & D128 -> Corey Brewer-16.383 | F128: =per_game!I128 -> 0.413 | G128: =per_game!L128 -> 0.38 | H128: =per_game!O128 -> 0.69 | I128: =per_game!R128 -> 3.1 | J128: =per_game!S128 -> 0.7 | K128: =per_game!T128 -> 1.4 | L128: =per_game!U128 -> 0.3 | M128: =per_game!V128 -> 1.1 | N128: =per_game!X128 -> 10.5
C129: =Roster!C129 -> G-F | D129: 16.492 | E129: =per_game!B129 & "-" & D129 -> Andre Miller-16.492 | F129: =per_game!I129 -> 0.471 | G129: =per_game!L129 -> 0.267 | H129: =per_game!O129 -> 0.854 | I129: =per_game!R129 -> 2.8 | J129: =per_game!S129 -> 5.1 | K129: =per_game!T129 -> 0.8 | L129: =per_game!U129 -> 0.2 | M129: =per_game!V129 -> 2.4 | N129: =per_game!X129 -> 8.4
C130: =Roster!C130 -> C | D130: 11.472 | E130: =per_game!B130 & "-" & D130 -> Jordan Hamilton-11.472 | F130: =per_game!I130 -> 0.429 | G130: =per_game!L130 -> 0.407 | H130: =per_game!O130 -> 0.636 | I130: =per_game!R130 -> 2.9 | J130: =per_game!S130 -> 0.8 | K130: =per_game!T130 -> 0.3 | L130: =per_game!U130 -> 0.2 | M130: =per_game!V130 -> 0.7 | N130: =per_game!X130 -> 6.5
C131: =Roster!C131 -> G | D131: 11.563 | E131: =per_game!B131 & "-" & D131 -> Wilson Chandler-11.563 | F131: =per_game!I131 -> 0.313 | G131: =per_game!L131 -> 0.25 | H131: =per_game!O131 -> 0.5 | I131: =per_game!R131 -> 5 | J131: =per_game!S131 -> 0 | K131: =per_game!T131 -> 0 | L131: =per_game!U131 -> 0.3 | M131: =per_game!V131 -> 1.3 | N131: =per_game!X131 -> 6.5
C132: =Roster!C132 -> C | D132: =$B$1*N132+$B$2*I132+$B$3*J132+$B$4*L132+$B$5*K132+$B$6*F132+$B$7*H132+$B$8*G132+$B$9*M132 -> 15.259 | E132: =per_game!B132 & "-" & D132 -> Kosta Koufos-15.259 | F132: =per_game!I132 -> 0.521 | G132: =per_game!L132 -> 0 | H132: =per_game!O132 -> 0.538 | I132: =per_game!R132 -> 5.9 | J132: =per_game!S132 -> 0.5 | K132: =per_game!T132 -> 0.6 | L132: =per_game!U132 -> 1.6 | M132: =per_game!V132 -> 0.7 | N132: =per_game!X132 -> 6.3
C133: =Roster!C133 -> G | D133: 4.999 | E133: =per_game!B133 & "-" & D133 -> Evan Fournier-4.999 | F133: =per_game!I133 -> 0.526 | G133: =per_game!L133 -> 0.273 | H133: =per_game!O133 -> 0.5 | I133: =per_game!R133 -> 0.4 | J133: =per_game!S133 -> 0.9 | K133: =per_game!T133 -> 0 | L133: =per_game!U133 -> 0 | M133: =per_game!V133 -> 1 | N133: =per_game!X133 -> 3.4
C134: =Roster!C134 -> C | D134: 8.5 | E134: =per_game!B134 & "-" & D134 -> Timofey Mozgov-8.5 | F134: =per_game!I134 -> 0.6 | G134: =per_game!L134 -> 0 | H134: =per_game!O134 -> 1 | I134: =per_game!R134 -> 3.3 | J134: =per_game!S134 -> 0.3 | K134: =per_game!T134 -> 0.3 | L134: =per_game!U134 -> 0.6 | M134: =per_game!V134 -> 0.7 | N134: =per_game!X134 -> 3.1
C135: =Roster!C135 -> F | D135: 3.033 | F135: =per_game!I135 -> 0.333 | G135: =per_game!L135 -> 0 | H135: =per_game!O135 -> 0 | I135: =per_game!R135 -> 1 | J135: =per_game!S135 -> 1 | K135: =per_game!T135 -> 0 | L135: =per_game!U135 -> 0.3 | M135: =per_game!V135 -> 0.3 | N135: =per_game!X135 -> 0.7
C136: =Roster!C136 -> 0 | D136: 0 | F136: =per_game!I136 -> 0 | G136: =per_game!L136 -> 0 | H136: =per_game!O136 -> 0 | I136: =per_game!R136 -> 0 | J136: =per_game!S136 -> 0 | K136: =per_game!T136 -> 0 | L136: =per_game!U136 -> 0 | M136: =per_game!V136 -> 0 | N136: =per_game!X136 -> 0
C137: =Roster!C137 -> 0 | D137: 0 | F137: =per_game!I137 -> 0 | G137: =per_game!L137 -> 0 | H137: =per_game!O137 -> 0 | I137: =per_game!R137 -> 0 | J137: =per_game!S137 -> 0 | K137: =per_game!T137 -> 0 | L137: =per_game!U137 -> 0 | M137: =per_game!V137 -> 0 | N137: =per_game!X137 -> 0
C138: =Roster!C138 -> Pos | E138: =per_game!B138 & "-" & D138 -> Player- | F138: =per_game!I138 -> FG% | G138: =per_game!L138 -> 3P% | H138: =per_game!O138 -> FT% | I138: =per_game!R138 -> TRB | J138: =per_game!S138 -> AST | K138: =per_game!T138 -> STL | L138: =per_game!U138 -> BLK | M138: =per_game!V138 -> TOV | N138: =per_game!X138 -> PTS
C139: =Roster!C139 -> G | D139: 29.461 | E139: =per_game!B139 & "-" & D139 -> Greg Monroe-29.461 | F139: =per_game!I139 -> 0.463 | G139: =per_game!L139 -> 0 | H139: =per_game!O139 -> 0.698 | I139: =per_game!R139 -> 9.9 | J139: =per_game!S139 -> 3.5 | K139: =per_game!T139 -> 1.7 | L139: =per_game!U139 -> 0.8 | M139: =per_game!V139 -> 3.3 | N139: =per_game!X139 -> 15.7
C140: =Roster!C140 -> F | D140: 21.221 | E140: =per_game!B140 & "-" & D140 -> Brandon Knight-21.221 | F140: =per_game!I140 -> 0.422 | G140: =per_game!L140 -> 0.408 | H140: =per_game!O140 -> 0.791 | I140: =per_game!R140 -> 3.6 | J140: =per_game!S140 -> 5.3 | K140: =per_game!T140 -> 0.5 | L140: =per_game!U140 -> 0.1 | M140: =per_game!V140 -> 3.4 | N140: =per_game!X140 -> 13.5
C141: =Roster!C141 -> C | D141: 20.298 | E141: =per_game!B141 & "-" & D141 -> Tayshaun Prince-20.298 | F141: =per_game!I141 -> 0.459 | G141: =per_game!L141 -> 0.429 | H141: =per_game!O141 -> 0.81 | I141: =per_game!R141 -> 4.2 | J141: =per_game!S141 -> 2.4 | K141: =per_game!T141 -> 0.5 | L141: =per_game!U141 -> 0.3 | M141: =per_game!V141 -> 1.1 | N141: =per_game!X141 -> 12.3
C142: =Roster!C142 -> G | D142: 16.728 | E142: =per_game!B142 & "-" & D142 -> Kyle Singler-16.728 | F142: =per_game!I142 -> 0.504 | G142: =per_game!L142 -> 0.449 | H142: =per_game!O142 -> 0.775 | I142: =per_game!R142 -> 3.6 | J142: =per_game!S142 -> 1 | K142: =per_game!T142 -> 0.5 | L142: =per_game!U142 -> 0.6 | M142: =per_game!V142 -> 1 | N142: =per_game!X142 -> 10.3
C143: =Roster!C143 -> F | D143: 16.944 | E143: =per_game!B143 & "-" & D143 -> Rodney Stuckey-16.944 | F143: =per_game!I143 -> 0.347 | G143: =per_game!L143 -> 0.2 | H143: =per_game!O143 -> 0.797 | I143: =per_game!R143 -> 3 | J143: =per_game!S143 -> 3.7 | K143: =per_game!T143 -> 0.3 | L143: =per_game!U143 -> 0.3 | M143: =per_game!V143 -> 1.3 | N143: =per_game!X143 -> 9.6
C144: =Roster!C144 -> G | D144: 17.9 | E144: =per_game!B144 & "-" & D144 -> Jason Maxiell-17.9 | F144: =per_game!I144 -> 0.511 | G144: =per_game!L144 -> 0 | H144: =per_game!O144 -> 0.689 | I144: =per_game!R144 -> 6.5 | J144: =per_game!S144 -> 0.7 | K144: =per_game!T144 -> 0.4 | L144: =per_game!U144 -> 1.6 | M144: =per_game!V144 -> 1.4 | N144: =per_game!X144 -> 8.9
C145: =Roster!C145 -> F | D145: 11.49 | E145: =per_game!B145 & "-" & D145 -> Charlie Villanueva-11.49 | F145: =per_game!I145 -> 0.404 | G145: =per_game!L145 -> 0.364 | H145: =per_game!O145 -> 0.222 | I145: =per_game!R145 -> 2.6 | J145: =per_game!S145 -> 0.9 | K145: =per_game!T145 -> 0.4 | L145: =per_game!U145 -> 0.3 | M145: =per_game!V145 -> 0.4 | N145: =per_game!X145 -> 6.7
C146: =Roster!C146 -> F | D146: 15.333 | E146: =per_game!B146 & "-" & D146 -> Andre Drummond-15.333 | F146: =per_game!I146 -> 0.551 | G146: =per_game!L146 -> 0.5 | H146: =per_game!O146 -> 0.382 | I146: =per_game!R146 -> 6.2 | J146: =per_game!S146 -> 0.5 | K146: =per_game!T146 -> 0.8 | L146: =per_game!U146 -> 1.3 | M146: =per_game!V146 -> 0.8 | N146: =per_game!X146 -> 5.9
C147: =Roster!C147 -> F | D147: 10.896 | E147: =per_game!B147 & "-" & D147 -> Jonas Jerebko-10.896 | F147: =per_game!I147 -> 0.359 | G147: =per_game!L147 -> 0.2 | H147: =per_game!O147 -> 0.737 | I147: =per_game!R147 -> 2.9 | J147: =per_game!S147 -> 0.5 | K147: =per_game!T147 -> 0.9 | L147: =per_game!U147 -> 0.2 | M147: =per_game!V147 -> 0.7 | N147: =per_game!X147 -> 5.8
C148: =Roster!C148 -> F-C | D148: 9.979 | E148: =per_game!B148 & "-" & D148 -> Will Bynum-9.979 | F148: =per_game!I148 -> 0.374 | G148: =per_game!L148 -> 0.2 | H148: =per_game!O148 -> 0.905 | I148: =per_game!R148 -> 0.9 | J148: =per_game!S148 -> 2.5 | K148: =per_game!T148 -> 0.6 | L148: =per_game!U148 -> 0.1 | M148: =per_game!V148 -> 1.2 | N148: =per_game!X148 -> 5.6
C149: =Roster!C149 -> F | D149: 8.666 | E149: =per_game!B149 & "-" & D149 -> Corey Maggette-8.666 | F149: =per_game!I149 -> 0.383 | G149: =per_game!L149 -> 0.357 | H149: =per_game!O149 -> 0.826 | I149: =per_game!R149 -> 1 | J149: =per_game!S149 -> 1.4 | K149: =per_game!T149 -> 0.4 | L149: =per_game!U149 -> 0.1 | M149: =per_game!V149 -> 1.3 | N149: =per_game!X149 -> 5.5
C150: =Roster!C150 -> F | D150: 6.379 | E150: =per_game!B150 & "-" & D150 -> Kim English-6.379 | F150: =per_game!I150 -> 0.379 | G150: =per_game!L150 -> 0.5 | H150: =per_game!O150 -> 1 | I150: =per_game!R150 -> 0.5 | J150: =per_game!S150 -> 0.7 | K150: =per_game!T150 -> 0.3 | L150: =per_game!U150 -> 0.2 | M150: =per_game!V150 -> 0.4 | N150: =per_game!X150 -> 3.2
C151: =Roster!C151 -> G | D151: 4.823 | E151: =per_game!B151 & "-" & D151 -> Austin Daye-4.823 | F151: =per_game!I151 -> 0.556 | G151: =per_game!L151 -> 0.667 | H151: =per_game!O151 -> 0 | I151: =per_game!R151 -> 1 | J151: =per_game!S151 -> 0.4 | K151: =per_game!T151 -> 0 | L151: =per_game!U151 -> 0 | M151: =per_game!V151 -> 0.2 | N151: =per_game!X151 -> 2.4
C152: =Roster!C152 -> F | D152: 3.7 | F152: =per_game!I152 -> 0.333 | G152: =per_game!L152 -> 0 | H152: =per_game!O152 -> 0.667 | I152: =per_game!R152 -> 0 | J152: =per_game!S152 -> 0.7 | K152: =per_game!T152 -> 0.7 | L152: =per_game!U152 -> 0 | M152: =per_game!V152 -> 0 | N152: =per_game!X152 -> 1.3
C153: =Roster!C153 -> 0 | D153: 0 | F153: =per_game!I153 -> 0 | G153: =per_game!L153 -> 0 | H153: =per_game!O153 -> 0 | I153: =per_game!R153 -> 0 | J153: =per_game!S153 -> 0 | K153: =per_game!T153 -> 0 | L153: =per_game!U153 -> 0 | M153: =per_game!V153 -> 0 | N153: =per_game!X153 -> 0
C154: =Roster!C154 -> 0 | D154: 0 | F154: =per_game!I154 -> 0 | G154: =per_game!L154 -> 0 | H154: =per_game!O154 -> 0 | I154: =per_game!R154 -> 0 | J154: =per_game!S154 -> 0 | K154: =per_game!T154 -> 0 | L154: =per_game!U154 -> 0 | M154: =per_game!V154 -> 0 | N154: =per_game!X154 -> 0
C155: =Roster!C155 -> Pos | E155: =per_game!B155 & "-" & D155 -> Player- | F155: =per_game!I155 -> FG% | G155: =per_game!L155 -> 3P% | H155: =per_game!O155 -> FT% | I155: =per_game!R155 -> TRB | J155: =per_game!S155 -> AST | K155: =per_game!T155 -> STL | L155: =per_game!U155 -> BLK | M155: =per_game!V155 -> TOV | N155: =per_game!X155 -> PTS
C156: =Roster!C156 -> F | D156: 29.425 | E156: =per_game!B156 & "-" & D156 -> Stephen Curry-29.425 | F156: =per_game!I156 -> 0.418 | G156: =per_game!L156 -> 0.413 | H156: =per_game!O156 -> 0.894 | I156: =per_game!R156 -> 3.9 | J156: =per_game!S156 -> 6.4 | K156: =per_game!T156 -> 1.6 | L156: =per_game!U156 -> 0.1 | M156: =per_game!V156 -> 3.2 | N156: =per_game!X156 -> 18.9
C157: =Roster!C157 -> G | D157: 31.959 | E157: =per_game!B157 & "-" & D157 -> David Lee-31.959 | F157: =per_game!I157 -> 0.49 | G157: =per_game!L157 -> 0 | H157: =per_game!O157 -> 0.769 | I157: =per_game!R157 -> 10.7 | J157: =per_game!S157 -> 3.8 | K157: =per_game!T157 -> 1.1 | L157: =per_game!U157 -> 0.3 | M157: =per_game!V157 -> 2.6 | N157: =per_game!X157 -> 17.4
C158: =Roster!C158 -> C | D158: 21.797 | E158: =per_game!B158 & "-" & D158 -> Klay Thompson-21.797 | F158: =per_game!I158 -> 0.375 | G158: =per_game!L158 -> 0.322 | H158: =per_game!O158 -> 0.8 | I158: =per_game!R158 -> 4.1 | J158: =per_game!S158 -> 2.2 | K158: =per_game!T158 -> 0.4 | L158: =per_game!U158 -> 0.4 | M158: =per_game!V158 -> 2.2 | N158: =per_game!X158 -> 15.4
C159: =Roster!C159 -> C | D159: 22.565 | E159: =per_game!B159 & "-" & D159 -> Carl Landry-22.565 | F159: =per_game!I159 -> 0.57 | G159: =per_game!L159 -> 0 | H159: =per_game!O159 -> 0.795 | I159: =per_game!R159 -> 7.1 | J159: =per_game!S159 -> 1.1 | K159: =per_game!T159 -> 0.3 | L159: =per_game!U159 -> 0.5 | M159: =per_game!V159 -> 1.8 | N159: =per_game!X159 -> 14
C160: =Roster!C160 -> G | D160: 18.227 | E160: =per_game!B160 & "-" & D160 -> Jarrett Jack-18.227 | F160: =per_game!I160 -> 0.485 | G160: =per_game!L160 -> 0.375 | H160: =per_game!O160 -> 0.867 | I160: =per_game!R160 -> 3 | J160: =per_game!S160 -> 4.5 | K160: =per_game!T160 -> 0.8 | L160: =per_game!U160 -> 0 | M160: =per_game!V160 -> 1.8 | N160: =per_game!X160 -> 10
C161: =Roster!C161 -> C | D161: 16.872 | E161: =per_game!B161 & "-" & D161 -> Harrison Barnes-16.872 | F161: =per_game!I161 -> 0.46 | G161: =per_game!L161 -> 0.353 | H161: =per_game!O161 -> 0.659 | I161: =per_game!R161 -> 4.8 | J161: =per_game!S161 -> 1.4 | K161: =per_game!T161 -> 0.6 | L161: =per_game!U161 -> 0.2 | M161: =per_game!V161 -> 1.4 | N161: =per_game!X161 -> 9.8
C162: =Roster!C162 -> F | D162: 8.334 | E162: =per_game!B162 & "-" & D162 -> Brandon Rush-8.334 | F162: =per_game!I162 -> 0.667 | G162: =per_game!L162 -> 0 | H162: =per_game!O162 -> 0.667 | I162: =per_game!R162 -> 0.5 | J162: =per_game!S162 -> 1 | K162: =per_game!T162 -> 0 | L162: =per_game!U162 -> 0 | M162: =per_game!V162 -> 1.5 | N162: =per_game!X162 -> 7
C163: =Roster!C163 -> G | D163: 13.15 | E163: =per_game!B163 & "-" & D163 -> Andrew Bogut-13.15 | F163: =per_game!I163 -> 0.55 | G163: =per_game!L163 -> 0 | H163: =per_game!O163 -> 0.5 | I163: =per_game!R163 -> 3.8 | J163: =per_game!S163 -> 2 | K163: =per_game!T163 -> 0.3 | L163: =per_game!U163 -> 1 | M163: =per_game!V163 -> 1 | N163: =per_game!X163 -> 6
C164: =Roster!C164 -> F | D164: 8.55 | E164: =per_game!B164 & "-" & D164 -> Richard Jefferson-8.55 | F164: =per_game!I164 -> 0.333 | G164: =per_game!L164 -> 0.167 | H164: =per_game!O164 -> 0.75 | I164: =per_game!R164 -> 1.4 | J164: =per_game!S164 -> 1.2 | K164: =per_game!T164 -> 0.5 | L164: =per_game!U164 -> 0.3 | M164: =per_game!V164 -> 0.3 | N164: =per_game!X164 -> 4.2
C165: =Roster!C165 -> G | D165: 9.66 | E165: =per_game!B165 & "-" & D165 -> Festus Ezeli-9.66 | F165: =per_game!I165 -> 0.49 | G165: =per_game!L165 -> 0 | H165: =per_game!O165 -> 0.37 | I165: =per_game!R165 -> 4.6 | J165: =per_game!S165 -> 0.2 | K165: =per_game!T165 -> 0.4 | L165: =per_game!U165 -> 1 | M165: =per_game!V165 -> 0.9 | N165: =per_game!X165 -> 3.5
C166: =Roster!C166 -> F | D166: 6.675 | E166: =per_game!B166 & "-" & D166 -> Draymond Green-6.675 | F166: =per_game!I166 -> 0.325 | G166: =per_game!L166 -> 0.25 | H166: =per_game!O166 -> 0.8 | I166: =per_game!R166 -> 2.6 | J166: =per_game!S166 -> 0.4 | K166: =per_game!T166 -> 0.5 | L166: =per_game!U166 -> 0.1 | M166: =per_game!V166 -> 0.5 | N166: =per_game!X166 -> 2.2
C167: =Roster!C167 -> F | D167: 3.436 | E167: =per_game!B167 & "-" & D167 -> Charles Jenkins-3.436 | F167: =per_game!I167 -> 0.611 | G167: =per_game!L167 -> 0 | H167: =per_game!O167 -> 0.625 | I167: =per_game!R167 -> 0.4 | J167: =per_game!S167 -> 0.3 | K167: =per_game!T167 -> 0.1 | L167: =per_game!U167 -> 0 | M167: =per_game!V167 -> 0.5 | N167: =per_game!X167 -> 1.9
C168: =Roster!C168 -> F | D168: 3.4 | E168: =per_game!B168 & "-" & D168 -> Jeremy Tyler-3.4 | F168: =per_game!I168 -> 0.6 | G168: =per_game!L168 -> 0 | H168: =per_game!O168 -> 1 | I168: =per_game!R168 -> 0.2 | J168: =per_game!S168 -> 0 | K168: =per_game!T168 -> 0.2 | L168: =per_game!U168 -> 0 | M168: =per_game!V168 -> 0.2 | N168: =per_game!X168 -> 1.6
C169: =Roster!C169 -> G | D169: 4.708 | E169: =per_game!B169 & "-" & D169 -> Andris Biedrins-4.708 | F169: =per_game!I169 -> 0.375 | G169: =per_game!L169 -> 0 | H169: =per_game!O169 -> 0.333 | I169: =per_game!R169 -> 2.7 | J169: =per_game!S169 -> 0.4 | K169: =per_game!T169 -> 0.4 | L169: =per_game!U169 -> 0.5 | M169: =per_game!V169 -> 0.6 | N169: =per_game!X169 -> 0.6
C170: =Roster!C170 -> C | D170: 1 | F170: =per_game!I170 -> 0 | G170: =per_game!L170 -> 0 | H170: =per_game!O170 -> 0 | I170: =per_game!R170 -> 0.3 | J170: =per_game!S170 -> 0.1 | K170: =per_game!T170 -> 0.3 | L170: =per_game!U170 -> 0.3 | M170: =per_game!V170 -> 0 | N170: =per_game!X170 -> 0
C171: =Roster!C171 -> 0 | D171: 0 | F171: =per_game!I171 -> 0 | G171: =per_game!L171 -> 0 | H171: =per_game!O171 -> 0 | I171: =per_game!R171 -> 0 | J171: =per_game!S171 -> 0 | K171: =per_game!T171 -> 0 | L171: =per_game!U171 -> 0 | M171: =per_game!V171 -> 0 | N171: =per_game!X171 -> 0
C172: =Roster!C172 -> 0 | D172: 0 | F172: =per_game!I172 -> 0 | G172: =per_game!L172 -> 0 | H172: =per_game!O172 -> 0 | I172: =per_game!R172 -> 0 | J172: =per_game!S172 -> 0 | K172: =per_game!T172 -> 0 | L172: =per_game!U172 -> 0 | M172: =per_game!V172 -> 0 | N172: =per_game!X172 -> 0
C173: =Roster!C173 -> Pos | E173: =per_game!B173 & "-" & D173 -> Player- | F173: =per_game!I173 -> FG% | G173: =per_game!L173 -> 3P% | H173: =per_game!O173 -> FT% | I173: =per_game!R173 -> TRB | J173: =per_game!S173 -> AST | K173: =per_game!T173 -> STL | L173: =per_game!U173 -> BLK | M173: =per_game!V173 -> TOV | N173: =per_game!X173 -> PTS
C174: =Roster!C174 -> C | D174: 33.402 | E174: =per_game!B174 & "-" & D174 -> James Harden-33.402 | F174: =per_game!I174 -> 0.427 | G174: =per_game!L174 -> 0.341 | H174: =per_game!O174 -> 0.834 | I174: =per_game!R174 -> 4.1 | J174: =per_game!S174 -> 5.4 | K174: =per_game!T174 -> 1.7 | L174: =per_game!U174 -> 0.6 | M174: =per_game!V174 -> 4.1 | N174: =per_game!X174 -> 24.1
C175: =Roster!C175 -> C | D175: 26.984 | E175: =per_game!B175 & "-" & D175 -> Chandler Parsons-26.984 | F175: =per_game!I175 -> 0.484 | G175: =per_game!L175 -> 0.429 | H175: =per_game!O175 -> 0.771 | I175: =per_game!R175 -> 6.7 | J175: =per_game!S175 -> 3.5 | K175: =per_game!T175 -> 1.1 | L175: =per_game!U175 -> 0.2 | M175: =per_game!V175 -> 2.1 | N175: =per_game!X175 -> 15.9
C176: =Roster!C176 -> G | D176: 22.559 | E176: =per_game!B176 & "-" & D176 -> Patrick Patterson-22.559 | F176: =per_game!I176 -> 0.511 | G176: =per_game!L176 -> 0.375 | H176: =per_game!O176 -> 0.773 | I176: =per_game!R176 -> 5.3 | J176: =per_game!S176 -> 1 | K176: =per_game!T176 -> 0.6 | L176: =per_game!U176 -> 0.6 | M176: =per_game!V176 -> 1.2 | N176: =per_game!X176 -> 14.6
C177: =Roster!C177 -> G | D177: 24.779 | E177: =per_game!B177 & "-" & D177 -> Omer Asik-24.779 | F177: =per_game!I177 -> 0.496 | G177: =per_game!L177 -> 0 | H177: =per_game!O177 -> 0.583 | I177: =per_game!R177 -> 12.3 | J177: =per_game!S177 -> 1.3 | K177: =per_game!T177 -> 0.8 | L177: =per_game!U177 -> 1.3 | M177: =per_game!V177 -> 3 | N177: =per_game!X177 -> 11
C178: =Roster!C178 -> G | D178: 22.871 | E178: =per_game!B178 & "-" & D178 -> Jeremy Lin-22.871 | F178: =per_game!I178 -> 0.393 | G178: =per_game!L178 -> 0.262 | H178: =per_game!O178 -> 0.816 | I178: =per_game!R178 -> 4.4 | J178: =per_game!S178 -> 6.6 | K178: =per_game!T178 -> 2 | L178: =per_game!U178 -> 0.4 | M178: =per_game!V178 -> 2.9 | N178: =per_game!X178 -> 10.9
C179: =Roster!C179 -> G | D179: 15.438 | E179: =per_game!B179 & "-" & D179 -> Marcus Morris-15.438 | F179: =per_game!I179 -> 0.45 | G179: =per_game!L179 -> 0.388 | H179: =per_game!O179 -> 0.6 | I179: =per_game!R179 -> 4.2 | J179: =per_game!S179 -> 0.8 | K179: =per_game!T179 -> 0.5 | L179: =per_game!U179 -> 0.5 | M179: =per_game!V179 -> 0.7 | N179: =per_game!X179 -> 8.7
C180: =Roster!C180 -> F | D180: 16.166 | E180: =per_game!B180 & "-" & D180 -> Carlos Delfino-16.166 | F180: =per_game!I180 -> 0.37 | G180: =per_game!L180 -> 0.346 | H180: =per_game!O180 -> 0.75 | I180: =per_game!R180 -> 4 | J180: =per_game!S180 -> 2 | K180: =per_game!T180 -> 1 | L180: =per_game!U180 -> 0.1 | M180: =per_game!V180 -> 1.1 | N180: =per_game!X180 -> 8.7
C181: =Roster!C181 -> G | D181: 11.779 | E181: =per_game!B181 & "-" & D181 -> Greg Smith-11.779 | F181: =per_game!I181 -> 0.579 | G181: =per_game!L181 -> 0 | H181: =per_game!O181 -> 0.8 | I181: =per_game!R181 -> 3.5 | J181: =per_game!S181 -> 0.7 | K181: =per_game!T181 -> 0.3 | L181: =per_game!U181 -> 0.4 | M181: =per_game!V181 -> 0.3 | N181: =per_game!X181 -> 5.8
C182: =Roster!C182 -> G | D182: 9.637 | E182: =per_game!B182 & "-" & D182 -> Toney Douglas-9.637 | F182: =per_game!I182 -> 0.304 | G182: =per_game!L182 -> 0.333 | H182: =per_game!O182 -> 1 | I182: =per_game!R182 -> 1.2 | J182: =per_game!S182 -> 1.7 | K182: =per_game!T182 -> 0.9 | L182: =per_game!U182 -> 0 | M182: =per_game!V182 -> 1.5 | N182: =per_game!X182 -> 5.7
C183: =Roster!C183 -> F | D183: 9.572 | E183: =per_game!B183 & "-" & D183 -> Daequan Cook-9.572 | F183: =per_game!I183 -> 0.381 | G183: =per_game!L183 -> 0.391 | H183: =per_game!O183 -> 0.5 | I183: =per_game!R183 -> 1.6 | J183: =per_game!S183 -> 1 | K183: =per_game!T183 -> 0.5 | L183: =per_game!U183 -> 0.3 | M183: =per_game!V183 -> 0.4 | N183: =per_game!X183 -> 5.3
C184: =Roster!C184 -> F | D184: 8.233 | E184: =per_game!B184 & "-" & D184 -> Terrence Jones-8.233 | F184: =per_game!I184 -> 0.333 | G184: =per_game!L184 -> 0.2 | H184: =per_game!O184 -> 1 | I184: =per_game!R184 -> 2 | J184: =per_game!S184 -> 0.4 | K184: =per_game!T184 -> 0.4 | L184: =per_game!U184 -> 0.6 | M184: =per_game!V184 -> 0.3 | N184: =per_game!X184 -> 3.6
C185: =Roster!C185 -> F | D185: 6.691 | E185: =per_game!B185 & "-" & D185 -> Cole Aldrich-6.691 | F185: =per_game!I185 -> 0.524 | G185: =per_game!L185 -> 0 | H185: =per_game!O185 -> 0.667 | I185: =per_game!R185 -> 2.1 | J185: =per_game!S185 -> 0.3 | K185: =per_game!T185 -> 0.1 | L185: =per_game!U185 -> 0.3 | M185: =per_game!V185 -> 0.3 | N185: =per_game!X185 -> 3
C186: =Roster!C186 -> F | D186: 4 | E186: =per_game!B186 & "-" & D186 -> Scott Machado-4 | F186: =per_game!I186 -> 0 | G186: =per_game!L186 -> 0 | H186: =per_game!O186 -> 1 | I186: =per_game!R186 -> 0 | J186: =per_game!S186 -> 1 | K186: =per_game!T186 -> 0 | L186: =per_game!U186 -> 0 | M186: =per_game!V186 -> 0 | N186: =per_game!X186 -> 2
C187: =Roster!C187 -> C | D187: 2.3 | F187: =per_game!I187 -> 0.5 | G187: =per_game!L187 -> 0 | H187: =per_game!O187 -> 0.5 | I187: =per_game!R187 -> 0.3 | J187: =per_game!S187 -> 0 | K187: =per_game!T187 -> 0 | L187: =per_game!U187 -> 0 | M187: =per_game!V187 -> 0 | N187: =per_game!X187 -> 1
C188: =Roster!C188 -> 0 | D188: 0 | F188: =per_game!I188 -> 0 | G188: =per_game!L188 -> 0 | H188: =per_game!O188 -> 0 | I188: =per_game!R188 -> 0 | J188: =per_game!S188 -> 0 | K188: =per_game!T188 -> 0 | L188: =per_game!U188 -> 0 | M188: =per_game!V188 -> 0 | N188: =per_game!X188 -> 0
C189: =Roster!C189 -> 0 | D189: 0 | F189: =per_game!I189 -> 0 | G189: =per_game!L189 -> 0 | H189: =per_game!O189 -> 0 | I189: =per_game!R189 -> 0 | J189: =per_game!S189 -> 0 | K189: =per_game!T189 -> 0 | L189: =per_game!U189 -> 0 | M189: =per_game!V189 -> 0 | N189: =per_game!X189 -> 0
C190: =Roster!C190 -> Pos | E190: =per_game!B190 & "-" & D190 -> Player- | F190: =per_game!I190 -> FG% | G190: =per_game!L190 -> 3P% | H190: =per_game!O190 -> FT% | I190: =per_game!R190 -> TRB | J190: =per_game!S190 -> AST | K190: =per_game!T190 -> STL | L190: =per_game!U190 -> BLK | M190: =per_game!V190 -> TOV | N190: =per_game!X190 -> PTS
C191: =Roster!C191 -> G | D191: 29.849 | E191: =per_game!B191 & "-" & D191 -> David West-29.849 | F191: =per_game!I191 -> 0.492 | G191: =per_game!L191 -> 0 | H191: =per_game!O191 -> 0.757 | I191: =per_game!R191 -> 8.3 | J191: =per_game!S191 -> 2.5 | K191: =per_game!T191 -> 0.6 | L191: =per_game!U191 -> 1.2 | M191: =per_game!V191 -> 1.8 | N191: =per_game!X191 -> 17.8
C192: =Roster!C192 -> F | D192: 25.291 | E192: =per_game!B192 & "-" & D192 -> George Hill-25.291 | F192: =per_game!I192 -> 0.424 | G192: =per_game!L192 -> 0.325 | H192: =per_game!O192 -> 0.842 | I192: =per_game!R192 -> 4.1 | J192: =per_game!S192 -> 5.3 | K192: =per_game!T192 -> 0.9 | L192: =per_game!U192 -> 0.4 | M192: =per_game!V192 -> 1.8 | N192: =per_game!X192 -> 14.8
C193: =Roster!C193 -> F | D193: 24.24 | E193: =per_game!B193 & "-" & D193 -> Paul George-24.24 | F193: =per_game!I193 -> 0.385 | G193: =per_game!L193 -> 0.367 | H193: =per_game!O193 -> 0.788 | I193: =per_game!R193 -> 6.5 | J193: =per_game!S193 -> 3.4 | K193: =per_game!T193 -> 1.2 | L193: =per_game!U193 -> 0.6 | M193: =per_game!V193 -> 2.5 | N193: =per_game!X193 -> 13.5
C194: =Roster!C194 -> G | D194: 22.165 | E194: =per_game!B194 & "-" & D194 -> Roy Hibbert-22.165 | F194: =per_game!I194 -> 0.39 | G194: =per_game!L194 -> 0 | H194: =per_game!O194 -> 0.575 | I194: =per_game!R194 -> 8.2 | J194: =per_game!S194 -> 1.4 | K194: =per_game!T194 -> 0.7 | L194: =per_game!U194 -> 3.1 | M194: =per_game!V194 -> 1.9 | N194: =per_game!X194 -> 9.7
C195: =Roster!C195 -> F | D195: 13.379 | E195: =per_game!B195 & "-" & D195 -> Gerald Green-13.379 | F195: =per_game!I195 -> 0.375 | G195: =per_game!L195 -> 0.365 | H195: =per_game!O195 -> 0.739 | I195: =per_game!R195 -> 4.1 | J195: =per_game!S195 -> 0.5 | K195: =per_game!T195 -> 0.2 | L195: =per_game!U195 -> 0.4 | M195: =per_game!V195 -> 1.1 | N195: =per_game!X195 -> 7.8
C196: =Roster!C196 -> C | D196: =$B$1*N196+$B$2*I196+$B$3*J196+$B$4*L196+$B$5*K196+$B$6*F196+$B$7*H196+$B$8*G196+$B$9*M196 -> 13.441 | E196: =per_game!B196 & "-" & D196 -> Lance Stephenson-13.441 | F196: =per_game!I196 -> 0.481 | G196: =per_game!L196 -> 0.41 | H196: =per_game!O196 -> 0.75 | I196: =per_game!R196 -> 2.9 | J196: =per_game!S196 -> 2.5 | K196: =per_game!T196 -> 0.6 | L196: =per_game!U196 -> 0.1 | M196: =per_game!V196 -> 1.5 | N196: =per_game!X196 -> 7.2
C197: =Roster!C197 -> G | D197: 12.304 | E197: =per_game!B197 & "-" & D197 -> Tyler Hansbrough-12.304 | F197: =per_game!I197 -> 0.384 | G197: =per_game!L197 -> 0 | H197: =per_game!O197 -> 0.72 | I197: =per_game!R197 -> 4.7 | J197: =per_game!S197 -> 0.2 | K197: =per_game!T197 -> 0.4 | L197: =per_game!U197 -> 0.2 | M197: =per_game!V197 -> 0.8 | N197: =per_game!X197 -> 6.5
C198: =Roster!C198 -> G | D198: 9.986 | E198: =per_game!B198 & "-" & D198 -> Sam Young-9.986 | F198: =per_game!I198 -> 0.405 | G198: =per_game!L198 -> 0.281 | H198: =per_game!O198 -> 0.4 | I198: =per_game!R198 -> 3.5 | J198: =per_game!S198 -> 0.9 | K198: =per_game!T198 -> 0.5 | L198: =per_game!U198 -> 0.1 | M198: =per_game!V198 -> 1.1 | N198: =per_game!X198 -> 5
C199: =Roster!C199 -> C | D199: 9.76 | E199: =per_game!B199 & "-" & D199 -> Ian Mahinmi-9.76 | F199: =per_game!I199 -> 0.393 | G199: =per_game!L199 -> 0 | H199: =per_game!O199 -> 0.667 | I199: =per_game!R199 -> 3.6 | J199: =per_game!S199 -> 0.2 | K199: =per_game!T199 -> 0.3 | L199: =per_game!U199 -> 1.1 | M199: =per_game!V199 -> 1.2 | N199: =per_game!X199 -> 4.7
C200: =Roster!C200 -> F | D200: 7.614 | E200: =per_game!B200 & "-" & D200 -> Jeff Pendergraph-7.614 | F200: =per_game!I200 -> 0.714 | G200: =per_game!L200 -> 0 | H200: =per_game!O200 -> 1 | I200: =per_game!R200 -> 2.3 | J200: =per_game!S200 -> 0.3 | K200: =per_game!T200 -> 0 | L200: =per_game!U200 -> 0.3 | M200: =per_game!V200 -> 0.7 | N200: =per_game!X200 -> 3.7
... 313 more rows

Sheet custom (hidden)
A1: Points | B1: ='Create Team'!B24 -> 1
A2: Rebounds | B2: ='Create Team'!B25 -> 1
A3: Assists | B3: ='Create Team'!B26 -> 1 | F3: G | G3: GS | H3: MP | I3: FG | J3: FGA | K3: FG% | L3: 3P | M3: 3PA | N3: 3P% | O3: FT | P3: FTA | Q3: FT% | R3: ORB | S3: DRB | T3: TRB | U3: AST | V3: STL | W3: BLK | X3: TOV | Y3: PF | Z3: PTS
A4: Blocks | B4: ='Create Team'!B27 -> 1 | C4: =Roster!C3 -> G | D4: =F4*$B$21+G4*$B$20+H4*$B$19+I4*$B$13+J4*$B$14+K4*$B$6+L4*$B$17+M4*$B$18+N4*$B$8+O4*$B$15+P4*$B$16+Q4*$B$7+R4*$B$10+S4*$B$11+T4*$B$2+U4*$B$3+V4*$B$5+W4*$B$4+X4*$B$9+Y4*$B$12+Z4*$B$1 -> 123.979 | E4: =per_game!B3 & "-" & D4 -> Josh Smith-123.979 | F4: =per_game!D3 -> 13 | G4: =per_game!E3 -> 13 | H4: =per_game!F3 -> 34.9 | I4: =per_game!G3 -> 7 | J4: =per_game!H3 -> 15.8 | K4: =per_game!I3 -> 0.444 | L4: =per_game!J3 -> 0.4 | M4: =per_game!K3 -> 1.1 | N4: =per_game!L3 -> 0.357 | O4: =per_game!M3 -> 1.7 | P4: =per_game!N3 -> 3.5 | Q4: =per_game!O3 -> 0.478 | R4: =per_game!P3 -> 1.8 | S4: =per_game!Q3 -> 5.8 | T4: =per_game!R3 -> 7.6 | U4: =per_game!S3 -> 3.7 | V4: =per_game!T3 -> 1.4 | W4: =per_game!U3 -> 2.4 | X4: =per_game!V3 -> 3.2 | Y4: =per_game!W3 -> 3.3 | Z4: =per_game!X3 -> 16.1
A5: Steals | B5: ='Create Team'!B28 -> 1 | C5: =Roster!C4 -> C | D5: =F5*$B$21+G5*$B$20+H5*$B$19+I5*$B$13+J5*$B$14+K5*$B$6+L5*$B$17+M5*$B$18+N5*$B$8+O5*$B$15+P5*$B$16+Q5*$B$7+R5*$B$10+S5*$B$11+T5*$B$2+U5*$B$3+V5*$B$5+W5*$B$4+X5*$B$9+Y5*$B$12+Z5*$B$1 -> 125.558 | E5: =per_game!B4 & "-" & D5 -> Al Horford-125.558 | F5: =per_game!D4 -> 13 | G5: =per_game!E4 -> 13 | H5: =per_game!F4 -> 36.6 | I5: =per_game!G4 -> 7.1 | J5: =per_game!H4 -> 13.2 | K5: =per_game!I4 -> 0.535 | L5: =per_game!J4 -> 0 | M5: =per_game!K4 -> 0 | N5: =per_game!L4 -> 0 | O5: =per_game!M4 -> 1.8 | P5: =per_game!N4 -> 3.4 | Q5: =per_game!O4 -> 0.523 | R5: =per_game!P4 -> 2.7 | S5: =per_game!Q4 -> 6.8 | T5: =per_game!R4 -> 9.5 | U5: =per_game!S4 -> 3.5 | V5: =per_game!T4 -> 0.5 | W5: =per_game!U4 -> 1.1 | X5: =per_game!V4 -> 1.8 | Y5: =per_game!W4 -> 1.8 | Z5: =per_game!X4 -> 15.9
A6: FG % | B6: ='Create Team'!B29 -> 1 | C6: =Roster!C5 -> G | D6: 88.414 | E6: =per_game!B5 & "-" & D6 -> Louis Williams-88.414 | F6: =per_game!D5 -> 14 | G6: =per_game!E5 -> 0 | H6: =per_game!F5 -> 24.3 | I6: =per_game!G5 -> 4.5 | J6: =per_game!H5 -> 10.6 | K6: =per_game!I5 -> 0.423 | L6: =per_game!J5 -> 1.5 | M6: =per_game!K5 -> 4.7 | N6: =per_game!L5 -> 0.318 | O6: =per_game!M5 -> 3.4 | P6: =per_game!N5 -> 3.9 | Q6: =per_game!O5 -> 0.873 | R6: =per_game!P5 -> 0.2 | S6: =per_game!Q5 -> 1.8 | T6: =per_game!R5 -> 2 | U6: =per_game!S5 -> 3.3 | V6: =per_game!T5 -> 1.1 | W6: =per_game!U5 -> 0.3 | X6: =per_game!V5 -> 1.4 | Y6: =per_game!W5 -> 1.3 | Z6: =per_game!X5 -> 13.9
A7: FT % | B7: ='Create Team'!B30 -> 1 | C7: =Roster!C6 -> F | D7: 108.088 | E7: =per_game!B6 & "-" & D7 -> Jeff Teague-108.088 | F7: =per_game!D6 -> 14 | G7: =per_game!E6 -> 14 | H7: =per_game!F6 -> 31 | I7: =per_game!G6 -> 5.4 | J7: =per_game!H6 -> 11.5 | K7: =per_game!I6 -> 0.466 | L7: =per_game!J6 -> 1.1 | M7: =per_game!K6 -> 2.4 | N7: =per_game!L6 -> 0.455 | O7: =per_game!M6 -> 1.9 | P7: =per_game!N6 -> 2.1 | Q7: =per_game!O6 -> 0.867 | R7: =per_game!P6 -> 0.6 | S7: =per_game!Q6 -> 1.9 | T7: =per_game!R6 -> 2.4 | U7: =per_game!S6 -> 7.1 | V7: =per_game!T6 -> 1.8 | W7: =per_game!U6 -> 0.4 | X7: =per_game!V6 -> 3 | Y7: =per_game!W6 -> 1.9 | Z7: =per_game!X6 -> 13.6
A8: 3 pt % | B8: ='Create Team'!B31 -> 1 | C8: =Roster!C7 -> F | D8: 98.204 | E8: =per_game!B7 & "-" & D8 -> Kyle Korver-98.204 | F8: =per_game!D7 -> 13 | G8: =per_game!E7 -> 13 | H8: =per_game!F7 -> 29.3 | I8: =per_game!G7 -> 3.6 | J8: =per_game!H7 -> 8.5 | K8: =per_game!I7 -> 0.427 | L8: =per_game!J7 -> 2.6 | M8: =per_game!K7 -> 6.2 | N8: =per_game!L7 -> 0.42 | O8: =per_game!M7 -> 0.9 | P8: =per_game!N7 -> 1.1 | Q8: =per_game!O7 -> 0.857 | R8: =per_game!P7 -> 0.3 | S8: =per_game!Q7 -> 3.4 | T8: =per_game!R7 -> 3.7 | U8: =per_game!S7 -> 1.6 | V8: =per_game!T7 -> 1 | W8: =per_game!U7 -> 0.4 | X8: =per_game!V7 -> 0.7 | Y8: =per_game!W7 -> 2.2 | Z8: =per_game!X7 -> 10.8
A9: Turnovers | B9: ='Create Team'!B32 -> -1 | C9: =Roster!C8 -> G | D9: 76.427 | E9: =per_game!B8 & "-" & D9 -> Zaza Pachulia-76.427 | F9: =per_game!D8 -> 14 | G9: =per_game!E8 -> 5 | H9: =per_game!F8 -> 24.4 | I9: =per_game!G8 -> 2.6 | J9: =per_game!H8 -> 5.1 | K9: =per_game!I8 -> 0.5 | L9: =per_game!J8 -> 0 | M9: =per_game!K8 -> 0.1 | N9: =per_game!L8 -> 0 | O9: =per_game!M8 -> 1.7 | P9: =per_game!N8 -> 2.4 | Q9: =per_game!O8 -> 0.727 | R9: =per_game!P8 -> 2.8 | S9: =per_game!Q8 -> 4.4 | T9: =per_game!R8 -> 7.1 | U9: =per_game!S8 -> 1.6 | V9: =per_game!T8 -> 0.8 | W9: =per_game!U8 -> 0.4 | X9: =per_game!V8 -> 1.7 | Y9: =per_game!W8 -> 2.4 | Z9: =per_game!X8 -> 6.9
A10: Offensive Rebounds | B10: ='Create Team'!B33 -> 1 | C10: =Roster!C9 -> C | D10: 65.172 | E10: =per_game!B9 & "-" & D10 -> Devin Harris-65.172 | F10: =per_game!D9 -> 12 | G10: =per_game!E9 -> 4 | H10: =per_game!F9 -> 21.8 | I10: =per_game!G9 -> 2.5 | J10: =per_game!H9 -> 6.1 | K10: =per_game!I9 -> 0.411 | L10: =per_game!J9 -> 0.9 | M10: =per_game!K9 -> 2.9 | N10: =per_game!L9 -> 0.314 | O10: =per_game!M9 -> 0.9 | P10: =per_game!N9 -> 1.4 | Q10: =per_game!O9 -> 0.647 | R10: =per_game!P9 -> 0.1 | S10: =per_game!Q9 -> 1.5 | T10: =per_game!R9 -> 1.6 | U10: =per_game!S9 -> 2.5 | V10: =per_game!T9 -> 1 | W10: =per_game!U9 -> 0.4 | X10: =per_game!V9 -> 1.2 | Y10: =per_game!W9 -> 1.4 | Z10: =per_game!X9 -> 6.8
